Workbook

Sheet Intro
A3: . . . . . . . . . . . . . . . . . . . . . . . . . . . . . . . . . . . . . . . . . . . . . . . . . . . .
H9: Version 3.0
C10: Cost of Production / Marketing / Management | M10: January | N10: 2016
D11: =I15&" Crop Year" -> 2025 Crop Year | M11: February | N11: =SUM(N10+1) -> 2017
M12: March | N12: 2018
M13: April | N13: 2019
M14: May | N14: 2020
G15: Date: | H15: January | I15: 2025 | M15: June | N15: 2021
M16: July | N16: 2022
M17: August | N17: 2023
M18: September | N18: 2024
B19: The Cropplan Production Cost calculator is for producers to estimate the cash cost of producing field crops on their farm on an annual basis. Cropplan calculates marginal returns, breakeven yields, breakeven crop prices on total production and remaining unsold inventory, land and machinery cost analysis and cash based finanical ratios. General Manitoba Agriculture recommendations are assumed for initial default values for fertilizers and chemical inputs. Knowing your cost of production is key to your management, marketing strategy, and risk management planning to give your farm the best opportunity for overall profitability. | M19: October | N19: 2025
M20: November
M21: December
B29: These budgets may be adjusted by putting in your own figures. As a producer you are encouraged to calculate your own costs of production for various crops and follow best agronomic practices. On each farm, costs and yields differ due to soil type, climate and agronomic practices.
B34: Successfully managing and planning your business success starts with you. Contact your nearest for the support, advice and resources you need to make sound decisions for the continued success of your farm business. If you have questions, and a will contact you.
B39: This tool is available as an Excel worksheet at: is also available to help determine machinery costs.
B43: Note: This budget is only a guide and is not intended as an in depth study of the cost of production of this industry. Interpretation and use of this information is the responsibility of the user. If you need help with a budget, contact your nearest Manitoba Agriculture and MASC Service Centre.

Sheet User Guide
A1: CROPPLAN User Guide
A2: CropPlan can be used throughout the crop year - cropping decisions before seeding, during the growing season to track and evaluate production decisions, and after harvest when marketing grain.
A5: Step #1 - Operating Costs Worksheet:
B6: Crop and Hail Insurance - select your MASC Risk Area, coverage level, and EMI (excess moisture insurance) coverage level from the drop down menus. Enter your MASC discount level. Select MASC hail insurance coverage level from drop down menu. Enter private hail insurance coverage and rate percentage. In the listing of crops, enter your IPI (individual productivity index) and any changes to hail coverage levels. Probable yield for your Risk Area (based on D soil) will be displayed and insured yield will be calculated based on user selections.
B12: Hired Labour - Enter your total annual cost for hired labour or enter the hours per acre and cost per hour.
B14: Owner Withdrawal - Enter the total annual amount you pay yourself from the farm business.
B16: Fuel - Enter your total annual cost for fuel or enter your average fuel cost per litre and complete the usage chart per crop.
B19: Machinery Operating - Enter your total annual cost for repairs and insurance or enter your average cost per acre.
B21: Other Operating - Enter your total annual cost for each other cost or enter your average cost per acre.
B23: Land Taxes - Enter your total annual cost or enter your average cost per acre.
B25: Operating Interest - Enter your total annual interest cost or select Yes or No from the drop down menu on operating loan use, then enter your interest rate and the number of months that your farm has an operating loan.
A28: Step #2 - Land & Equipment Worksheet:
B29: Acres - Enter the total owned and rented acres. Note: An error message will appear regarding acres, and will remain until all your acres are allocated to each of the crops that you select for your rotation.
B32: Land Loans - Enter the total annual payment and number of acres for each of your land loans. Enter your total owned acres below the land loan section.
B35: Land Rental - Enter the total acres and cost per acre for each landowner.
B37: Equipment Loans - Enter the annual payment for each equipment loan.
B39: Equipment Leases - Enter the annual lease payment for each equipment lease.
A41: Step #3 - Fertilizer Worksheet:
B42: Enter your fertilizer costs and fertilizer type used. For example, if your farm bands or broadcasts urea (46-0-0) preseeding, in line 6 enter the cost and 46 in the N Fertilizer Analysis column. Supplemental Nitrogen refers to N applied after emergence.
A46: Step #4 - Crops Worksheets:
B47: Select Crop - Select the crop type from the drop down menu and enter the total acres of the selected crop.
B49: Seed - Enter any changes to the initial default seeding rate and cost per unit. Enter the variety name.
B51: Fertilizer - Enter any changes to the initial default fertilizer rates.
B53: Crop Protection - Enter any changes to the initial default crop protection costs or enter the product name, unit type, acres per unit and cost per unit for each chemical in herbicide, fungicide and insecticide section.
B56: Production Costs Summary - Enter any changes to your target/expected yield per acre. Total operating cost, fixed cost and total costs will be calculated.
B59: Breakeven Analysis - B/E prices for total unsold production over operating, operating and fixed, and total costs will be calculated per unit.
B62: Marketing Analysis - Enter the date, grain company, total units sold, and price per unit for each grain sale booked. B/E prices on remaining unsold inventory will be calculated. Enter the est. market price on remaining unsold inventory, other income. Avg. net market price per unit will be calculated.
B66: Profitability Analysis - Total Gross Revenue will be calculated per acre and total per crop. Marginal returns over operating, operating and fixed, and total costs (net profit) and operating expense ratio will be calculated for the crop.
B69: Breakeven Analysis - B/E yield per acre will be calculated for operating, operating and fixed, and total costs.
A71: Step #5 - Farm Based Business Worksheet:
B72: Income - Select the type of Custom Work, Equipment Rental & Repair, Retail Sales, and Other. For each section, enter the number of units, unit type and cost per unit.
B75: Expense - Enter the Operating and Fixed expenses listed for the farm based (non-farm) business.
A77: Step #6 - Summary (Total):
B78: Production Costs - Total operating, fixed and total costs will be calculated for each crop.
B80: Profitability Analysis - Total gross revenue and marginal returns will be calculated for each crop.
B82: Insured Risk Analysis - Total AgriInsurance insured value will be calculated for each crop. Cost not covered by AgriInsurance over operating, operating and fixed and total costs will be calculated.
A85: Step #7 - Summary (Acre):
B86: Production Costs - Per acre operating, fixed and total costs will be calculated for each crop.
B88: Profitability Analysis - Per acre gross revenue and marginal returns will be calculated for each crop.
B90: Breakeven Analysis - B/E yield per acre and price per unit will be calculated.
A92: Step #8 - CROPPLAN Financial Analysis:
B93: Financial ratios for Profitability, Financial Efficiency, Land and Equipment will be calculated for your farm. Ratios will be rated as strong, satisfactory or weak to indicate the financial health or give an indication of potential areas of concern for your farm business. Marginal returns on a per acre and per unit (bushel or pound), breakeven yield and prices, and insured risk are analyzed.
A98: Step #9 - CROPPLAN What If? Analysis:
B99: Thinking about makes changes to your farm? The What If? Analysis calculates the impact of one or more changes and compares the Financial Ratios for your original MYFARM projection to What If? projection. Enter changes to each variable as they apply to your What If? scenario for your farm.
A103: Step #10 - CROPPLAN Product:
B104: A summary of the seed, fertilizer and grain production, marketing and storage requirements will be calculated. This is a handy reference for securing seed, fertilizer and grain storage needs for your farm business.

Sheet Summary-Total
A3: =" CROPPLAN Production Costs "&Intro!I15&" (Total Dollars)" -> CROPPLAN Production Costs 2025 (Total Dollars)
B5: Date Printed: | C5: TOTAL | E5: =IF('Farm Business'!H42=0,"","Farm Business") ->  | F5: =IF(Crop1!$C$3="(select crop)","",Crop1!$C$3) -> Canola | G5: =IF('2'!$C$3="(select crop)","",'2'!$C$3) -> Wheat | H5: =IF('3'!$C$3="(select crop)","",'3'!$C$3) ->  | I5: =IF('4'!$C$3="(select crop)","",'4'!$C$3) ->  | J5: =IF('5'!$C$3="(select crop)","",'5'!$C$3) ->  | K5: =IF('6'!$C$3="(select crop)","",'6'!$C$3) ->  | L5: =IF('7'!$C$3="(select crop)","",'7'!$C$3) ->  | M5: =IF('8'!$C$3="(select crop)","",'8'!$C$3) ->  | N5: =IF('9'!$C$3="(select crop)","",'9'!$C$3) ->  | O5: =IF('10'!$C$3="(select crop)","",'10'!$C$3) ->  | P5: =IF('11'!$C$3="(select crop)","",'11'!$C$3) ->  | Q5: =IF('12'!$C$3="(select crop)","",'12'!$C$3) ->  | R5: =IF('13'!$C$3="(select crop)","",'13'!$C$3) ->  | S5: =IF('14'!$C$3="(select crop)","",'14'!$C$3) ->  | T5: =IF('15'!$C$3="(select crop)","",'15'!$C$3) ->  | U5: =IF('16'!$C$3="(select crop)","",'16'!$C$3) -> 
B6: =TODAY() -> 2025-01-02 | F6: =IF(Crop1!$F$8="(enter name here)","",Crop1!$F$8) ->  | G6: =IF('2'!$F$8="(enter name here)","",'2'!$F$8) ->  | H6: =IF('3'!$F$8="(enter name here)","",'3'!$F$8) ->  | I6: =IF('4'!$F$8="(enter name here)","",'4'!$F$8) ->  | J6: =IF('5'!$F$8="(enter name here)","",'5'!$F$8) ->  | K6: =IF('6'!$F$8="(enter name here)","",'6'!$F$8) ->  | L6: =IF('7'!$F$8="(enter name here)","",'7'!$F$8) ->  | M6: =IF('8'!$F$8="(enter name here)","",'8'!$F$8) ->  | N6: =IF('9'!$F$8="(enter name here)","",'9'!$F$8) ->  | O6: =IF('10'!$F$8="(enter name here)","",'10'!$F$8) ->  | P6: =IF('11'!$F$8="(enter name here)","",'11'!$F$8) ->  | Q6: =IF('12'!$F$8="(enter name here)","",'12'!$F$8) ->  | R6: =IF('13'!$F$8="(enter name here)","",'13'!$F$8) ->  | S6: =IF('14'!$F$8="(enter name here)","",'14'!$F$8) ->  | T6: =IF('15'!$F$8="(enter name here)","",'15'!$F$8) ->  | U6: =IF('16'!$F$8="(enter name here)","",'16'!$F$8) -> 
B8: Acres | C8: =SUM(F8:U8) -> 2 | F8: =Crop1!$H$3 -> 1 | G8: ='2'!$H$3 -> 1 | H8: ='3'!$H$3 -> 0 | I8: ='4'!$H$3 -> 0 | J8: ='5'!$H$3 -> 0 | K8: ='6'!$H$3 -> 0 | L8: ='7'!$H$3 -> 0 | M8: ='8'!$H$3 -> 0 | N8: ='9'!$H$3 -> 0 | O8: ='10'!$H$3 -> 0 | P8: ='11'!$H$3 -> 0 | Q8: ='12'!$H$3 -> 0 | R8: ='13'!$H$3 -> 0 | S8: ='14'!$H$3 -> 0 | T8: ='15'!$H$3 -> 0 | U8: ='16'!$H$3 -> 0
A10: A. Operating Costs | C10: =IF(C8=0,"",IF(OR('Land & Equip'!C28-'Summary-Total'!C8>40,'Land & Equip'!C28-'Summary-Total'!C8<-40),"ERROR Total Crop Acres are NOT EQUAL to "&TEXT('Land & Equip'!C28,"#,###")&" Total Landbase Acres","")) -> 
B11: Seed & Treatment | C11: =SUM(E11:U11) -> 116.5 | E11: ="-" -> - | F11: =Crop1!$J$9 -> 82.5 | G11: ='2'!$J$9 -> 34 | H11: ='3'!$J$9 -> 0 | I11: ='4'!$J$9 -> 0 | J11: ='5'!$J$9 -> 0 | K11: ='6'!$J$9 -> 0 | L11: ='7'!$J$9 -> 0 | M11: ='8'!$J$9 -> 0 | N11: ='9'!$J$9 -> 0 | O11: ='10'!$J$9 -> 0 | P11: ='11'!$J$9 -> 0 | Q11: ='12'!$J$9 -> 0 | R11: ='13'!$J$9 -> 0 | S11: ='14'!$J$9 -> 0 | T11: ='15'!$J$9 -> 0 | U11: ='16'!$J$9 -> 0
B12: Fertilizer | C12: =SUM(E12:U12) -> 263.6361045 | E12: ="-" -> - | F12: =Crop1!$J$30 -> 145.6056025 | G12: ='2'!$J$30 -> 118.030502 | H12: ='3'!$J$30 -> 0 | I12: ='4'!$J$30 -> 0 | J12: ='5'!$J$30 -> 0 | K12: ='6'!$J$30 -> 0 | L12: ='7'!$J$30 -> 0 | M12: ='8'!$J$30 -> 0 | N12: ='9'!$J$30 -> 0 | O12: ='10'!$J$30 -> 0 | P12: ='11'!$J$30 -> 0 | Q12: ='12'!$J$30 -> 0 | R12: ='13'!$J$30 -> 0 | S12: ='14'!$J$30 -> 0 | T12: ='15'!$J$30 -> 0 | U12: ='16'!$J$30 -> 0
B13: Herbicide | C13: 65.75 | E13: ="-" -> - | F13: =Crop1!$J$44 -> 30 | G13: ='2'!$J$44 -> 35.75 | H13: ='3'!$J$44 -> 0 | I13: ='4'!$J$44 -> 0 | J13: ='5'!$J$44 -> 0 | K13: ='6'!$J$44 -> 0 | L13: ='7'!$J$44 -> 0 | M13: ='8'!$J$44 -> 0 | N13: ='9'!$J$44 -> 0 | O13: ='10'!$J$44 -> 0 | P13: ='11'!$J$44 -> 0 | Q13: ='12'!$J$44 -> 0 | R13: ='13'!$J$44 -> 0 | S13: ='14'!$J$44 -> 0 | T13: ='15'!$J$44 -> 0 | U13: ='16'!$J$44 -> 0
B14: Fungicide | C14: 42.25 | E14: ="-" -> - | F14: =Crop1!$J$53 -> 22.75 | G14: ='2'!$J$53 -> 19.5 | H14: ='3'!$J$53 -> 0 | I14: ='4'!$J$53 -> 0 | J14: ='5'!$J$53 -> 0 | K14: ='6'!$J$53 -> 0 | L14: ='7'!$J$53 -> 0 | M14: ='8'!$J$53 -> 0 | N14: ='9'!$J$53 -> 0 | O14: ='10'!$J$53 -> 0 | P14: ='11'!$J$53 -> 0 | Q14: ='12'!$J$53 -> 0 | R14: ='13'!$J$53 -> 0 | S14: ='14'!$J$53 -> 0 | T14: ='15'!$J$53 -> 0 | U14: ='16'!$J$53 -> 0
B15: Insecticide | C15: 5.75 | E15: ="-" -> - | F15: =Crop1!$J$62 -> 5.75 | G15: ='2'!$J$62 -> 0 | H15: ='3'!$J$62 -> 0 | I15: ='4'!$J$62 -> 0 | J15: ='5'!$J$62 -> 0 | K15: ='6'!$J$62 -> 0 | L15: ='7'!$J$62 -> 0 | M15: ='8'!$J$62 -> 0 | N15: ='9'!$J$62 -> 0 | O15: ='10'!$J$62 -> 0 | P15: ='11'!$J$62 -> 0 | Q15: ='12'!$J$62 -> 0 | R15: ='13'!$J$62 -> 0 | S15: ='14'!$J$62 -> 0 | T15: ='15'!$J$62 -> 0 | U15: ='16'!$J$62 -> 0
B16: Fuel | C16: 59.77194358 | E16: ='Farm Business'!G49 -> 0 | F16: =IF(F8=0,0,IF('Op Costs'!$E$77=0,VLOOKUP(Crop1!$C$3,'Op Costs'!$B$83:$D$100,3,FALSE)*Crop1!$H$3,('Op Costs'!$E$77/'Summary-Total'!$C$8)*Crop1!$H$3)) -> 29.80215874 | G16: =IF(G8=0,0,IF('Op Costs'!$E$77=0,VLOOKUP('2'!$C$3,'Op Costs'!$B$83:$D$100,3,FALSE)*'2'!$H$3,('Op Costs'!$E$77/'Summary-Total'!$C$8)*'2'!$H$3)) -> 29.96978484 | H16: =IF(H8=0,0,IF('Op Costs'!$E$77=0,VLOOKUP('3'!$C$3,'Op Costs'!$B$83:$D$100,3,FALSE)*'3'!$H$3,('Op Costs'!$E$77/'Summary-Total'!$C$8)*'3'!$H$3)) -> 0 | I16: =IF(I8=0,0,IF('Op Costs'!$E$77=0,VLOOKUP('4'!$C$3,'Op Costs'!$B$83:$D$100,3,FALSE)*'4'!$H$3,('Op Costs'!$E$77/'Summary-Total'!$C$8)*'4'!$H$3)) -> 0 | J16: =IF(J8=0,0,IF('Op Costs'!$E$77=0,VLOOKUP('5'!$C$3,'Op Costs'!$B$83:$D$100,3,FALSE)*'5'!$H$3,('Op Costs'!$E$77/'Summary-Total'!$C$8)*'5'!$H$3)) -> 0 | K16: =IF(K8=0,0,IF('Op Costs'!$E$77=0,VLOOKUP('6'!$C$3,'Op Costs'!$B$83:$D$100,3,FALSE)*'6'!$H$3,('Op Costs'!$E$77/'Summary-Total'!$C$8)*'6'!$H$3)) -> 0 | L16: =IF(L8=0,0,IF('Op Costs'!$E$77=0,VLOOKUP('7'!$C$3,'Op Costs'!$B$83:$D$100,3,FALSE)*'7'!$H$3,('Op Costs'!$E$77/'Summary-Total'!$C$8)*'7'!$H$3)) -> 0 | M16: =IF(M8=0,0,IF('Op Costs'!$E$77=0,VLOOKUP('8'!$C$3,'Op Costs'!$B$83:$D$100,3,FALSE)*'8'!$H$3,('Op Costs'!$E$77/'Summary-Total'!$C$8)*'8'!$H$3)) -> 0 | N16: =IF(N8=0,0,IF('Op Costs'!$E$77=0,VLOOKUP('9'!$C$3,'Op Costs'!$B$83:$D$100,3,FALSE)*'9'!$H$3,('Op Costs'!$E$77/'Summary-Total'!$C$8)*'9'!$H$3)) -> 0 | O16: =IF(O8=0,0,IF('Op Costs'!$E$77=0,VLOOKUP('10'!$C$3,'Op Costs'!$B$83:$D$100,3,FALSE)*'10'!$H$3,('Op Costs'!$E$77/'Summary-Total'!$C$8)*'10'!$H$3)) -> 0 | P16: =IF(P8=0,0,IF('Op Costs'!$E$77=0,VLOOKUP('11'!$C$3,'Op Costs'!$B$83:$D$100,3,FALSE)*'11'!$H$3,('Op Costs'!$E$77/'Summary-Total'!$C$8)*'11'!$H$3)) -> 0 | Q16: =IF(Q8=0,0,IF('Op Costs'!$E$77=0,VLOOKUP('12'!$C$3,'Op Costs'!$B$83:$D$100,3,FALSE)*'12'!$H$3,('Op Costs'!$E$77/'Summary-Total'!$C$8)*'12'!$H$3)) -> 0 | R16: =IF(R8=0,0,IF('Op Costs'!$E$77=0,VLOOKUP('13'!$C$3,'Op Costs'!$B$83:$D$100,3,FALSE)*'13'!$H$3,('Op Costs'!$E$77/'Summary-Total'!$C$8)*'13'!$H$3)) -> 0 | S16: =IF(S8=0,0,IF('Op Costs'!$E$77=0,VLOOKUP('14'!$C$3,'Op Costs'!$B$83:$D$100,3,FALSE)*'14'!$H$3,('Op Costs'!$E$77/'Summary-Total'!$C$8)*'14'!$H$3)) -> 0 | T16: =IF(T8=0,0,IF('Op Costs'!$E$77=0,VLOOKUP('15'!$C$3,'Op Costs'!$B$83:$D$100,3,FALSE)*'15'!$H$3,('Op Costs'!$E$77/'Summary-Total'!$C$8)*'15'!$H$3)) -> 0 | U16: =IF(U8=0,0,IF('Op Costs'!$E$77=0,VLOOKUP('16'!$C$3,'Op Costs'!$B$83:$D$100,3,FALSE)*'16'!$H$3,('Op Costs'!$E$77/'Summary-Total'!$C$8)*'16'!$H$3)) -> 0
B17: Hired Labour | C17: 10.8 | E17: ='Farm Business'!G48 -> 0 | F17: =IF('Op Costs'!$E$58=0,IF('Op Costs'!$K$58="yes",'Op Costs'!$J$59*'Op Costs'!$N$59,0),('Op Costs'!$E$58/'Summary-Total'!$C$8))*Crop1!$H$3 -> 5.4 | G17: =IF('Op Costs'!$E$58=0,IF('Op Costs'!$K$58="yes",'Op Costs'!$J$59*'Op Costs'!$N$59,0),('Op Costs'!$E$58/'Summary-Total'!$C$8))*'2'!$H$3 -> 5.4 | H17: =IF('Op Costs'!$E$58=0,IF('Op Costs'!$K$58="yes",'Op Costs'!$J$59*'Op Costs'!$N$59,0),('Op Costs'!$E$58/'Summary-Total'!$C$8))*'3'!$H$3 -> 0 | I17: =IF('Op Costs'!$E$58=0,IF('Op Costs'!$K$58="yes",'Op Costs'!$J$59*'Op Costs'!$N$59,0),('Op Costs'!$E$58/'Summary-Total'!$C$8))*'4'!$H$3 -> 0 | J17: =IF('Op Costs'!$E$58=0,IF('Op Costs'!$K$58="yes",'Op Costs'!$J$59*'Op Costs'!$N$59,0),('Op Costs'!$E$58/'Summary-Total'!$C$8))*'5'!$H$3 -> 0 | K17: =IF('Op Costs'!$E$58=0,IF('Op Costs'!$K$58="yes",'Op Costs'!$J$59*'Op Costs'!$N$59,0),('Op Costs'!$E$58/'Summary-Total'!$C$8))*'6'!$H$3 -> 0 | L17: =IF('Op Costs'!$E$58=0,IF('Op Costs'!$K$58="yes",'Op Costs'!$J$59*'Op Costs'!$N$59,0),('Op Costs'!$E$58/'Summary-Total'!$C$8))*'7'!$H$3 -> 0 | M17: =IF('Op Costs'!$E$58=0,IF('Op Costs'!$K$58="yes",'Op Costs'!$J$59*'Op Costs'!$N$59,0),('Op Costs'!$E$58/'Summary-Total'!$C$8))*'8'!$H$3 -> 0 | N17: =IF('Op Costs'!$E$58=0,IF('Op Costs'!$K$58="yes",'Op Costs'!$J$59*'Op Costs'!$N$59,0),('Op Costs'!$E$58/'Summary-Total'!$C$8))*'9'!$H$3 -> 0 | O17: =IF('Op Costs'!$E$58=0,IF('Op Costs'!$K$58="yes",'Op Costs'!$J$59*'Op Costs'!$N$59,0),('Op Costs'!$E$58/'Summary-Total'!$C$8))*'10'!$H$3 -> 0 | P17: =IF('Op Costs'!$E$58=0,IF('Op Costs'!$K$58="yes",'Op Costs'!$J$59*'Op Costs'!$N$59,0),('Op Costs'!$E$58/'Summary-Total'!$C$8))*'11'!$H$3 -> 0 | Q17: =IF('Op Costs'!$E$58=0,IF('Op Costs'!$K$58="yes",'Op Costs'!$J$59*'Op Costs'!$N$59,0),('Op Costs'!$E$58/'Summary-Total'!$C$8))*'12'!$H$3 -> 0 | R17: =IF('Op Costs'!$E$58=0,IF('Op Costs'!$K$58="yes",'Op Costs'!$J$59*'Op Costs'!$N$59,0),('Op Costs'!$E$58/'Summary-Total'!$C$8))*'13'!$H$3 -> 0 | S17: =IF('Op Costs'!$E$58=0,IF('Op Costs'!$K$58="yes",'Op Costs'!$J$59*'Op Costs'!$N$59,0),('Op Costs'!$E$58/'Summary-Total'!$C$8))*'14'!$H$3 -> 0 | T17: =IF('Op Costs'!$E$58=0,IF('Op Costs'!$K$58="yes",'Op Costs'!$J$59*'Op Costs'!$N$59,0),('Op Costs'!$E$58/'Summary-Total'!$C$8))*'15'!$H$3 -> 0 | U17: =IF('Op Costs'!$E$58=0,IF('Op Costs'!$K$58="yes",'Op Costs'!$J$59*'Op Costs'!$N$59,0),('Op Costs'!$E$58/'Summary-Total'!$C$8))*'16'!$H$3 -> 0
B18: Machinery Operating | C18: 50 | E18: ='Farm Business'!G50 -> 0 | F18: =IF('Op Costs'!$F$110+'Op Costs'!$F$111=0,'Op Costs'!$L$110,'Op Costs'!$F$112/'Summary-Total'!$C$8)*Crop1!$H$3 -> 25 | G18: =IF('Op Costs'!$F$110+'Op Costs'!$F$111=0,'Op Costs'!$L$110,'Op Costs'!$F$112/'Summary-Total'!$C$8)*'2'!$H$3 -> 25 | H18: =IF('Op Costs'!$F$110+'Op Costs'!$F$111=0,'Op Costs'!$L$110,'Op Costs'!$F$112/'Summary-Total'!$C$8)*'3'!$H$3 -> 0 | I18: =IF('Op Costs'!$F$110+'Op Costs'!$F$111=0,'Op Costs'!$L$110,'Op Costs'!$F$112/'Summary-Total'!$C$8)*'4'!$H$3 -> 0 | J18: =IF('Op Costs'!$F$110+'Op Costs'!$F$111=0,'Op Costs'!$L$110,'Op Costs'!$F$112/'Summary-Total'!$C$8)*'5'!$H$3 -> 0 | K18: =IF('Op Costs'!$F$110+'Op Costs'!$F$111=0,'Op Costs'!$L$110,'Op Costs'!$F$112/'Summary-Total'!$C$8)*'6'!$H$3 -> 0 | L18: =IF('Op Costs'!$F$110+'Op Costs'!$F$111=0,'Op Costs'!$L$110,'Op Costs'!$F$112/'Summary-Total'!$C$8)*'7'!$H$3 -> 0 | M18: =IF('Op Costs'!$F$110+'Op Costs'!$F$111=0,'Op Costs'!$L$110,'Op Costs'!$F$112/'Summary-Total'!$C$8)*'8'!$H$3 -> 0 | N18: =IF('Op Costs'!$F$110+'Op Costs'!$F$111=0,'Op Costs'!$L$110,'Op Costs'!$F$112/'Summary-Total'!$C$8)*'9'!$H$3 -> 0 | O18: =IF('Op Costs'!$F$110+'Op Costs'!$F$111=0,'Op Costs'!$L$110,'Op Costs'!$F$112/'Summary-Total'!$C$8)*'10'!$H$3 -> 0 | P18: =IF('Op Costs'!$F$110+'Op Costs'!$F$111=0,'Op Costs'!$L$110,'Op Costs'!$F$112/'Summary-Total'!$C$8)*'11'!$H$3 -> 0 | Q18: =IF('Op Costs'!$F$110+'Op Costs'!$F$111=0,'Op Costs'!$L$110,'Op Costs'!$F$112/'Summary-Total'!$C$8)*'12'!$H$3 -> 0 | R18: =IF('Op Costs'!$F$110+'Op Costs'!$F$111=0,'Op Costs'!$L$110,'Op Costs'!$F$112/'Summary-Total'!$C$8)*'13'!$H$3 -> 0 | S18: =IF('Op Costs'!$F$110+'Op Costs'!$F$111=0,'Op Costs'!$L$110,'Op Costs'!$F$112/'Summary-Total'!$C$8)*'14'!$H$3 -> 0 | T18: =IF('Op Costs'!$F$110+'Op Costs'!$F$111=0,'Op Costs'!$L$110,'Op Costs'!$F$112/'Summary-Total'!$C$8)*'15'!$H$3 -> 0 | U18: =IF('Op Costs'!$F$110+'Op Costs'!$F$111=0,'Op Costs'!$L$110,'Op Costs'!$F$112/'Summary-Total'!$C$8)*'16'!$H$3 -> 0
B19: Machinery Lease | C19: 0 | E19: ="-" -> - | F19: =IF(F8=0,0,('Land & Equip'!$J$63/'Summary-Total'!$C$8)*Crop1!$H$3) -> 0 | G19: =IF(G8=0,0,('Land & Equip'!$J$63/'Summary-Total'!$C$8)*'2'!$H$3) -> 0 | H19: =IF(H8=0,0,('Land & Equip'!$J$63/'Summary-Total'!$C$8)*'3'!$H$3) -> 0 | I19: =IF(I8=0,0,('Land & Equip'!$J$63/'Summary-Total'!$C$8)*'4'!$H$3) -> 0 | J19: =IF(J8=0,0,('Land & Equip'!$J$63/'Summary-Total'!$C$8)*'5'!$H$3) -> 0 | K19: =IF(K8=0,0,('Land & Equip'!$J$63/'Summary-Total'!$C$8)*'6'!$H$3) -> 0 | L19: =IF(L8=0,0,('Land & Equip'!$J$63/'Summary-Total'!$C$8)*'7'!$H$3) -> 0 | M19: =IF(M8=0,0,('Land & Equip'!$J$63/'Summary-Total'!$C$8)*'8'!$H$3) -> 0 | N19: =IF(N8=0,0,('Land & Equip'!$J$63/'Summary-Total'!$C$8)*'9'!$H$3) -> 0 | O19: =IF(O8=0,0,('Land & Equip'!$J$63/'Summary-Total'!$C$8)*'10'!$H$3) -> 0 | P19: =IF(P8=0,0,('Land & Equip'!$J$63/'Summary-Total'!$C$8)*'11'!$H$3) -> 0 | Q19: =IF(Q8=0,0,('Land & Equip'!$J$63/'Summary-Total'!$C$8)*'12'!$H$3) -> 0 | R19: =IF(R8=0,0,('Land & Equip'!$J$63/'Summary-Total'!$C$8)*'13'!$H$3) -> 0 | S19: =IF(S8=0,0,('Land & Equip'!$J$63/'Summary-Total'!$C$8)*'14'!$H$3) -> 0 | T19: =IF(T8=0,0,('Land & Equip'!$J$63/'Summary-Total'!$C$8)*'15'!$H$3) -> 0 | U19: =IF(U8=0,0,('Land & Equip'!$J$63/'Summary-Total'!$C$8)*'16'!$H$3) -> 0
B20: Land Rental | C20: 0 | E20: ="-" -> - | F20: =IF(F8=0,0,'Land & Equip'!$J$22/'Summary-Total'!$C$8*Crop1!$H$3) -> 0 | G20: =IF(G8=0,0,'Land & Equip'!$J$22/'Summary-Total'!$C$8*'2'!$H$3) -> 0 | H20: =IF(H8=0,0,'Land & Equip'!$J$22/'Summary-Total'!$C$8*'3'!$H$3) -> 0 | I20: =IF(I8=0,0,'Land & Equip'!$J$22/'Summary-Total'!$C$8*'4'!$H$3) -> 0 | J20: =IF(J8=0,0,'Land & Equip'!$J$22/'Summary-Total'!$C$8*'5'!$H$3) -> 0 | K20: =IF(K8=0,0,'Land & Equip'!$J$22/'Summary-Total'!$C$8*'6'!$H$3) -> 0 | L20: =IF(L8=0,0,'Land & Equip'!$J$22/'Summary-Total'!$C$8*'7'!$H$3) -> 0 | M20: =IF(M8=0,0,'Land & Equip'!$J$22/'Summary-Total'!$C$8*'8'!$H$3) -> 0 | N20: =IF(N8=0,0,'Land & Equip'!$J$22/'Summary-Total'!$C$8*'9'!$H$3) -> 0 | O20: =IF(O8=0,0,'Land & Equip'!$J$22/'Summary-Total'!$C$8*'10'!$H$3) -> 0 | P20: =IF(P8=0,0,'Land & Equip'!$J$22/'Summary-Total'!$C$8*'11'!$H$3) -> 0 | Q20: =IF(Q8=0,0,'Land & Equip'!$J$22/'Summary-Total'!$C$8*'12'!$H$3) -> 0 | R20: =IF(R8=0,0,'Land & Equip'!$J$22/'Summary-Total'!$C$8*'13'!$H$3) -> 0 | S20: =IF(S8=0,0,'Land & Equip'!$J$22/'Summary-Total'!$C$8*'14'!$H$3) -> 0 | T20: =IF(T8=0,0,'Land & Equip'!$J$22/'Summary-Total'!$C$8*'15'!$H$3) -> 0 | U20: =IF(U8=0,0,'Land & Equip'!$J$22/'Summary-Total'!$C$8*'16'!$H$3) -> 0
B21: Rental and Custom | C21: 0 | E21: ="-" -> - | F21: =IF(F8=0,0,VLOOKUP(Crop1!$C$3,'Op Costs'!$B$37:$M$54,12,FALSE)*Crop1!$H$3) -> 0 | G21: =IF(G8=0,0,VLOOKUP('2'!$C$3,'Op Costs'!$B$37:$M$54,12,FALSE)*'2'!$H$3) -> 0 | H21: =IF(H8=0,0,VLOOKUP('3'!$C$3,'Op Costs'!$B$37:$M$54,12,FALSE)*'3'!$H$3) -> 0 | I21: =IF(I8=0,0,VLOOKUP('4'!$C$3,'Op Costs'!$B$37:$M$54,12,FALSE)*'4'!$H$3) -> 0 | J21: =IF(J8=0,0,VLOOKUP('5'!$C$3,'Op Costs'!$B$37:$M$54,12,FALSE)*'5'!$H$3) -> 0 | K21: =IF(K8=0,0,VLOOKUP('6'!$C$3,'Op Costs'!$B$37:$M$54,12,FALSE)*'6'!$H$3) -> 0 | L21: =IF(L8=0,0,VLOOKUP('7'!$C$3,'Op Costs'!$B$37:$M$54,12,FALSE)*'7'!$H$3) -> 0 | M21: =IF(M8=0,0,VLOOKUP('8'!$C$3,'Op Costs'!$B$37:$M$54,12,FALSE)*'8'!$H$3) -> 0 | N21: =IF(N8=0,0,VLOOKUP('8'!$C$3,'Op Costs'!$B$37:$M$54,12,FALSE)*'9'!$H$3) -> 0 | O21: =IF(O8=0,0,VLOOKUP('8'!$C$3,'Op Costs'!$B$37:$M$54,12,FALSE)*'10'!$H$3) -> 0 | P21: =IF(P8=0,0,VLOOKUP('8'!$C$3,'Op Costs'!$B$37:$M$54,12,FALSE)*'11'!$H$3) -> 0 | Q21: =IF(Q8=0,0,VLOOKUP('8'!$C$3,'Op Costs'!$B$37:$M$54,12,FALSE)*'12'!$H$3) -> 0 | R21: =IF(R8=0,0,VLOOKUP('8'!$C$3,'Op Costs'!$B$37:$M$54,12,FALSE)*'13'!$H$3) -> 0 | S21: =IF(S8=0,0,VLOOKUP('8'!$C$3,'Op Costs'!$B$37:$M$54,12,FALSE)*'14'!$H$3) -> 0 | T21: =IF(T8=0,0,VLOOKUP('8'!$C$3,'Op Costs'!$B$37:$M$54,12,FALSE)*'15'!$H$3) -> 0 | U21: =IF(U8=0,0,VLOOKUP('8'!$C$3,'Op Costs'!$B$37:$M$54,12,FALSE)*'16'!$H$3) -> 0
B22: Crop Insurance | C22: 33.34 | E22: ="-" -> - | F22: =IF(F8=0,0,(VLOOKUP(Crop1!$C$3,'Op Costs'!$B$13:$O$30,7,FALSE)+VLOOKUP(Crop1!$C$3,'Op Costs'!$B$13:$O$30,11,FALSE))*Crop1!$H$3) -> 16.51 | G22: =IF(G8=0,0,(VLOOKUP('2'!$C$3,'Op Costs'!$B$13:$O$30,7,FALSE)+VLOOKUP('2'!$C$3,'Op Costs'!$B$13:$O$30,11,FALSE))*'2'!$H$3) -> 16.83 | H22: =IF(H8=0,0,(VLOOKUP('3'!$C$3,'Op Costs'!$B$13:$O$30,7,FALSE)+VLOOKUP('3'!$C$3,'Op Costs'!$B$13:$O$30,11,FALSE))*'3'!$H$3) -> 0 | I22: =IF(I8=0,0,(VLOOKUP('4'!$C$3,'Op Costs'!$B$13:$O$30,7,FALSE)+VLOOKUP('4'!$C$3,'Op Costs'!$B$13:$O$30,11,FALSE))*'4'!$H$3) -> 0 | J22: =IF(J8=0,0,(VLOOKUP('5'!$C$3,'Op Costs'!$B$13:$O$30,7,FALSE)+VLOOKUP('5'!$C$3,'Op Costs'!$B$13:$O$30,11,FALSE))*'5'!$H$3) -> 0 | K22: =IF(K8=0,0,(VLOOKUP('6'!$C$3,'Op Costs'!$B$13:$O$30,7,FALSE)+VLOOKUP('6'!$C$3,'Op Costs'!$B$13:$O$30,11,FALSE))*'6'!$H$3) -> 0 | L22: =IF(L8=0,0,(VLOOKUP('7'!$C$3,'Op Costs'!$B$13:$O$30,7,FALSE)+VLOOKUP('7'!$C$3,'Op Costs'!$B$13:$O$30,11,FALSE))*'7'!$H$3) -> 0 | M22: =IF(M8=0,0,(VLOOKUP('8'!$C$3,'Op Costs'!$B$13:$O$30,7,FALSE)+VLOOKUP('8'!$C$3,'Op Costs'!$B$13:$O$30,11,FALSE))*'8'!$H$3) -> 0 | N22: =IF(N8=0,0,(VLOOKUP('9'!$C$3,'Op Costs'!$B$13:$O$30,7,FALSE)+VLOOKUP('9'!$C$3,'Op Costs'!$B$13:$O$30,11,FALSE))*'9'!$H$3) -> 0 | O22: =IF(O8=0,0,(VLOOKUP('10'!$C$3,'Op Costs'!$B$13:$O$30,7,FALSE)+VLOOKUP('10'!$C$3,'Op Costs'!$B$13:$O$30,11,FALSE))*'10'!$H$3) -> 0 | P22: =IF(P8=0,0,(VLOOKUP('11'!$C$3,'Op Costs'!$B$13:$O$30,7,FALSE)+VLOOKUP('11'!$C$3,'Op Costs'!$B$13:$O$30,11,FALSE))*'11'!$H$3) -> 0 | Q22: =IF(Q8=0,0,(VLOOKUP('12'!$C$3,'Op Costs'!$B$13:$O$30,7,FALSE)+VLOOKUP('12'!$C$3,'Op Costs'!$B$13:$O$30,11,FALSE))*'12'!$H$3) -> 0 | R22: =IF(R8=0,0,(VLOOKUP('13'!$C$3,'Op Costs'!$B$13:$O$30,7,FALSE)+VLOOKUP('13'!$C$3,'Op Costs'!$B$13:$O$30,11,FALSE))*'13'!$H$3) -> 0 | S22: =IF(S8=0,0,(VLOOKUP('14'!$C$3,'Op Costs'!$B$13:$O$30,7,FALSE)+VLOOKUP('14'!$C$3,'Op Costs'!$B$13:$O$30,11,FALSE))*'14'!$H$3) -> 0 | T22: =IF(T8=0,0,(VLOOKUP('15'!$C$3,'Op Costs'!$B$13:$O$30,7,FALSE)+VLOOKUP('15'!$C$3,'Op Costs'!$B$13:$O$30,11,FALSE))*'15'!$H$3) -> 0 | U22: =IF(U8=0,0,(VLOOKUP('16'!$C$3,'Op Costs'!$B$13:$O$30,7,FALSE)+VLOOKUP('16'!$C$3,'Op Costs'!$B$13:$O$30,11,FALSE))*'16'!$H$3) -> 0
B23: Other Costs | C23: 35.5 | E23: ='Farm Business'!G51+'Farm Business'!G52+'Farm Business'!G54+'Farm Business'!G55+'Farm Business'!G56+'Farm Business'!G57+'Farm Business'!G58+'Farm Business'!G59 -> 0 | F23: =IF('Op Costs'!$F$131=0,'Op Costs'!$L$116,('Op Costs'!$F$131/'Summary-Total'!$C$8))*Crop1!$H$3 -> 17.75 | G23: =IF('Op Costs'!$F$131=0,'Op Costs'!$L$116,('Op Costs'!$F$131/'Summary-Total'!$C$8))*'2'!$H$3 -> 17.75 | H23: =IF('Op Costs'!$F$131=0,'Op Costs'!$L$116,('Op Costs'!$F$131/'Summary-Total'!$C$8))*'3'!$H$3 -> 0 | I23: =IF('Op Costs'!$F$131=0,'Op Costs'!$L$116,('Op Costs'!$F$131/'Summary-Total'!$C$8))*'4'!$H$3 -> 0 | J23: =IF('Op Costs'!$F$131=0,'Op Costs'!$L$116,('Op Costs'!$F$131/'Summary-Total'!$C$8))*'5'!$H$3 -> 0 | K23: =IF('Op Costs'!$F$131=0,'Op Costs'!$L$116,('Op Costs'!$F$131/'Summary-Total'!$C$8))*'6'!$H$3 -> 0 | L23: =IF('Op Costs'!$F$131=0,'Op Costs'!$L$116,('Op Costs'!$F$131/'Summary-Total'!$C$8))*'7'!$H$3 -> 0 | M23: =IF('Op Costs'!$F$131=0,'Op Costs'!$L$116,('Op Costs'!$F$131/'Summary-Total'!$C$8))*'8'!$H$3 -> 0 | N23: =IF('Op Costs'!$F$131=0,'Op Costs'!$L$116,('Op Costs'!$F$131/'Summary-Total'!$C$8))*'9'!$H$3 -> 0 | O23: =IF('Op Costs'!$F$131=0,'Op Costs'!$L$116,('Op Costs'!$F$131/'Summary-Total'!$C$8))*'10'!$H$3 -> 0 | P23: =IF('Op Costs'!$F$131=0,'Op Costs'!$L$116,('Op Costs'!$F$131/'Summary-Total'!$C$8))*'11'!$H$3 -> 0 | Q23: =IF('Op Costs'!$F$131=0,'Op Costs'!$L$116,('Op Costs'!$F$131/'Summary-Total'!$C$8))*'12'!$H$3 -> 0 | R23: =IF('Op Costs'!$F$131=0,'Op Costs'!$L$116,('Op Costs'!$F$131/'Summary-Total'!$C$8))*'13'!$H$3 -> 0 | S23: =IF('Op Costs'!$F$131=0,'Op Costs'!$L$116,('Op Costs'!$F$131/'Summary-Total'!$C$8))*'14'!$H$3 -> 0 | T23: =IF('Op Costs'!$F$131=0,'Op Costs'!$L$116,('Op Costs'!$F$131/'Summary-Total'!$C$8))*'15'!$H$3 -> 0 | U23: =IF('Op Costs'!$F$131=0,'Op Costs'!$L$116,('Op Costs'!$F$131/'Summary-Total'!$C$8))*'16'!$H$3 -> 0
B24: Land Taxes | C24: 0 | E24: ="-" -> - | F24: =IF(F8=0,0,IF('Op Costs'!$E$135=0,'Op Costs'!$L$135*('Land & Equip'!$C$26)/'Summary-Total'!$C$8,('Op Costs'!$E$135/'Summary-Total'!$C$8))*Crop1!$H$3) -> 0 | G24: =IF(G8=0,0,IF('Op Costs'!$E$135=0,'Op Costs'!$L$135*('Land & Equip'!$C$26)/'Summary-Total'!$C$8,('Op Costs'!$E$135/'Summary-Total'!$C$8))*'2'!$H$3) -> 0 | H24: =IF(H8=0,0,IF('Op Costs'!$E$135=0,'Op Costs'!$L$135*('Land & Equip'!$C$26)/'Summary-Total'!$C$8,('Op Costs'!$E$135/'Summary-Total'!$C$8))*'3'!$H$3) -> 0 | I24: =IF(I8=0,0,IF('Op Costs'!$E$135=0,'Op Costs'!$L$135*('Land & Equip'!$C$26)/'Summary-Total'!$C$8,('Op Costs'!$E$135/'Summary-Total'!$C$8))*'4'!$H$3) -> 0 | J24: =IF(J8=0,0,IF('Op Costs'!$E$135=0,'Op Costs'!$L$135*('Land & Equip'!$C$26)/'Summary-Total'!$C$8,('Op Costs'!$E$135/'Summary-Total'!$C$8))*'5'!$H$3) -> 0 | K24: =IF(K8=0,0,IF('Op Costs'!$E$135=0,'Op Costs'!$L$135*('Land & Equip'!$C$26)/'Summary-Total'!$C$8,('Op Costs'!$E$135/'Summary-Total'!$C$8))*'6'!$H$3) -> 0 | L24: =IF(L8=0,0,IF('Op Costs'!$E$135=0,'Op Costs'!$L$135*('Land & Equip'!$C$26)/'Summary-Total'!$C$8,('Op Costs'!$E$135/'Summary-Total'!$C$8))*'7'!$H$3) -> 0 | M24: =IF(M8=0,0,IF('Op Costs'!$E$135=0,'Op Costs'!$L$135*('Land & Equip'!$C$26)/'Summary-Total'!$C$8,('Op Costs'!$E$135/'Summary-Total'!$C$8))*'8'!$H$3) -> 0 | N24: =IF(N8=0,0,IF('Op Costs'!$E$135=0,'Op Costs'!$L$135*('Land & Equip'!$C$26)/'Summary-Total'!$C$8,('Op Costs'!$E$135/'Summary-Total'!$C$8))*'9'!$H$3) -> 0 | O24: =IF(O8=0,0,IF('Op Costs'!$E$135=0,'Op Costs'!$L$135*('Land & Equip'!$C$26)/'Summary-Total'!$C$8,('Op Costs'!$E$135/'Summary-Total'!$C$8))*'10'!$H$3) -> 0 | P24: =IF(P8=0,0,IF('Op Costs'!$E$135=0,'Op Costs'!$L$135*('Land & Equip'!$C$26)/'Summary-Total'!$C$8,('Op Costs'!$E$135/'Summary-Total'!$C$8))*'11'!$H$3) -> 0 | Q24: =IF(Q8=0,0,IF('Op Costs'!$E$135=0,'Op Costs'!$L$135*('Land & Equip'!$C$26)/'Summary-Total'!$C$8,('Op Costs'!$E$135/'Summary-Total'!$C$8))*'12'!$H$3) -> 0 | R24: =IF(R8=0,0,IF('Op Costs'!$E$135=0,'Op Costs'!$L$135*('Land & Equip'!$C$26)/'Summary-Total'!$C$8,('Op Costs'!$E$135/'Summary-Total'!$C$8))*'13'!$H$3) -> 0 | S24: =IF(S8=0,0,IF('Op Costs'!$E$135=0,'Op Costs'!$L$135*('Land & Equip'!$C$26)/'Summary-Total'!$C$8,('Op Costs'!$E$135/'Summary-Total'!$C$8))*'14'!$H$3) -> 0 | T24: =IF(T8=0,0,IF('Op Costs'!$E$135=0,'Op Costs'!$L$135*('Land & Equip'!$C$26)/'Summary-Total'!$C$8,('Op Costs'!$E$135/'Summary-Total'!$C$8))*'15'!$H$3) -> 0 | U24: =IF(U8=0,0,IF('Op Costs'!$E$135=0,'Op Costs'!$L$135*('Land & Equip'!$C$26)/'Summary-Total'!$C$8,('Op Costs'!$E$135/'Summary-Total'!$C$8))*'16'!$H$3) -> 0
B25: Drying Costs | C25: 0 | E25: ="-" -> - | F25: =IF(F8=0,0,VLOOKUP(Crop1!$C$3,'Op Costs'!$B$37:$M$54,3,FALSE)*Crop1!$H$3) -> 0 | G25: =IF(G8=0,0,VLOOKUP('2'!$C$3,'Op Costs'!$B$37:$M$54,3,FALSE)*'2'!$H$3) -> 0 | H25: =IF(H8=0,0,VLOOKUP('3'!$C$3,'Op Costs'!$B$37:$M$54,3,FALSE)*'3'!$H$3) -> 0 | I25: =IF(I8=0,0,VLOOKUP('4'!$C$3,'Op Costs'!$B$37:$M$54,3,FALSE)*'4'!$H$3) -> 0 | J25: =IF(J8=0,0,VLOOKUP('5'!$C$3,'Op Costs'!$B$37:$M$54,3,FALSE)*'5'!$H$3) -> 0 | K25: =IF(K8=0,0,VLOOKUP('6'!$C$3,'Op Costs'!$B$37:$M$54,3,FALSE)*'6'!$H$3) -> 0 | L25: =IF(L8=0,0,VLOOKUP('7'!$C$3,'Op Costs'!$B$37:$M$54,3,FALSE)*'7'!$H$3) -> 0 | M25: =IF(M8=0,0,VLOOKUP('8'!$C$3,'Op Costs'!$B$37:$M$54,3,FALSE)*'8'!$H$3) -> 0 | N25: =IF(N8=0,0,VLOOKUP('8'!$C$3,'Op Costs'!$B$37:$M$54,3,FALSE)*'9'!$H$3) -> 0 | O25: =IF(O8=0,0,VLOOKUP('8'!$C$3,'Op Costs'!$B$37:$M$54,3,FALSE)*'10'!$H$3) -> 0 | P25: =IF(P8=0,0,VLOOKUP('8'!$C$3,'Op Costs'!$B$37:$M$54,3,FALSE)*'11'!$H$3) -> 0 | Q25: =IF(Q8=0,0,VLOOKUP('8'!$C$3,'Op Costs'!$B$37:$M$54,3,FALSE)*'12'!$H$3) -> 0 | R25: =IF(R8=0,0,VLOOKUP('8'!$C$3,'Op Costs'!$B$37:$M$54,3,FALSE)*'13'!$H$3) -> 0 | S25: =IF(S8=0,0,VLOOKUP('8'!$C$3,'Op Costs'!$B$37:$M$54,3,FALSE)*'14'!$H$3) -> 0 | T25: =IF(T8=0,0,VLOOKUP('8'!$C$3,'Op Costs'!$B$37:$M$54,3,FALSE)*'15'!$H$3) -> 0 | U25: =IF(U8=0,0,VLOOKUP('8'!$C$3,'Op Costs'!$B$37:$M$54,3,FALSE)*'16'!$H$3) -> 0
B26: Interest on Operating | C26: 25.62 | E26: n/a | F26: =IF(F8=0,0,IF('Op Costs'!$E$140=0,IF('Op Costs'!$L$140="Yes",ROUND(SUM(F11:F25)*('Op Costs'!$L$141*('Op Costs'!$L$142/12)),2),0),('Op Costs'!$E$140/'Summary-Total'!$C$8*F8))) -> 14.29 | G26: =IF(G8=0,0,IF('Op Costs'!$E$140=0,IF('Op Costs'!$L$140="Yes",ROUND(SUM(G11:G25)*('Op Costs'!$L$141*('Op Costs'!$L$142/12)),2),0),('Op Costs'!$E$140/'Summary-Total'!$C$8*G8))) -> 11.33 | H26: =IF(H8=0,0,IF('Op Costs'!$E$140=0,IF('Op Costs'!$L$140="Yes",ROUND(SUM(H11:H25)*('Op Costs'!$L$141*('Op Costs'!$L$142/12)),2),0),('Op Costs'!$E$140/'Summary-Total'!$C$8*H8))) -> 0 | I26: =IF(I8=0,0,IF('Op Costs'!$E$140=0,IF('Op Costs'!$L$140="Yes",ROUND(SUM(I11:I25)*('Op Costs'!$L$141*('Op Costs'!$L$142/12)),2),0),('Op Costs'!$E$140/'Summary-Total'!$C$8*I8))) -> 0 | J26: =IF(J8=0,0,IF('Op Costs'!$E$140=0,IF('Op Costs'!$L$140="Yes",ROUND(SUM(J11:J25)*('Op Costs'!$L$141*('Op Costs'!$L$142/12)),2),0),('Op Costs'!$E$140/'Summary-Total'!$C$8*J8))) -> 0 | K26: =IF(K8=0,0,IF('Op Costs'!$E$140=0,IF('Op Costs'!$L$140="Yes",ROUND(SUM(K11:K25)*('Op Costs'!$L$141*('Op Costs'!$L$142/12)),2),0),('Op Costs'!$E$140/'Summary-Total'!$C$8*K8))) -> 0 | L26: =IF(L8=0,0,IF('Op Costs'!$E$140=0,IF('Op Costs'!$L$140="Yes",ROUND(SUM(L11:L25)*('Op Costs'!$L$141*('Op Costs'!$L$142/12)),2),0),('Op Costs'!$E$140/'Summary-Total'!$C$8*L8))) -> 0 | M26: =IF(M8=0,0,IF('Op Costs'!$E$140=0,IF('Op Costs'!$L$140="Yes",ROUND(SUM(M11:M25)*('Op Costs'!$L$141*('Op Costs'!$L$142/12)),2),0),('Op Costs'!$E$140/'Summary-Total'!$C$8*M8))) -> 0 | N26: =IF(N8=0,0,IF('Op Costs'!$E$140=0,IF('Op Costs'!$L$140="Yes",ROUND(SUM(N11:N25)*('Op Costs'!$L$141*('Op Costs'!$L$142/12)),2),0),('Op Costs'!$E$140/'Summary-Total'!$C$8*N8))) -> 0 | O26: =IF(O8=0,0,IF('Op Costs'!$E$140=0,IF('Op Costs'!$L$140="Yes",ROUND(SUM(O11:O25)*('Op Costs'!$L$141*('Op Costs'!$L$142/12)),2),0),('Op Costs'!$E$140/'Summary-Total'!$C$8*O8))) -> 0 | P26: =IF(P8=0,0,IF('Op Costs'!$E$140=0,IF('Op Costs'!$L$140="Yes",ROUND(SUM(P11:P25)*('Op Costs'!$L$141*('Op Costs'!$L$142/12)),2),0),('Op Costs'!$E$140/'Summary-Total'!$C$8*P8))) -> 0 | Q26: =IF(Q8=0,0,IF('Op Costs'!$E$140=0,IF('Op Costs'!$L$140="Yes",ROUND(SUM(Q11:Q25)*('Op Costs'!$L$141*('Op Costs'!$L$142/12)),2),0),('Op Costs'!$E$140/'Summary-Total'!$C$8*Q8))) -> 0 | R26: =IF(R8=0,0,IF('Op Costs'!$E$140=0,IF('Op Costs'!$L$140="Yes",ROUND(SUM(R11:R25)*('Op Costs'!$L$141*('Op Costs'!$L$142/12)),2),0),('Op Costs'!$E$140/'Summary-Total'!$C$8*R8))) -> 0 | S26: =IF(S8=0,0,IF('Op Costs'!$E$140=0,IF('Op Costs'!$L$140="Yes",ROUND(SUM(S11:S25)*('Op Costs'!$L$141*('Op Costs'!$L$142/12)),2),0),('Op Costs'!$E$140/'Summary-Total'!$C$8*S8))) -> 0 | T26: =IF(T8=0,0,IF('Op Costs'!$E$140=0,IF('Op Costs'!$L$140="Yes",ROUND(SUM(T11:T25)*('Op Costs'!$L$141*('Op Costs'!$L$142/12)),2),0),('Op Costs'!$E$140/'Summary-Total'!$C$8*T8))) -> 0 | U26: =IF(U8=0,0,IF('Op Costs'!$E$140=0,IF('Op Costs'!$L$140="Yes",ROUND(SUM(U11:U25)*('Op Costs'!$L$141*('Op Costs'!$L$142/12)),2),0),('Op Costs'!$E$140/'Summary-Total'!$C$8*U8))) -> 0
B27: Total Operating | C27: =SUM(C11:C26) -> 708.9180481 | E27: =SUM(E11:E26) -> 0 | F27: 395.3577612 | G27: 313.5602869 | H27: 0 | I27: 0 | J27: 0 | K27: 0 | L27: 0 | M27: 0 | N27: 0 | O27: 0 | P27: 0 | Q27: 0 | R27: 0 | S27: 0 | T27: 0 | U27: 0
A29: B. Fixed Costs
B30: Land Cost | C30: =SUM(E30:U30) -> 0 | E30: ='Farm Business'!G65+'Farm Business'!G66 -> 0 | F30: =IF(F8=0,0,('Land & Equip'!$E$22+'Land & Equip'!$E$39)/'Summary-Total'!$C$8*Crop1!$H$3) -> 0 | G30: =IF(G8=0,0,('Land & Equip'!$E$22+'Land & Equip'!$E$39)/'Summary-Total'!$C$8*'2'!$H$3) -> 0 | H30: =IF(H8=0,0,('Land & Equip'!$E$22+'Land & Equip'!$E$39)/'Summary-Total'!$C$8*'3'!$H$3) -> 0 | I30: =IF(I8=0,0,('Land & Equip'!$E$22+'Land & Equip'!$E$39)/'Summary-Total'!$C$8*'4'!$H$3) -> 0 | J30: =IF(J8=0,0,('Land & Equip'!$E$22+'Land & Equip'!$E$39)/'Summary-Total'!$C$8*'5'!$H$3) -> 0 | K30: =IF(K8=0,0,('Land & Equip'!$E$22+'Land & Equip'!$E$39)/'Summary-Total'!$C$8*'6'!$H$3) -> 0 | L30: =IF(L8=0,0,('Land & Equip'!$E$22+'Land & Equip'!$E$39)/'Summary-Total'!$C$8*'7'!$H$3) -> 0 | M30: =IF(M8=0,0,('Land & Equip'!$E$22+'Land & Equip'!$E$39)/'Summary-Total'!$C$8*'8'!$H$3) -> 0 | N30: =IF(N8=0,0,('Land & Equip'!$E$22+'Land & Equip'!$E$39)/'Summary-Total'!$C$8*'9'!$H$3) -> 0 | O30: =IF(O8=0,0,('Land & Equip'!$E$22+'Land & Equip'!$E$39)/'Summary-Total'!$C$8*'10'!$H$3) -> 0 | P30: =IF(P8=0,0,('Land & Equip'!$E$22+'Land & Equip'!$E$39)/'Summary-Total'!$C$8*'11'!$H$3) -> 0 | Q30: =IF(Q8=0,0,('Land & Equip'!$E$22+'Land & Equip'!$E$39)/'Summary-Total'!$C$8*'12'!$H$3) -> 0 | R30: =IF(R8=0,0,('Land & Equip'!$E$22+'Land & Equip'!$E$39)/'Summary-Total'!$C$8*'13'!$H$3) -> 0 | S30: =IF(S8=0,0,('Land & Equip'!$E$22+'Land & Equip'!$E$39)/'Summary-Total'!$C$8*'14'!$H$3) -> 0 | T30: =IF(T8=0,0,('Land & Equip'!$E$22+'Land & Equip'!$E$39)/'Summary-Total'!$C$8*'15'!$H$3) -> 0 | U30: =IF(U8=0,0,('Land & Equip'!$E$22+'Land & Equip'!$E$39)/'Summary-Total'!$C$8*'16'!$H$3) -> 0
B31: Machinery Cost | C31: =SUM(E31:U31) -> 0 | E31: ='Farm Business'!G63+'Farm Business'!G64 -> 0 | F31: =IF(F8=0,0,(('Land & Equip'!$E$63+'Land & Equip'!$E$79)/'Summary-Total'!$C$8)*Crop1!$H$3) -> 0 | G31: =IF(G8=0,0,(('Land & Equip'!$E$63+'Land & Equip'!$E$79)/'Summary-Total'!$C$8)*'2'!$H$3) -> 0 | H31: =IF(H8=0,0,(('Land & Equip'!$E$63+'Land & Equip'!$E$79)/'Summary-Total'!$C$8)*'3'!$H$3) -> 0 | I31: =IF(I8=0,0,(('Land & Equip'!$E$63+'Land & Equip'!$E$79)/'Summary-Total'!$C$8)*'4'!$H$3) -> 0 | J31: =IF(J8=0,0,(('Land & Equip'!$E$63+'Land & Equip'!$E$79)/'Summary-Total'!$C$8)*'5'!$H$3) -> 0 | K31: =IF(K8=0,0,(('Land & Equip'!$E$63+'Land & Equip'!$E$79)/'Summary-Total'!$C$8)*'6'!$H$3) -> 0 | L31: =IF(L8=0,0,(('Land & Equip'!$E$63+'Land & Equip'!$E$79)/'Summary-Total'!$C$8)*'7'!$H$3) -> 0 | M31: =IF(M8=0,0,(('Land & Equip'!$E$63+'Land & Equip'!$E$79)/'Summary-Total'!$C$8)*'8'!$H$3) -> 0 | N31: =IF(N8=0,0,(('Land & Equip'!$E$63+'Land & Equip'!$E$79)/'Summary-Total'!$C$8)*'9'!$H$3) -> 0 | O31: =IF(O8=0,0,(('Land & Equip'!$E$63+'Land & Equip'!$E$79)/'Summary-Total'!$C$8)*'10'!$H$3) -> 0 | P31: =IF(P8=0,0,(('Land & Equip'!$E$63+'Land & Equip'!$E$79)/'Summary-Total'!$C$8)*'11'!$H$3) -> 0 | Q31: =IF(Q8=0,0,(('Land & Equip'!$E$63+'Land & Equip'!$E$79)/'Summary-Total'!$C$8)*'12'!$H$3) -> 0 | R31: =IF(R8=0,0,(('Land & Equip'!$E$63+'Land & Equip'!$E$79)/'Summary-Total'!$C$8)*'13'!$H$3) -> 0 | S31: =IF(S8=0,0,(('Land & Equip'!$E$63+'Land & Equip'!$E$79)/'Summary-Total'!$C$8)*'14'!$H$3) -> 0 | T31: =IF(T8=0,0,(('Land & Equip'!$E$63+'Land & Equip'!$E$79)/'Summary-Total'!$C$8)*'15'!$H$3) -> 0 | U31: =IF(U8=0,0,(('Land & Equip'!$E$63+'Land & Equip'!$E$79)/'Summary-Total'!$C$8)*'16'!$H$3) -> 0
B32: Machinery Depreciation | C32: =SUM(E32:U32) -> 0 | E32: ="-" -> - | F32: =IF(F8=0,0,(('Land & Equip'!$E$78)/'Summary-Total'!$C$8)*Crop1!$H$3) -> 0 | G32: =IF(G8=0,0,(('Land & Equip'!$E$78)/'Summary-Total'!$C$8)*'2'!$H$3) -> 0 | H32: =IF(H8=0,0,(('Land & Equip'!$E$78)/'Summary-Total'!$C$8)*'3'!$H$3) -> 0 | I32: =IF(I8=0,0,(('Land & Equip'!$E$78)/'Summary-Total'!$C$8)*'4'!$H$3) -> 0 | J32: =IF(J8=0,0,(('Land & Equip'!$E$78)/'Summary-Total'!$C$8)*'5'!$H$3) -> 0 | K32: =IF(K8=0,0,(('Land & Equip'!$E$78)/'Summary-Total'!$C$8)*'6'!$H$3) -> 0 | L32: =IF(L8=0,0,(('Land & Equip'!$E$78)/'Summary-Total'!$C$8)*'7'!$H$3) -> 0 | M32: =IF(M8=0,0,(('Land & Equip'!$E$78)/'Summary-Total'!$C$8)*'8'!$H$3) -> 0 | N32: =IF(N8=0,0,(('Land & Equip'!$E$78)/'Summary-Total'!$C$8)*'9'!$H$3) -> 0 | O32: =IF(O8=0,0,(('Land & Equip'!$E$78)/'Summary-Total'!$C$8)*'10'!$H$3) -> 0 | P32: =IF(P8=0,0,(('Land & Equip'!$E$78)/'Summary-Total'!$C$8)*'11'!$H$3) -> 0 | Q32: =IF(Q8=0,0,(('Land & Equip'!$E$78)/'Summary-Total'!$C$8)*'12'!$H$3) -> 0 | R32: =IF(R8=0,0,(('Land & Equip'!$E$78)/'Summary-Total'!$C$8)*'13'!$H$3) -> 0 | S32: =IF(S8=0,0,(('Land & Equip'!$E$78)/'Summary-Total'!$C$8)*'14'!$H$3) -> 0 | T32: =IF(T8=0,0,(('Land & Equip'!$E$78)/'Summary-Total'!$C$8)*'15'!$H$3) -> 0 | U32: =IF(U8=0,0,(('Land & Equip'!$E$78)/'Summary-Total'!$C$8)*'16'!$H$3) -> 0
B33: Total Fixed | C33: =SUM(C30:C32) -> 0 | E33: =SUM(E30:E32) -> 0 | F33: 0 | G33: 0 | H33: 0 | I33: 0 | J33: 0 | K33: 0 | L33: 0 | M33: 0 | N33: 0 | O33: 0 | P33: 0 | Q33: 0 | R33: 0 | S33: 0 | T33: 0 | U33: 0
B34: Total Operating & Fixed | C34: =+C27+C33 -> 708.9180481 | E34: =+E27+E33 -> 0 | F34: 395.3577612 | G34: 313.5602869 | H34: 0 | I34: 0 | J34: 0 | K34: 0 | L34: 0 | M34: 0 | N34: 0 | O34: 0 | P34: 0 | Q34: 0 | R34: 0 | S34: 0 | T34: 0 | U34: 0
A36: C. Ownership
B37: Owner Withdrawal | C37: =SUM(E37:U37) -> 50 | E37: n/a | F37: =IF(F8=0,0,IF('Op Costs'!$E$73=0,'Op Costs'!$L$73,('Op Costs'!$E$73/'Summary-Total'!$C$8))*Crop1!$H$3) -> 25 | G37: =IF(G8=0,0,IF('Op Costs'!$E$73=0,'Op Costs'!$L$73,('Op Costs'!$E$73/'Summary-Total'!$C$8))*'2'!$H$3) -> 25 | H37: =IF(H8=0,0,IF('Op Costs'!$E$73=0,'Op Costs'!$L$73,('Op Costs'!$E$73/'Summary-Total'!$C$8))*'3'!$H$3) -> 0 | I37: =IF(I8=0,0,IF('Op Costs'!$E$73=0,'Op Costs'!$L$73,('Op Costs'!$E$73/'Summary-Total'!$C$8))*'4'!$H$3) -> 0 | J37: =IF(J8=0,0,IF('Op Costs'!$E$73=0,'Op Costs'!$L$73,('Op Costs'!$E$73/'Summary-Total'!$C$8))*'5'!$H$3) -> 0 | K37: =IF(K8=0,0,IF('Op Costs'!$E$73=0,'Op Costs'!$L$73,('Op Costs'!$E$73/'Summary-Total'!$C$8))*'6'!$H$3) -> 0 | L37: =IF(L8=0,0,IF('Op Costs'!$E$73=0,'Op Costs'!$L$73,('Op Costs'!$E$73/'Summary-Total'!$C$8))*'7'!$H$3) -> 0 | M37: =IF(M8=0,0,IF('Op Costs'!$E$73=0,'Op Costs'!$L$73,('Op Costs'!$E$73/'Summary-Total'!$C$8))*'8'!$H$3) -> 0 | N37: =IF(N8=0,0,IF('Op Costs'!$E$73=0,'Op Costs'!$L$73,('Op Costs'!$E$73/'Summary-Total'!$C$8))*'9'!$H$3) -> 0 | O37: =IF(O8=0,0,IF('Op Costs'!$E$73=0,'Op Costs'!$L$73,('Op Costs'!$E$73/'Summary-Total'!$C$8))*'10'!$H$3) -> 0 | P37: =IF(P8=0,0,IF('Op Costs'!$E$73=0,'Op Costs'!$L$73,('Op Costs'!$E$73/'Summary-Total'!$C$8))*'11'!$H$3) -> 0 | Q37: =IF(Q8=0,0,IF('Op Costs'!$E$73=0,'Op Costs'!$L$73,('Op Costs'!$E$73/'Summary-Total'!$C$8))*'12'!$H$3) -> 0 | R37: =IF(R8=0,0,IF('Op Costs'!$E$73=0,'Op Costs'!$L$73,('Op Costs'!$E$73/'Summary-Total'!$C$8))*'13'!$H$3) -> 0 | S37: =IF(S8=0,0,IF('Op Costs'!$E$73=0,'Op Costs'!$L$73,('Op Costs'!$E$73/'Summary-Total'!$C$8))*'14'!$H$3) -> 0 | T37: =IF(T8=0,0,IF('Op Costs'!$E$73=0,'Op Costs'!$L$73,('Op Costs'!$E$73/'Summary-Total'!$C$8))*'15'!$H$3) -> 0 | U37: =IF(U8=0,0,IF('Op Costs'!$E$73=0,'Op Costs'!$L$73,('Op Costs'!$E$73/'Summary-Total'!$C$8))*'16'!$H$3) -> 0
A39: Total Costs | C39: =+C34+C37 -> 758.9180481 | E39: =+E34 -> 0 | F39: =+F34+F37 -> 420.3577612 | G39: 338.5602869 | H39: 0 | I39: 0 | J39: 0 | K39: 0 | L39: 0 | M39: 0 | N39: 0 | O39: 0 | P39: 0 | Q39: 0 | R39: 0 | S39: 0 | T39: 0 | U39: 0
A41: Profitability Analysis
A42: Estimated Farmgate | C42: TOTAL
B43: Avg. Market Price $ per unit | F43: ='Summary-Acre'!D43 -> 13.25 | G43: ='Summary-Acre'!E43 -> 8 | H43: ='Summary-Acre'!F43 -> 0 | I43: ='Summary-Acre'!G43 -> 0 | J43: ='Summary-Acre'!H43 -> 0 | K43: ='Summary-Acre'!I43 -> 0 | L43: ='Summary-Acre'!J43 -> 0 | M43: ='Summary-Acre'!K43 -> 0 | N43: ='Summary-Acre'!L43 -> 0 | O43: ='Summary-Acre'!M43 -> 0 | P43: ='Summary-Acre'!N43 -> 0 | Q43: ='Summary-Acre'!O43 -> 0 | R43: ='Summary-Acre'!P43 -> 0 | S43: ='Summary-Acre'!Q43 -> 0 | T43: ='Summary-Acre'!R43 -> 0 | U43: ='Summary-Acre'!S43 -> 0
B44: Yield per acre (bu or lb.) | F44: ='Summary-Acre'!D44 -> 45 | G44: ='Summary-Acre'!E44 -> 65 | H44: ='Summary-Acre'!F44 -> 0 | I44: ='Summary-Acre'!G44 -> 0 | J44: ='Summary-Acre'!H44 -> 0 | K44: ='Summary-Acre'!I44 -> 0 | L44: ='Summary-Acre'!J44 -> 0 | M44: ='Summary-Acre'!K44 -> 0 | N44: ='Summary-Acre'!L44 -> 0 | O44: ='Summary-Acre'!M44 -> 0 | P44: ='Summary-Acre'!N44 -> 0 | Q44: ='Summary-Acre'!O44 -> 0 | R44: ='Summary-Acre'!P44 -> 0 | S44: ='Summary-Acre'!Q44 -> 0 | T44: ='Summary-Acre'!R44 -> 0 | U44: ='Summary-Acre'!S44 -> 0
B45: Unit type | F45: ='Summary-Acre'!D45 -> bu | G45: ='Summary-Acre'!E45 -> bu | H45: ='Summary-Acre'!F45 ->  | I45: ='Summary-Acre'!G45 ->  | J45: ='Summary-Acre'!H45 ->  | K45: ='Summary-Acre'!I45 ->  | L45: ='Summary-Acre'!J45 ->  | M45: ='Summary-Acre'!K45 ->  | N45: ='Summary-Acre'!L45 ->  | O45: ='Summary-Acre'!M45 ->  | P45: ='Summary-Acre'!N45 ->  | Q45: ='Summary-Acre'!O45 ->  | R45: ='Summary-Acre'!P45 ->  | S45: ='Summary-Acre'!Q45 ->  | T45: ='Summary-Acre'!R45 ->  | U45: ='Summary-Acre'!S45 -> 
B46: Other Income | F46: =IF(F43*F44=0,"",'Summary-Acre'!D46*F8) -> 0 | G46: =IF(G43*G44=0,"",'Summary-Acre'!E46*G8) -> 0 | H46: =IF(H43*H44=0,"",'Summary-Acre'!F46*H8) ->  | I46: =IF(I43*I44=0,"",'Summary-Acre'!G46*I8) ->  | J46: =IF(J43*J44=0,"",'Summary-Acre'!H46*J8) ->  | K46: =IF(K43*K44=0,"",'Summary-Acre'!I46*K8) ->  | L46: =IF(L43*L44=0,"",'Summary-Acre'!J46*L8) ->  | M46: =IF(M43*M44=0,"",'Summary-Acre'!K46*M8) ->  | N46: =IF(N43*N44=0,"",'Summary-Acre'!L46*N8) ->  | O46: =IF(O43*O44=0,"",'Summary-Acre'!M46*O8) ->  | P46: =IF(P43*P44=0,"",'Summary-Acre'!N46*P8) ->  | Q46: =IF(Q43*Q44=0,"",'Summary-Acre'!O46*Q8) ->  | R46: =IF(R43*R44=0,"",'Summary-Acre'!P46*R8) ->  | S46: =IF(S43*S44=0,"",'Summary-Acre'!Q46*S8) ->  | T46: =IF(T43*T44=0,"",'Summary-Acre'!R46*T8) ->  | U46: =IF(U43*U44=0,"",'Summary-Acre'!S46*U8) -> 
B47: Gross Revenue | C47: =SUM(E47:U47) -> 1116.25 | E47: ='Farm Business'!H42 -> 0 | F47: =IF(F43*F44=0,"",Crop1!$H$123) -> 596.25 | G47: =IF(G43*G44=0,"",'2'!$H$123) -> 520 | H47: =IF(H43*H44=0,"",'3'!$H$123) ->  | I47: =IF(I43*I44=0,"",'4'!$H$123) ->  | J47: =IF(J43*J44=0,"",'5'!$H$123) ->  | K47: =IF(K43*K44=0,"",'6'!$H$123) ->  | L47: =IF(L43*L44=0,"",'7'!$H$123) ->  | M47: =IF(M43*M44=0,"",'8'!$H$123) ->  | N47: =IF(N43*N44=0,"",'9'!$H$123) ->  | O47: =IF(O43*O44=0,"",'10'!$H$123) ->  | P47: =IF(P43*P44=0,"",'11'!$H$123) ->  | Q47: =IF(Q43*Q44=0,"",'12'!$H$123) ->  | R47: =IF(R43*R44=0,"",'13'!$H$123) ->  | S47: =IF(S43*S44=0,"",'14'!$H$123) ->  | T47: =IF(T43*T44=0,"",'15'!$H$123) ->  | U47: =IF(U43*U44=0,"",'16'!$H$123) -> 
A49: Marginal Returns
B50: Over Operating Costs | C50: =SUM(E50:U50) -> 407.3319519 | E50: =IF('Farm Business'!H42=0,"",SUM(E47-E27)) ->  | F50: =IF(F43*F44=0,"",SUM(F47-F27)) -> 200.8922388 | G50: 206.4397131
B51: Over Operating & Fixed Costs | C51: =SUM(E51:U51) -> 407.3319519 | E51: =IF('Farm Business'!H42=0,"",SUM(E47-E34)) ->  | F51: =IF(F43*F44=0,"",SUM(F47-F34)) -> 200.8922388 | G51: 206.4397131 | N51: =IF(N43*N44=0,"",SUM(N47-N34)) -> 
B52: Over Total Costs (Net Profit) | C52: =SUM(E52:U52) -> 357.3319519 | E52: =IF('Farm Business'!H42=0,"",SUM(E47-E39)) ->  | F52: =IF(F43*F44=0,"",SUM(F47-F39)) -> 175.8922388 | G52: 181.4397131 | N52: =IF(N43*N44=0,"",SUM(N47-N39)) -> 
A54: Insured Risk Analysis
A56: AgriInsurance Insured Value | C56: =SUM(F56:M56) -> 1058.8 | F56: =IF(F8=0,"",(VLOOKUP(Crop1!$C$3,'Op Costs'!$B$13:$T$29,5,FALSE))*Crop1!H3*(VLOOKUP(Crop1!$C$3,'Op Costs'!$B$13:$T$29,19,FALSE))) -> 591.84 | G56: =IF(G8=0,"",(VLOOKUP('2'!$C$3,'Op Costs'!$B$13:$T$29,5,FALSE))*'2'!$H$3*(VLOOKUP('2'!$C$3,'Op Costs'!$B$13:$T$29,19,FALSE))) -> 466.96 | H56: =IF(H8=0,"",(VLOOKUP('3'!$C$3,'Op Costs'!$B$13:$T$29,5,FALSE))*'3'!$H$3*(VLOOKUP('3'!$C$3,'Op Costs'!$B$13:$T$29,19,FALSE))) ->  | I56: =IF(I8=0,"",(VLOOKUP('4'!$C$3,'Op Costs'!$B$13:$T$29,5,FALSE))*'4'!$H$3*(VLOOKUP('4'!$C$3,'Op Costs'!$B$13:$T$29,19,FALSE))) ->  | J56: =IF(J8=0,"",(VLOOKUP('5'!$C$3,'Op Costs'!$B$13:$T$29,5,FALSE))*'5'!$H$3*(VLOOKUP('5'!$C$3,'Op Costs'!$B$13:$T$29,19,FALSE))) ->  | K56: =IF(K8=0,"",(VLOOKUP('6'!$C$3,'Op Costs'!$B$13:$T$29,5,FALSE))*'6'!$H$3*(VLOOKUP('6'!$C$3,'Op Costs'!$B$13:$T$29,19,FALSE))) ->  | L56: =IF(L8=0,"",(VLOOKUP('7'!$C$3,'Op Costs'!$B$13:$T$29,5,FALSE))*'7'!$H$3*(VLOOKUP('7'!$C$3,'Op Costs'!$B$13:$T$29,19,FALSE))) ->  | M56: =IF(M8=0,"",(VLOOKUP('8'!$C$3,'Op Costs'!$B$13:$T$29,5,FALSE))*'8'!$H$3*(VLOOKUP('8'!$C$3,'Op Costs'!$B$13:$T$29,19,FALSE))) ->  | N56: =IF(N8=0,"",(VLOOKUP('9'!$C$3,'Op Costs'!$B$13:$T$29,5,FALSE))*'9'!$H$3*(VLOOKUP('9'!$C$3,'Op Costs'!$B$13:$T$29,19,FALSE))) ->  | O56: =IF(O8=0,"",(VLOOKUP('10'!$C$3,'Op Costs'!$B$13:$T$29,5,FALSE))*'10'!$H$3*(VLOOKUP('10'!$C$3,'Op Costs'!$B$13:$T$29,19,FALSE))) ->  | P56: =IF(P8=0,"",(VLOOKUP('11'!$C$3,'Op Costs'!$B$13:$T$29,5,FALSE))*'11'!$H$3*(VLOOKUP('11'!$C$3,'Op Costs'!$B$13:$T$29,19,FALSE))) ->  | Q56: =IF(Q8=0,"",(VLOOKUP('12'!$C$3,'Op Costs'!$B$13:$T$29,5,FALSE))*'12'!$H$3*(VLOOKUP('12'!$C$3,'Op Costs'!$B$13:$T$29,19,FALSE))) ->  | R56: =IF(R8=0,"",(VLOOKUP('13'!$C$3,'Op Costs'!$B$13:$T$29,5,FALSE))*'13'!$H$3*(VLOOKUP('13'!$C$3,'Op Costs'!$B$13:$T$29,19,FALSE))) ->  | S56: =IF(S8=0,"",(VLOOKUP('14'!$C$3,'Op Costs'!$B$13:$T$29,5,FALSE))*'14'!$H$3*(VLOOKUP('14'!$C$3,'Op Costs'!$B$13:$T$29,19,FALSE))) ->  | T56: =IF(T8=0,"",(VLOOKUP('15'!$C$3,'Op Costs'!$B$13:$T$29,5,FALSE))*'15'!$H$3*(VLOOKUP('15'!$C$3,'Op Costs'!$B$13:$T$29,19,FALSE))) ->  | U56: =IF(U8=0,"",(VLOOKUP('16'!$C$3,'Op Costs'!$B$13:$T$29,5,FALSE))*'16'!$H$3*(VLOOKUP('16'!$C$3,'Op Costs'!$B$13:$T$29,19,FALSE))) -> 
A58: Costs Not Covered by AgriInsurance
B59: Operating Costs | C59: =SUM(F59:M59) -> 0 | F59: =IF(F$56="","",IF(SUM(F27-F56)<0,0,SUM(F27-F56))) -> 0 | G59: =IF(G$56="","",IF(SUM(G27-G56)<0,0,SUM(G27-G56))) -> 0 | H59: =IF(H$56="","",IF(SUM(H27-H56)<0,0,SUM(H27-H56))) ->  | I59: =IF($I$56="","",IF(SUM(I27-I56)<0,0,SUM(I27-I56))) ->  | J59: =IF(J$56="","",IF(SUM(J27-J56)<0,0,SUM(J27-J56))) -> 
B60: Operating & Fixed Costs | C60: =SUM(F60:M60) -> 0 | F60: =IF(F$56="","",IF(SUM(F34-F56)<0,0,SUM(F34-F56))) -> 0 | G60: =IF(G$56="","",IF(SUM(G34-G56)<0,0,SUM(G34-G56))) -> 0 | H60: =IF(H$56="","",IF(SUM(H34-H56)<0,0,SUM(H34-H56))) ->  | I60: =IF($I$56="","",IF(SUM(I34-I56)<0,0,SUM(I34-I56))) ->  | J60: =IF(J$56="","",IF(SUM(J34-J56)<0,0,SUM(J34-J56))) ->  | K60: =IF(K$56="","",IF(SUM(K34-K56)<0,0,SUM(K34-K56))) ->  | L60: =IF(L$56="","",IF(SUM(L34-L56)<0,0,SUM(L34-L56))) ->  | M60: =IF(M$56="","",IF(SUM(M34-M56)<0,0,SUM(M34-M56))) ->  | N60: =IF(N$56="","",IF(SUM(N34-N56)<0,0,SUM(N34-N56))) -> 
B61: Total Costs | C61: =SUM(F61:M61) -> 0 | F61: =IF(F$56="","",IF(SUM(F39-F56)<0,0,SUM(F39-F56))) -> 0 | G61: =IF(G$56="","",IF(SUM(G39-G56)<0,0,SUM(G39-G56))) -> 0 | H61: =IF(H$56="","",IF(SUM(H39-H56)<0,0,SUM(H39-H56))) ->  | I61: =IF($I$56="","",IF(SUM(I39-I56)<0,0,SUM(I39-I56))) ->  | J61: =IF(J$56="","",IF(SUM(J39-J56)<0,0,SUM(J39-J56))) ->  | K61: =IF(K$56="","",IF(SUM(K39-K56)<0,0,SUM(K39-K56))) ->  | L61: =IF(L$56="","",IF(SUM(L39-L56)<0,0,SUM(L39-L56))) ->  | M61: =IF(M$56="","",IF(SUM(M39-M56)<0,0,SUM(M39-M56))) ->  | N61: =IF(N$56="","",IF(SUM(N39-N56)<0,0,SUM(N39-N56))) -> 
A63: Note: This budget is only a guide and is not intended as an in depth study of the cost of production of this industry. Interpretation and utilization of this information is the responsibility of the user.

Sheet Summary-Acre
A3: =" CROPPLAN Production Costs "&Intro!I15&" (Dollars Per Acre)" -> CROPPLAN Production Costs 2025 (Dollars Per Acre)
B5: Date Printed: | C5: Average | D5: =IF(Crop1!$C$3="(select crop)","",Crop1!$C$3) -> Canola | E5: =IF('2'!$C$3="(select crop)","",'2'!$C$3) -> Wheat | F5: =IF('3'!$C$3="(select crop)","",'3'!$C$3) ->  | G5: =IF('4'!$C$3="(select crop)","",'4'!$C$3) ->  | H5: =IF('5'!$C$3="(select crop)","",'5'!$C$3) ->  | I5: =IF('6'!$C$3="(select crop)","",'6'!$C$3) ->  | J5: =IF('7'!$C$3="(select crop)","",'7'!$C$3) ->  | K5: =IF('8'!$C$3="(select crop)","",'8'!$C$3) ->  | L5: =IF('9'!$C$3="(select crop)","",'9'!$C$3) ->  | M5: =IF('10'!$C$3="(select crop)","",'10'!$C$3) ->  | N5: =IF('11'!$C$3="(select crop)","",'11'!$C$3) ->  | O5: =IF('12'!$C$3="(select crop)","",'12'!$C$3) ->  | P5: =IF('13'!$C$3="(select crop)","",'13'!$C$3) ->  | Q5: =IF('14'!$C$3="(select crop)","",'14'!$C$3) ->  | R5: =IF('15'!$C$3="(select crop)","",'15'!$C$3) ->  | S5: =IF('16'!$C$3="(select crop)","",'16'!$C$3) -> 
B6: =TODAY() -> 2025-01-02 | D6: =IF(Crop1!$F$8="(enter name here)","",Crop1!$F$8) ->  | E6: =IF('2'!$F$8="(enter name here)","",'2'!$F$8) ->  | F6: =IF('3'!$F$8="(enter name here)","",'3'!$F$8) ->  | G6: =IF('4'!$F$8="(enter name here)","",'4'!$F$8) ->  | H6: =IF('5'!$F$8="(enter name here)","",'5'!$F$8) ->  | I6: =IF('6'!$F$8="(enter name here)","",'6'!$F$8) ->  | J6: =IF('7'!$F$8="(enter name here)","",'7'!$F$8) ->  | K6: =IF('8'!$F$8="(enter name here)","",'8'!$F$8) ->  | L6: =IF('9'!$F$8="(enter name here)","",'9'!$F$8) ->  | M6: =IF('10'!$F$8="(enter name here)","",'10'!$F$8) ->  | N6: =IF('11'!$F$8="(enter name here)","",'11'!$F$8) ->  | O6: =IF('12'!$F$8="(enter name here)","",'12'!$F$8) ->  | P6: =IF('13'!$F$8="(enter name here)","",'13'!$F$8) ->  | Q6: =IF('14'!$F$8="(enter name here)","",'14'!$F$8) ->  | R6: =IF('15'!$F$8="(enter name here)","",'15'!$F$8) ->  | S6: =IF('16'!$F$8="(enter name here)","",'16'!$F$8) -> 
B8: Profitability Ranking | D8: =IF(D39=0,"",RANK(D52,$D$52:$S$52)) -> 2 | E8: =IF(E39=0,"",RANK(E52,$D$52:$S$52)) -> 1
A10: A. Operating Costs
B11: Seed & Treatment | C11: =IF('Summary-Total'!$C$8=0,0,SUM(SUM('Summary-Total'!F11:U11)/'Summary-Total'!$C$8)) -> 58.25 | D11: =Crop1!$I$9 -> 82.5 | E11: ='2'!$I$9 -> 34 | F11: ='3'!$I$9 -> 0 | G11: ='4'!$I$9 -> 0 | H11: ='5'!$I$9 -> 0 | I11: ='6'!$I$9 -> 0 | J11: ='7'!$I$9 -> 0 | K11: ='8'!$I$9 -> 0 | L11: ='9'!$I$9 -> 0 | M11: ='10'!$I$9 -> 0 | N11: ='11'!$I$9 -> 0 | O11: ='12'!$I$9 -> 0 | P11: ='13'!$I$9 -> 0 | Q11: ='14'!$I$9 -> 0 | R11: ='15'!$I$9 -> 0 | S11: ='16'!$I$9 -> 0
B12: Fertilizer | C12: =IF('Summary-Total'!$C$8=0,0,SUM(SUM('Summary-Total'!F12:U12)/'Summary-Total'!$C$8)) -> 131.8180523 | D12: =Crop1!$I$30 -> 145.6056025 | E12: ='2'!$I$30 -> 118.030502 | F12: ='3'!$I$30 -> 0 | G12: ='4'!$I$30 -> 0 | H12: ='5'!$I$30 -> 0 | I12: ='6'!$I$30 -> 0 | J12: ='7'!$I$30 -> 0 | K12: ='8'!$I$30 -> 0 | L12: ='9'!$I$30 -> 0 | M12: ='10'!$I$30 -> 0 | N12: ='11'!$I$30 -> 0 | O12: ='12'!$I$30 -> 0 | P12: ='13'!$I$30 -> 0 | Q12: ='14'!$I$30 -> 0 | R12: ='15'!$I$30 -> 0 | S12: ='16'!$I$30 -> 0
B13: Herbicide | C13: =IF('Summary-Total'!$C$8=0,0,SUM(SUM('Summary-Total'!F13:U13)/'Summary-Total'!$C$8)) -> 32.875 | D13: =Crop1!$I$44 -> 30 | E13: ='2'!$I$44 -> 35.75 | F13: ='3'!$I$44 -> 0 | G13: ='4'!$I$44 -> 0 | H13: ='5'!$I$44 -> 0 | I13: ='6'!$I$44 -> 0 | J13: ='7'!$I$44 -> 0 | K13: ='8'!$I$44 -> 0 | L13: ='9'!$I$44 -> 0 | M13: ='10'!$I$44 -> 0 | N13: ='11'!$I$44 -> 0 | O13: ='12'!$I$44 -> 0 | P13: ='13'!$I$44 -> 0 | Q13: ='14'!$I$44 -> 0 | R13: ='15'!$I$44 -> 0 | S13: ='16'!$I$44 -> 0
B14: Fungicide | C14: =IF('Summary-Total'!$C$8=0,0,SUM(SUM('Summary-Total'!F14:U14)/'Summary-Total'!$C$8)) -> 21.125 | D14: =Crop1!$I$53 -> 22.75 | E14: ='2'!$I$53 -> 19.5 | F14: ='3'!$I$53 -> 0 | G14: ='4'!$I$53 -> 0 | H14: ='5'!$I$53 -> 0 | I14: ='6'!$I$53 -> 0 | J14: ='7'!$I$53 -> 0 | K14: ='8'!$I$53 -> 0 | L14: ='9'!$I$53 -> 0 | M14: ='10'!$I$53 -> 0 | N14: ='11'!$I$53 -> 0 | O14: ='12'!$I$53 -> 0 | P14: ='13'!$I$53 -> 0 | Q14: ='14'!$I$53 -> 0 | R14: ='15'!$I$53 -> 0 | S14: ='16'!$I$53 -> 0
B15: Insecticide | C15: =IF('Summary-Total'!$C$8=0,0,SUM(SUM('Summary-Total'!F15:U15)/'Summary-Total'!$C$8)) -> 2.875 | D15: =Crop1!$I$62 -> 5.75 | E15: ='2'!$I$62 -> 0 | F15: ='3'!$I$62 -> 0 | G15: ='4'!$I$62 -> 0 | H15: ='5'!$I$62 -> 0 | I15: ='6'!$I$62 -> 0 | J15: ='7'!$I$62 -> 0 | K15: ='8'!$I$62 -> 0 | L15: ='9'!$I$62 -> 0 | M15: ='10'!$I$62 -> 0 | N15: ='11'!$I$62 -> 0 | O15: ='12'!$I$62 -> 0 | P15: ='13'!$I$62 -> 0 | Q15: ='14'!$I$62 -> 0 | R15: ='15'!$I$62 -> 0 | S15: ='16'!$I$62 -> 0
B16: Fuel | C16: =IF('Summary-Total'!$C$8=0,0,SUM(SUM('Summary-Total'!F16:U16)/'Summary-Total'!$C$8)) -> 29.88597179 | D16: =IF('Summary-Total'!F8=0,0,IF('Op Costs'!$E$77=0,VLOOKUP(Crop1!$C$3,'Op Costs'!$B$83:$D$100,3,FALSE),('Op Costs'!$E$77/'Summary-Total'!$C$8))) -> 29.80215874 | E16: =IF('Summary-Total'!G8=0,0,IF('Op Costs'!$E$77=0,VLOOKUP('2'!$C$3,'Op Costs'!$B$83:$D$100,3,FALSE),('Op Costs'!$E$77/'Summary-Total'!$C$8))) -> 29.96978484 | F16: =IF('Summary-Total'!H8=0,0,IF('Op Costs'!$E$77=0,VLOOKUP('3'!$C$3,'Op Costs'!$B$83:$D$100,3,FALSE),('Op Costs'!$E$77/'Summary-Total'!$C$8))) -> 0 | G16: =IF('Summary-Total'!I8=0,0,IF('Op Costs'!$E$77=0,VLOOKUP('4'!$C$3,'Op Costs'!$B$83:$D$100,3,FALSE),('Op Costs'!$E$77/'Summary-Total'!$C$8))) -> 0 | H16: =IF('Summary-Total'!J8=0,0,IF('Op Costs'!$E$77=0,VLOOKUP('5'!$C$3,'Op Costs'!$B$83:$D$100,3,FALSE),('Op Costs'!$E$77/'Summary-Total'!$C$8))) -> 0 | I16: =IF('Summary-Total'!K8=0,0,IF('Op Costs'!$E$77=0,VLOOKUP('6'!$C$3,'Op Costs'!$B$83:$D$100,3,FALSE),('Op Costs'!$E$77/'Summary-Total'!$C$8))) -> 0 | J16: =IF('Summary-Total'!L8=0,0,IF('Op Costs'!$E$77=0,VLOOKUP('7'!$C$3,'Op Costs'!$B$83:$D$100,3,FALSE),('Op Costs'!$E$77/'Summary-Total'!$C$8))) -> 0 | K16: =IF('Summary-Total'!M8=0,0,IF('Op Costs'!$E$77=0,VLOOKUP('8'!$C$3,'Op Costs'!$B$83:$D$100,3,FALSE),('Op Costs'!$E$77/'Summary-Total'!$C$8))) -> 0 | L16: =IF('Summary-Total'!N8=0,0,IF('Op Costs'!$E$77=0,VLOOKUP('9'!$C$3,'Op Costs'!$B$83:$D$100,3,FALSE),('Op Costs'!$E$77/'Summary-Total'!$C$8))) -> 0 | M16: =IF('Summary-Total'!O8=0,0,IF('Op Costs'!$E$77=0,VLOOKUP('10'!$C$3,'Op Costs'!$B$83:$D$100,3,FALSE),('Op Costs'!$E$77/'Summary-Total'!$C$8))) -> 0 | N16: =IF('Summary-Total'!P8=0,0,IF('Op Costs'!$E$77=0,VLOOKUP('11'!$C$3,'Op Costs'!$B$83:$D$100,3,FALSE),('Op Costs'!$E$77/'Summary-Total'!$C$8))) -> 0 | O16: =IF('Summary-Total'!Q8=0,0,IF('Op Costs'!$E$77=0,VLOOKUP('12'!$C$3,'Op Costs'!$B$83:$D$100,3,FALSE),('Op Costs'!$E$77/'Summary-Total'!$C$8))) -> 0 | P16: =IF('Summary-Total'!R8=0,0,IF('Op Costs'!$E$77=0,VLOOKUP('13'!$C$3,'Op Costs'!$B$83:$D$100,3,FALSE),('Op Costs'!$E$77/'Summary-Total'!$C$8))) -> 0 | Q16: =IF('Summary-Total'!S8=0,0,IF('Op Costs'!$E$77=0,VLOOKUP('14'!$C$3,'Op Costs'!$B$83:$D$100,3,FALSE),('Op Costs'!$E$77/'Summary-Total'!$C$8))) -> 0 | R16: =IF('Summary-Total'!T8=0,0,IF('Op Costs'!$E$77=0,VLOOKUP('15'!$C$3,'Op Costs'!$B$83:$D$100,3,FALSE),('Op Costs'!$E$77/'Summary-Total'!$C$8))) -> 0 | S16: =IF('Summary-Total'!U8=0,0,IF('Op Costs'!$E$77=0,VLOOKUP('16'!$C$3,'Op Costs'!$B$83:$D$100,3,FALSE),('Op Costs'!$E$77/'Summary-Total'!$C$8))) -> 0
B17: Hired Labour | C17: =IF('Summary-Total'!$C$8=0,0,SUM(SUM('Summary-Total'!F17:U17)/'Summary-Total'!$C$8)) -> 5.4 | D17: =IF('Summary-Total'!F8=0,0,IF('Op Costs'!$E$58=0,IF('Op Costs'!$K$58="yes",'Op Costs'!$J$59*'Op Costs'!$N$59,0),('Op Costs'!$E$58/'Summary-Total'!$C$8))) -> 5.4 | E17: =IF('Summary-Total'!G8=0,0,IF('Op Costs'!$E$58=0,IF('Op Costs'!$K$58="yes",'Op Costs'!$J$59*'Op Costs'!$N$59,0),('Op Costs'!$E$58/'Summary-Total'!$C$8))) -> 5.4 | F17: =IF('Summary-Total'!H8=0,0,IF('Op Costs'!$E$58=0,IF('Op Costs'!$K$58="yes",'Op Costs'!$J$59*'Op Costs'!$N$59,0),('Op Costs'!$E$58/'Summary-Total'!$C$8))) -> 0 | G17: =IF('Summary-Total'!I8=0,0,IF('Op Costs'!$E$58=0,IF('Op Costs'!$K$58="yes",'Op Costs'!$J$59*'Op Costs'!$N$59,0),('Op Costs'!$E$58/'Summary-Total'!$C$8))) -> 0 | H17: =IF('Summary-Total'!J8=0,0,IF('Op Costs'!$E$58=0,IF('Op Costs'!$K$58="yes",'Op Costs'!$J$59*'Op Costs'!$N$59,0),('Op Costs'!$E$58/'Summary-Total'!$C$8))) -> 0 | I17: =IF('Summary-Total'!K8=0,0,IF('Op Costs'!$E$58=0,IF('Op Costs'!$K$58="yes",'Op Costs'!$J$59*'Op Costs'!$N$59,0),('Op Costs'!$E$58/'Summary-Total'!$C$8))) -> 0 | J17: =IF('Summary-Total'!L8=0,0,IF('Op Costs'!$E$58=0,IF('Op Costs'!$K$58="yes",'Op Costs'!$J$59*'Op Costs'!$N$59,0),('Op Costs'!$E$58/'Summary-Total'!$C$8))) -> 0 | K17: =IF('Summary-Total'!M8=0,0,IF('Op Costs'!$E$58=0,IF('Op Costs'!$K$58="yes",'Op Costs'!$J$59*'Op Costs'!$N$59,0),('Op Costs'!$E$58/'Summary-Total'!$C$8))) -> 0 | L17: =IF('Summary-Total'!N8=0,0,IF('Op Costs'!$E$58=0,IF('Op Costs'!$K$58="yes",'Op Costs'!$J$59*'Op Costs'!$N$59,0),('Op Costs'!$E$58/'Summary-Total'!$C$8))) -> 0 | M17: =IF('Summary-Total'!O8=0,0,IF('Op Costs'!$E$58=0,IF('Op Costs'!$K$58="yes",'Op Costs'!$J$59*'Op Costs'!$N$59,0),('Op Costs'!$E$58/'Summary-Total'!$C$8))) -> 0 | N17: =IF('Summary-Total'!P8=0,0,IF('Op Costs'!$E$58=0,IF('Op Costs'!$K$58="yes",'Op Costs'!$J$59*'Op Costs'!$N$59,0),('Op Costs'!$E$58/'Summary-Total'!$C$8))) -> 0 | O17: =IF('Summary-Total'!Q8=0,0,IF('Op Costs'!$E$58=0,IF('Op Costs'!$K$58="yes",'Op Costs'!$J$59*'Op Costs'!$N$59,0),('Op Costs'!$E$58/'Summary-Total'!$C$8))) -> 0 | P17: =IF('Summary-Total'!R8=0,0,IF('Op Costs'!$E$58=0,IF('Op Costs'!$K$58="yes",'Op Costs'!$J$59*'Op Costs'!$N$59,0),('Op Costs'!$E$58/'Summary-Total'!$C$8))) -> 0 | Q17: =IF('Summary-Total'!S8=0,0,IF('Op Costs'!$E$58=0,IF('Op Costs'!$K$58="yes",'Op Costs'!$J$59*'Op Costs'!$N$59,0),('Op Costs'!$E$58/'Summary-Total'!$C$8))) -> 0 | R17: =IF('Summary-Total'!T8=0,0,IF('Op Costs'!$E$58=0,IF('Op Costs'!$K$58="yes",'Op Costs'!$J$59*'Op Costs'!$N$59,0),('Op Costs'!$E$58/'Summary-Total'!$C$8))) -> 0 | S17: =IF('Summary-Total'!U8=0,0,IF('Op Costs'!$E$58=0,IF('Op Costs'!$K$58="yes",'Op Costs'!$J$59*'Op Costs'!$N$59,0),('Op Costs'!$E$58/'Summary-Total'!$C$8))) -> 0
B18: Machinery Operating | C18: =IF('Summary-Total'!$C$8=0,0,SUM(SUM('Summary-Total'!F18:U18)/'Summary-Total'!$C$8)) -> 25 | D18: =IF('Summary-Total'!F8=0,0,IF('Op Costs'!$F$110+'Op Costs'!$F$111=0,'Op Costs'!$L$110,'Op Costs'!$F$112/'Summary-Total'!$C$8)) -> 25 | E18: =IF('Summary-Total'!G8=0,0,IF('Op Costs'!$F$110+'Op Costs'!$F$111=0,'Op Costs'!$L$110,'Op Costs'!$F$112/'Summary-Total'!$C$8)) -> 25 | F18: =IF('Summary-Total'!H8=0,0,IF('Op Costs'!$F$110+'Op Costs'!$F$111=0,'Op Costs'!$L$110,'Op Costs'!$F$112/'Summary-Total'!$C$8)) -> 0 | G18: =IF('Summary-Total'!I8=0,0,IF('Op Costs'!$F$110+'Op Costs'!$F$111=0,'Op Costs'!$L$110,'Op Costs'!$F$112/'Summary-Total'!$C$8)) -> 0 | H18: =IF('Summary-Total'!J8=0,0,IF('Op Costs'!$F$110+'Op Costs'!$F$111=0,'Op Costs'!$L$110,'Op Costs'!$F$112/'Summary-Total'!$C$8)) -> 0 | I18: =IF('Summary-Total'!K8=0,0,IF('Op Costs'!$F$110+'Op Costs'!$F$111=0,'Op Costs'!$L$110,'Op Costs'!$F$112/'Summary-Total'!$C$8)) -> 0 | J18: =IF('Summary-Total'!L8=0,0,IF('Op Costs'!$F$110+'Op Costs'!$F$111=0,'Op Costs'!$L$110,'Op Costs'!$F$112/'Summary-Total'!$C$8)) -> 0 | K18: =IF('Summary-Total'!M8=0,0,IF('Op Costs'!$F$110+'Op Costs'!$F$111=0,'Op Costs'!$L$110,'Op Costs'!$F$112/'Summary-Total'!$C$8)) -> 0 | L18: =IF('Summary-Total'!N8=0,0,IF('Op Costs'!$F$110+'Op Costs'!$F$111=0,'Op Costs'!$L$110,'Op Costs'!$F$112/'Summary-Total'!$C$8)) -> 0 | M18: =IF('Summary-Total'!O8=0,0,IF('Op Costs'!$F$110+'Op Costs'!$F$111=0,'Op Costs'!$L$110,'Op Costs'!$F$112/'Summary-Total'!$C$8)) -> 0 | N18: =IF('Summary-Total'!P8=0,0,IF('Op Costs'!$F$110+'Op Costs'!$F$111=0,'Op Costs'!$L$110,'Op Costs'!$F$112/'Summary-Total'!$C$8)) -> 0 | O18: =IF('Summary-Total'!Q8=0,0,IF('Op Costs'!$F$110+'Op Costs'!$F$111=0,'Op Costs'!$L$110,'Op Costs'!$F$112/'Summary-Total'!$C$8)) -> 0 | P18: =IF('Summary-Total'!R8=0,0,IF('Op Costs'!$F$110+'Op Costs'!$F$111=0,'Op Costs'!$L$110,'Op Costs'!$F$112/'Summary-Total'!$C$8)) -> 0 | Q18: =IF('Summary-Total'!S8=0,0,IF('Op Costs'!$F$110+'Op Costs'!$F$111=0,'Op Costs'!$L$110,'Op Costs'!$F$112/'Summary-Total'!$C$8)) -> 0 | R18: =IF('Summary-Total'!T8=0,0,IF('Op Costs'!$F$110+'Op Costs'!$F$111=0,'Op Costs'!$L$110,'Op Costs'!$F$112/'Summary-Total'!$C$8)) -> 0 | S18: =IF('Summary-Total'!U8=0,0,IF('Op Costs'!$F$110+'Op Costs'!$F$111=0,'Op Costs'!$L$110,'Op Costs'!$F$112/'Summary-Total'!$C$8)) -> 0
B19: Machinery Lease | C19: =IF('Summary-Total'!$C$8=0,0,SUM(SUM('Summary-Total'!F19:U19)/'Summary-Total'!$C$8)) -> 0 | D19: =IF('Summary-Total'!F8=0,0,'Land & Equip'!$J$63/'Summary-Total'!$C$8) -> 0 | E19: =IF('Summary-Total'!G8=0,0,'Land & Equip'!$J$63/'Summary-Total'!$C$8) -> 0 | F19: =IF('Summary-Total'!H8=0,0,'Land & Equip'!$J$63/'Summary-Total'!$C$8) -> 0 | G19: =IF('Summary-Total'!I8=0,0,'Land & Equip'!$J$63/'Summary-Total'!$C$8) -> 0 | H19: =IF('Summary-Total'!J8=0,0,'Land & Equip'!$J$63/'Summary-Total'!$C$8) -> 0 | I19: =IF('Summary-Total'!K8=0,0,'Land & Equip'!$J$63/'Summary-Total'!$C$8) -> 0 | J19: =IF('Summary-Total'!L8=0,0,'Land & Equip'!$J$63/'Summary-Total'!$C$8) -> 0 | K19: =IF('Summary-Total'!M8=0,0,'Land & Equip'!$J$63/'Summary-Total'!$C$8) -> 0 | L19: =IF('Summary-Total'!N8=0,0,'Land & Equip'!$J$63/'Summary-Total'!$C$8) -> 0 | M19: =IF('Summary-Total'!O8=0,0,'Land & Equip'!$J$63/'Summary-Total'!$C$8) -> 0 | N19: =IF('Summary-Total'!P8=0,0,'Land & Equip'!$J$63/'Summary-Total'!$C$8) -> 0 | O19: =IF('Summary-Total'!Q8=0,0,'Land & Equip'!$J$63/'Summary-Total'!$C$8) -> 0 | P19: =IF('Summary-Total'!R8=0,0,'Land & Equip'!$J$63/'Summary-Total'!$C$8) -> 0 | Q19: =IF('Summary-Total'!S8=0,0,'Land & Equip'!$J$63/'Summary-Total'!$C$8) -> 0 | R19: =IF('Summary-Total'!T8=0,0,'Land & Equip'!$J$63/'Summary-Total'!$C$8) -> 0 | S19: =IF('Summary-Total'!U8=0,0,'Land & Equip'!$J$63/'Summary-Total'!$C$8) -> 0
B20: Land Rental | C20: =IF('Summary-Total'!$C$8=0,0,SUM(SUM('Summary-Total'!F20:U20)/'Summary-Total'!$C$8)) -> 0 | D20: =IF('Summary-Total'!F8=0,0,'Land & Equip'!$J$22/'Summary-Total'!$C$8) -> 0 | E20: =IF('Summary-Total'!G8=0,0,'Land & Equip'!$J$22/'Summary-Total'!$C$8) -> 0 | F20: =IF('Summary-Total'!H8=0,0,'Land & Equip'!$J$22/'Summary-Total'!$C$8) -> 0 | G20: =IF('Summary-Total'!I8=0,0,'Land & Equip'!$J$22/'Summary-Total'!$C$8) -> 0 | H20: =IF('Summary-Total'!J8=0,0,'Land & Equip'!$J$22/'Summary-Total'!$C$8) -> 0 | I20: =IF('Summary-Total'!K8=0,0,'Land & Equip'!$J$22/'Summary-Total'!$C$8) -> 0 | J20: =IF('Summary-Total'!L8=0,0,'Land & Equip'!$J$22/'Summary-Total'!$C$8) -> 0 | K20: =IF('Summary-Total'!M8=0,0,'Land & Equip'!$J$22/'Summary-Total'!$C$8) -> 0 | L20: =IF('Summary-Total'!N8=0,0,'Land & Equip'!$J$22/'Summary-Total'!$C$8) -> 0 | M20: =IF('Summary-Total'!O8=0,0,'Land & Equip'!$J$22/'Summary-Total'!$C$8) -> 0 | N20: =IF('Summary-Total'!P8=0,0,'Land & Equip'!$J$22/'Summary-Total'!$C$8) -> 0 | O20: =IF('Summary-Total'!Q8=0,0,'Land & Equip'!$J$22/'Summary-Total'!$C$8) -> 0 | P20: =IF('Summary-Total'!R8=0,0,'Land & Equip'!$J$22/'Summary-Total'!$C$8) -> 0 | Q20: =IF('Summary-Total'!S8=0,0,'Land & Equip'!$J$22/'Summary-Total'!$C$8) -> 0 | R20: =IF('Summary-Total'!T8=0,0,'Land & Equip'!$J$22/'Summary-Total'!$C$8) -> 0 | S20: =IF('Summary-Total'!U8=0,0,'Land & Equip'!$J$22/'Summary-Total'!$C$8) -> 0
B21: Rental and Custom | C21: =IF('Summary-Total'!$C$8=0,0,SUM(SUM('Summary-Total'!F21:U21)/'Summary-Total'!$C$8)) -> 0 | D21: =IF('Summary-Total'!F8=0,0,VLOOKUP(Crop1!$C$3,'Op Costs'!$B$37:$M$54,12,FALSE)) -> 0 | E21: =IF('Summary-Total'!G8=0,0,VLOOKUP('2'!$C$3,'Op Costs'!$B$37:$M$54,12,FALSE)) -> 0 | F21: =IF('Summary-Total'!H8=0,0,VLOOKUP('3'!$C$3,'Op Costs'!$B$37:$M$54,12,FALSE)) -> 0 | G21: =IF('Summary-Total'!I8=0,0,VLOOKUP('4'!$C$3,'Op Costs'!$B$37:$M$54,12,FALSE)) -> 0 | H21: =IF('Summary-Total'!J8=0,0,VLOOKUP('5'!$C$3,'Op Costs'!$B$37:$M$54,12,FALSE)) -> 0 | I21: =IF('Summary-Total'!K8=0,0,VLOOKUP('6'!$C$3,'Op Costs'!$B$37:$M$54,12,FALSE)) -> 0 | J21: =IF('Summary-Total'!L8=0,0,VLOOKUP('7'!$C$3,'Op Costs'!$B$37:$M$54,12,FALSE)) -> 0 | K21: =IF('Summary-Total'!M8=0,0,VLOOKUP('8'!$C$3,'Op Costs'!$B$37:$M$54,12,FALSE)) -> 0 | L21: =IF('Summary-Total'!N8=0,0,VLOOKUP('9'!$C$3,'Op Costs'!$B$37:$M$54,12,FALSE)) -> 0 | M21: =IF('Summary-Total'!O8=0,0,VLOOKUP('10'!$C$3,'Op Costs'!$B$37:$M$54,12,FALSE)) -> 0 | N21: =IF('Summary-Total'!P8=0,0,VLOOKUP('11'!$C$3,'Op Costs'!$B$37:$M$54,12,FALSE)) -> 0 | O21: =IF('Summary-Total'!Q8=0,0,VLOOKUP('12'!$C$3,'Op Costs'!$B$37:$M$54,12,FALSE)) -> 0 | P21: =IF('Summary-Total'!R8=0,0,VLOOKUP('13'!$C$3,'Op Costs'!$B$37:$M$54,12,FALSE)) -> 0 | Q21: =IF('Summary-Total'!S8=0,0,VLOOKUP('14'!$C$3,'Op Costs'!$B$37:$M$54,12,FALSE)) -> 0 | R21: =IF('Summary-Total'!T8=0,0,VLOOKUP('15'!$C$3,'Op Costs'!$B$37:$M$54,12,FALSE)) -> 0 | S21: =IF('Summary-Total'!U8=0,0,VLOOKUP('16'!$C$3,'Op Costs'!$B$37:$M$54,12,FALSE)) -> 0
B22: Crop Insurance | C22: =IF('Summary-Total'!$C$8=0,0,SUM(SUM('Summary-Total'!F22:U22)/'Summary-Total'!$C$8)) -> 16.67 | D22: =IF('Summary-Total'!F8=0,0,VLOOKUP(Crop1!$C$3,'Op Costs'!$B$13:$O$30,7,FALSE)+VLOOKUP(Crop1!$C$3,'Op Costs'!$B$13:$O$30,11,FALSE)) -> 16.51 | E22: =IF('Summary-Total'!G8=0,0,VLOOKUP('2'!$C$3,'Op Costs'!$B$13:$O$30,7,FALSE)+VLOOKUP('2'!$C$3,'Op Costs'!$B$13:$O$30,11,FALSE)) -> 16.83 | F22: =IF('Summary-Total'!H8=0,0,VLOOKUP('3'!$C$3,'Op Costs'!$B$13:$O$30,7,FALSE)+VLOOKUP('3'!$C$3,'Op Costs'!$B$13:$O$30,11,FALSE)) -> 0 | G22: =IF('Summary-Total'!I8=0,0,VLOOKUP('4'!$C$3,'Op Costs'!$B$13:$O$30,7,FALSE)+VLOOKUP('4'!$C$3,'Op Costs'!$B$13:$O$30,11,FALSE)) -> 0 | H22: =IF('Summary-Total'!J8=0,0,VLOOKUP('5'!$C$3,'Op Costs'!$B$13:$O$30,7,FALSE)+VLOOKUP('5'!$C$3,'Op Costs'!$B$13:$O$30,11,FALSE)) -> 0 | I22: =IF('Summary-Total'!K8=0,0,VLOOKUP('6'!$C$3,'Op Costs'!$B$13:$O$30,7,FALSE)+VLOOKUP('6'!$C$3,'Op Costs'!$B$13:$O$30,11,FALSE)) -> 0 | J22: =IF('Summary-Total'!L8=0,0,VLOOKUP('7'!$C$3,'Op Costs'!$B$13:$O$30,7,FALSE)+VLOOKUP('7'!$C$3,'Op Costs'!$B$13:$O$30,11,FALSE)) -> 0 | K22: =IF('Summary-Total'!M8=0,0,VLOOKUP('8'!$C$3,'Op Costs'!$B$13:$O$30,7,FALSE)+VLOOKUP('8'!$C$3,'Op Costs'!$B$13:$O$30,11,FALSE)) -> 0 | L22: =IF('Summary-Total'!N8=0,0,VLOOKUP('9'!$C$3,'Op Costs'!$B$13:$O$30,7,FALSE)+VLOOKUP('9'!$C$3,'Op Costs'!$B$13:$O$30,11,FALSE)) -> 0 | M22: =IF('Summary-Total'!O8=0,0,VLOOKUP('10'!$C$3,'Op Costs'!$B$13:$O$30,7,FALSE)+VLOOKUP('10'!$C$3,'Op Costs'!$B$13:$O$30,11,FALSE)) -> 0 | N22: =IF('Summary-Total'!P8=0,0,VLOOKUP('11'!$C$3,'Op Costs'!$B$13:$O$30,7,FALSE)+VLOOKUP('11'!$C$3,'Op Costs'!$B$13:$O$30,11,FALSE)) -> 0 | O22: =IF('Summary-Total'!Q8=0,0,VLOOKUP('12'!$C$3,'Op Costs'!$B$13:$O$30,7,FALSE)+VLOOKUP('12'!$C$3,'Op Costs'!$B$13:$O$30,11,FALSE)) -> 0 | P22: =IF('Summary-Total'!R8=0,0,VLOOKUP('13'!$C$3,'Op Costs'!$B$13:$O$30,7,FALSE)+VLOOKUP('13'!$C$3,'Op Costs'!$B$13:$O$30,11,FALSE)) -> 0 | Q22: =IF('Summary-Total'!S8=0,0,VLOOKUP('14'!$C$3,'Op Costs'!$B$13:$O$30,7,FALSE)+VLOOKUP('14'!$C$3,'Op Costs'!$B$13:$O$30,11,FALSE)) -> 0 | R22: =IF('Summary-Total'!T8=0,0,VLOOKUP('15'!$C$3,'Op Costs'!$B$13:$O$30,7,FALSE)+VLOOKUP('15'!$C$3,'Op Costs'!$B$13:$O$30,11,FALSE)) -> 0 | S22: =IF('Summary-Total'!U8=0,0,VLOOKUP('16'!$C$3,'Op Costs'!$B$13:$O$30,7,FALSE)+VLOOKUP('16'!$C$3,'Op Costs'!$B$13:$O$30,11,FALSE)) -> 0
B23: Other Costs | C23: =IF('Summary-Total'!$C$8=0,0,SUM(SUM('Summary-Total'!F23:U23)/'Summary-Total'!$C$8)) -> 17.75 | D23: =IF('Summary-Total'!F8=0,0,IF('Op Costs'!$F$131=0,'Op Costs'!$L$116,('Op Costs'!$F$131/'Summary-Total'!$C$8))) -> 17.75 | E23: =IF('Summary-Total'!G8=0,0,IF('Op Costs'!$F$131=0,'Op Costs'!$L$116,('Op Costs'!$F$131/'Summary-Total'!$C$8))) -> 17.75 | F23: =IF('Summary-Total'!H8=0,0,IF('Op Costs'!$F$131=0,'Op Costs'!$L$116,('Op Costs'!$F$131/'Summary-Total'!$C$8))) -> 0 | G23: =IF('Summary-Total'!I8=0,0,IF('Op Costs'!$F$131=0,'Op Costs'!$L$116,('Op Costs'!$F$131/'Summary-Total'!$C$8))) -> 0 | H23: =IF('Summary-Total'!J8=0,0,IF('Op Costs'!$F$131=0,'Op Costs'!$L$116,('Op Costs'!$F$131/'Summary-Total'!$C$8))) -> 0 | I23: =IF('Summary-Total'!K8=0,0,IF('Op Costs'!$F$131=0,'Op Costs'!$L$116,('Op Costs'!$F$131/'Summary-Total'!$C$8))) -> 0 | J23: =IF('Summary-Total'!L8=0,0,IF('Op Costs'!$F$131=0,'Op Costs'!$L$116,('Op Costs'!$F$131/'Summary-Total'!$C$8))) -> 0 | K23: =IF('Summary-Total'!M8=0,0,IF('Op Costs'!$F$131=0,'Op Costs'!$L$116,('Op Costs'!$F$131/'Summary-Total'!$C$8))) -> 0 | L23: =IF('Summary-Total'!N8=0,0,IF('Op Costs'!$F$131=0,'Op Costs'!$L$116,('Op Costs'!$F$131/'Summary-Total'!$C$8))) -> 0 | M23: =IF('Summary-Total'!O8=0,0,IF('Op Costs'!$F$131=0,'Op Costs'!$L$116,('Op Costs'!$F$131/'Summary-Total'!$C$8))) -> 0 | N23: =IF('Summary-Total'!P8=0,0,IF('Op Costs'!$F$131=0,'Op Costs'!$L$116,('Op Costs'!$F$131/'Summary-Total'!$C$8))) -> 0 | O23: =IF('Summary-Total'!Q8=0,0,IF('Op Costs'!$F$131=0,'Op Costs'!$L$116,('Op Costs'!$F$131/'Summary-Total'!$C$8))) -> 0 | P23: =IF('Summary-Total'!R8=0,0,IF('Op Costs'!$F$131=0,'Op Costs'!$L$116,('Op Costs'!$F$131/'Summary-Total'!$C$8))) -> 0 | Q23: =IF('Summary-Total'!S8=0,0,IF('Op Costs'!$F$131=0,'Op Costs'!$L$116,('Op Costs'!$F$131/'Summary-Total'!$C$8))) -> 0 | R23: =IF('Summary-Total'!T8=0,0,IF('Op Costs'!$F$131=0,'Op Costs'!$L$116,('Op Costs'!$F$131/'Summary-Total'!$C$8))) -> 0 | S23: =IF('Summary-Total'!U8=0,0,IF('Op Costs'!$F$131=0,'Op Costs'!$L$116,('Op Costs'!$F$131/'Summary-Total'!$C$8))) -> 0
B24: Land Taxes | C24: =IF('Summary-Total'!$C$8=0,0,SUM(SUM('Summary-Total'!F24:U24)/'Summary-Total'!$C$8)) -> 0 | D24: =IF('Summary-Total'!F8=0,0,IF('Op Costs'!$E$135=0,'Op Costs'!$L$135*('Land & Equip'!$C$26)/'Summary-Total'!$C$8,('Op Costs'!$E$135/'Summary-Total'!$C$8))) -> 0 | E24: =IF('Summary-Total'!G8=0,0,IF('Op Costs'!$E$135=0,'Op Costs'!$L$135*('Land & Equip'!$C$26)/'Summary-Total'!$C$8,('Op Costs'!$E$135/'Summary-Total'!$C$8))) -> 0 | F24: =IF('Summary-Total'!H8=0,0,IF('Op Costs'!$E$135=0,'Op Costs'!$L$135*('Land & Equip'!$C$26)/'Summary-Total'!$C$8,('Op Costs'!$E$135/'Summary-Total'!$C$8))) -> 0 | G24: =IF('Summary-Total'!I8=0,0,IF('Op Costs'!$E$135=0,'Op Costs'!$L$135*('Land & Equip'!$C$26)/'Summary-Total'!$C$8,('Op Costs'!$E$135/'Summary-Total'!$C$8))) -> 0 | H24: =IF('Summary-Total'!J8=0,0,IF('Op Costs'!$E$135=0,'Op Costs'!$L$135*('Land & Equip'!$C$26)/'Summary-Total'!$C$8,('Op Costs'!$E$135/'Summary-Total'!$C$8))) -> 0 | I24: =IF('Summary-Total'!K8=0,0,IF('Op Costs'!$E$135=0,'Op Costs'!$L$135*('Land & Equip'!$C$26)/'Summary-Total'!$C$8,('Op Costs'!$E$135/'Summary-Total'!$C$8))) -> 0 | J24: =IF('Summary-Total'!L8=0,0,IF('Op Costs'!$E$135=0,'Op Costs'!$L$135*('Land & Equip'!$C$26)/'Summary-Total'!$C$8,('Op Costs'!$E$135/'Summary-Total'!$C$8))) -> 0 | K24: =IF('Summary-Total'!M8=0,0,IF('Op Costs'!$E$135=0,'Op Costs'!$L$135*('Land & Equip'!$C$26)/'Summary-Total'!$C$8,('Op Costs'!$E$135/'Summary-Total'!$C$8))) -> 0 | L24: =IF('Summary-Total'!N8=0,0,IF('Op Costs'!$E$135=0,'Op Costs'!$L$135*('Land & Equip'!$C$26)/'Summary-Total'!$C$8,('Op Costs'!$E$135/'Summary-Total'!$C$8))) -> 0 | M24: =IF('Summary-Total'!O8=0,0,IF('Op Costs'!$E$135=0,'Op Costs'!$L$135*('Land & Equip'!$C$26)/'Summary-Total'!$C$8,('Op Costs'!$E$135/'Summary-Total'!$C$8))) -> 0 | N24: =IF('Summary-Total'!P8=0,0,IF('Op Costs'!$E$135=0,'Op Costs'!$L$135*('Land & Equip'!$C$26)/'Summary-Total'!$C$8,('Op Costs'!$E$135/'Summary-Total'!$C$8))) -> 0 | O24: =IF('Summary-Total'!Q8=0,0,IF('Op Costs'!$E$135=0,'Op Costs'!$L$135*('Land & Equip'!$C$26)/'Summary-Total'!$C$8,('Op Costs'!$E$135/'Summary-Total'!$C$8))) -> 0 | P24: =IF('Summary-Total'!R8=0,0,IF('Op Costs'!$E$135=0,'Op Costs'!$L$135*('Land & Equip'!$C$26)/'Summary-Total'!$C$8,('Op Costs'!$E$135/'Summary-Total'!$C$8))) -> 0 | Q24: =IF('Summary-Total'!S8=0,0,IF('Op Costs'!$E$135=0,'Op Costs'!$L$135*('Land & Equip'!$C$26)/'Summary-Total'!$C$8,('Op Costs'!$E$135/'Summary-Total'!$C$8))) -> 0 | R24: =IF('Summary-Total'!T8=0,0,IF('Op Costs'!$E$135=0,'Op Costs'!$L$135*('Land & Equip'!$C$26)/'Summary-Total'!$C$8,('Op Costs'!$E$135/'Summary-Total'!$C$8))) -> 0 | S24: =IF('Summary-Total'!U8=0,0,IF('Op Costs'!$E$135=0,'Op Costs'!$L$135*('Land & Equip'!$C$26)/'Summary-Total'!$C$8,('Op Costs'!$E$135/'Summary-Total'!$C$8))) -> 0
B25: Drying Costs | C25: =IF('Summary-Total'!$C$8=0,0,SUM(SUM('Summary-Total'!F25:U25)/'Summary-Total'!$C$8)) -> 0 | D25: =IF('Summary-Total'!F8=0,0,VLOOKUP(Crop1!$C$3,'Op Costs'!$B$37:$M$54,3,FALSE)) -> 0 | E25: =IF('Summary-Total'!G8=0,0,VLOOKUP('2'!$C$3,'Op Costs'!$B$37:$M$54,3,FALSE)) -> 0 | F25: =IF('Summary-Total'!H8=0,0,VLOOKUP('3'!$C$3,'Op Costs'!$B$37:$M$54,3,FALSE)) -> 0 | G25: =IF('Summary-Total'!I8=0,0,VLOOKUP('4'!$C$3,'Op Costs'!$B$37:$M$54,3,FALSE)) -> 0 | H25: =IF('Summary-Total'!J8=0,0,VLOOKUP('5'!$C$3,'Op Costs'!$B$37:$M$54,3,FALSE)) -> 0 | I25: =IF('Summary-Total'!K8=0,0,VLOOKUP('6'!$C$3,'Op Costs'!$B$37:$M$54,3,FALSE)) -> 0 | J25: =IF('Summary-Total'!L8=0,0,VLOOKUP('7'!$C$3,'Op Costs'!$B$37:$M$54,3,FALSE)) -> 0 | K25: =IF('Summary-Total'!M8=0,0,VLOOKUP('8'!$C$3,'Op Costs'!$B$37:$M$54,3,FALSE)) -> 0 | L25: =IF('Summary-Total'!N8=0,0,VLOOKUP('9'!$C$3,'Op Costs'!$B$37:$M$54,3,FALSE)) -> 0 | M25: =IF('Summary-Total'!O8=0,0,VLOOKUP('10'!$C$3,'Op Costs'!$B$37:$M$54,3,FALSE)) -> 0 | N25: =IF('Summary-Total'!P8=0,0,VLOOKUP('11'!$C$3,'Op Costs'!$B$37:$M$54,3,FALSE)) -> 0 | O25: =IF('Summary-Total'!Q8=0,0,VLOOKUP('12'!$C$3,'Op Costs'!$B$37:$M$54,3,FALSE)) -> 0 | P25: =IF('Summary-Total'!R8=0,0,VLOOKUP('13'!$C$3,'Op Costs'!$B$37:$M$54,3,FALSE)) -> 0 | Q25: =IF('Summary-Total'!S8=0,0,VLOOKUP('14'!$C$3,'Op Costs'!$B$37:$M$54,3,FALSE)) -> 0 | R25: =IF('Summary-Total'!T8=0,0,VLOOKUP('15'!$C$3,'Op Costs'!$B$37:$M$54,3,FALSE)) -> 0 | S25: =IF('Summary-Total'!U8=0,0,VLOOKUP('16'!$C$3,'Op Costs'!$B$37:$M$54,3,FALSE)) -> 0
B26: Interest on Operating | C26: =IF('Summary-Total'!$C$8=0,0,SUM(SUM('Summary-Total'!F26:U26)/'Summary-Total'!$C$8)) -> 12.81 | D26: =IF('Summary-Total'!F8=0,0,IF('Op Costs'!$E$140=0,IF('Op Costs'!$L$140="Yes",ROUND(SUM(D11:D25)*('Op Costs'!$L$141*('Op Costs'!$L$142/12)),2),0),'Op Costs'!$E$140/'Summary-Total'!$C$8)) -> 14.29 | E26: =IF('Summary-Total'!G8=0,0,IF('Op Costs'!$E$140=0,IF('Op Costs'!$L$140="Yes",ROUND(SUM(E11:E25)*('Op Costs'!$L$141*('Op Costs'!$L$142/12)),2),0),'Op Costs'!$E$140/'Summary-Total'!$C$8)) -> 11.33 | F26: =IF('Summary-Total'!H8=0,0,IF('Op Costs'!$E$140=0,IF('Op Costs'!$L$140="Yes",ROUND(SUM(F11:F25)*('Op Costs'!$L$141*('Op Costs'!$L$142/12)),2),0),'Op Costs'!$E$140/'Summary-Total'!$C$8)) -> 0 | G26: =IF('Summary-Total'!I8=0,0,IF('Op Costs'!$E$140=0,IF('Op Costs'!$L$140="Yes",ROUND(SUM(G11:G25)*('Op Costs'!$L$141*('Op Costs'!$L$142/12)),2),0),'Op Costs'!$E$140/'Summary-Total'!$C$8)) -> 0 | H26: =IF('Summary-Total'!J8=0,0,IF('Op Costs'!$E$140=0,IF('Op Costs'!$L$140="Yes",ROUND(SUM(H11:H25)*('Op Costs'!$L$141*('Op Costs'!$L$142/12)),2),0),'Op Costs'!$E$140/'Summary-Total'!$C$8)) -> 0 | I26: =IF('Summary-Total'!K8=0,0,IF('Op Costs'!$E$140=0,IF('Op Costs'!$L$140="Yes",ROUND(SUM(I11:I25)*('Op Costs'!$L$141*('Op Costs'!$L$142/12)),2),0),'Op Costs'!$E$140/'Summary-Total'!$C$8)) -> 0 | J26: =IF('Summary-Total'!L8=0,0,IF('Op Costs'!$E$140=0,IF('Op Costs'!$L$140="Yes",ROUND(SUM(J11:J25)*('Op Costs'!$L$141*('Op Costs'!$L$142/12)),2),0),'Op Costs'!$E$140/'Summary-Total'!$C$8)) -> 0 | K26: =IF('Summary-Total'!M8=0,0,IF('Op Costs'!$E$140=0,IF('Op Costs'!$L$140="Yes",ROUND(SUM(K11:K25)*('Op Costs'!$L$141*('Op Costs'!$L$142/12)),2),0),'Op Costs'!$E$140/'Summary-Total'!$C$8)) -> 0 | L26: =IF('Summary-Total'!N8=0,0,IF('Op Costs'!$E$140=0,IF('Op Costs'!$L$140="Yes",ROUND(SUM(L11:L25)*('Op Costs'!$L$141*('Op Costs'!$L$142/12)),2),0),'Op Costs'!$E$140/'Summary-Total'!$C$8)) -> 0 | M26: =IF('Summary-Total'!O8=0,0,IF('Op Costs'!$E$140=0,IF('Op Costs'!$L$140="Yes",ROUND(SUM(M11:M25)*('Op Costs'!$L$141*('Op Costs'!$L$142/12)),2),0),'Op Costs'!$E$140/'Summary-Total'!$C$8)) -> 0 | N26: =IF('Summary-Total'!P8=0,0,IF('Op Costs'!$E$140=0,IF('Op Costs'!$L$140="Yes",ROUND(SUM(N11:N25)*('Op Costs'!$L$141*('Op Costs'!$L$142/12)),2),0),'Op Costs'!$E$140/'Summary-Total'!$C$8)) -> 0 | O26: =IF('Summary-Total'!Q8=0,0,IF('Op Costs'!$E$140=0,IF('Op Costs'!$L$140="Yes",ROUND(SUM(O11:O25)*('Op Costs'!$L$141*('Op Costs'!$L$142/12)),2),0),'Op Costs'!$E$140/'Summary-Total'!$C$8)) -> 0 | P26: =IF('Summary-Total'!R8=0,0,IF('Op Costs'!$E$140=0,IF('Op Costs'!$L$140="Yes",ROUND(SUM(P11:P25)*('Op Costs'!$L$141*('Op Costs'!$L$142/12)),2),0),'Op Costs'!$E$140/'Summary-Total'!$C$8)) -> 0 | Q26: =IF('Summary-Total'!S8=0,0,IF('Op Costs'!$E$140=0,IF('Op Costs'!$L$140="Yes",ROUND(SUM(Q11:Q25)*('Op Costs'!$L$141*('Op Costs'!$L$142/12)),2),0),'Op Costs'!$E$140/'Summary-Total'!$C$8)) -> 0 | R26: =IF('Summary-Total'!T8=0,0,IF('Op Costs'!$E$140=0,IF('Op Costs'!$L$140="Yes",ROUND(SUM(R11:R25)*('Op Costs'!$L$141*('Op Costs'!$L$142/12)),2),0),'Op Costs'!$E$140/'Summary-Total'!$C$8)) -> 0 | S26: =IF('Summary-Total'!U8=0,0,IF('Op Costs'!$E$140=0,IF('Op Costs'!$L$140="Yes",ROUND(SUM(S11:S25)*('Op Costs'!$L$141*('Op Costs'!$L$142/12)),2),0),'Op Costs'!$E$140/'Summary-Total'!$C$8)) -> 0
B27: Total Operating | C27: =SUM(C11:C26) -> 354.4590241 | D27: 395.3577612 | E27: 313.5602869 | F27: 0 | G27: 0 | H27: 0 | I27: 0 | J27: 0 | K27: 0 | L27: 0 | M27: 0 | N27: 0 | O27: 0 | P27: 0 | Q27: 0 | R27: 0 | S27: 0
A29: B. Fixed Costs
B30: Land Cost | C30: =IF('Summary-Total'!$C$8=0,0,SUM(SUM('Summary-Total'!F30:U30)/'Summary-Total'!$C$8)) -> 0 | D30: =IF('Summary-Total'!F8=0,0,('Land & Equip'!$E$22+'Land & Equip'!$E$39)/'Summary-Total'!$C$8) -> 0 | E30: =IF('Summary-Total'!G8=0,0,('Land & Equip'!$E$22+'Land & Equip'!$E$39)/'Summary-Total'!$C$8) -> 0 | F30: =IF('Summary-Total'!H8=0,0,('Land & Equip'!$E$22+'Land & Equip'!$E$39)/'Summary-Total'!$C$8) -> 0 | G30: =IF('Summary-Total'!I8=0,0,('Land & Equip'!$E$22+'Land & Equip'!$E$39)/'Summary-Total'!$C$8) -> 0 | H30: =IF('Summary-Total'!J8=0,0,('Land & Equip'!$E$22+'Land & Equip'!$E$39)/'Summary-Total'!$C$8) -> 0 | I30: =IF('Summary-Total'!K8=0,0,('Land & Equip'!$E$22+'Land & Equip'!$E$39)/'Summary-Total'!$C$8) -> 0 | J30: =IF('Summary-Total'!L8=0,0,('Land & Equip'!$E$22+'Land & Equip'!$E$39)/'Summary-Total'!$C$8) -> 0 | K30: =IF('Summary-Total'!M8=0,0,('Land & Equip'!$E$22+'Land & Equip'!$E$39)/'Summary-Total'!$C$8) -> 0 | L30: =IF('Summary-Total'!N8=0,0,('Land & Equip'!$E$22+'Land & Equip'!$E$39)/'Summary-Total'!$C$8) -> 0 | M30: =IF('Summary-Total'!O8=0,0,('Land & Equip'!$E$22+'Land & Equip'!$E$39)/'Summary-Total'!$C$8) -> 0 | N30: =IF('Summary-Total'!P8=0,0,('Land & Equip'!$E$22+'Land & Equip'!$E$39)/'Summary-Total'!$C$8) -> 0 | O30: =IF('Summary-Total'!Q8=0,0,('Land & Equip'!$E$22+'Land & Equip'!$E$39)/'Summary-Total'!$C$8) -> 0 | P30: =IF('Summary-Total'!R8=0,0,('Land & Equip'!$E$22+'Land & Equip'!$E$39)/'Summary-Total'!$C$8) -> 0 | Q30: =IF('Summary-Total'!S8=0,0,('Land & Equip'!$E$22+'Land & Equip'!$E$39)/'Summary-Total'!$C$8) -> 0 | R30: =IF('Summary-Total'!T8=0,0,('Land & Equip'!$E$22+'Land & Equip'!$E$39)/'Summary-Total'!$C$8) -> 0 | S30: =IF('Summary-Total'!U8=0,0,('Land & Equip'!$E$22+'Land & Equip'!$E$39)/'Summary-Total'!$C$8) -> 0
B31: Machinery Cost | C31: =IF('Summary-Total'!$C$8=0,0,SUM(SUM('Summary-Total'!F31:U31)/'Summary-Total'!$C$8)) -> 0 | D31: =IF('Summary-Total'!F8=0,0,('Land & Equip'!$E$63+'Land & Equip'!$E$79)/'Summary-Total'!$C$8) -> 0 | E31: =IF('Summary-Total'!G8=0,0,('Land & Equip'!$E$63+'Land & Equip'!$E$79)/'Summary-Total'!$C$8) -> 0 | F31: =IF('Summary-Total'!H8=0,0,('Land & Equip'!$E$63+'Land & Equip'!$E$79)/'Summary-Total'!$C$8) -> 0 | G31: =IF('Summary-Total'!I8=0,0,('Land & Equip'!$E$63+'Land & Equip'!$E$79)/'Summary-Total'!$C$8) -> 0 | H31: =IF('Summary-Total'!J8=0,0,('Land & Equip'!$E$63+'Land & Equip'!$E$79)/'Summary-Total'!$C$8) -> 0 | I31: =IF('Summary-Total'!K8=0,0,('Land & Equip'!$E$63+'Land & Equip'!$E$79)/'Summary-Total'!$C$8) -> 0 | J31: =IF('Summary-Total'!L8=0,0,('Land & Equip'!$E$63+'Land & Equip'!$E$79)/'Summary-Total'!$C$8) -> 0 | K31: =IF('Summary-Total'!M8=0,0,('Land & Equip'!$E$63+'Land & Equip'!$E$79)/'Summary-Total'!$C$8) -> 0 | L31: =IF('Summary-Total'!N8=0,0,('Land & Equip'!$E$63+'Land & Equip'!$E$79)/'Summary-Total'!$C$8) -> 0 | M31: =IF('Summary-Total'!O8=0,0,('Land & Equip'!$E$63+'Land & Equip'!$E$79)/'Summary-Total'!$C$8) -> 0 | N31: =IF('Summary-Total'!P8=0,0,('Land & Equip'!$E$63+'Land & Equip'!$E$79)/'Summary-Total'!$C$8) -> 0 | O31: =IF('Summary-Total'!Q8=0,0,('Land & Equip'!$E$63+'Land & Equip'!$E$79)/'Summary-Total'!$C$8) -> 0 | P31: =IF('Summary-Total'!R8=0,0,('Land & Equip'!$E$63+'Land & Equip'!$E$79)/'Summary-Total'!$C$8) -> 0 | Q31: =IF('Summary-Total'!S8=0,0,('Land & Equip'!$E$63+'Land & Equip'!$E$79)/'Summary-Total'!$C$8) -> 0 | R31: =IF('Summary-Total'!T8=0,0,('Land & Equip'!$E$63+'Land & Equip'!$E$79)/'Summary-Total'!$C$8) -> 0 | S31: =IF('Summary-Total'!U8=0,0,('Land & Equip'!$E$63+'Land & Equip'!$E$79)/'Summary-Total'!$C$8) -> 0
B32: Machinery Depreciation | C32: =IF('Summary-Total'!$C$8=0,0,SUM(SUM('Summary-Total'!F32:U32)/'Summary-Total'!$C$8)) -> 0 | D32: =IF('Summary-Total'!F8=0,0,('Land & Equip'!$E$78)/'Summary-Total'!$C$8) -> 0 | E32: =IF('Summary-Total'!G8=0,0,('Land & Equip'!$E$78)/'Summary-Total'!$C$8) -> 0 | F32: =IF('Summary-Total'!H8=0,0,('Land & Equip'!$E$78)/'Summary-Total'!$C$8) -> 0 | G32: =IF('Summary-Total'!I8=0,0,('Land & Equip'!$E$78)/'Summary-Total'!$C$8) -> 0 | H32: =IF('Summary-Total'!J8=0,0,('Land & Equip'!$E$78)/'Summary-Total'!$C$8) -> 0 | I32: =IF('Summary-Total'!K8=0,0,('Land & Equip'!$E$78)/'Summary-Total'!$C$8) -> 0 | J32: =IF('Summary-Total'!L8=0,0,('Land & Equip'!$E$78)/'Summary-Total'!$C$8) -> 0 | K32: =IF('Summary-Total'!M8=0,0,('Land & Equip'!$E$78)/'Summary-Total'!$C$8) -> 0 | L32: =IF('Summary-Total'!N8=0,0,('Land & Equip'!$E$78)/'Summary-Total'!$C$8) -> 0 | M32: =IF('Summary-Total'!O8=0,0,('Land & Equip'!$E$78)/'Summary-Total'!$C$8) -> 0 | N32: =IF('Summary-Total'!P8=0,0,('Land & Equip'!$E$78)/'Summary-Total'!$C$8) -> 0 | O32: =IF('Summary-Total'!Q8=0,0,('Land & Equip'!$E$78)/'Summary-Total'!$C$8) -> 0 | P32: =IF('Summary-Total'!R8=0,0,('Land & Equip'!$E$78)/'Summary-Total'!$C$8) -> 0 | Q32: =IF('Summary-Total'!S8=0,0,('Land & Equip'!$E$78)/'Summary-Total'!$C$8) -> 0 | R32: =IF('Summary-Total'!T8=0,0,('Land & Equip'!$E$78)/'Summary-Total'!$C$8) -> 0 | S32: =IF('Summary-Total'!U8=0,0,('Land & Equip'!$E$78)/'Summary-Total'!$C$8) -> 0
B33: Total Fixed | C33: =IF('Summary-Total'!$C$8=0,0,SUM(SUM('Summary-Total'!F33:U33)/'Summary-Total'!$C$8)) -> 0 | D33: =SUM(D30:D32) -> 0 | E33: 0 | F33: 0 | G33: 0 | H33: 0 | I33: 0 | J33: 0 | K33: 0 | L33: 0 | M33: 0 | N33: 0 | O33: 0 | P33: 0 | Q33: 0 | R33: 0 | S33: 0
B34: Total Operating & Fixed | C34: =IF('Summary-Total'!$C$8=0,0,SUM(SUM('Summary-Total'!F34:U34)/'Summary-Total'!$C$8)) -> 354.4590241 | D34: =+D27+D33 -> 395.3577612 | E34: 313.5602869 | F34: 0 | G34: 0 | H34: 0 | I34: 0 | J34: 0 | K34: 0 | L34: 0 | M34: 0 | N34: 0 | O34: 0 | P34: 0 | Q34: 0 | R34: 0 | S34: 0
A36: C. Ownership
B37: Owner Withdrawal | C37: =IF('Summary-Total'!$C$8=0,0,SUM(SUM('Summary-Total'!F37:U37)/'Summary-Total'!$C$8)) -> 25 | D37: =IF('Summary-Total'!F8=0,0,IF('Op Costs'!$E$73=0,'Op Costs'!$L$73,('Op Costs'!$E$73/'Summary-Total'!$C$8))) -> 25 | E37: =IF('Summary-Total'!G8=0,0,IF('Op Costs'!$E$73=0,'Op Costs'!$L$73,('Op Costs'!$E$73/'Summary-Total'!$C$8))) -> 25 | F37: =IF('Summary-Total'!H8=0,0,IF('Op Costs'!$E$73=0,'Op Costs'!$L$73,('Op Costs'!$E$73/'Summary-Total'!$C$8))) -> 0 | G37: =IF('Summary-Total'!I8=0,0,IF('Op Costs'!$E$73=0,'Op Costs'!$L$73,('Op Costs'!$E$73/'Summary-Total'!$C$8))) -> 0 | H37: =IF('Summary-Total'!J8=0,0,IF('Op Costs'!$E$73=0,'Op Costs'!$L$73,('Op Costs'!$E$73/'Summary-Total'!$C$8))) -> 0 | I37: =IF('Summary-Total'!K8=0,0,IF('Op Costs'!$E$73=0,'Op Costs'!$L$73,('Op Costs'!$E$73/'Summary-Total'!$C$8))) -> 0 | J37: =IF('Summary-Total'!L8=0,0,IF('Op Costs'!$E$73=0,'Op Costs'!$L$73,('Op Costs'!$E$73/'Summary-Total'!$C$8))) -> 0 | K37: =IF('Summary-Total'!M8=0,0,IF('Op Costs'!$E$73=0,'Op Costs'!$L$73,('Op Costs'!$E$73/'Summary-Total'!$C$8))) -> 0 | L37: =IF('Summary-Total'!N8=0,0,IF('Op Costs'!$E$73=0,'Op Costs'!$L$73,('Op Costs'!$E$73/'Summary-Total'!$C$8))) -> 0 | M37: =IF('Summary-Total'!O8=0,0,IF('Op Costs'!$E$73=0,'Op Costs'!$L$73,('Op Costs'!$E$73/'Summary-Total'!$C$8))) -> 0 | N37: =IF('Summary-Total'!P8=0,0,IF('Op Costs'!$E$73=0,'Op Costs'!$L$73,('Op Costs'!$E$73/'Summary-Total'!$C$8))) -> 0 | O37: =IF('Summary-Total'!Q8=0,0,IF('Op Costs'!$E$73=0,'Op Costs'!$L$73,('Op Costs'!$E$73/'Summary-Total'!$C$8))) -> 0 | P37: =IF('Summary-Total'!R8=0,0,IF('Op Costs'!$E$73=0,'Op Costs'!$L$73,('Op Costs'!$E$73/'Summary-Total'!$C$8))) -> 0 | Q37: =IF('Summary-Total'!S8=0,0,IF('Op Costs'!$E$73=0,'Op Costs'!$L$73,('Op Costs'!$E$73/'Summary-Total'!$C$8))) -> 0 | R37: =IF('Summary-Total'!T8=0,0,IF('Op Costs'!$E$73=0,'Op Costs'!$L$73,('Op Costs'!$E$73/'Summary-Total'!$C$8))) -> 0 | S37: =IF('Summary-Total'!U8=0,0,IF('Op Costs'!$E$73=0,'Op Costs'!$L$73,('Op Costs'!$E$73/'Summary-Total'!$C$8))) -> 0
A39: Total Costs | C39: =IF('Summary-Total'!$C$8=0,0,SUM(SUM('Summary-Total'!F39:U39)/'Summary-Total'!$C$8)) -> 379.4590241 | D39: =+D34+D37 -> 420.3577612 | E39: 338.5602869 | F39: 0 | G39: 0 | H39: 0 | I39: 0 | J39: 0 | K39: 0 | L39: =+L34+L37 -> 0 | M39: 0 | N39: 0 | O39: 0 | P39: 0 | Q39: 0 | R39: 0 | S39: 0
A41: Profitability Analysis
A42: Estimated Farmgate
B43: Avg. Market Price $ per unit | D43: =IF(Crop1!$F80=0,0,((Crop1!F108*Crop1!G108)+(Crop1!F109*Crop1!F116))/Crop1!F80) -> 13.25 | E43: =IF('2'!$F80=0,0,(('2'!$F108*'2'!$G108)+('2'!$F109*'2'!$F116))/'2'!$F80) -> 8 | F43: =IF('3'!$F80=0,0,(('3'!$F108*'3'!$G108)+('3'!$F109*'3'!$F116))/'3'!$F80) -> 0 | G43: =IF('4'!$F80=0,0,(('4'!$F108*'4'!$G108)+('4'!$F109*'4'!$F116))/'4'!$F80) -> 0 | H43: =IF('5'!$F80=0,0,(('5'!$F108*'5'!$G108)+('5'!$F109*'5'!$F116))/'5'!$F80) -> 0 | I43: =IF('6'!$F80=0,0,(('6'!$F108*'6'!$G108)+('6'!$F109*'6'!$F116))/'6'!$F80) -> 0 | J43: =IF('7'!$F80=0,0,(('7'!$F108*'7'!$G108)+('7'!$F109*'7'!$F116))/'7'!$F80) -> 0 | K43: =IF('8'!$F80=0,0,(('8'!$F108*'8'!$G108)+('8'!$F109*'8'!$F116))/'8'!$F80) -> 0 | L43: =IF('9'!$F80=0,0,(('9'!$F108*'9'!$G108)+('9'!$F109*'9'!$F116))/'9'!$F80) -> 0 | M43: =IF('10'!$F80=0,0,(('10'!$F108*'10'!$G108)+('10'!$F109*'10'!$F116))/'10'!$F80) -> 0 | N43: =IF('11'!$F80=0,0,(('11'!$F108*'11'!$G108)+('11'!$F109*'11'!$F116))/'11'!$F80) -> 0 | O43: =IF('12'!$F80=0,0,(('12'!$F108*'12'!$G108)+('12'!$F109*'12'!$F116))/'12'!$F80) -> 0 | P43: =IF('13'!$F80=0,0,(('13'!$F108*'13'!$G108)+('13'!$F109*'13'!$F116))/'13'!$F80) -> 0 | Q43: =IF('14'!$F80=0,0,(('14'!$F108*'14'!$G108)+('14'!$F109*'14'!$F116))/'14'!$F80) -> 0 | R43: =IF('15'!$F80=0,0,(('15'!$F108*'15'!$G108)+('15'!$F109*'15'!$F116))/'15'!$F80) -> 0 | S43: =IF('16'!$F80=0,0,(('16'!$F108*'16'!$G108)+('16'!$F109*'16'!$F116))/'16'!$F80) -> 0
B44: Yield per acre (bu or lb.) | D44: =Crop1!$F$78 -> 45 | E44: ='2'!$F$78 -> 65 | F44: ='3'!$F$78 -> 0 | G44: ='4'!$F$78 -> 0 | H44: ='5'!$F$78 -> 0 | I44: ='6'!$F$78 -> 0 | J44: ='7'!$F$78 -> 0 | K44: ='8'!$F$78 -> 0 | L44: ='9'!$F$78 -> 0 | M44: ='10'!$F$78 -> 0 | N44: ='11'!$F$78 -> 0 | O44: ='12'!$F$78 -> 0 | P44: ='13'!$F$78 -> 0 | Q44: ='14'!$F$78 -> 0 | R44: ='15'!$F$78 -> 0 | S44: ='16'!$F$78 -> 0
B45: Unit type | D45: =Crop1!$F$79 -> bu | E45: ='2'!$F$79 -> bu | F45: ='3'!$F$79 ->  | G45: ='4'!$F$79 ->  | H45: ='5'!$F$79 ->  | I45: ='6'!$F$79 ->  | J45: ='7'!$F$79 ->  | K45: ='8'!$F$79 ->  | L45: ='9'!$F$79 ->  | M45: ='10'!$F$79 ->  | N45: ='11'!$F$79 ->  | O45: ='12'!$F$79 ->  | P45: ='13'!$F$79 ->  | Q45: ='14'!$F$79 ->  | R45: ='15'!$F$79 ->  | S45: ='16'!$F$79 -> 
B46: Other Crop Income | D46: =IF(D43*D44=0,"",Crop1!$F$117) -> 0 | E46: =IF(E43*E44=0,"",'2'!$F$117) -> 0 | F46: =IF(F43*F44=0,"",'3'!$F$117) ->  | G46: =IF(G43*G44=0,"",'4'!$F$117) ->  | H46: =IF(H43*H44=0,"",'5'!$F$117) ->  | I46: =IF(I43*I44=0,"",'6'!$F$117) ->  | J46: =IF(J43*J44=0,"",'7'!$F$117) ->  | K46: =IF(K43*K44=0,"",'8'!$F$117) ->  | L46: =IF(L43*L44=0,"",'9'!$F$117) ->  | M46: =IF(M43*M44=0,"",'10'!$F$117) ->  | N46: =IF(N43*N44=0,"",'11'!$F$117) ->  | O46: =IF(O43*O44=0,"",'12'!$F$117) ->  | P46: =IF(P43*P44=0,"",'13'!$F$117) ->  | Q46: =IF(Q43*Q44=0,"",'14'!$F$117) ->  | R46: =IF(R43*R44=0,"",'15'!$F$117) ->  | S46: =IF(S43*S44=0,"",'16'!$F$117) -> 
B47: Gross Revenue | C47: =IF('Summary-Total'!$C$8=0,0,SUM(SUM('Summary-Total'!F47:U47)/'Summary-Total'!$C$8)) -> 558.125 | D47: =IF(D43*D44=0,"",ROUND((D43*D44)+D46,2)) -> 596.25 | E47: =IF(E43*E44=0,"",ROUND((E43*E44)+E46,2)) -> 520 | L47: =IF(L43*L44=0,"",ROUND((L43*L44)+L46,2)) -> 
A49: Marginal Returns
B50: Over Operating Costs | C50: =SUM(C47-C27) -> 203.6659759 | D50: =IF(D43*D44=0,"",SUM(D47-D27)) -> 200.8922388 | E50: 206.4397131
B51: Over Operating & Fixed Costs | C51: =SUM(C47-C34) -> 203.6659759 | D51: =IF(D43*D44=0,"",SUM(D47-D34)) -> 200.8922388 | E51: 206.4397131 | L51: =IF(L43*L44=0,"",SUM(L47-L34)) -> 
B52: Over Total Costs (Net Profit) | C52: =SUM(C47-C39) -> 178.6659759 | D52: =IF(D43*D44=0,"",SUM(D47-D39)) -> 175.8922388 | E52: 181.4397131 | L52: =IF(L43*L44=0,"",SUM(L47-L39)) -> 
A54: Operating Expense Ratio | C54: =IF(C27=0,0,SUM(C27/C47)) -> 0.6350889569 | D54: =IF(D27=0,"",SUM(D27/D47)) -> 0.6630738134 | E54: 0.6030005517
A56: Breakeven Analysis
A57: Breakeven Yield (Bu or lb.)
B58: Operating Costs | D58: =IF($D$43*$D$44=0,"",Crop1!F134) -> 29.8383216 | E58: =IF(E$43*E$44=0,"",'2'!F134) -> 39.19503586 | F58: =IF(F$43*F$44=0,"",'3'!F134) ->  | G58: =IF(G$43*G$44=0,"",'4'!F134) ->  | H58: =IF(H$43*H$44=0,"",'5'!F134) ->  | I58: =IF(I$43*I$44=0,"",'6'!F134) ->  | J58: =IF(J$43*J$44=0,"",'7'!F134) ->  | K58: =IF(K$43*K$44=0,"",'8'!F134) ->  | L58: =IF(L$43*L$44=0,"",'9'!G134) ->  | M58: =IF(M$43*M$44=0,"",'10'!H134) ->  | N58: =IF(N$43*N$44=0,"",'11'!I134) ->  | O58: =IF(O$43*O$44=0,"",'12'!J134) ->  | P58: =IF(P$43*P$44=0,"",'13'!K134) ->  | Q58: =IF(Q$43*Q$44=0,"",'14'!L134) ->  | R58: =IF(R$43*R$44=0,"",'15'!M134) ->  | S58: =IF(S$43*S$44=0,"",'16'!N134) -> 
B59: Operating & Fixed Costs | D59: =IF($D$43*$D$44=0,"",Crop1!F135) -> 29.8383216 | E59: =IF(E$43*E$44=0,"",'2'!F135) -> 39.19503586 | F59: =IF(F$43*F$44=0,"",'3'!F135) ->  | G59: =IF(G$43*G$44=0,"",'4'!F135) ->  | H59: =IF(H$43*H$44=0,"",'5'!F135) ->  | I59: =IF(I$43*I$44=0,"",'6'!F135) ->  | J59: =IF(J$43*J$44=0,"",'7'!F135) ->  | K59: =IF(K$43*K$44=0,"",'8'!F135) ->  | L59: =IF(L$43*L$44=0,"",'9'!G135) ->  | M59: =IF(M$43*M$44=0,"",'10'!H135) ->  | N59: =IF(N$43*N$44=0,"",'11'!I135) ->  | O59: =IF(O$43*O$44=0,"",'12'!J135) ->  | P59: =IF(P$43*P$44=0,"",'13'!K135) ->  | Q59: =IF(Q$43*Q$44=0,"",'14'!L135) ->  | R59: =IF(R$43*R$44=0,"",'15'!M135) ->  | S59: =IF(S$43*S$44=0,"",'16'!N135) -> 
B60: Total Costs | D60: =IF($D$43*$D$44=0,"",Crop1!F136) -> 31.72511406 | E60: =IF(E$43*E$44=0,"",'2'!F136) -> 42.32003586 | F60: =IF(F$43*F$44=0,"",'3'!F136) ->  | G60: =IF(G$43*G$44=0,"",'4'!F136) ->  | H60: =IF(H$43*H$44=0,"",'5'!F136) ->  | I60: =IF(I$43*I$44=0,"",'6'!F136) ->  | J60: =IF(J$43*J$44=0,"",'7'!F136) ->  | K60: =IF(K$43*K$44=0,"",'8'!F136) ->  | L60: =IF(L$43*L$44=0,"",'9'!G136) ->  | M60: =IF(M$43*M$44=0,"",'10'!H136) ->  | N60: =IF(N$43*N$44=0,"",'11'!I136) ->  | O60: =IF(O$43*O$44=0,"",'12'!J136) ->  | P60: =IF(P$43*P$44=0,"",'13'!K136) ->  | Q60: =IF(Q$43*Q$44=0,"",'14'!L136) ->  | R60: =IF(R$43*R$44=0,"",'15'!M136) ->  | S60: =IF(S$43*S$44=0,"",'16'!N136) -> 
A62: Breakeven Price Per Unit (Bu or lb.)
B63: Operating Costs | D63: =IF($D$43*$D$44=0,"",Crop1!F85) -> 8.785728028 | E63: =IF(E$43*E$44=0,"",'2'!F85) -> 4.824004413 | F63: =IF(F$43*F$44=0,"",'3'!F85) ->  | G63: =IF(G$43*G$44=0,"",'4'!F85) ->  | H63: =IF(H$43*H$44=0,"",'5'!F85) ->  | I63: =IF(I$43*I$44=0,"",'6'!F85) ->  | J63: =IF(J$43*J$44=0,"",'7'!F85) ->  | K63: =IF(K$43*K$44=0,"",'8'!F85) ->  | L63: =IF(L$43*L$44=0,"",'9'!G85) ->  | M63: =IF(M$43*M$44=0,"",'10'!H85) ->  | N63: =IF(N$43*N$44=0,"",'11'!I85) ->  | O63: =IF(O$43*O$44=0,"",'12'!J85) ->  | P63: =IF(P$43*P$44=0,"",'13'!K85) ->  | Q63: =IF(Q$43*Q$44=0,"",'14'!L85) ->  | R63: =IF(R$43*R$44=0,"",'15'!M85) ->  | S63: =IF(S$43*S$44=0,"",'16'!N85) -> 
B64: Operating & Fixed Costs | D64: =IF($D$43*$D$44=0,"",Crop1!F86) -> 8.785728028 | E64: =IF(E$43*E$44=0,"",'2'!F86) -> 4.824004413 | F64: =IF(F$43*F$44=0,"",'3'!F86) ->  | G64: =IF(G$43*G$44=0,"",'4'!F86) ->  | H64: =IF(H$43*H$44=0,"",'5'!F86) ->  | I64: =IF(I$43*I$44=0,"",'6'!F86) ->  | J64: =IF(J$43*J$44=0,"",'7'!F86) ->  | K64: =IF(K$43*K$44=0,"",'8'!F86) ->  | L64: =IF(L$43*L$44=0,"",'9'!G86) ->  | M64: =IF(M$43*M$44=0,"",'10'!H86) ->  | N64: =IF(N$43*N$44=0,"",'11'!I86) ->  | O64: =IF(O$43*O$44=0,"",'12'!J86) ->  | P64: =IF(P$43*P$44=0,"",'13'!K86) ->  | Q64: =IF(Q$43*Q$44=0,"",'14'!L86) ->  | R64: =IF(R$43*R$44=0,"",'15'!M86) ->  | S64: =IF(S$43*S$44=0,"",'16'!N86) -> 
B65: Total Costs | D65: =IF($D$43*$D$44=0,"",Crop1!F87) -> 9.341283583 | E65: =IF(E$43*E$44=0,"",'2'!F87) -> 5.208619798 | F65: =IF(F$43*F$44=0,"",'3'!F87) ->  | G65: =IF(G$43*G$44=0,"",'4'!F87) ->  | H65: =IF(H$43*H$44=0,"",'5'!F87) ->  | I65: =IF(I$43*I$44=0,"",'6'!F87) ->  | J65: =IF(J$43*J$44=0,"",'7'!F87) ->  | K65: =IF(K$43*K$44=0,"",'8'!F87) ->  | L65: =IF(L$43*L$44=0,"",'9'!G87) ->  | M65: =IF(M$43*M$44=0,"",'10'!H87) ->  | N65: =IF(N$43*N$44=0,"",'11'!I87) ->  | O65: =IF(O$43*O$44=0,"",'12'!J87) ->  | P65: =IF(P$43*P$44=0,"",'13'!K87) ->  | Q65: =IF(Q$43*Q$44=0,"",'14'!L87) ->  | R65: =IF(R$43*R$44=0,"",'15'!M87) ->  | S65: =IF(S$43*S$44=0,"",'16'!N87) -> 
A67: Note: This budget is only a guide and is not intended as an in depth study of the cost of production of this industry. Interpretation and utilization of this information is the responsibility of the user.

Sheet SOS-Total
A3: =" CROPPLAN Standardized Operating Statement "&Intro!I15&" (Total Dollars)" -> CROPPLAN Standardized Operating Statement 2025 (Total Dollars)
B5: Date Printed: | C5: TOTAL | E5: =IF('Farm Business'!H42=0,"","Farm Business") ->  | F5: =IF(Crop1!$C$3="(select crop)","",Crop1!$C$3) -> Canola | G5: =IF('2'!$C$3="(select crop)","",'2'!$C$3) -> Wheat | H5: =IF('3'!$C$3="(select crop)","",'3'!$C$3) ->  | I5: =IF('4'!$C$3="(select crop)","",'4'!$C$3) ->  | J5: =IF('5'!$C$3="(select crop)","",'5'!$C$3) ->  | K5: =IF('6'!$C$3="(select crop)","",'6'!$C$3) ->  | L5: =IF('7'!$C$3="(select crop)","",'7'!$C$3) ->  | M5: =IF('8'!$C$3="(select crop)","",'8'!$C$3) ->  | N5: =IF('9'!$C$3="(select crop)","",'9'!$C$3) ->  | O5: =IF('10'!$C$3="(select crop)","",'10'!$C$3) ->  | P5: =IF('11'!$C$3="(select crop)","",'11'!$C$3) ->  | Q5: =IF('12'!$C$3="(select crop)","",'12'!$C$3) ->  | R5: =IF('13'!$C$3="(select crop)","",'13'!$C$3) ->  | S5: =IF('14'!$C$3="(select crop)","",'14'!$C$3) ->  | T5: =IF('15'!$C$3="(select crop)","",'15'!$C$3) ->  | U5: =IF('16'!$C$3="(select crop)","",'16'!$C$3) -> 
B6: =TODAY() -> 2025-01-02 | F6: =IF(Crop1!$F$8="(enter name here)","",Crop1!$F$8) ->  | G6: =IF('2'!$F$8="(enter name here)","",'2'!$F$8) ->  | H6: =IF('3'!$F$8="(enter name here)","",'3'!$F$8) ->  | I6: =IF('4'!$F$8="(enter name here)","",'4'!$F$8) ->  | J6: =IF('5'!$F$8="(enter name here)","",'5'!$F$8) ->  | K6: =IF('6'!$F$8="(enter name here)","",'6'!$F$8) ->  | L6: =IF('7'!$F$8="(enter name here)","",'7'!$F$8) ->  | M6: =IF('8'!$F$8="(enter name here)","",'8'!$F$8) ->  | N6: =IF('9'!$F$8="(enter name here)","",'9'!$F$8) ->  | O6: =IF('10'!$F$8="(enter name here)","",'10'!$F$8) ->  | P6: =IF('11'!$F$8="(enter name here)","",'11'!$F$8) ->  | Q6: =IF('12'!$F$8="(enter name here)","",'12'!$F$8) ->  | R6: =IF('13'!$F$8="(enter name here)","",'13'!$F$8) ->  | S6: =IF('14'!$F$8="(enter name here)","",'14'!$F$8) ->  | T6: =IF('15'!$F$8="(enter name here)","",'15'!$F$8) ->  | U6: =IF('16'!$F$8="(enter name here)","",'16'!$F$8) -> 
B8: Acres | C8: =SUM(F8:U8) -> 2 | F8: =Crop1!$H$3 -> 1 | G8: ='2'!$H$3 -> 1 | H8: ='3'!$H$3 -> 0 | I8: ='4'!$H$3 -> 0 | J8: ='5'!$H$3 -> 0 | K8: ='6'!$H$3 -> 0 | L8: ='7'!$H$3 -> 0 | M8: ='8'!$H$3 -> 0 | N8: ='9'!$H$3 -> 0 | O8: ='10'!$H$3 -> 0 | P8: ='11'!$H$3 -> 0 | Q8: ='12'!$H$3 -> 0 | R8: ='13'!$H$3 -> 0 | S8: ='14'!$H$3 -> 0 | T8: ='15'!$H$3 -> 0 | U8: ='16'!$H$3 -> 0
C10: =IF(C8=0,"",IF(OR('Land & Equip'!C28-'SOS-Total'!C8>40,'Land & Equip'!C28-'SOS-Total'!C8<-40),"ERROR Total Crop Acres are NOT EQUAL to "&TEXT('Land & Equip'!C28,"#,###")&" Total Landbase Acres","")) -> 
A11: Estimated Farmgate | C11: TOTAL
B12: Avg. Market Price $ per unit | F12: ='Summary-Acre'!D43 -> 13.25 | G12: ='Summary-Acre'!E43 -> 8 | H12: ='Summary-Acre'!F43 -> 0 | I12: ='Summary-Acre'!G43 -> 0 | J12: ='Summary-Acre'!H43 -> 0 | K12: ='Summary-Acre'!I43 -> 0 | L12: ='Summary-Acre'!J43 -> 0 | M12: ='Summary-Acre'!K43 -> 0 | N12: ='Summary-Acre'!L43 -> 0 | O12: ='Summary-Acre'!M43 -> 0 | P12: ='Summary-Acre'!N43 -> 0 | Q12: ='Summary-Acre'!O43 -> 0 | R12: ='Summary-Acre'!P43 -> 0 | S12: ='Summary-Acre'!Q43 -> 0 | T12: ='Summary-Acre'!R43 -> 0 | U12: ='Summary-Acre'!S43 -> 0
B13: Yield per acre (bu or lb.) | F13: ='Summary-Acre'!D44 -> 45 | G13: ='Summary-Acre'!E44 -> 65 | H13: ='Summary-Acre'!F44 -> 0 | I13: ='Summary-Acre'!G44 -> 0 | J13: ='Summary-Acre'!H44 -> 0 | K13: ='Summary-Acre'!I44 -> 0 | L13: ='Summary-Acre'!J44 -> 0 | M13: ='Summary-Acre'!K44 -> 0 | N13: ='Summary-Acre'!L44 -> 0 | O13: ='Summary-Acre'!M44 -> 0 | P13: ='Summary-Acre'!N44 -> 0 | Q13: ='Summary-Acre'!O44 -> 0 | R13: ='Summary-Acre'!P44 -> 0 | S13: ='Summary-Acre'!Q44 -> 0 | T13: ='Summary-Acre'!R44 -> 0 | U13: ='Summary-Acre'!S44 -> 0
B14: Unit type | F14: ='Summary-Acre'!D45 -> bu | G14: ='Summary-Acre'!E45 -> bu | H14: ='Summary-Acre'!F45 ->  | I14: ='Summary-Acre'!G45 ->  | J14: ='Summary-Acre'!H45 ->  | K14: ='Summary-Acre'!I45 ->  | L14: ='Summary-Acre'!J45 ->  | M14: ='Summary-Acre'!K45 ->  | N14: ='Summary-Acre'!L45 ->  | O14: ='Summary-Acre'!M45 ->  | P14: ='Summary-Acre'!N45 ->  | Q14: ='Summary-Acre'!O45 ->  | R14: ='Summary-Acre'!P45 ->  | S14: ='Summary-Acre'!Q45 ->  | T14: ='Summary-Acre'!R45 ->  | U14: ='Summary-Acre'!S45 -> 
B15: Other Income | F15: =IF(F12*F13=0,"",'Summary-Acre'!D46*F8) -> 0 | G15: =IF(G12*G13=0,"",'Summary-Acre'!E46*G8) -> 0 | H15: =IF(H12*H13=0,"",'Summary-Acre'!F46*H8) ->  | I15: =IF(I12*I13=0,"",'Summary-Acre'!G46*I8) ->  | J15: =IF(J12*J13=0,"",'Summary-Acre'!H46*J8) ->  | K15: =IF(K12*K13=0,"",'Summary-Acre'!I46*K8) ->  | L15: =IF(L12*L13=0,"",'Summary-Acre'!J46*L8) ->  | M15: =IF(M12*M13=0,"",'Summary-Acre'!K46*M8) ->  | N15: =IF(N12*N13=0,"",'Summary-Acre'!L46*N8) ->  | O15: =IF(O12*O13=0,"",'Summary-Acre'!M46*O8) ->  | P15: =IF(P12*P13=0,"",'Summary-Acre'!N46*P8) ->  | Q15: =IF(Q12*Q13=0,"",'Summary-Acre'!O46*Q8) ->  | R15: =IF(R12*R13=0,"",'Summary-Acre'!P46*R8) ->  | S15: =IF(S12*S13=0,"",'Summary-Acre'!Q46*S8) ->  | T15: =IF(T12*T13=0,"",'Summary-Acre'!R46*T8) ->  | U15: =IF(U12*U13=0,"",'Summary-Acre'!S46*U8) -> 
A16: = | B16: Gross Revenue | C16: =SUM(E16:U16) -> 1116.25 | E16: ='Farm Business'!H42 -> 0 | F16: =IF(F12*F13=0,"",Crop1!$H$123) -> 596.25 | G16: =IF(G12*G13=0,"",'2'!$H$123) -> 520 | H16: =IF(H12*H13=0,"",'3'!$H$123) ->  | I16: =IF(I12*I13=0,"",'4'!$H$123) ->  | J16: =IF(J12*J13=0,"",'5'!$H$123) ->  | K16: =IF(K12*K13=0,"",'6'!$H$123) ->  | L16: =IF(L12*L13=0,"",'7'!$H$123) ->  | M16: =IF(M12*M13=0,"",'8'!$H$123) ->  | N16: =IF(N12*N13=0,"",'9'!$H$123) ->  | O16: =IF(O12*O13=0,"",'10'!$H$123) ->  | P16: =IF(P12*P13=0,"",'11'!$H$123) ->  | Q16: =IF(Q12*Q13=0,"",'12'!$H$123) ->  | R16: =IF(R12*R13=0,"",'13'!$H$123) ->  | S16: =IF(S12*S13=0,"",'14'!$H$123) ->  | T16: =IF(T12*T13=0,"",'15'!$H$123) ->  | U16: =IF(U12*U13=0,"",'16'!$H$123) -> 
A18: =" -" -> - | B18: Cost of Goods Sold (CoGS)
B19: Seed & Treatment | C19: =SUM(E19:U19) -> 116.5 | E19: ="-" -> - | F19: =Crop1!$J$9 -> 82.5 | G19: ='2'!$J$9 -> 34 | H19: ='3'!$J$9 -> 0 | I19: ='4'!$J$9 -> 0 | J19: ='5'!$J$9 -> 0 | K19: ='6'!$J$9 -> 0 | L19: ='7'!$J$9 -> 0 | M19: ='8'!$J$9 -> 0 | N19: ='9'!$J$9 -> 0 | O19: ='10'!$J$9 -> 0 | P19: ='11'!$J$9 -> 0 | Q19: ='12'!$J$9 -> 0 | R19: ='13'!$J$9 -> 0 | S19: ='14'!$J$9 -> 0 | T19: ='15'!$J$9 -> 0 | U19: ='16'!$J$9 -> 0
B20: Fertilizer | C20: 263.6361045 | E20: - | F20: =Crop1!$J$30 -> 145.6056025 | G20: ='2'!$J$30 -> 118.030502 | H20: ='3'!$J$30 -> 0 | I20: ='4'!$J$30 -> 0 | J20: ='5'!$J$30 -> 0 | K20: ='6'!$J$30 -> 0 | L20: ='7'!$J$30 -> 0 | M20: ='8'!$J$30 -> 0 | N20: ='9'!$J$30 -> 0 | O20: ='10'!$J$30 -> 0 | P20: ='11'!$J$30 -> 0 | Q20: ='12'!$J$30 -> 0 | R20: ='13'!$J$30 -> 0 | S20: ='14'!$J$30 -> 0 | T20: ='15'!$J$30 -> 0 | U20: ='16'!$J$30 -> 0
B21: Herbicide | C21: 65.75 | E21: - | F21: =Crop1!$J$44 -> 30 | G21: ='2'!$J$44 -> 35.75 | H21: ='3'!$J$44 -> 0 | I21: ='4'!$J$44 -> 0 | J21: ='5'!$J$44 -> 0 | K21: ='6'!$J$44 -> 0 | L21: ='7'!$J$44 -> 0 | M21: ='8'!$J$44 -> 0 | N21: ='9'!$J$44 -> 0 | O21: ='10'!$J$44 -> 0 | P21: ='11'!$J$44 -> 0 | Q21: ='12'!$J$44 -> 0 | R21: ='13'!$J$44 -> 0 | S21: ='14'!$J$44 -> 0 | T21: ='15'!$J$44 -> 0 | U21: ='16'!$J$44 -> 0
B22: Fungicide | C22: 42.25 | E22: - | F22: =Crop1!$J$53 -> 22.75 | G22: ='2'!$J$53 -> 19.5 | H22: ='3'!$J$53 -> 0 | I22: ='4'!$J$53 -> 0 | J22: ='5'!$J$53 -> 0 | K22: ='6'!$J$53 -> 0 | L22: ='7'!$J$53 -> 0 | M22: ='8'!$J$53 -> 0 | N22: ='9'!$J$53 -> 0 | O22: ='10'!$J$53 -> 0 | P22: ='11'!$J$53 -> 0 | Q22: ='12'!$J$53 -> 0 | R22: ='13'!$J$53 -> 0 | S22: ='14'!$J$53 -> 0 | T22: ='15'!$J$53 -> 0 | U22: ='16'!$J$53 -> 0
B23: Insecticide | C23: 5.75 | E23: - | F23: =Crop1!$J$62 -> 5.75 | G23: ='2'!$J$62 -> 0 | H23: ='3'!$J$62 -> 0 | I23: ='4'!$J$62 -> 0 | J23: ='5'!$J$62 -> 0 | K23: ='6'!$J$62 -> 0 | L23: ='7'!$J$62 -> 0 | M23: ='8'!$J$62 -> 0 | N23: ='9'!$J$62 -> 0 | O23: ='10'!$J$62 -> 0 | P23: ='11'!$J$62 -> 0 | Q23: ='12'!$J$62 -> 0 | R23: ='13'!$J$62 -> 0 | S23: ='14'!$J$62 -> 0 | T23: ='15'!$J$62 -> 0 | U23: ='16'!$J$62 -> 0
B24: Crop Insurance | C24: 33.34 | E24: - | F24: =IF(F8=0,0,(VLOOKUP(Crop1!$C$3,'Op Costs'!$B$13:$O$30,7,FALSE)+VLOOKUP(Crop1!$C$3,'Op Costs'!$B$13:$O$30,11,FALSE))*Crop1!$H$3) -> 16.51 | G24: =IF(G8=0,0,(VLOOKUP('2'!$C$3,'Op Costs'!$B$13:$O$30,7,FALSE)+VLOOKUP('2'!$C$3,'Op Costs'!$B$13:$O$30,11,FALSE))*'2'!$H$3) -> 16.83 | H24: =IF(H8=0,0,(VLOOKUP('3'!$C$3,'Op Costs'!$B$13:$O$30,7,FALSE)+VLOOKUP('3'!$C$3,'Op Costs'!$B$13:$O$30,11,FALSE))*'3'!$H$3) -> 0 | I24: =IF(I8=0,0,(VLOOKUP('4'!$C$3,'Op Costs'!$B$13:$O$30,7,FALSE)+VLOOKUP('4'!$C$3,'Op Costs'!$B$13:$O$30,11,FALSE))*'4'!$H$3) -> 0 | J24: =IF(J8=0,0,(VLOOKUP('5'!$C$3,'Op Costs'!$B$13:$O$30,7,FALSE)+VLOOKUP('5'!$C$3,'Op Costs'!$B$13:$O$30,11,FALSE))*'5'!$H$3) -> 0 | K24: =IF(K8=0,0,(VLOOKUP('6'!$C$3,'Op Costs'!$B$13:$O$30,7,FALSE)+VLOOKUP('6'!$C$3,'Op Costs'!$B$13:$O$30,11,FALSE))*'6'!$H$3) -> 0 | L24: =IF(L8=0,0,(VLOOKUP('7'!$C$3,'Op Costs'!$B$13:$O$30,7,FALSE)+VLOOKUP('7'!$C$3,'Op Costs'!$B$13:$O$30,11,FALSE))*'7'!$H$3) -> 0 | M24: =IF(M8=0,0,(VLOOKUP('8'!$C$3,'Op Costs'!$B$13:$O$30,7,FALSE)+VLOOKUP('8'!$C$3,'Op Costs'!$B$13:$O$30,11,FALSE))*'8'!$H$3) -> 0 | N24: =IF(N8=0,0,(VLOOKUP('9'!$C$3,'Op Costs'!$B$13:$O$30,7,FALSE)+VLOOKUP('9'!$C$3,'Op Costs'!$B$13:$O$30,11,FALSE))*'9'!$H$3) -> 0 | O24: =IF(O8=0,0,(VLOOKUP('10'!$C$3,'Op Costs'!$B$13:$O$30,7,FALSE)+VLOOKUP('10'!$C$3,'Op Costs'!$B$13:$O$30,11,FALSE))*'10'!$H$3) -> 0 | P24: =IF(P8=0,0,(VLOOKUP('11'!$C$3,'Op Costs'!$B$13:$O$30,7,FALSE)+VLOOKUP('11'!$C$3,'Op Costs'!$B$13:$O$30,11,FALSE))*'11'!$H$3) -> 0 | Q24: =IF(Q8=0,0,(VLOOKUP('12'!$C$3,'Op Costs'!$B$13:$O$30,7,FALSE)+VLOOKUP('12'!$C$3,'Op Costs'!$B$13:$O$30,11,FALSE))*'12'!$H$3) -> 0 | R24: =IF(R8=0,0,(VLOOKUP('13'!$C$3,'Op Costs'!$B$13:$O$30,7,FALSE)+VLOOKUP('13'!$C$3,'Op Costs'!$B$13:$O$30,11,FALSE))*'13'!$H$3) -> 0 | S24: =IF(S8=0,0,(VLOOKUP('14'!$C$3,'Op Costs'!$B$13:$O$30,7,FALSE)+VLOOKUP('14'!$C$3,'Op Costs'!$B$13:$O$30,11,FALSE))*'14'!$H$3) -> 0 | T24: =IF(T8=0,0,(VLOOKUP('15'!$C$3,'Op Costs'!$B$13:$O$30,7,FALSE)+VLOOKUP('15'!$C$3,'Op Costs'!$B$13:$O$30,11,FALSE))*'15'!$H$3) -> 0 | U24: =IF(U8=0,0,(VLOOKUP('16'!$C$3,'Op Costs'!$B$13:$O$30,7,FALSE)+VLOOKUP('16'!$C$3,'Op Costs'!$B$13:$O$30,11,FALSE))*'16'!$H$3) -> 0
C25: =SUM(C19:C24) -> 527.2261045 | E25: =SUM(E19:E24) -> 0 | F25: 303.1156025 | G25: 224.110502 | H25: 0 | I25: 0 | J25: 0 | K25: 0 | L25: 0 | M25: 0 | N25: 0 | O25: 0 | P25: 0 | Q25: 0 | R25: 0 | S25: 0 | T25: 0 | U25: 0
A27: = | B27: Gross Margin (GM) | C27: =SUM(C16-C25) -> 589.0238955 | E27: =SUM(E16-E25) -> 0 | F27: =IF(F16="",0,SUM(F16-F25)) -> 293.1343975 | G27: =IF(G16="",0,SUM(G16-G25)) -> 295.889498 | H27: 0 | I27: 0 | J27: 0 | K27: 0 | L27: 0 | M27: 0 | N27: 0 | O27: 0 | P27: 0 | Q27: 0 | R27: 0 | S27: 0 | T27: 0 | U27: 0
A29: =" -" -> - | B29: Direct Operating Expenses (DOE)
B30: Hired Labour | C30: =SUM(E30:U30) -> 10.8 | E30: ='Farm Business'!G48 -> 0 | F30: =IF('Op Costs'!$E$58=0,IF('Op Costs'!$K$58="yes",'Op Costs'!$J$59*'Op Costs'!$N$59,0),('Op Costs'!$E$58/'SOS-Total'!$C$8))*Crop1!$H$3 -> 5.4 | G30: =IF('Op Costs'!$E$58=0,IF('Op Costs'!$K$58="yes",'Op Costs'!$J$59*'Op Costs'!$N$59,0),('Op Costs'!$E$58/'SOS-Total'!$C$8))*'2'!$H$3 -> 5.4 | H30: =IF('Op Costs'!$E$58=0,IF('Op Costs'!$K$58="yes",'Op Costs'!$J$59*'Op Costs'!$N$59,0),('Op Costs'!$E$58/'SOS-Total'!$C$8))*'3'!$H$3 -> 0 | I30: =IF('Op Costs'!$E$58=0,IF('Op Costs'!$K$58="yes",'Op Costs'!$J$59*'Op Costs'!$N$59,0),('Op Costs'!$E$58/'SOS-Total'!$C$8))*'4'!$H$3 -> 0 | J30: =IF('Op Costs'!$E$58=0,IF('Op Costs'!$K$58="yes",'Op Costs'!$J$59*'Op Costs'!$N$59,0),('Op Costs'!$E$58/'SOS-Total'!$C$8))*'5'!$H$3 -> 0 | K30: =IF('Op Costs'!$E$58=0,IF('Op Costs'!$K$58="yes",'Op Costs'!$J$59*'Op Costs'!$N$59,0),('Op Costs'!$E$58/'SOS-Total'!$C$8))*'6'!$H$3 -> 0 | L30: =IF('Op Costs'!$E$58=0,IF('Op Costs'!$K$58="yes",'Op Costs'!$J$59*'Op Costs'!$N$59,0),('Op Costs'!$E$58/'SOS-Total'!$C$8))*'7'!$H$3 -> 0 | M30: =IF('Op Costs'!$E$58=0,IF('Op Costs'!$K$58="yes",'Op Costs'!$J$59*'Op Costs'!$N$59,0),('Op Costs'!$E$58/'SOS-Total'!$C$8))*'8'!$H$3 -> 0 | N30: =IF('Op Costs'!$E$58=0,IF('Op Costs'!$K$58="yes",'Op Costs'!$J$59*'Op Costs'!$N$59,0),('Op Costs'!$E$58/'SOS-Total'!$C$8))*'9'!$H$3 -> 0 | O30: =IF('Op Costs'!$E$58=0,IF('Op Costs'!$K$58="yes",'Op Costs'!$J$59*'Op Costs'!$N$59,0),('Op Costs'!$E$58/'SOS-Total'!$C$8))*'10'!$H$3 -> 0 | P30: =IF('Op Costs'!$E$58=0,IF('Op Costs'!$K$58="yes",'Op Costs'!$J$59*'Op Costs'!$N$59,0),('Op Costs'!$E$58/'SOS-Total'!$C$8))*'11'!$H$3 -> 0 | Q30: =IF('Op Costs'!$E$58=0,IF('Op Costs'!$K$58="yes",'Op Costs'!$J$59*'Op Costs'!$N$59,0),('Op Costs'!$E$58/'SOS-Total'!$C$8))*'12'!$H$3 -> 0 | R30: =IF('Op Costs'!$E$58=0,IF('Op Costs'!$K$58="yes",'Op Costs'!$J$59*'Op Costs'!$N$59,0),('Op Costs'!$E$58/'SOS-Total'!$C$8))*'13'!$H$3 -> 0 | S30: =IF('Op Costs'!$E$58=0,IF('Op Costs'!$K$58="yes",'Op Costs'!$J$59*'Op Costs'!$N$59,0),('Op Costs'!$E$58/'SOS-Total'!$C$8))*'14'!$H$3 -> 0 | T30: =IF('Op Costs'!$E$58=0,IF('Op Costs'!$K$58="yes",'Op Costs'!$J$59*'Op Costs'!$N$59,0),('Op Costs'!$E$58/'SOS-Total'!$C$8))*'15'!$H$3 -> 0 | U30: =IF('Op Costs'!$E$58=0,IF('Op Costs'!$K$58="yes",'Op Costs'!$J$59*'Op Costs'!$N$59,0),('Op Costs'!$E$58/'SOS-Total'!$C$8))*'16'!$H$3 -> 0
B31: Owner Withdrawal | C31: 50 | E31: ="-" -> - | F31: =IF(F8=0,0,IF('Op Costs'!$E$73=0,'Op Costs'!$L$73,('Op Costs'!$E$73/'SOS-Total'!$C$8))*Crop1!$H$3) -> 25 | G31: =IF(G8=0,0,IF('Op Costs'!$E$73=0,'Op Costs'!$L$73,('Op Costs'!$E$73/'SOS-Total'!$C$8))*'2'!$H$3) -> 25 | H31: =IF(H8=0,0,IF('Op Costs'!$E$73=0,'Op Costs'!$L$73,('Op Costs'!$E$73/'SOS-Total'!$C$8))*'3'!$H$3) -> 0 | I31: =IF(I8=0,0,IF('Op Costs'!$E$73=0,'Op Costs'!$L$73,('Op Costs'!$E$73/'SOS-Total'!$C$8))*'4'!$H$3) -> 0 | J31: =IF(J8=0,0,IF('Op Costs'!$E$73=0,'Op Costs'!$L$73,('Op Costs'!$E$73/'SOS-Total'!$C$8))*'5'!$H$3) -> 0 | K31: =IF(K8=0,0,IF('Op Costs'!$E$73=0,'Op Costs'!$L$73,('Op Costs'!$E$73/'SOS-Total'!$C$8))*'6'!$H$3) -> 0 | L31: =IF(L8=0,0,IF('Op Costs'!$E$73=0,'Op Costs'!$L$73,('Op Costs'!$E$73/'SOS-Total'!$C$8))*'7'!$H$3) -> 0 | M31: =IF(M8=0,0,IF('Op Costs'!$E$73=0,'Op Costs'!$L$73,('Op Costs'!$E$73/'SOS-Total'!$C$8))*'8'!$H$3) -> 0 | N31: =IF(N8=0,0,IF('Op Costs'!$E$73=0,'Op Costs'!$L$73,('Op Costs'!$E$73/'SOS-Total'!$C$8))*'9'!$H$3) -> 0 | O31: =IF(O8=0,0,IF('Op Costs'!$E$73=0,'Op Costs'!$L$73,('Op Costs'!$E$73/'SOS-Total'!$C$8))*'10'!$H$3) -> 0 | P31: =IF(P8=0,0,IF('Op Costs'!$E$73=0,'Op Costs'!$L$73,('Op Costs'!$E$73/'SOS-Total'!$C$8))*'11'!$H$3) -> 0 | Q31: =IF(Q8=0,0,IF('Op Costs'!$E$73=0,'Op Costs'!$L$73,('Op Costs'!$E$73/'SOS-Total'!$C$8))*'12'!$H$3) -> 0 | R31: =IF(R8=0,0,IF('Op Costs'!$E$73=0,'Op Costs'!$L$73,('Op Costs'!$E$73/'SOS-Total'!$C$8))*'13'!$H$3) -> 0 | S31: =IF(S8=0,0,IF('Op Costs'!$E$73=0,'Op Costs'!$L$73,('Op Costs'!$E$73/'SOS-Total'!$C$8))*'14'!$H$3) -> 0 | T31: =IF(T8=0,0,IF('Op Costs'!$E$73=0,'Op Costs'!$L$73,('Op Costs'!$E$73/'SOS-Total'!$C$8))*'15'!$H$3) -> 0 | U31: =IF(U8=0,0,IF('Op Costs'!$E$73=0,'Op Costs'!$L$73,('Op Costs'!$E$73/'SOS-Total'!$C$8))*'16'!$H$3) -> 0
B32: Fuel | C32: 59.77194358 | E32: ='Farm Business'!G49 -> 0 | F32: =IF(F8=0,0,IF('Op Costs'!$E$77=0,VLOOKUP(Crop1!$C$3,'Op Costs'!$B$83:$D$100,3,FALSE)*Crop1!$H$3,('Op Costs'!$E$77/'SOS-Total'!$C$8)*Crop1!$H$3)) -> 29.80215874 | G32: =IF(G8=0,0,IF('Op Costs'!$E$77=0,VLOOKUP('2'!$C$3,'Op Costs'!$B$83:$D$100,3,FALSE)*'2'!$H$3,('Op Costs'!$E$77/'SOS-Total'!$C$8)*'2'!$H$3)) -> 29.96978484 | H32: =IF(H8=0,0,IF('Op Costs'!$E$77=0,VLOOKUP('3'!$C$3,'Op Costs'!$B$83:$D$100,3,FALSE)*'3'!$H$3,('Op Costs'!$E$77/'SOS-Total'!$C$8)*'3'!$H$3)) -> 0 | I32: =IF(I8=0,0,IF('Op Costs'!$E$77=0,VLOOKUP('4'!$C$3,'Op Costs'!$B$83:$D$100,3,FALSE)*'4'!$H$3,('Op Costs'!$E$77/'SOS-Total'!$C$8)*'4'!$H$3)) -> 0 | J32: =IF(J8=0,0,IF('Op Costs'!$E$77=0,VLOOKUP('5'!$C$3,'Op Costs'!$B$83:$D$100,3,FALSE)*'5'!$H$3,('Op Costs'!$E$77/'SOS-Total'!$C$8)*'5'!$H$3)) -> 0 | K32: =IF(K8=0,0,IF('Op Costs'!$E$77=0,VLOOKUP('6'!$C$3,'Op Costs'!$B$83:$D$100,3,FALSE)*'6'!$H$3,('Op Costs'!$E$77/'SOS-Total'!$C$8)*'6'!$H$3)) -> 0 | L32: =IF(L8=0,0,IF('Op Costs'!$E$77=0,VLOOKUP('7'!$C$3,'Op Costs'!$B$83:$D$100,3,FALSE)*'7'!$H$3,('Op Costs'!$E$77/'SOS-Total'!$C$8)*'7'!$H$3)) -> 0 | M32: =IF(M8=0,0,IF('Op Costs'!$E$77=0,VLOOKUP('8'!$C$3,'Op Costs'!$B$83:$D$100,3,FALSE)*'8'!$H$3,('Op Costs'!$E$77/'SOS-Total'!$C$8)*'8'!$H$3)) -> 0 | N32: =IF(N8=0,0,IF('Op Costs'!$E$77=0,VLOOKUP('9'!$C$3,'Op Costs'!$B$83:$D$100,3,FALSE)*'9'!$H$3,('Op Costs'!$E$77/'SOS-Total'!$C$8)*'9'!$H$3)) -> 0 | O32: =IF(O8=0,0,IF('Op Costs'!$E$77=0,VLOOKUP('10'!$C$3,'Op Costs'!$B$83:$D$100,3,FALSE)*'10'!$H$3,('Op Costs'!$E$77/'SOS-Total'!$C$8)*'10'!$H$3)) -> 0 | P32: =IF(P8=0,0,IF('Op Costs'!$E$77=0,VLOOKUP('11'!$C$3,'Op Costs'!$B$83:$D$100,3,FALSE)*'11'!$H$3,('Op Costs'!$E$77/'SOS-Total'!$C$8)*'11'!$H$3)) -> 0 | Q32: =IF(Q8=0,0,IF('Op Costs'!$E$77=0,VLOOKUP('12'!$C$3,'Op Costs'!$B$83:$D$100,3,FALSE)*'12'!$H$3,('Op Costs'!$E$77/'SOS-Total'!$C$8)*'12'!$H$3)) -> 0 | R32: =IF(R8=0,0,IF('Op Costs'!$E$77=0,VLOOKUP('13'!$C$3,'Op Costs'!$B$83:$D$100,3,FALSE)*'13'!$H$3,('Op Costs'!$E$77/'SOS-Total'!$C$8)*'13'!$H$3)) -> 0 | S32: =IF(S8=0,0,IF('Op Costs'!$E$77=0,VLOOKUP('14'!$C$3,'Op Costs'!$B$83:$D$100,3,FALSE)*'14'!$H$3,('Op Costs'!$E$77/'SOS-Total'!$C$8)*'14'!$H$3)) -> 0 | T32: =IF(T8=0,0,IF('Op Costs'!$E$77=0,VLOOKUP('15'!$C$3,'Op Costs'!$B$83:$D$100,3,FALSE)*'15'!$H$3,('Op Costs'!$E$77/'SOS-Total'!$C$8)*'15'!$H$3)) -> 0 | U32: =IF(U8=0,0,IF('Op Costs'!$E$77=0,VLOOKUP('16'!$C$3,'Op Costs'!$B$83:$D$100,3,FALSE)*'16'!$H$3,('Op Costs'!$E$77/'SOS-Total'!$C$8)*'16'!$H$3)) -> 0
B33: Drying Costs | C33: 0 | E33: ="-" -> - | F33: =IF(F8=0,0,VLOOKUP(Crop1!$C$3,'Op Costs'!$B$37:$M$54,3,FALSE)*Crop1!$H$3) -> 0 | G33: =IF(G8=0,0,VLOOKUP('2'!$C$3,'Op Costs'!$B$37:$M$54,3,FALSE)*'2'!$H$3) -> 0 | H33: =IF(H8=0,0,VLOOKUP('3'!$C$3,'Op Costs'!$B$37:$M$54,3,FALSE)*'3'!$H$3) -> 0 | I33: =IF(I8=0,0,VLOOKUP('4'!$C$3,'Op Costs'!$B$37:$M$54,3,FALSE)*'4'!$H$3) -> 0 | J33: =IF(J8=0,0,VLOOKUP('5'!$C$3,'Op Costs'!$B$37:$M$54,3,FALSE)*'5'!$H$3) -> 0 | K33: =IF(K8=0,0,VLOOKUP('6'!$C$3,'Op Costs'!$B$37:$M$54,3,FALSE)*'6'!$H$3) -> 0 | L33: =IF(L8=0,0,VLOOKUP('7'!$C$3,'Op Costs'!$B$37:$M$54,3,FALSE)*'7'!$H$3) -> 0 | M33: =IF(M8=0,0,VLOOKUP('8'!$C$3,'Op Costs'!$B$37:$M$54,3,FALSE)*'8'!$H$3) -> 0 | N33: =IF(N8=0,0,VLOOKUP('8'!$C$3,'Op Costs'!$B$37:$M$54,3,FALSE)*'9'!$H$3) -> 0 | O33: =IF(O8=0,0,VLOOKUP('8'!$C$3,'Op Costs'!$B$37:$M$54,3,FALSE)*'10'!$H$3) -> 0 | P33: =IF(P8=0,0,VLOOKUP('8'!$C$3,'Op Costs'!$B$37:$M$54,3,FALSE)*'11'!$H$3) -> 0 | Q33: =IF(Q8=0,0,VLOOKUP('8'!$C$3,'Op Costs'!$B$37:$M$54,3,FALSE)*'12'!$H$3) -> 0 | R33: =IF(R8=0,0,VLOOKUP('8'!$C$3,'Op Costs'!$B$37:$M$54,3,FALSE)*'13'!$H$3) -> 0 | S33: =IF(S8=0,0,VLOOKUP('8'!$C$3,'Op Costs'!$B$37:$M$54,3,FALSE)*'14'!$H$3) -> 0 | T33: =IF(T8=0,0,VLOOKUP('8'!$C$3,'Op Costs'!$B$37:$M$54,3,FALSE)*'15'!$H$3) -> 0 | U33: =IF(U8=0,0,VLOOKUP('8'!$C$3,'Op Costs'!$B$37:$M$54,3,FALSE)*'16'!$H$3) -> 0
B34: Machinery Operating | C34: 50 | E34: ='Farm Business'!G50 -> 0 | F34: =IF('Op Costs'!$F$110+'Op Costs'!$F$111=0,'Op Costs'!$L$110,'Op Costs'!$F$112/'SOS-Total'!$C$8)*Crop1!$H$3 -> 25 | G34: =IF('Op Costs'!$F$110+'Op Costs'!$F$111=0,'Op Costs'!$L$110,'Op Costs'!$F$112/'SOS-Total'!$C$8)*'2'!$H$3 -> 25 | H34: =IF('Op Costs'!$F$110+'Op Costs'!$F$111=0,'Op Costs'!$L$110,'Op Costs'!$F$112/'SOS-Total'!$C$8)*'3'!$H$3 -> 0 | I34: =IF('Op Costs'!$F$110+'Op Costs'!$F$111=0,'Op Costs'!$L$110,'Op Costs'!$F$112/'SOS-Total'!$C$8)*'4'!$H$3 -> 0 | J34: =IF('Op Costs'!$F$110+'Op Costs'!$F$111=0,'Op Costs'!$L$110,'Op Costs'!$F$112/'SOS-Total'!$C$8)*'5'!$H$3 -> 0 | K34: =IF('Op Costs'!$F$110+'Op Costs'!$F$111=0,'Op Costs'!$L$110,'Op Costs'!$F$112/'SOS-Total'!$C$8)*'6'!$H$3 -> 0 | L34: =IF('Op Costs'!$F$110+'Op Costs'!$F$111=0,'Op Costs'!$L$110,'Op Costs'!$F$112/'SOS-Total'!$C$8)*'7'!$H$3 -> 0 | M34: =IF('Op Costs'!$F$110+'Op Costs'!$F$111=0,'Op Costs'!$L$110,'Op Costs'!$F$112/'SOS-Total'!$C$8)*'8'!$H$3 -> 0 | N34: =IF('Op Costs'!$F$110+'Op Costs'!$F$111=0,'Op Costs'!$L$110,'Op Costs'!$F$112/'SOS-Total'!$C$8)*'9'!$H$3 -> 0 | O34: =IF('Op Costs'!$F$110+'Op Costs'!$F$111=0,'Op Costs'!$L$110,'Op Costs'!$F$112/'SOS-Total'!$C$8)*'10'!$H$3 -> 0 | P34: =IF('Op Costs'!$F$110+'Op Costs'!$F$111=0,'Op Costs'!$L$110,'Op Costs'!$F$112/'SOS-Total'!$C$8)*'11'!$H$3 -> 0 | Q34: =IF('Op Costs'!$F$110+'Op Costs'!$F$111=0,'Op Costs'!$L$110,'Op Costs'!$F$112/'SOS-Total'!$C$8)*'12'!$H$3 -> 0 | R34: =IF('Op Costs'!$F$110+'Op Costs'!$F$111=0,'Op Costs'!$L$110,'Op Costs'!$F$112/'SOS-Total'!$C$8)*'13'!$H$3 -> 0 | S34: =IF('Op Costs'!$F$110+'Op Costs'!$F$111=0,'Op Costs'!$L$110,'Op Costs'!$F$112/'SOS-Total'!$C$8)*'14'!$H$3 -> 0 | T34: =IF('Op Costs'!$F$110+'Op Costs'!$F$111=0,'Op Costs'!$L$110,'Op Costs'!$F$112/'SOS-Total'!$C$8)*'15'!$H$3 -> 0 | U34: =IF('Op Costs'!$F$110+'Op Costs'!$F$111=0,'Op Costs'!$L$110,'Op Costs'!$F$112/'SOS-Total'!$C$8)*'16'!$H$3 -> 0
B35: Machinery Rental and Custom | C35: 0 | E35: ="-" -> - | F35: =IF(F8=0,0,VLOOKUP(Crop1!$C$3,'Op Costs'!$B$37:$M$54,12,FALSE)*Crop1!$H$3) -> 0 | G35: =IF(G8=0,0,VLOOKUP('2'!$C$3,'Op Costs'!$B$37:$M$54,12,FALSE)*'2'!$H$3) -> 0 | H35: =IF(H8=0,0,VLOOKUP('3'!$C$3,'Op Costs'!$B$37:$M$54,12,FALSE)*'3'!$H$3) -> 0 | I35: =IF(I8=0,0,VLOOKUP('4'!$C$3,'Op Costs'!$B$37:$M$54,12,FALSE)*'4'!$H$3) -> 0 | J35: =IF(J8=0,0,VLOOKUP('5'!$C$3,'Op Costs'!$B$37:$M$54,12,FALSE)*'5'!$H$3) -> 0 | K35: =IF(K8=0,0,VLOOKUP('6'!$C$3,'Op Costs'!$B$37:$M$54,12,FALSE)*'6'!$H$3) -> 0 | L35: =IF(L8=0,0,VLOOKUP('7'!$C$3,'Op Costs'!$B$37:$M$54,12,FALSE)*'7'!$H$3) -> 0 | M35: =IF(M8=0,0,VLOOKUP('8'!$C$3,'Op Costs'!$B$37:$M$54,12,FALSE)*'8'!$H$3) -> 0 | N35: =IF(N8=0,0,VLOOKUP('8'!$C$3,'Op Costs'!$B$37:$M$54,12,FALSE)*'9'!$H$3) -> 0 | O35: =IF(O8=0,0,VLOOKUP('8'!$C$3,'Op Costs'!$B$37:$M$54,12,FALSE)*'10'!$H$3) -> 0 | P35: =IF(P8=0,0,VLOOKUP('8'!$C$3,'Op Costs'!$B$37:$M$54,12,FALSE)*'11'!$H$3) -> 0 | Q35: =IF(Q8=0,0,VLOOKUP('8'!$C$3,'Op Costs'!$B$37:$M$54,12,FALSE)*'12'!$H$3) -> 0 | R35: =IF(R8=0,0,VLOOKUP('8'!$C$3,'Op Costs'!$B$37:$M$54,12,FALSE)*'13'!$H$3) -> 0 | S35: =IF(S8=0,0,VLOOKUP('8'!$C$3,'Op Costs'!$B$37:$M$54,12,FALSE)*'14'!$H$3) -> 0 | T35: =IF(T8=0,0,VLOOKUP('8'!$C$3,'Op Costs'!$B$37:$M$54,12,FALSE)*'15'!$H$3) -> 0 | U35: =IF(U8=0,0,VLOOKUP('8'!$C$3,'Op Costs'!$B$37:$M$54,12,FALSE)*'16'!$H$3) -> 0
C36: =SUM(C30:C35) -> 170.5719436 | E36: =SUM(E30:E35) -> 0 | F36: =SUM(F30:F35) -> 85.20215874 | G36: =SUM(G30:G35) -> 85.36978484 | H36: 0 | I36: 0 | J36: 0 | K36: 0 | L36: 0 | M36: 0 | N36: 0 | O36: 0 | P36: 0 | Q36: 0 | R36: 0 | S36: 0 | T36: 0 | U36: 0
A38: = | B38: Contribution Margin (CM) | C38: =SUM(C27-C36) -> 418.4519519 | E38: =SUM(E27-E36) -> 0 | F38: 207.9322388 | G38: 210.5197131 | H38: 0 | I38: 0 | J38: 0 | K38: 0 | L38: 0 | M38: 0 | N38: 0 | O38: 0 | P38: 0 | Q38: 0 | R38: 0 | S38: 0 | T38: 0 | U38: 0
A40: =" -" -> - | B40: Operating Overheads (OH)
B41: Other Costs | C41: =SUM(E41:U41) -> 35.5 | E41: ='Farm Business'!G51+'Farm Business'!G52+'Farm Business'!G54+'Farm Business'!G55+'Farm Business'!G56+'Farm Business'!G57+'Farm Business'!G58+'Farm Business'!G59 -> 0 | F41: =IF('Op Costs'!$F$131=0,'Op Costs'!$L$116,('Op Costs'!$F$131/'SOS-Total'!$C$8))*Crop1!$H$3 -> 17.75 | G41: =IF('Op Costs'!$F$131=0,'Op Costs'!$L$116,('Op Costs'!$F$131/'SOS-Total'!$C$8))*'2'!$H$3 -> 17.75 | H41: =IF('Op Costs'!$F$131=0,'Op Costs'!$L$116,('Op Costs'!$F$131/'SOS-Total'!$C$8))*'3'!$H$3 -> 0 | I41: =IF('Op Costs'!$F$131=0,'Op Costs'!$L$116,('Op Costs'!$F$131/'SOS-Total'!$C$8))*'4'!$H$3 -> 0 | J41: =IF('Op Costs'!$F$131=0,'Op Costs'!$L$116,('Op Costs'!$F$131/'SOS-Total'!$C$8))*'5'!$H$3 -> 0 | K41: =IF('Op Costs'!$F$131=0,'Op Costs'!$L$116,('Op Costs'!$F$131/'SOS-Total'!$C$8))*'6'!$H$3 -> 0 | L41: =IF('Op Costs'!$F$131=0,'Op Costs'!$L$116,('Op Costs'!$F$131/'SOS-Total'!$C$8))*'7'!$H$3 -> 0 | M41: =IF('Op Costs'!$F$131=0,'Op Costs'!$L$116,('Op Costs'!$F$131/'SOS-Total'!$C$8))*'8'!$H$3 -> 0 | N41: =IF('Op Costs'!$F$131=0,'Op Costs'!$L$116,('Op Costs'!$F$131/'SOS-Total'!$C$8))*'9'!$H$3 -> 0 | O41: =IF('Op Costs'!$F$131=0,'Op Costs'!$L$116,('Op Costs'!$F$131/'SOS-Total'!$C$8))*'10'!$H$3 -> 0 | P41: =IF('Op Costs'!$F$131=0,'Op Costs'!$L$116,('Op Costs'!$F$131/'SOS-Total'!$C$8))*'11'!$H$3 -> 0 | Q41: =IF('Op Costs'!$F$131=0,'Op Costs'!$L$116,('Op Costs'!$F$131/'SOS-Total'!$C$8))*'12'!$H$3 -> 0 | R41: =IF('Op Costs'!$F$131=0,'Op Costs'!$L$116,('Op Costs'!$F$131/'SOS-Total'!$C$8))*'13'!$H$3 -> 0 | S41: =IF('Op Costs'!$F$131=0,'Op Costs'!$L$116,('Op Costs'!$F$131/'SOS-Total'!$C$8))*'14'!$H$3 -> 0 | T41: =IF('Op Costs'!$F$131=0,'Op Costs'!$L$116,('Op Costs'!$F$131/'SOS-Total'!$C$8))*'15'!$H$3 -> 0 | U41: =IF('Op Costs'!$F$131=0,'Op Costs'!$L$116,('Op Costs'!$F$131/'SOS-Total'!$C$8))*'16'!$H$3 -> 0
A43: = | B43: Earnings Before Interest Taxes Depreciation Amortization Rent (EBITDAR) or Operating Income
B44: EBITDAR | C44: =SUM(C38-C41) -> 382.9519519 | E44: =SUM(E38-E41) -> 0 | F44: 190.1822388 | G44: 192.7697131 | H44: 0 | I44: 0 | J44: 0 | K44: 0 | L44: 0 | M44: 0 | N44: 0 | O44: 0 | P44: 0 | Q44: 0 | R44: 0 | S44: 0 | T44: 0 | U44: 0
A46: =" -" -> - | B46: Cost of Capital (CoC) or Depreciation/Amortization/Lease/Rent
B47: Machinery Lease | C47: =SUM(E47:U47) -> 0 | E47: ='Farm Business'!G63 -> 0 | F47: =IF(F8=0,0,('Land & Equip'!$J$63/'SOS-Total'!$C$8)*Crop1!$H$3) -> 0 | G47: =IF(G8=0,0,('Land & Equip'!$J$63/'SOS-Total'!$C$8)*'2'!$H$3) -> 0 | H47: =IF(H8=0,0,('Land & Equip'!$J$63/'SOS-Total'!$C$8)*'3'!$H$3) -> 0 | I47: =IF(I8=0,0,('Land & Equip'!$J$63/'SOS-Total'!$C$8)*'4'!$H$3) -> 0 | J47: =IF(J8=0,0,('Land & Equip'!$J$63/'SOS-Total'!$C$8)*'5'!$H$3) -> 0 | K47: =IF(K8=0,0,('Land & Equip'!$J$63/'SOS-Total'!$C$8)*'6'!$H$3) -> 0 | L47: =IF(L8=0,0,('Land & Equip'!$J$63/'SOS-Total'!$C$8)*'7'!$H$3) -> 0 | M47: =IF(M8=0,0,('Land & Equip'!$J$63/'SOS-Total'!$C$8)*'8'!$H$3) -> 0 | N47: =IF(N8=0,0,('Land & Equip'!$J$63/'SOS-Total'!$C$8)*'9'!$H$3) -> 0 | O47: =IF(O8=0,0,('Land & Equip'!$J$63/'SOS-Total'!$C$8)*'10'!$H$3) -> 0 | P47: =IF(P8=0,0,('Land & Equip'!$J$63/'SOS-Total'!$C$8)*'11'!$H$3) -> 0 | Q47: =IF(Q8=0,0,('Land & Equip'!$J$63/'SOS-Total'!$C$8)*'12'!$H$3) -> 0 | R47: =IF(R8=0,0,('Land & Equip'!$J$63/'SOS-Total'!$C$8)*'13'!$H$3) -> 0 | S47: =IF(S8=0,0,('Land & Equip'!$J$63/'SOS-Total'!$C$8)*'14'!$H$3) -> 0 | T47: =IF(T8=0,0,('Land & Equip'!$J$63/'SOS-Total'!$C$8)*'15'!$H$3) -> 0 | U47: =IF(U8=0,0,('Land & Equip'!$J$63/'SOS-Total'!$C$8)*'16'!$H$3) -> 0
B48: Machinery Depreciation | C48: 0 | E48: ="-" -> - | F48: =IF(F8=0,0,('Land & Equip'!$E$78/'SOS-Total'!$C$8)*Crop1!$H$3) -> 0 | G48: =IF(G8=0,0,('Land & Equip'!$E$78/'SOS-Total'!$C$8)*'2'!$H$3) -> 0 | H48: =IF(H8=0,0,('Land & Equip'!$E$78/'SOS-Total'!$C$8)*'3'!$H$3) -> 0 | I48: =IF(I8=0,0,('Land & Equip'!$E$78/'SOS-Total'!$C$8)*'4'!$H$3) -> 0 | J48: =IF(J8=0,0,('Land & Equip'!$E$78/'SOS-Total'!$C$8)*'5'!$H$3) -> 0 | K48: =IF(K8=0,0,('Land & Equip'!$E$78/'SOS-Total'!$C$8)*'6'!$H$3) -> 0 | L48: =IF(L8=0,0,('Land & Equip'!$E$78/'SOS-Total'!$C$8)*'7'!$H$3) -> 0 | M48: =IF(M8=0,0,('Land & Equip'!$E$78/'SOS-Total'!$C$8)*'8'!$H$3) -> 0 | N48: =IF(N8=0,0,('Land & Equip'!$E$78/'SOS-Total'!$C$8)*'9'!$H$3) -> 0 | O48: =IF(O8=0,0,('Land & Equip'!$E$78/'SOS-Total'!$C$8)*'10'!$H$3) -> 0 | P48: =IF(P8=0,0,('Land & Equip'!$E$78/'SOS-Total'!$C$8)*'11'!$H$3) -> 0 | Q48: =IF(Q8=0,0,('Land & Equip'!$E$78/'SOS-Total'!$C$8)*'12'!$H$3) -> 0 | R48: =IF(R8=0,0,('Land & Equip'!$E$78/'SOS-Total'!$C$8)*'13'!$H$3) -> 0 | S48: =IF(S8=0,0,('Land & Equip'!$E$78/'SOS-Total'!$C$8)*'14'!$H$3) -> 0 | T48: =IF(T8=0,0,('Land & Equip'!$E$78/'SOS-Total'!$C$8)*'15'!$H$3) -> 0 | U48: =IF(U8=0,0,('Land & Equip'!$E$78/'SOS-Total'!$C$8)*'16'!$H$3) -> 0
B49: Machinery Amortization | E49: ='Farm Business'!G64 -> 0 | F49: =IF(F8=0,0,('Land & Equip'!$E$73/'SOS-Total'!$C$8)*Crop1!$H$3) ->  | G49: =IF(G8=0,0,('Land & Equip'!$E$73/'SOS-Total'!$C$8)*'2'!$H$3) ->  | H49: =IF(H8=0,0,('Land & Equip'!$E$73/'SOS-Total'!$C$8)*'3'!$H$3) -> 0 | I49: =IF(I8=0,0,('Land & Equip'!$E$73/'SOS-Total'!$C$8)*'4'!$H$3) -> 0 | J49: =IF(J8=0,0,('Land & Equip'!$E$73/'SOS-Total'!$C$8)*'5'!$H$3) -> 0 | K49: =IF(K8=0,0,('Land & Equip'!$E$73/'SOS-Total'!$C$8)*'6'!$H$3) -> 0 | L49: =IF(L8=0,0,('Land & Equip'!$E$73/'SOS-Total'!$C$8)*'7'!$H$3) -> 0 | M49: =IF(M8=0,0,('Land & Equip'!$E$73/'SOS-Total'!$C$8)*'8'!$H$3) -> 0 | N49: =IF(N8=0,0,('Land & Equip'!$E$73/'SOS-Total'!$C$8)*'9'!$H$3) -> 0 | O49: =IF(O8=0,0,('Land & Equip'!$E$73/'SOS-Total'!$C$8)*'10'!$H$3) -> 0 | P49: =IF(P8=0,0,('Land & Equip'!$E$73/'SOS-Total'!$C$8)*'11'!$H$3) -> 0 | Q49: =IF(Q8=0,0,('Land & Equip'!$E$73/'SOS-Total'!$C$8)*'12'!$H$3) -> 0 | R49: =IF(R8=0,0,('Land & Equip'!$E$73/'SOS-Total'!$C$8)*'13'!$H$3) -> 0 | S49: =IF(S8=0,0,('Land & Equip'!$E$73/'SOS-Total'!$C$8)*'14'!$H$3) -> 0 | T49: =IF(T8=0,0,('Land & Equip'!$E$73/'SOS-Total'!$C$8)*'15'!$H$3) -> 0 | U49: =IF(U8=0,0,('Land & Equip'!$E$73/'SOS-Total'!$C$8)*'16'!$H$3) -> 0
B50: Machinery Opportunity Cost | C50: 0 | E50: ="-" -> - | F50: =IF(F8=0,0,('Land & Equip'!$E$79/'SOS-Total'!$C$8)*Crop1!$H$3) -> 0 | G50: =IF(G8=0,0,('Land & Equip'!$E$79/'SOS-Total'!$C$8)*Crop1!$H$3) -> 0 | H50: =IF(H8=0,0,('Land & Equip'!$E$79/'SOS-Total'!$C$8)*Crop1!$H$3) -> 0 | I50: =IF(I8=0,0,('Land & Equip'!$E$79/'SOS-Total'!$C$8)*Crop1!$H$3) -> 0 | J50: =IF(J8=0,0,('Land & Equip'!$E$79/'SOS-Total'!$C$8)*Crop1!$H$3) -> 0 | K50: =IF(K8=0,0,('Land & Equip'!$E$79/'SOS-Total'!$C$8)*Crop1!$H$3) -> 0 | L50: =IF(L8=0,0,('Land & Equip'!$E$79/'SOS-Total'!$C$8)*Crop1!$H$3) -> 0 | M50: =IF(M8=0,0,('Land & Equip'!$E$79/'SOS-Total'!$C$8)*Crop1!$H$3) -> 0 | N50: =IF(N8=0,0,('Land & Equip'!$E$79/'SOS-Total'!$C$8)*Crop1!$H$3) -> 0 | O50: =IF(O8=0,0,('Land & Equip'!$E$79/'SOS-Total'!$C$8)*Crop1!$H$3) -> 0 | P50: =IF(P8=0,0,('Land & Equip'!$E$79/'SOS-Total'!$C$8)*Crop1!$H$3) -> 0 | Q50: =IF(Q8=0,0,('Land & Equip'!$E$79/'SOS-Total'!$C$8)*Crop1!$H$3) -> 0 | R50: =IF(R8=0,0,('Land & Equip'!$E$79/'SOS-Total'!$C$8)*Crop1!$H$3) -> 0 | S50: =IF(S8=0,0,('Land & Equip'!$E$79/'SOS-Total'!$C$8)*Crop1!$H$3) -> 0 | T50: =IF(T8=0,0,('Land & Equip'!$E$79/'SOS-Total'!$C$8)*Crop1!$H$3) -> 0 | U50: =IF(U8=0,0,('Land & Equip'!$E$79/'SOS-Total'!$C$8)*Crop1!$H$3) -> 0
B51: Land Amortization | E51: ='Farm Business'!G66 -> 0 | F51: =IF(F8=0,0,'Land & Equip'!$E$36/'SOS-Total'!$C$8*Crop1!$H$3) ->  | G51: =IF(G8=0,0,'Land & Equip'!$E$36/'SOS-Total'!$C$8*'2'!$H$3) ->  | H51: =IF(H8=0,0,'Land & Equip'!$E$36/'SOS-Total'!$C$8*'3'!$H$3) -> 0 | I51: =IF(I8=0,0,'Land & Equip'!$E$36/'SOS-Total'!$C$8*'4'!$H$3) -> 0 | J51: =IF(J8=0,0,'Land & Equip'!$E$36/'SOS-Total'!$C$8*'5'!$H$3) -> 0 | K51: =IF(K8=0,0,'Land & Equip'!$E$36/'SOS-Total'!$C$8*'6'!$H$3) -> 0 | L51: =IF(L8=0,0,'Land & Equip'!$E$36/'SOS-Total'!$C$8*'7'!$H$3) -> 0 | M51: =IF(M8=0,0,'Land & Equip'!$E$36/'SOS-Total'!$C$8*'8'!$H$3) -> 0 | N51: =IF(N8=0,0,'Land & Equip'!$E$36/'SOS-Total'!$C$8*'9'!$H$3) -> 0 | O51: =IF(O8=0,0,'Land & Equip'!$E$36/'SOS-Total'!$C$8*'10'!$H$3) -> 0 | P51: =IF(P8=0,0,'Land & Equip'!$E$36/'SOS-Total'!$C$8*'11'!$H$3) -> 0 | Q51: =IF(Q8=0,0,'Land & Equip'!$E$36/'SOS-Total'!$C$8*'12'!$H$3) -> 0 | R51: =IF(R8=0,0,'Land & Equip'!$E$36/'SOS-Total'!$C$8*'13'!$H$3) -> 0 | S51: =IF(S8=0,0,'Land & Equip'!$E$36/'SOS-Total'!$C$8*'14'!$H$3) -> 0 | T51: =IF(T8=0,0,'Land & Equip'!$E$36/'SOS-Total'!$C$8*'15'!$H$3) -> 0 | U51: =IF(U8=0,0,'Land & Equip'!$E$36/'SOS-Total'!$C$8*'16'!$H$3) -> 0
B52: Land Opportunity Cost | C52: 0 | E52: ="-" -> - | F52: =IF(F8=0,0,'Land & Equip'!$E$39/'SOS-Total'!$C$8*Crop1!$H$3) -> 0 | G52: =IF(G8=0,0,'Land & Equip'!$E$39/'SOS-Total'!$C$8*'2'!$H$3) -> 0 | H52: =IF(H8=0,0,'Land & Equip'!$E$39/'SOS-Total'!$C$8*'3'!$H$3) -> 0 | I52: =IF(I8=0,0,'Land & Equip'!$E$39/'SOS-Total'!$C$8*'4'!$H$3) -> 0 | J52: =IF(J8=0,0,'Land & Equip'!$E$39/'SOS-Total'!$C$8*'5'!$H$3) -> 0 | K52: =IF(K8=0,0,'Land & Equip'!$E$39/'SOS-Total'!$C$8*'6'!$H$3) -> 0 | L52: =IF(L8=0,0,'Land & Equip'!$E$39/'SOS-Total'!$C$8*'7'!$H$3) -> 0 | M52: =IF(M8=0,0,'Land & Equip'!$E$39/'SOS-Total'!$C$8*'8'!$H$3) -> 0 | N52: =IF(N8=0,0,'Land & Equip'!$E$39/'SOS-Total'!$C$8*'9'!$H$3) -> 0 | O52: =IF(O8=0,0,'Land & Equip'!$E$39/'SOS-Total'!$C$8*'10'!$H$3) -> 0 | P52: =IF(P8=0,0,'Land & Equip'!$E$39/'SOS-Total'!$C$8*'11'!$H$3) -> 0 | Q52: =IF(Q8=0,0,'Land & Equip'!$E$39/'SOS-Total'!$C$8*'12'!$H$3) -> 0 | R52: =IF(R8=0,0,'Land & Equip'!$E$39/'SOS-Total'!$C$8*'13'!$H$3) -> 0 | S52: =IF(S8=0,0,'Land & Equip'!$E$39/'SOS-Total'!$C$8*'14'!$H$3) -> 0 | T52: =IF(T8=0,0,'Land & Equip'!$E$39/'SOS-Total'!$C$8*'15'!$H$3) -> 0 | U52: =IF(U8=0,0,'Land & Equip'!$E$39/'SOS-Total'!$C$8*'16'!$H$3) -> 0
B53: Land Taxes | C53: 0 | E53: ="-" -> - | F53: =IF(F8=0,0,IF('Op Costs'!$E$135=0,'Op Costs'!$L$135*('Land & Equip'!$C$26)/'SOS-Total'!$C$8,('Op Costs'!$E$135/'SOS-Total'!$C$8))*Crop1!$H$3) -> 0 | G53: =IF(G8=0,0,IF('Op Costs'!$E$135=0,'Op Costs'!$L$135*('Land & Equip'!$C$26)/'SOS-Total'!$C$8,('Op Costs'!$E$135/'SOS-Total'!$C$8))*'2'!$H$3) -> 0 | H53: =IF(H8=0,0,IF('Op Costs'!$E$135=0,'Op Costs'!$L$135*('Land & Equip'!$C$26)/'SOS-Total'!$C$8,('Op Costs'!$E$135/'SOS-Total'!$C$8))*'3'!$H$3) -> 0 | I53: =IF(I8=0,0,IF('Op Costs'!$E$135=0,'Op Costs'!$L$135*('Land & Equip'!$C$26)/'SOS-Total'!$C$8,('Op Costs'!$E$135/'SOS-Total'!$C$8))*'4'!$H$3) -> 0 | J53: =IF(J8=0,0,IF('Op Costs'!$E$135=0,'Op Costs'!$L$135*('Land & Equip'!$C$26)/'SOS-Total'!$C$8,('Op Costs'!$E$135/'SOS-Total'!$C$8))*'5'!$H$3) -> 0 | K53: =IF(K8=0,0,IF('Op Costs'!$E$135=0,'Op Costs'!$L$135*('Land & Equip'!$C$26)/'SOS-Total'!$C$8,('Op Costs'!$E$135/'SOS-Total'!$C$8))*'6'!$H$3) -> 0 | L53: =IF(L8=0,0,IF('Op Costs'!$E$135=0,'Op Costs'!$L$135*('Land & Equip'!$C$26)/'SOS-Total'!$C$8,('Op Costs'!$E$135/'SOS-Total'!$C$8))*'7'!$H$3) -> 0 | M53: =IF(M8=0,0,IF('Op Costs'!$E$135=0,'Op Costs'!$L$135*('Land & Equip'!$C$26)/'SOS-Total'!$C$8,('Op Costs'!$E$135/'SOS-Total'!$C$8))*'8'!$H$3) -> 0 | N53: =IF(N8=0,0,IF('Op Costs'!$E$135=0,'Op Costs'!$L$135*('Land & Equip'!$C$26)/'SOS-Total'!$C$8,('Op Costs'!$E$135/'SOS-Total'!$C$8))*'9'!$H$3) -> 0 | O53: =IF(O8=0,0,IF('Op Costs'!$E$135=0,'Op Costs'!$L$135*('Land & Equip'!$C$26)/'SOS-Total'!$C$8,('Op Costs'!$E$135/'SOS-Total'!$C$8))*'10'!$H$3) -> 0 | P53: =IF(P8=0,0,IF('Op Costs'!$E$135=0,'Op Costs'!$L$135*('Land & Equip'!$C$26)/'SOS-Total'!$C$8,('Op Costs'!$E$135/'SOS-Total'!$C$8))*'11'!$H$3) -> 0 | Q53: =IF(Q8=0,0,IF('Op Costs'!$E$135=0,'Op Costs'!$L$135*('Land & Equip'!$C$26)/'SOS-Total'!$C$8,('Op Costs'!$E$135/'SOS-Total'!$C$8))*'12'!$H$3) -> 0 | R53: =IF(R8=0,0,IF('Op Costs'!$E$135=0,'Op Costs'!$L$135*('Land & Equip'!$C$26)/'SOS-Total'!$C$8,('Op Costs'!$E$135/'SOS-Total'!$C$8))*'13'!$H$3) -> 0 | S53: =IF(S8=0,0,IF('Op Costs'!$E$135=0,'Op Costs'!$L$135*('Land & Equip'!$C$26)/'SOS-Total'!$C$8,('Op Costs'!$E$135/'SOS-Total'!$C$8))*'14'!$H$3) -> 0 | T53: =IF(T8=0,0,IF('Op Costs'!$E$135=0,'Op Costs'!$L$135*('Land & Equip'!$C$26)/'SOS-Total'!$C$8,('Op Costs'!$E$135/'SOS-Total'!$C$8))*'15'!$H$3) -> 0 | U53: =IF(U8=0,0,IF('Op Costs'!$E$135=0,'Op Costs'!$L$135*('Land & Equip'!$C$26)/'SOS-Total'!$C$8,('Op Costs'!$E$135/'SOS-Total'!$C$8))*'16'!$H$3) -> 0
B54: Land Rental | C54: 0 | E54: ='Farm Business'!G65 -> 0 | F54: =IF(F8=0,0,'Land & Equip'!$J$22/'SOS-Total'!$C$8*Crop1!$H$3) -> 0 | G54: =IF(G8=0,0,'Land & Equip'!$J$22/'SOS-Total'!$C$8*'2'!$H$3) -> 0 | H54: =IF(H8=0,0,'Land & Equip'!$J$22/'SOS-Total'!$C$8*'3'!$H$3) -> 0 | I54: =IF(I8=0,0,'Land & Equip'!$J$22/'SOS-Total'!$C$8*'4'!$H$3) -> 0 | J54: =IF(J8=0,0,'Land & Equip'!$J$22/'SOS-Total'!$C$8*'5'!$H$3) -> 0 | K54: =IF(K8=0,0,'Land & Equip'!$J$22/'SOS-Total'!$C$8*'6'!$H$3) -> 0 | L54: =IF(L8=0,0,'Land & Equip'!$J$22/'SOS-Total'!$C$8*'7'!$H$3) -> 0 | M54: =IF(M8=0,0,'Land & Equip'!$J$22/'SOS-Total'!$C$8*'8'!$H$3) -> 0 | N54: =IF(N8=0,0,'Land & Equip'!$J$22/'SOS-Total'!$C$8*'9'!$H$3) -> 0 | O54: =IF(O8=0,0,'Land & Equip'!$J$22/'SOS-Total'!$C$8*'10'!$H$3) -> 0 | P54: =IF(P8=0,0,'Land & Equip'!$J$22/'SOS-Total'!$C$8*'11'!$H$3) -> 0 | Q54: =IF(Q8=0,0,'Land & Equip'!$J$22/'SOS-Total'!$C$8*'12'!$H$3) -> 0 | R54: =IF(R8=0,0,'Land & Equip'!$J$22/'SOS-Total'!$C$8*'13'!$H$3) -> 0 | S54: =IF(S8=0,0,'Land & Equip'!$J$22/'SOS-Total'!$C$8*'14'!$H$3) -> 0 | T54: =IF(T8=0,0,'Land & Equip'!$J$22/'SOS-Total'!$C$8*'15'!$H$3) -> 0 | U54: =IF(U8=0,0,'Land & Equip'!$J$22/'SOS-Total'!$C$8*'16'!$H$3) -> 0
C55: =SUM(C47:C54) ->  | E55: =SUM(E47:E54) -> 0 | H55: 0 | I55: 0 | J55: 0 | K55: 0 | L55: 0 | M55: 0 | N55: 0 | O55: 0 | P55: 0 | Q55: 0 | R55: 0 | S55: 0 | T55: 0 | U55: 0
A57: = | B57: Earnings Before Interest Taxes (EBIT)
C58: =SUM(C44-C55) ->  | E58: =SUM(E44-E55) -> 0 | H58: 0 | I58: 0 | J58: 0 | K58: 0 | L58: 0 | M58: 0 | N58: 0 | O58: 0 | P58: 0 | Q58: 0 | R58: 0 | S58: 0 | T58: 0 | U58: 0
A60: =" -" -> - | B60: Interest Expenses
B61: Interest on Operating | C61: =SUM(E61:U61) -> 25.62 | E61: ="-" -> - | F61: =IF(F8=0,0,IF('Op Costs'!$E$140=0,IF('Op Costs'!$L$140="Yes",'Summary-Total'!F26))) -> 14.29 | G61: =IF(G8=0,0,IF('Op Costs'!$E$140=0,IF('Op Costs'!$L$140="Yes",'Summary-Total'!G26))) -> 11.33 | H61: =IF(H8=0,0,IF('Op Costs'!$E$140=0,IF('Op Costs'!$L$140="Yes",'Summary-Total'!H26))) -> 0 | I61: =IF(I8=0,0,IF('Op Costs'!$E$140=0,IF('Op Costs'!$L$140="Yes",'Summary-Total'!I26))) -> 0 | J61: =IF(J8=0,0,IF('Op Costs'!$E$140=0,IF('Op Costs'!$L$140="Yes",'Summary-Total'!J26))) -> 0 | K61: =IF(K8=0,0,IF('Op Costs'!$E$140=0,IF('Op Costs'!$L$140="Yes",'Summary-Total'!K26))) -> 0 | L61: =IF(L8=0,0,IF('Op Costs'!$E$140=0,IF('Op Costs'!$L$140="Yes",'Summary-Total'!L26))) -> 0 | M61: =IF(M8=0,0,IF('Op Costs'!$E$140=0,IF('Op Costs'!$L$140="Yes",'Summary-Total'!M26))) -> 0 | N61: =IF(N8=0,0,IF('Op Costs'!$E$140=0,IF('Op Costs'!$L$140="Yes",'Summary-Total'!N26))) -> 0 | O61: =IF(O8=0,0,IF('Op Costs'!$E$140=0,IF('Op Costs'!$L$140="Yes",'Summary-Total'!O26))) -> 0 | P61: =IF(P8=0,0,IF('Op Costs'!$E$140=0,IF('Op Costs'!$L$140="Yes",'Summary-Total'!P26))) -> 0 | Q61: =IF(Q8=0,0,IF('Op Costs'!$E$140=0,IF('Op Costs'!$L$140="Yes",'Summary-Total'!Q26))) -> 0 | R61: =IF(R8=0,0,IF('Op Costs'!$E$140=0,IF('Op Costs'!$L$140="Yes",'Summary-Total'!R26))) -> 0 | S61: =IF(S8=0,0,IF('Op Costs'!$E$140=0,IF('Op Costs'!$L$140="Yes",'Summary-Total'!S26))) -> 0 | T61: =IF(T8=0,0,IF('Op Costs'!$E$140=0,IF('Op Costs'!$L$140="Yes",'Summary-Total'!T26))) -> 0 | U61: =IF(U8=0,0,IF('Op Costs'!$E$140=0,IF('Op Costs'!$L$140="Yes",'Summary-Total'!U26))) -> 0
B62: Land Interest | C62: =SUM(E62:U62) ->  | E62: ="-" -> - | F62: =IF(F8=0,0,'Land & Equip'!$E$37/'SOS-Total'!$C$8*Crop1!$H$3) ->  | G62: =IF(G8=0,0,'Land & Equip'!$E$37/'SOS-Total'!$C$8*'2'!$H$3) ->  | H62: =IF(H8=0,0,'Land & Equip'!$E$37/'SOS-Total'!$C$8*'3'!$H$3) -> 0 | I62: =IF(I8=0,0,'Land & Equip'!$E$37/'SOS-Total'!$C$8*'4'!$H$3) -> 0 | J62: =IF(J8=0,0,'Land & Equip'!$E$37/'SOS-Total'!$C$8*'5'!$H$3) -> 0 | K62: =IF(K8=0,0,'Land & Equip'!$E$37/'SOS-Total'!$C$8*'6'!$H$3) -> 0 | L62: =IF(L8=0,0,'Land & Equip'!$E$37/'SOS-Total'!$C$8*'7'!$H$3) -> 0 | M62: =IF(M8=0,0,'Land & Equip'!$E$37/'SOS-Total'!$C$8*'8'!$H$3) -> 0 | N62: =IF(N8=0,0,'Land & Equip'!$E$37/'SOS-Total'!$C$8*'9'!$H$3) -> 0 | O62: =IF(O8=0,0,'Land & Equip'!$E$37/'SOS-Total'!$C$8*'10'!$H$3) -> 0 | P62: =IF(P8=0,0,'Land & Equip'!$E$37/'SOS-Total'!$C$8*'11'!$H$3) -> 0 | Q62: =IF(Q8=0,0,'Land & Equip'!$E$37/'SOS-Total'!$C$8*'12'!$H$3) -> 0 | R62: =IF(R8=0,0,'Land & Equip'!$E$37/'SOS-Total'!$C$8*'13'!$H$3) -> 0 | S62: =IF(S8=0,0,'Land & Equip'!$E$37/'SOS-Total'!$C$8*'14'!$H$3) -> 0 | T62: =IF(T8=0,0,'Land & Equip'!$E$37/'SOS-Total'!$C$8*'15'!$H$3) -> 0 | U62: =IF(U8=0,0,'Land & Equip'!$E$37/'SOS-Total'!$C$8*'16'!$H$3) -> 0
B63: Machinery Interest | C63: =SUM(E63:U63) ->  | E63: ="-" -> - | F63: =IF(F8=0,0,('Land & Equip'!$E$74/'SOS-Total'!$C$8)*Crop1!$H$3) ->  | G63: =IF(G8=0,0,('Land & Equip'!$E$74/'SOS-Total'!$C$8)*'2'!$H$3) ->  | H63: =IF(H8=0,0,('Land & Equip'!$E$74/'SOS-Total'!$C$8)*'3'!$H$3) -> 0 | I63: =IF(I8=0,0,('Land & Equip'!$E$74/'SOS-Total'!$C$8)*'4'!$H$3) -> 0 | J63: =IF(J8=0,0,('Land & Equip'!$E$74/'SOS-Total'!$C$8)*'5'!$H$3) -> 0 | K63: =IF(K8=0,0,('Land & Equip'!$E$74/'SOS-Total'!$C$8)*'6'!$H$3) -> 0 | L63: =IF(L8=0,0,('Land & Equip'!$E$74/'SOS-Total'!$C$8)*'7'!$H$3) -> 0 | M63: =IF(M8=0,0,('Land & Equip'!$E$74/'SOS-Total'!$C$8)*'8'!$H$3) -> 0 | N63: =IF(N8=0,0,('Land & Equip'!$E$74/'SOS-Total'!$C$8)*'9'!$H$3) -> 0 | O63: =IF(O8=0,0,('Land & Equip'!$E$74/'SOS-Total'!$C$8)*'10'!$H$3) -> 0 | P63: =IF(P8=0,0,('Land & Equip'!$E$74/'SOS-Total'!$C$8)*'11'!$H$3) -> 0 | Q63: =IF(Q8=0,0,('Land & Equip'!$E$74/'SOS-Total'!$C$8)*'12'!$H$3) -> 0 | R63: =IF(R8=0,0,('Land & Equip'!$E$74/'SOS-Total'!$C$8)*'13'!$H$3) -> 0 | S63: =IF(S8=0,0,('Land & Equip'!$E$74/'SOS-Total'!$C$8)*'14'!$H$3) -> 0 | T63: =IF(T8=0,0,('Land & Equip'!$E$74/'SOS-Total'!$C$8)*'15'!$H$3) -> 0 | U63: =IF(U8=0,0,('Land & Equip'!$E$74/'SOS-Total'!$C$8)*'16'!$H$3) -> 0
C64: =SUM(C61:C63) ->  | E64: =SUM(E61:E63) -> 0 | H64: 0 | I64: 0 | J64: 0 | K64: 0 | L64: 0 | M64: 0 | N64: 0 | O64: 0 | P64: 0 | Q64: 0 | R64: 0 | S64: 0 | T64: 0 | U64: 0
A66: = | B66: Earnings Before Taxes (EBT) | C66: =SUM(C58-C64) ->  | E66: =SUM(E58-E64) -> 0 | H66: 0 | I66: 0 | J66: 0 | K66: 0 | L66: 0 | M66: 0 | N66: 0 | O66: 0 | P66: 0 | Q66: 0 | R66: 0 | S66: 0 | T66: 0 | U66: 0
A68: Note: This budget is only a guide and is not intended as an in depth study of the cost of production of this industry. Interpretation and utilization of this information is the responsibility of the user.

Sheet SOS-Acre
A3: =" CROPPLAN Standardized Operating Statement "&Intro!I15&" (Dollars Per Acre)" -> CROPPLAN Standardized Operating Statement 2025 (Dollars Per Acre)
B5: Date Printed: | C5: MY FARM Average | E5: =IF(Crop1!$C$3="(select crop)","",Crop1!$C$3) -> Canola | F5: =IF('2'!$C$3="(select crop)","",'2'!$C$3) -> Wheat | G5: =IF('3'!$C$3="(select crop)","",'3'!$C$3) ->  | H5: =IF('4'!$C$3="(select crop)","",'4'!$C$3) ->  | I5: =IF('5'!$C$3="(select crop)","",'5'!$C$3) ->  | J5: =IF('6'!$C$3="(select crop)","",'6'!$C$3) ->  | K5: =IF('7'!$C$3="(select crop)","",'7'!$C$3) ->  | L5: =IF('8'!$C$3="(select crop)","",'8'!$C$3) ->  | M5: =IF('9'!$C$3="(select crop)","",'9'!$C$3) ->  | N5: =IF('10'!$C$3="(select crop)","",'10'!$C$3) ->  | O5: =IF('11'!$C$3="(select crop)","",'11'!$C$3) ->  | P5: =IF('12'!$C$3="(select crop)","",'12'!$C$3) ->  | Q5: =IF('13'!$C$3="(select crop)","",'13'!$C$3) ->  | R5: =IF('14'!$C$3="(select crop)","",'14'!$C$3) ->  | S5: =IF('15'!$C$3="(select crop)","",'15'!$C$3) ->  | T5: =IF('16'!$C$3="(select crop)","",'16'!$C$3) -> 
B6: =TODAY() -> 2025-01-02 | E6: =IF(Crop1!$F$8="(enter name here)","",Crop1!$F$8) ->  | F6: =IF('2'!$F$8="(enter name here)","",'2'!$F$8) ->  | G6: =IF('3'!$F$8="(enter name here)","",'3'!$F$8) ->  | H6: =IF('4'!$F$8="(enter name here)","",'4'!$F$8) ->  | I6: =IF('5'!$F$8="(enter name here)","",'5'!$F$8) ->  | J6: =IF('6'!$F$8="(enter name here)","",'6'!$F$8) ->  | K6: =IF('7'!$F$8="(enter name here)","",'7'!$F$8) ->  | L6: =IF('8'!$F$8="(enter name here)","",'8'!$F$8) ->  | M6: =IF('9'!$F$8="(enter name here)","",'9'!$F$8) ->  | N6: =IF('10'!$F$8="(enter name here)","",'10'!$F$8) ->  | O6: =IF('11'!$F$8="(enter name here)","",'11'!$F$8) ->  | P6: =IF('12'!$F$8="(enter name here)","",'12'!$F$8) ->  | Q6: =IF('13'!$F$8="(enter name here)","",'13'!$F$8) ->  | R6: =IF('14'!$F$8="(enter name here)","",'14'!$F$8) ->  | S6: =IF('15'!$F$8="(enter name here)","",'15'!$F$8) ->  | T6: =IF('16'!$F$8="(enter name here)","",'16'!$F$8) -> 
B8: Profitability Ranking | E8: =IF(E14="","",RANK(E14,$E$14:$T$14)) -> 1 | F8: =IF(F14="","",RANK(F14,$E$14:$T$14)) -> 2
B10: Avg. Market Price $ per unit | E10: =IF(Crop1!$F80=0,0,((Crop1!F108*Crop1!G108)+(Crop1!F109*Crop1!F116))/Crop1!F80) -> 13.25 | F10: =IF('2'!$F80=0,0,(('2'!$F108*'2'!$G108)+('2'!$F109*'2'!$F116))/'2'!$F80) -> 8 | G10: =IF('3'!$F80=0,0,(('3'!$F108*'3'!$G108)+('3'!$F109*'3'!$F116))/'3'!$F80) -> 0 | H10: =IF('4'!$F80=0,0,(('4'!$F108*'4'!$G108)+('4'!$F109*'4'!$F116))/'4'!$F80) -> 0 | I10: =IF('5'!$F80=0,0,(('5'!$F108*'5'!$G108)+('5'!$F109*'5'!$F116))/'5'!$F80) -> 0 | J10: =IF('6'!$F80=0,0,(('6'!$F108*'6'!$G108)+('6'!$F109*'6'!$F116))/'6'!$F80) -> 0 | K10: =IF('7'!$F80=0,0,(('7'!$F108*'7'!$G108)+('7'!$F109*'7'!$F116))/'7'!$F80) -> 0 | L10: =IF('8'!$F80=0,0,(('8'!$F108*'8'!$G108)+('8'!$F109*'8'!$F116))/'8'!$F80) -> 0 | M10: =IF('9'!$F80=0,0,(('9'!$F108*'9'!$G108)+('9'!$F109*'9'!$F116))/'9'!$F80) -> 0 | N10: =IF('10'!$F80=0,0,(('10'!$F108*'10'!$G108)+('10'!$F109*'10'!$F116))/'10'!$F80) -> 0 | O10: =IF('11'!$F80=0,0,(('11'!$F108*'11'!$G108)+('11'!$F109*'11'!$F116))/'11'!$F80) -> 0 | P10: =IF('12'!$F80=0,0,(('12'!$F108*'12'!$G108)+('12'!$F109*'12'!$F116))/'12'!$F80) -> 0 | Q10: =IF('13'!$F80=0,0,(('13'!$F108*'13'!$G108)+('13'!$F109*'13'!$F116))/'13'!$F80) -> 0 | R10: =IF('14'!$F80=0,0,(('14'!$F108*'14'!$G108)+('14'!$F109*'14'!$F116))/'14'!$F80) -> 0 | S10: =IF('15'!$F80=0,0,(('15'!$F108*'15'!$G108)+('15'!$F109*'15'!$F116))/'15'!$F80) -> 0 | T10: =IF('16'!$F80=0,0,(('16'!$F108*'16'!$G108)+('16'!$F109*'16'!$F116))/'16'!$F80) -> 0
B11: Yield per acre (bu or lb.) | E11: =Crop1!$F$78 -> 45 | F11: ='2'!$F$78 -> 65 | G11: ='3'!$F$78 -> 0 | H11: ='4'!$F$78 -> 0 | I11: ='5'!$F$78 -> 0 | J11: ='6'!$F$78 -> 0 | K11: ='7'!$F$78 -> 0 | L11: ='8'!$F$78 -> 0 | M11: ='9'!$F$78 -> 0 | N11: ='10'!$F$78 -> 0 | O11: ='11'!$F$78 -> 0 | P11: ='12'!$F$78 -> 0 | Q11: ='13'!$F$78 -> 0 | R11: ='14'!$F$78 -> 0 | S11: ='15'!$F$78 -> 0 | T11: ='16'!$F$78 -> 0
B12: Unit type | E12: =Crop1!$F$79 -> bu | F12: ='2'!$F$79 -> bu | G12: ='3'!$F$79 ->  | H12: ='4'!$F$79 ->  | I12: ='5'!$F$79 ->  | J12: ='6'!$F$79 ->  | K12: ='7'!$F$79 ->  | L12: ='8'!$F$79 ->  | M12: ='9'!$F$79 ->  | N12: ='10'!$F$79 ->  | O12: ='11'!$F$79 ->  | P12: ='12'!$F$79 ->  | Q12: ='13'!$F$79 ->  | R12: ='14'!$F$79 ->  | S12: ='15'!$F$79 ->  | T12: ='16'!$F$79 -> 
B13: Other Crop Income | E13: =IF(E10*E11=0,"",Crop1!$F$117) -> 0 | F13: =IF(F10*F11=0,"",'2'!$F$117) -> 0 | G13: =IF(G10*G11=0,"",'3'!$F$117) ->  | H13: =IF(H10*H11=0,"",'4'!$F$117) ->  | I13: =IF(I10*I11=0,"",'5'!$F$117) ->  | J13: =IF(J10*J11=0,"",'6'!$F$117) ->  | K13: =IF(K10*K11=0,"",'7'!$F$117) ->  | L13: =IF(L10*L11=0,"",'8'!$F$117) ->  | M13: =IF(M10*M11=0,"",'9'!$F$117) ->  | N13: =IF(N10*N11=0,"",'10'!$F$117) ->  | O13: =IF(O10*O11=0,"",'11'!$F$117) ->  | P13: =IF(P10*P11=0,"",'12'!$F$117) ->  | Q13: =IF(Q10*Q11=0,"",'13'!$F$117) ->  | R13: =IF(R10*R11=0,"",'14'!$F$117) ->  | S13: =IF(S10*S11=0,"",'15'!$F$117) ->  | T13: =IF(T10*T11=0,"",'16'!$F$117) -> 
A14: = | B14: Gross Revenue | C14: =IF('Summary-Total'!$C$8=0,0,SUM(SUM('Summary-Total'!F47:U47)/'Summary-Total'!$C$8)) -> 558.125 | D14: =IF($C$14=0,0,SUM(C14/$C$14)) -> 1 | E14: =IF(E10*E11=0,"",ROUND((E10*E11)+E13,2)) -> 596.25 | F14: =IF(F10*F11=0,"",ROUND((F10*F11)+F13,2)) -> 520
A16: =" -" -> - | B16: Cost of Goods Sold (CoGS)
B17: Seed & Treatment | C17: =IF('Summary-Total'!$C$8=0,0,SUM(SUM('Summary-Total'!F11:U11)/'Summary-Total'!$C$8)) -> 58.25 | D17: =IF($C$14=0,0,SUM(C17/$C$14)) -> 0.1043673012 | E17: =Crop1!$I$9 -> 82.5 | F17: ='2'!$I$9 -> 34 | G17: ='3'!$I$9 -> 0 | H17: ='4'!$I$9 -> 0 | I17: ='5'!$I$9 -> 0 | J17: ='6'!$I$9 -> 0 | K17: ='7'!$I$9 -> 0 | L17: ='8'!$I$9 -> 0 | M17: ='9'!$I$9 -> 0 | N17: ='10'!$I$9 -> 0 | O17: ='11'!$I$9 -> 0 | P17: ='12'!$I$9 -> 0 | Q17: ='13'!$I$9 -> 0 | R17: ='14'!$I$9 -> 0 | S17: ='15'!$I$9 -> 0 | T17: ='16'!$I$9 -> 0
B18: Fertilizer | C18: =IF('Summary-Total'!$C$8=0,0,SUM(SUM('Summary-Total'!F12:U12)/'Summary-Total'!$C$8)) -> 131.8180523 | D18: 0.2361801608 | E18: =Crop1!$I$30 -> 145.6056025 | F18: ='2'!$I$30 -> 118.030502 | G18: ='3'!$I$30 -> 0 | H18: ='4'!$I$30 -> 0 | I18: ='5'!$I$30 -> 0 | J18: ='6'!$I$30 -> 0 | K18: ='7'!$I$30 -> 0 | L18: ='8'!$I$30 -> 0 | M18: ='9'!$I$30 -> 0 | N18: ='10'!$I$30 -> 0 | O18: ='11'!$I$30 -> 0 | P18: ='12'!$I$30 -> 0 | Q18: ='13'!$I$30 -> 0 | R18: ='14'!$I$30 -> 0 | S18: ='15'!$I$30 -> 0 | T18: ='16'!$I$30 -> 0
B19: Herbicide | C19: =IF('Summary-Total'!$C$8=0,0,SUM(SUM('Summary-Total'!F13:U13)/'Summary-Total'!$C$8)) -> 32.875 | D19: 0.05890257559 | E19: =Crop1!$I$44 -> 30 | F19: ='2'!$I$44 -> 35.75 | G19: ='3'!$I$44 -> 0 | H19: ='4'!$I$44 -> 0 | I19: ='5'!$I$44 -> 0 | J19: ='6'!$I$44 -> 0 | K19: ='7'!$I$44 -> 0 | L19: ='8'!$I$44 -> 0 | M19: ='9'!$I$44 -> 0 | N19: ='10'!$I$44 -> 0 | O19: ='11'!$I$44 -> 0 | P19: ='12'!$I$44 -> 0 | Q19: ='13'!$I$44 -> 0 | R19: ='14'!$I$44 -> 0 | S19: ='15'!$I$44 -> 0 | T19: ='16'!$I$44 -> 0
B20: Fungicide | C20: =IF('Summary-Total'!$C$8=0,0,SUM(SUM('Summary-Total'!F14:U14)/'Summary-Total'!$C$8)) -> 21.125 | D20: 0.03784994401 | E20: =Crop1!$I$53 -> 22.75 | F20: ='2'!$I$53 -> 19.5 | G20: ='3'!$I$53 -> 0 | H20: ='4'!$I$53 -> 0 | I20: ='5'!$I$53 -> 0 | J20: ='6'!$I$53 -> 0 | K20: ='7'!$I$53 -> 0 | L20: ='8'!$I$53 -> 0 | M20: ='9'!$I$53 -> 0 | N20: ='10'!$I$53 -> 0 | O20: ='11'!$I$53 -> 0 | P20: ='12'!$I$53 -> 0 | Q20: ='13'!$I$53 -> 0 | R20: ='14'!$I$53 -> 0 | S20: ='15'!$I$53 -> 0 | T20: ='16'!$I$53 -> 0
B21: Insecticide | C21: =IF('Summary-Total'!$C$8=0,0,SUM(SUM('Summary-Total'!F15:U15)/'Summary-Total'!$C$8)) -> 2.875 | D21: 0.005151175812 | E21: =Crop1!$I$62 -> 5.75 | F21: ='2'!$I$62 -> 0 | G21: ='3'!$I$62 -> 0 | H21: ='4'!$I$62 -> 0 | I21: ='5'!$I$62 -> 0 | J21: ='6'!$I$62 -> 0 | K21: ='7'!$I$62 -> 0 | L21: ='8'!$I$62 -> 0 | M21: ='9'!$I$62 -> 0 | N21: ='10'!$I$62 -> 0 | O21: ='11'!$I$62 -> 0 | P21: ='12'!$I$62 -> 0 | Q21: ='13'!$I$62 -> 0 | R21: ='14'!$I$62 -> 0 | S21: ='15'!$I$62 -> 0 | T21: ='16'!$I$62 -> 0
B22: Crop Insurance | C22: =IF('Summary-Total'!$C$8=0,0,SUM(SUM('Summary-Total'!F22:U22)/'Summary-Total'!$C$8)) -> 16.67 | D22: 0.02986786114 | E22: =IF('Summary-Total'!F8=0,0,VLOOKUP(Crop1!$C$3,'Op Costs'!$B$13:$O$30,7,FALSE)+VLOOKUP(Crop1!$C$3,'Op Costs'!$B$13:$O$30,11,FALSE)) -> 16.51 | F22: =IF('Summary-Total'!G8=0,0,VLOOKUP('2'!$C$3,'Op Costs'!$B$13:$O$30,7,FALSE)+VLOOKUP('2'!$C$3,'Op Costs'!$B$13:$O$30,11,FALSE)) -> 16.83 | G22: =IF('Summary-Total'!H8=0,0,VLOOKUP('3'!$C$3,'Op Costs'!$B$13:$O$30,7,FALSE)+VLOOKUP('3'!$C$3,'Op Costs'!$B$13:$O$30,11,FALSE)) -> 0 | H22: =IF('Summary-Total'!I8=0,0,VLOOKUP('4'!$C$3,'Op Costs'!$B$13:$O$30,7,FALSE)+VLOOKUP('4'!$C$3,'Op Costs'!$B$13:$O$30,11,FALSE)) -> 0 | I22: =IF('Summary-Total'!J8=0,0,VLOOKUP('5'!$C$3,'Op Costs'!$B$13:$O$30,7,FALSE)+VLOOKUP('5'!$C$3,'Op Costs'!$B$13:$O$30,11,FALSE)) -> 0 | J22: =IF('Summary-Total'!K8=0,0,VLOOKUP('6'!$C$3,'Op Costs'!$B$13:$O$30,7,FALSE)+VLOOKUP('6'!$C$3,'Op Costs'!$B$13:$O$30,11,FALSE)) -> 0 | K22: =IF('Summary-Total'!L8=0,0,VLOOKUP('7'!$C$3,'Op Costs'!$B$13:$O$30,7,FALSE)+VLOOKUP('7'!$C$3,'Op Costs'!$B$13:$O$30,11,FALSE)) -> 0 | L22: =IF('Summary-Total'!M8=0,0,VLOOKUP('8'!$C$3,'Op Costs'!$B$13:$O$30,7,FALSE)+VLOOKUP('8'!$C$3,'Op Costs'!$B$13:$O$30,11,FALSE)) -> 0 | M22: =IF('Summary-Total'!N8=0,0,VLOOKUP('9'!$C$3,'Op Costs'!$B$13:$O$30,7,FALSE)+VLOOKUP('9'!$C$3,'Op Costs'!$B$13:$O$30,11,FALSE)) -> 0 | N22: =IF('Summary-Total'!O8=0,0,VLOOKUP('10'!$C$3,'Op Costs'!$B$13:$O$30,7,FALSE)+VLOOKUP('10'!$C$3,'Op Costs'!$B$13:$O$30,11,FALSE)) -> 0 | O22: =IF('Summary-Total'!P8=0,0,VLOOKUP('11'!$C$3,'Op Costs'!$B$13:$O$30,7,FALSE)+VLOOKUP('11'!$C$3,'Op Costs'!$B$13:$O$30,11,FALSE)) -> 0 | P22: =IF('Summary-Total'!Q8=0,0,VLOOKUP('12'!$C$3,'Op Costs'!$B$13:$O$30,7,FALSE)+VLOOKUP('12'!$C$3,'Op Costs'!$B$13:$O$30,11,FALSE)) -> 0 | Q22: =IF('Summary-Total'!R8=0,0,VLOOKUP('13'!$C$3,'Op Costs'!$B$13:$O$30,7,FALSE)+VLOOKUP('13'!$C$3,'Op Costs'!$B$13:$O$30,11,FALSE)) -> 0 | R22: =IF('Summary-Total'!S8=0,0,VLOOKUP('14'!$C$3,'Op Costs'!$B$13:$O$30,7,FALSE)+VLOOKUP('14'!$C$3,'Op Costs'!$B$13:$O$30,11,FALSE)) -> 0 | S22: =IF('Summary-Total'!T8=0,0,VLOOKUP('15'!$C$3,'Op Costs'!$B$13:$O$30,7,FALSE)+VLOOKUP('15'!$C$3,'Op Costs'!$B$13:$O$30,11,FALSE)) -> 0 | T22: =IF('Summary-Total'!U8=0,0,VLOOKUP('16'!$C$3,'Op Costs'!$B$13:$O$30,7,FALSE)+VLOOKUP('16'!$C$3,'Op Costs'!$B$13:$O$30,11,FALSE)) -> 0
C23: =SUM(C17:C22) -> 263.6130523 | D23: 0.4723190186 | E23: =SUM(E17:E22) -> 303.1156025 | F23: 224.110502 | G23: 0 | H23: 0 | I23: 0 | J23: 0 | K23: 0 | L23: 0 | M23: 0 | N23: 0 | O23: 0 | P23: 0 | Q23: 0 | R23: 0 | S23: 0 | T23: 0
A25: = | B25: Gross Margin (GM) | C25: =SUM(C14-C23) -> 294.5119477 | D25: =IF($C$14=0,0,SUM(C25/$C$14)) -> 0.5276809814 | E25: =IF(E14="",0,SUM(E14-E23)) -> 293.1343975 | F25: =IF(F14="",0,SUM(F14-F23)) -> 295.889498 | G25: =IF(G14="",0,SUM(G14-G23)) -> 0 | H25: =IF(H14="",0,SUM(H14-H23)) -> 0 | I25: 0 | J25: 0 | K25: 0 | L25: 0 | M25: 0 | N25: 0 | O25: 0 | P25: 0 | Q25: 0 | R25: 0 | S25: 0 | T25: 0
A27: =" -" -> - | B27: Direct Operating Expenses (DOE)
B28: Hired Labour | C28: =IF('Summary-Total'!$C$8=0,0,SUM(SUM('Summary-Total'!F17:U17)/'Summary-Total'!$C$8)) -> 5.4 | D28: =IF($C$14=0,0,SUM(C28/$C$14)) -> 0.00967525196 | E28: =IF('Summary-Total'!F8=0,0,IF('Op Costs'!$E$58=0,IF('Op Costs'!$K$58="yes",'Op Costs'!$J$59*'Op Costs'!$N$59,0),('Op Costs'!$E$58/'Summary-Total'!$C$8))) -> 5.4 | F28: =IF('Summary-Total'!G8=0,0,IF('Op Costs'!$E$58=0,IF('Op Costs'!$K$58="yes",'Op Costs'!$J$59*'Op Costs'!$N$59,0),('Op Costs'!$E$58/'Summary-Total'!$C$8))) -> 5.4 | G28: =IF('Summary-Total'!H8=0,0,IF('Op Costs'!$E$58=0,IF('Op Costs'!$K$58="yes",'Op Costs'!$J$59*'Op Costs'!$N$59,0),('Op Costs'!$E$58/'Summary-Total'!$C$8))) -> 0 | H28: =IF('Summary-Total'!I8=0,0,IF('Op Costs'!$E$58=0,IF('Op Costs'!$K$58="yes",'Op Costs'!$J$59*'Op Costs'!$N$59,0),('Op Costs'!$E$58/'Summary-Total'!$C$8))) -> 0 | I28: =IF('Summary-Total'!J8=0,0,IF('Op Costs'!$E$58=0,IF('Op Costs'!$K$58="yes",'Op Costs'!$J$59*'Op Costs'!$N$59,0),('Op Costs'!$E$58/'Summary-Total'!$C$8))) -> 0 | J28: =IF('Summary-Total'!K8=0,0,IF('Op Costs'!$E$58=0,IF('Op Costs'!$K$58="yes",'Op Costs'!$J$59*'Op Costs'!$N$59,0),('Op Costs'!$E$58/'Summary-Total'!$C$8))) -> 0 | K28: =IF('Summary-Total'!L8=0,0,IF('Op Costs'!$E$58=0,IF('Op Costs'!$K$58="yes",'Op Costs'!$J$59*'Op Costs'!$N$59,0),('Op Costs'!$E$58/'Summary-Total'!$C$8))) -> 0 | L28: =IF('Summary-Total'!M8=0,0,IF('Op Costs'!$E$58=0,IF('Op Costs'!$K$58="yes",'Op Costs'!$J$59*'Op Costs'!$N$59,0),('Op Costs'!$E$58/'Summary-Total'!$C$8))) -> 0 | M28: =IF('Summary-Total'!N8=0,0,IF('Op Costs'!$E$58=0,IF('Op Costs'!$K$58="yes",'Op Costs'!$J$59*'Op Costs'!$N$59,0),('Op Costs'!$E$58/'Summary-Total'!$C$8))) -> 0 | N28: =IF('Summary-Total'!O8=0,0,IF('Op Costs'!$E$58=0,IF('Op Costs'!$K$58="yes",'Op Costs'!$J$59*'Op Costs'!$N$59,0),('Op Costs'!$E$58/'Summary-Total'!$C$8))) -> 0 | O28: =IF('Summary-Total'!P8=0,0,IF('Op Costs'!$E$58=0,IF('Op Costs'!$K$58="yes",'Op Costs'!$J$59*'Op Costs'!$N$59,0),('Op Costs'!$E$58/'Summary-Total'!$C$8))) -> 0 | P28: =IF('Summary-Total'!Q8=0,0,IF('Op Costs'!$E$58=0,IF('Op Costs'!$K$58="yes",'Op Costs'!$J$59*'Op Costs'!$N$59,0),('Op Costs'!$E$58/'Summary-Total'!$C$8))) -> 0 | Q28: =IF('Summary-Total'!R8=0,0,IF('Op Costs'!$E$58=0,IF('Op Costs'!$K$58="yes",'Op Costs'!$J$59*'Op Costs'!$N$59,0),('Op Costs'!$E$58/'Summary-Total'!$C$8))) -> 0 | R28: =IF('Summary-Total'!S8=0,0,IF('Op Costs'!$E$58=0,IF('Op Costs'!$K$58="yes",'Op Costs'!$J$59*'Op Costs'!$N$59,0),('Op Costs'!$E$58/'Summary-Total'!$C$8))) -> 0 | S28: =IF('Summary-Total'!T8=0,0,IF('Op Costs'!$E$58=0,IF('Op Costs'!$K$58="yes",'Op Costs'!$J$59*'Op Costs'!$N$59,0),('Op Costs'!$E$58/'Summary-Total'!$C$8))) -> 0 | T28: =IF('Summary-Total'!U8=0,0,IF('Op Costs'!$E$58=0,IF('Op Costs'!$K$58="yes",'Op Costs'!$J$59*'Op Costs'!$N$59,0),('Op Costs'!$E$58/'Summary-Total'!$C$8))) -> 0
B29: Owner Withdrawal | C29: =IF('Summary-Total'!$C$8=0,0,SUM(SUM('Summary-Total'!F37:U37)/'Summary-Total'!$C$8)) -> 25 | D29: 0.04479283315 | E29: =IF('Summary-Total'!F8=0,0,IF('Op Costs'!$E$73=0,'Op Costs'!$L$73,('Op Costs'!$E$73/'Summary-Total'!$C$8))) -> 25 | F29: =IF('Summary-Total'!G8=0,0,IF('Op Costs'!$E$73=0,'Op Costs'!$L$73,('Op Costs'!$E$73/'Summary-Total'!$C$8))) -> 25 | G29: =IF('Summary-Total'!H8=0,0,IF('Op Costs'!$E$73=0,'Op Costs'!$L$73,('Op Costs'!$E$73/'Summary-Total'!$C$8))) -> 0 | H29: =IF('Summary-Total'!I8=0,0,IF('Op Costs'!$E$73=0,'Op Costs'!$L$73,('Op Costs'!$E$73/'Summary-Total'!$C$8))) -> 0 | I29: =IF('Summary-Total'!J8=0,0,IF('Op Costs'!$E$73=0,'Op Costs'!$L$73,('Op Costs'!$E$73/'Summary-Total'!$C$8))) -> 0 | J29: =IF('Summary-Total'!K8=0,0,IF('Op Costs'!$E$73=0,'Op Costs'!$L$73,('Op Costs'!$E$73/'Summary-Total'!$C$8))) -> 0 | K29: =IF('Summary-Total'!L8=0,0,IF('Op Costs'!$E$73=0,'Op Costs'!$L$73,('Op Costs'!$E$73/'Summary-Total'!$C$8))) -> 0 | L29: =IF('Summary-Total'!M8=0,0,IF('Op Costs'!$E$73=0,'Op Costs'!$L$73,('Op Costs'!$E$73/'Summary-Total'!$C$8))) -> 0 | M29: =IF('Summary-Total'!N8=0,0,IF('Op Costs'!$E$73=0,'Op Costs'!$L$73,('Op Costs'!$E$73/'Summary-Total'!$C$8))) -> 0 | N29: =IF('Summary-Total'!O8=0,0,IF('Op Costs'!$E$73=0,'Op Costs'!$L$73,('Op Costs'!$E$73/'Summary-Total'!$C$8))) -> 0 | O29: =IF('Summary-Total'!P8=0,0,IF('Op Costs'!$E$73=0,'Op Costs'!$L$73,('Op Costs'!$E$73/'Summary-Total'!$C$8))) -> 0 | P29: =IF('Summary-Total'!Q8=0,0,IF('Op Costs'!$E$73=0,'Op Costs'!$L$73,('Op Costs'!$E$73/'Summary-Total'!$C$8))) -> 0 | Q29: =IF('Summary-Total'!R8=0,0,IF('Op Costs'!$E$73=0,'Op Costs'!$L$73,('Op Costs'!$E$73/'Summary-Total'!$C$8))) -> 0 | R29: =IF('Summary-Total'!S8=0,0,IF('Op Costs'!$E$73=0,'Op Costs'!$L$73,('Op Costs'!$E$73/'Summary-Total'!$C$8))) -> 0 | S29: =IF('Summary-Total'!T8=0,0,IF('Op Costs'!$E$73=0,'Op Costs'!$L$73,('Op Costs'!$E$73/'Summary-Total'!$C$8))) -> 0 | T29: =IF('Summary-Total'!U8=0,0,IF('Op Costs'!$E$73=0,'Op Costs'!$L$73,('Op Costs'!$E$73/'Summary-Total'!$C$8))) -> 0
B30: Fuel | C30: =IF('Summary-Total'!$C$8=0,0,SUM(SUM('Summary-Total'!F16:U16)/'Summary-Total'!$C$8)) -> 29.88597179 | D30: 0.05354709391 | E30: =IF('Summary-Total'!F8=0,0,IF('Op Costs'!$E$77=0,VLOOKUP(Crop1!$C$3,'Op Costs'!$B$83:$D$100,3,FALSE),('Op Costs'!$E$77/'Summary-Total'!$C$8))) -> 29.80215874 | F30: =IF('Summary-Total'!G8=0,0,IF('Op Costs'!$E$77=0,VLOOKUP('2'!$C$3,'Op Costs'!$B$83:$D$100,3,FALSE),('Op Costs'!$E$77/'Summary-Total'!$C$8))) -> 29.96978484 | G30: =IF('Summary-Total'!H8=0,0,IF('Op Costs'!$E$77=0,VLOOKUP('3'!$C$3,'Op Costs'!$B$83:$D$100,3,FALSE),('Op Costs'!$E$77/'Summary-Total'!$C$8))) -> 0 | H30: =IF('Summary-Total'!I8=0,0,IF('Op Costs'!$E$77=0,VLOOKUP('4'!$C$3,'Op Costs'!$B$83:$D$100,3,FALSE),('Op Costs'!$E$77/'Summary-Total'!$C$8))) -> 0 | I30: =IF('Summary-Total'!J8=0,0,IF('Op Costs'!$E$77=0,VLOOKUP('5'!$C$3,'Op Costs'!$B$83:$D$100,3,FALSE),('Op Costs'!$E$77/'Summary-Total'!$C$8))) -> 0 | J30: =IF('Summary-Total'!K8=0,0,IF('Op Costs'!$E$77=0,VLOOKUP('6'!$C$3,'Op Costs'!$B$83:$D$100,3,FALSE),('Op Costs'!$E$77/'Summary-Total'!$C$8))) -> 0 | K30: =IF('Summary-Total'!L8=0,0,IF('Op Costs'!$E$77=0,VLOOKUP('7'!$C$3,'Op Costs'!$B$83:$D$100,3,FALSE),('Op Costs'!$E$77/'Summary-Total'!$C$8))) -> 0 | L30: =IF('Summary-Total'!M8=0,0,IF('Op Costs'!$E$77=0,VLOOKUP('8'!$C$3,'Op Costs'!$B$83:$D$100,3,FALSE),('Op Costs'!$E$77/'Summary-Total'!$C$8))) -> 0 | M30: =IF('Summary-Total'!N8=0,0,IF('Op Costs'!$E$77=0,VLOOKUP('9'!$C$3,'Op Costs'!$B$83:$D$100,3,FALSE),('Op Costs'!$E$77/'Summary-Total'!$C$8))) -> 0 | N30: =IF('Summary-Total'!O8=0,0,IF('Op Costs'!$E$77=0,VLOOKUP('10'!$C$3,'Op Costs'!$B$83:$D$100,3,FALSE),('Op Costs'!$E$77/'Summary-Total'!$C$8))) -> 0 | O30: =IF('Summary-Total'!P8=0,0,IF('Op Costs'!$E$77=0,VLOOKUP('11'!$C$3,'Op Costs'!$B$83:$D$100,3,FALSE),('Op Costs'!$E$77/'Summary-Total'!$C$8))) -> 0 | P30: =IF('Summary-Total'!Q8=0,0,IF('Op Costs'!$E$77=0,VLOOKUP('12'!$C$3,'Op Costs'!$B$83:$D$100,3,FALSE),('Op Costs'!$E$77/'Summary-Total'!$C$8))) -> 0 | Q30: =IF('Summary-Total'!R8=0,0,IF('Op Costs'!$E$77=0,VLOOKUP('13'!$C$3,'Op Costs'!$B$83:$D$100,3,FALSE),('Op Costs'!$E$77/'Summary-Total'!$C$8))) -> 0 | R30: =IF('Summary-Total'!S8=0,0,IF('Op Costs'!$E$77=0,VLOOKUP('14'!$C$3,'Op Costs'!$B$83:$D$100,3,FALSE),('Op Costs'!$E$77/'Summary-Total'!$C$8))) -> 0 | S30: =IF('Summary-Total'!T8=0,0,IF('Op Costs'!$E$77=0,VLOOKUP('15'!$C$3,'Op Costs'!$B$83:$D$100,3,FALSE),('Op Costs'!$E$77/'Summary-Total'!$C$8))) -> 0 | T30: =IF('Summary-Total'!U8=0,0,IF('Op Costs'!$E$77=0,VLOOKUP('16'!$C$3,'Op Costs'!$B$83:$D$100,3,FALSE),('Op Costs'!$E$77/'Summary-Total'!$C$8))) -> 0
B31: Drying Costs | C31: =IF('Summary-Total'!$C$8=0,0,SUM(SUM('Summary-Total'!F25:U25)/'Summary-Total'!$C$8)) -> 0 | D31: 0 | E31: =IF('Summary-Total'!F8=0,0,VLOOKUP(Crop1!$C$3,'Op Costs'!$B$37:$M$54,3,FALSE)) -> 0 | F31: =IF('Summary-Total'!G8=0,0,VLOOKUP('2'!$C$3,'Op Costs'!$B$37:$M$54,3,FALSE)) -> 0 | G31: =IF('Summary-Total'!H8=0,0,VLOOKUP('3'!$C$3,'Op Costs'!$B$37:$M$54,3,FALSE)) -> 0 | H31: =IF('Summary-Total'!I8=0,0,VLOOKUP('4'!$C$3,'Op Costs'!$B$37:$M$54,3,FALSE)) -> 0 | I31: =IF('Summary-Total'!J8=0,0,VLOOKUP('5'!$C$3,'Op Costs'!$B$37:$M$54,3,FALSE)) -> 0 | J31: =IF('Summary-Total'!K8=0,0,VLOOKUP('6'!$C$3,'Op Costs'!$B$37:$M$54,3,FALSE)) -> 0 | K31: =IF('Summary-Total'!L8=0,0,VLOOKUP('7'!$C$3,'Op Costs'!$B$37:$M$54,3,FALSE)) -> 0 | L31: =IF('Summary-Total'!M8=0,0,VLOOKUP('8'!$C$3,'Op Costs'!$B$37:$M$54,3,FALSE)) -> 0 | M31: =IF('Summary-Total'!N8=0,0,VLOOKUP('9'!$C$3,'Op Costs'!$B$37:$M$54,3,FALSE)) -> 0 | N31: =IF('Summary-Total'!O8=0,0,VLOOKUP('10'!$C$3,'Op Costs'!$B$37:$M$54,3,FALSE)) -> 0 | O31: =IF('Summary-Total'!P8=0,0,VLOOKUP('11'!$C$3,'Op Costs'!$B$37:$M$54,3,FALSE)) -> 0 | P31: =IF('Summary-Total'!Q8=0,0,VLOOKUP('12'!$C$3,'Op Costs'!$B$37:$M$54,3,FALSE)) -> 0 | Q31: =IF('Summary-Total'!R8=0,0,VLOOKUP('13'!$C$3,'Op Costs'!$B$37:$M$54,3,FALSE)) -> 0 | R31: =IF('Summary-Total'!S8=0,0,VLOOKUP('14'!$C$3,'Op Costs'!$B$37:$M$54,3,FALSE)) -> 0 | S31: =IF('Summary-Total'!T8=0,0,VLOOKUP('15'!$C$3,'Op Costs'!$B$37:$M$54,3,FALSE)) -> 0 | T31: =IF('Summary-Total'!U8=0,0,VLOOKUP('16'!$C$3,'Op Costs'!$B$37:$M$54,3,FALSE)) -> 0
B32: Machinery Operating | C32: =IF('Summary-Total'!$C$8=0,0,SUM(SUM('Summary-Total'!F18:U18)/'Summary-Total'!$C$8)) -> 25 | D32: 0.04479283315 | E32: =IF('Summary-Total'!F8=0,0,IF('Op Costs'!$F$110+'Op Costs'!$F$111=0,'Op Costs'!$L$110,'Op Costs'!$F$112/'Summary-Total'!$C$8)) -> 25 | F32: =IF('Summary-Total'!G8=0,0,IF('Op Costs'!$F$110+'Op Costs'!$F$111=0,'Op Costs'!$L$110,'Op Costs'!$F$112/'Summary-Total'!$C$8)) -> 25 | G32: =IF('Summary-Total'!H8=0,0,IF('Op Costs'!$F$110+'Op Costs'!$F$111=0,'Op Costs'!$L$110,'Op Costs'!$F$112/'Summary-Total'!$C$8)) -> 0 | H32: =IF('Summary-Total'!I8=0,0,IF('Op Costs'!$F$110+'Op Costs'!$F$111=0,'Op Costs'!$L$110,'Op Costs'!$F$112/'Summary-Total'!$C$8)) -> 0 | I32: =IF('Summary-Total'!J8=0,0,IF('Op Costs'!$F$110+'Op Costs'!$F$111=0,'Op Costs'!$L$110,'Op Costs'!$F$112/'Summary-Total'!$C$8)) -> 0 | J32: =IF('Summary-Total'!K8=0,0,IF('Op Costs'!$F$110+'Op Costs'!$F$111=0,'Op Costs'!$L$110,'Op Costs'!$F$112/'Summary-Total'!$C$8)) -> 0 | K32: =IF('Summary-Total'!L8=0,0,IF('Op Costs'!$F$110+'Op Costs'!$F$111=0,'Op Costs'!$L$110,'Op Costs'!$F$112/'Summary-Total'!$C$8)) -> 0 | L32: =IF('Summary-Total'!M8=0,0,IF('Op Costs'!$F$110+'Op Costs'!$F$111=0,'Op Costs'!$L$110,'Op Costs'!$F$112/'Summary-Total'!$C$8)) -> 0 | M32: =IF('Summary-Total'!N8=0,0,IF('Op Costs'!$F$110+'Op Costs'!$F$111=0,'Op Costs'!$L$110,'Op Costs'!$F$112/'Summary-Total'!$C$8)) -> 0 | N32: =IF('Summary-Total'!O8=0,0,IF('Op Costs'!$F$110+'Op Costs'!$F$111=0,'Op Costs'!$L$110,'Op Costs'!$F$112/'Summary-Total'!$C$8)) -> 0 | O32: =IF('Summary-Total'!P8=0,0,IF('Op Costs'!$F$110+'Op Costs'!$F$111=0,'Op Costs'!$L$110,'Op Costs'!$F$112/'Summary-Total'!$C$8)) -> 0 | P32: =IF('Summary-Total'!Q8=0,0,IF('Op Costs'!$F$110+'Op Costs'!$F$111=0,'Op Costs'!$L$110,'Op Costs'!$F$112/'Summary-Total'!$C$8)) -> 0 | Q32: =IF('Summary-Total'!R8=0,0,IF('Op Costs'!$F$110+'Op Costs'!$F$111=0,'Op Costs'!$L$110,'Op Costs'!$F$112/'Summary-Total'!$C$8)) -> 0 | R32: =IF('Summary-Total'!S8=0,0,IF('Op Costs'!$F$110+'Op Costs'!$F$111=0,'Op Costs'!$L$110,'Op Costs'!$F$112/'Summary-Total'!$C$8)) -> 0 | S32: =IF('Summary-Total'!T8=0,0,IF('Op Costs'!$F$110+'Op Costs'!$F$111=0,'Op Costs'!$L$110,'Op Costs'!$F$112/'Summary-Total'!$C$8)) -> 0 | T32: =IF('Summary-Total'!U8=0,0,IF('Op Costs'!$F$110+'Op Costs'!$F$111=0,'Op Costs'!$L$110,'Op Costs'!$F$112/'Summary-Total'!$C$8)) -> 0
B33: Machinery Rental and Custom | C33: =IF('Summary-Total'!$C$8=0,0,SUM(SUM('Summary-Total'!F21:U21)/'Summary-Total'!$C$8)) -> 0 | D33: 0 | E33: =IF('Summary-Total'!F8=0,0,VLOOKUP(Crop1!$C$3,'Op Costs'!$B$37:$M$54,12,FALSE)) -> 0 | F33: =IF('Summary-Total'!G8=0,0,VLOOKUP('2'!$C$3,'Op Costs'!$B$37:$M$54,12,FALSE)) -> 0 | G33: =IF('Summary-Total'!H8=0,0,VLOOKUP('3'!$C$3,'Op Costs'!$B$37:$M$54,12,FALSE)) -> 0 | H33: =IF('Summary-Total'!I8=0,0,VLOOKUP('4'!$C$3,'Op Costs'!$B$37:$M$54,12,FALSE)) -> 0 | I33: =IF('Summary-Total'!J8=0,0,VLOOKUP('5'!$C$3,'Op Costs'!$B$37:$M$54,12,FALSE)) -> 0 | J33: =IF('Summary-Total'!K8=0,0,VLOOKUP('6'!$C$3,'Op Costs'!$B$37:$M$54,12,FALSE)) -> 0 | K33: =IF('Summary-Total'!L8=0,0,VLOOKUP('7'!$C$3,'Op Costs'!$B$37:$M$54,12,FALSE)) -> 0 | L33: =IF('Summary-Total'!M8=0,0,VLOOKUP('8'!$C$3,'Op Costs'!$B$37:$M$54,12,FALSE)) -> 0 | M33: =IF('Summary-Total'!N8=0,0,VLOOKUP('9'!$C$3,'Op Costs'!$B$37:$M$54,12,FALSE)) -> 0 | N33: =IF('Summary-Total'!O8=0,0,VLOOKUP('10'!$C$3,'Op Costs'!$B$37:$M$54,12,FALSE)) -> 0 | O33: =IF('Summary-Total'!P8=0,0,VLOOKUP('11'!$C$3,'Op Costs'!$B$37:$M$54,12,FALSE)) -> 0 | P33: =IF('Summary-Total'!Q8=0,0,VLOOKUP('12'!$C$3,'Op Costs'!$B$37:$M$54,12,FALSE)) -> 0 | Q33: =IF('Summary-Total'!R8=0,0,VLOOKUP('13'!$C$3,'Op Costs'!$B$37:$M$54,12,FALSE)) -> 0 | R33: =IF('Summary-Total'!S8=0,0,VLOOKUP('14'!$C$3,'Op Costs'!$B$37:$M$54,12,FALSE)) -> 0 | S33: =IF('Summary-Total'!T8=0,0,VLOOKUP('15'!$C$3,'Op Costs'!$B$37:$M$54,12,FALSE)) -> 0 | T33: =IF('Summary-Total'!U8=0,0,VLOOKUP('16'!$C$3,'Op Costs'!$B$37:$M$54,12,FALSE)) -> 0
C34: =SUM(C28:C33) -> 85.28597179 | D34: =IF($C$14=0,0,SUM(C34/$C$14)) -> 0.1528080122 | E34: =SUM(E28:E33) -> 85.20215874 | F34: 85.36978484 | G34: 0 | H34: 0 | I34: 0 | J34: 0 | K34: 0 | L34: 0 | M34: 0 | N34: 0 | O34: 0 | P34: 0 | Q34: 0 | R34: 0 | S34: 0 | T34: 0
A36: = | B36: Contribution Margin (CM) | C36: =SUM(C25-C34) -> 209.2259759 | D36: =IF($C$14=0,0,SUM(C36/$C$14)) -> 0.3748729692 | E36: =SUM(E25-E34) -> 207.9322388 | F36: 210.5197131 | G36: 0 | H36: 0 | I36: 0 | J36: 0 | K36: 0 | L36: 0 | M36: 0 | N36: 0 | O36: 0 | P36: 0 | Q36: 0 | R36: 0 | S36: 0 | T36: 0
A38: =" -" -> - | B38: Operating Overheads (OH)
B39: Other Costs | C39: =IF('Summary-Total'!$C$8=0,0,SUM(SUM('Summary-Total'!F23:U23)/'Summary-Total'!$C$8)) -> 17.75 | D39: =IF($C$14=0,0,SUM(C39/$C$14)) -> 0.03180291153 | E39: =IF('Summary-Total'!F8=0,0,IF('Op Costs'!$F$131=0,'Op Costs'!$L$116,('Op Costs'!$F$131/'Summary-Total'!$C$8))) -> 17.75 | F39: =IF('Summary-Total'!G8=0,0,IF('Op Costs'!$F$131=0,'Op Costs'!$L$116,('Op Costs'!$F$131/'Summary-Total'!$C$8))) -> 17.75 | G39: =IF('Summary-Total'!H8=0,0,IF('Op Costs'!$F$131=0,'Op Costs'!$L$116,('Op Costs'!$F$131/'Summary-Total'!$C$8))) -> 0 | H39: =IF('Summary-Total'!I8=0,0,IF('Op Costs'!$F$131=0,'Op Costs'!$L$116,('Op Costs'!$F$131/'Summary-Total'!$C$8))) -> 0 | I39: =IF('Summary-Total'!J8=0,0,IF('Op Costs'!$F$131=0,'Op Costs'!$L$116,('Op Costs'!$F$131/'Summary-Total'!$C$8))) -> 0 | J39: =IF('Summary-Total'!K8=0,0,IF('Op Costs'!$F$131=0,'Op Costs'!$L$116,('Op Costs'!$F$131/'Summary-Total'!$C$8))) -> 0 | K39: =IF('Summary-Total'!L8=0,0,IF('Op Costs'!$F$131=0,'Op Costs'!$L$116,('Op Costs'!$F$131/'Summary-Total'!$C$8))) -> 0 | L39: =IF('Summary-Total'!M8=0,0,IF('Op Costs'!$F$131=0,'Op Costs'!$L$116,('Op Costs'!$F$131/'Summary-Total'!$C$8))) -> 0 | M39: =IF('Summary-Total'!N8=0,0,IF('Op Costs'!$F$131=0,'Op Costs'!$L$116,('Op Costs'!$F$131/'Summary-Total'!$C$8))) -> 0 | N39: =IF('Summary-Total'!O8=0,0,IF('Op Costs'!$F$131=0,'Op Costs'!$L$116,('Op Costs'!$F$131/'Summary-Total'!$C$8))) -> 0 | O39: =IF('Summary-Total'!P8=0,0,IF('Op Costs'!$F$131=0,'Op Costs'!$L$116,('Op Costs'!$F$131/'Summary-Total'!$C$8))) -> 0 | P39: =IF('Summary-Total'!Q8=0,0,IF('Op Costs'!$F$131=0,'Op Costs'!$L$116,('Op Costs'!$F$131/'Summary-Total'!$C$8))) -> 0 | Q39: =IF('Summary-Total'!R8=0,0,IF('Op Costs'!$F$131=0,'Op Costs'!$L$116,('Op Costs'!$F$131/'Summary-Total'!$C$8))) -> 0 | R39: =IF('Summary-Total'!S8=0,0,IF('Op Costs'!$F$131=0,'Op Costs'!$L$116,('Op Costs'!$F$131/'Summary-Total'!$C$8))) -> 0 | S39: =IF('Summary-Total'!T8=0,0,IF('Op Costs'!$F$131=0,'Op Costs'!$L$116,('Op Costs'!$F$131/'Summary-Total'!$C$8))) -> 0 | T39: =IF('Summary-Total'!U8=0,0,IF('Op Costs'!$F$131=0,'Op Costs'!$L$116,('Op Costs'!$F$131/'Summary-Total'!$C$8))) -> 0
A41: = | B41: Earnings Before Interest Taxes Depreciation Amortization Rent (EBITDAR) or Operating Income
B42: EBITDAR | C42: =SUM(C36-C39) -> 191.4759759 | D42: =IF($C$14=0,0,SUM(C42/$C$14)) -> 0.3430700577 | E42: =SUM(E36-E39) -> 190.1822388 | F42: 192.7697131 | G42: 0 | H42: 0 | I42: 0 | J42: 0 | K42: 0 | L42: 0 | M42: 0 | N42: 0 | O42: 0 | P42: 0 | Q42: 0 | R42: 0 | S42: 0 | T42: 0
A44: =" -" -> - | B44: Cost of Capital (CoC) or Depreciation/Amortization/Lease/Rent
B45: Machinery Lease | C45: =IF('Summary-Total'!$C$8=0,0,SUM(SUM('Summary-Total'!F19:U19)/'Summary-Total'!$C$8)) -> 0 | D45: =IF($C$14=0,0,SUM(C45/$C$14)) -> 0 | E45: =IF('Summary-Total'!F8=0,0,'Land & Equip'!$J$63/'Summary-Total'!$C$8) -> 0 | F45: =IF('Summary-Total'!G8=0,0,'Land & Equip'!$J$63/'Summary-Total'!$C$8) -> 0 | G45: =IF('Summary-Total'!H8=0,0,'Land & Equip'!$J$63/'Summary-Total'!$C$8) -> 0 | H45: =IF('Summary-Total'!I8=0,0,'Land & Equip'!$J$63/'Summary-Total'!$C$8) -> 0 | I45: =IF('Summary-Total'!J8=0,0,'Land & Equip'!$J$63/'Summary-Total'!$C$8) -> 0 | J45: =IF('Summary-Total'!K8=0,0,'Land & Equip'!$J$63/'Summary-Total'!$C$8) -> 0 | K45: =IF('Summary-Total'!L8=0,0,'Land & Equip'!$J$63/'Summary-Total'!$C$8) -> 0 | L45: =IF('Summary-Total'!M8=0,0,'Land & Equip'!$J$63/'Summary-Total'!$C$8) -> 0 | M45: =IF('Summary-Total'!N8=0,0,'Land & Equip'!$J$63/'Summary-Total'!$C$8) -> 0 | N45: =IF('Summary-Total'!O8=0,0,'Land & Equip'!$J$63/'Summary-Total'!$C$8) -> 0 | O45: =IF('Summary-Total'!P8=0,0,'Land & Equip'!$J$63/'Summary-Total'!$C$8) -> 0 | P45: =IF('Summary-Total'!Q8=0,0,'Land & Equip'!$J$63/'Summary-Total'!$C$8) -> 0 | Q45: =IF('Summary-Total'!R8=0,0,'Land & Equip'!$J$63/'Summary-Total'!$C$8) -> 0 | R45: =IF('Summary-Total'!S8=0,0,'Land & Equip'!$J$63/'Summary-Total'!$C$8) -> 0 | S45: =IF('Summary-Total'!T8=0,0,'Land & Equip'!$J$63/'Summary-Total'!$C$8) -> 0 | T45: =IF('Summary-Total'!U8=0,0,'Land & Equip'!$J$63/'Summary-Total'!$C$8) -> 0
B46: Machinery Depreciation | C46: =IF('Summary-Total'!$C$8=0,0,SUM(SUM('SOS-Total'!C48)/'Summary-Total'!$C$8)) -> 0 | D46: 0 | E46: =IF('Summary-Total'!F8=0,0,'Land & Equip'!$E$78/'Summary-Total'!$C$8) -> 0 | F46: =IF('Summary-Total'!G8=0,0,'Land & Equip'!$E$78/'Summary-Total'!$C$8) -> 0 | G46: =IF('Summary-Total'!H8=0,0,'Land & Equip'!$E$78/'Summary-Total'!$C$8) -> 0 | H46: =IF('Summary-Total'!I8=0,0,'Land & Equip'!$E$78/'Summary-Total'!$C$8) -> 0 | I46: =IF('Summary-Total'!J8=0,0,'Land & Equip'!$E$78/'Summary-Total'!$C$8) -> 0 | J46: =IF('Summary-Total'!K8=0,0,'Land & Equip'!$E$78/'Summary-Total'!$C$8) -> 0 | K46: =IF('Summary-Total'!L8=0,0,'Land & Equip'!$E$78/'Summary-Total'!$C$8) -> 0 | L46: =IF('Summary-Total'!M8=0,0,'Land & Equip'!$E$78/'Summary-Total'!$C$8) -> 0 | M46: =IF('Summary-Total'!N8=0,0,'Land & Equip'!$E$78/'Summary-Total'!$C$8) -> 0 | N46: =IF('Summary-Total'!O8=0,0,'Land & Equip'!$E$78/'Summary-Total'!$C$8) -> 0 | O46: =IF('Summary-Total'!P8=0,0,'Land & Equip'!$E$78/'Summary-Total'!$C$8) -> 0 | P46: =IF('Summary-Total'!Q8=0,0,'Land & Equip'!$E$78/'Summary-Total'!$C$8) -> 0 | Q46: =IF('Summary-Total'!R8=0,0,'Land & Equip'!$E$78/'Summary-Total'!$C$8) -> 0 | R46: =IF('Summary-Total'!S8=0,0,'Land & Equip'!$E$78/'Summary-Total'!$C$8) -> 0 | S46: =IF('Summary-Total'!T8=0,0,'Land & Equip'!$E$78/'Summary-Total'!$C$8) -> 0 | T46: =IF('Summary-Total'!U8=0,0,'Land & Equip'!$E$78/'Summary-Total'!$C$8) -> 0
B47: Machinery Amortization | C47: =IF('Summary-Total'!$C$8=0,0,SUM(SUM('SOS-Total'!C49)/'Summary-Total'!$C$8)) ->  | E47: =IF('Summary-Total'!F8=0,0,'Land & Equip'!$E$73/'Summary-Total'!$C$8) ->  | F47: =IF('Summary-Total'!G8=0,0,'Land & Equip'!$E$73/'Summary-Total'!$C$8) ->  | G47: =IF('Summary-Total'!H8=0,0,'Land & Equip'!$E$73/'Summary-Total'!$C$8) -> 0 | H47: =IF('Summary-Total'!I8=0,0,'Land & Equip'!$E$73/'Summary-Total'!$C$8) -> 0 | I47: =IF('Summary-Total'!J8=0,0,'Land & Equip'!$E$73/'Summary-Total'!$C$8) -> 0 | J47: =IF('Summary-Total'!K8=0,0,'Land & Equip'!$E$73/'Summary-Total'!$C$8) -> 0 | K47: =IF('Summary-Total'!L8=0,0,'Land & Equip'!$E$73/'Summary-Total'!$C$8) -> 0 | L47: =IF('Summary-Total'!M8=0,0,'Land & Equip'!$E$73/'Summary-Total'!$C$8) -> 0 | M47: =IF('Summary-Total'!N8=0,0,'Land & Equip'!$E$73/'Summary-Total'!$C$8) -> 0 | N47: =IF('Summary-Total'!O8=0,0,'Land & Equip'!$E$73/'Summary-Total'!$C$8) -> 0 | O47: =IF('Summary-Total'!P8=0,0,'Land & Equip'!$E$73/'Summary-Total'!$C$8) -> 0 | P47: =IF('Summary-Total'!Q8=0,0,'Land & Equip'!$E$73/'Summary-Total'!$C$8) -> 0 | Q47: =IF('Summary-Total'!R8=0,0,'Land & Equip'!$E$73/'Summary-Total'!$C$8) -> 0 | R47: =IF('Summary-Total'!S8=0,0,'Land & Equip'!$E$73/'Summary-Total'!$C$8) -> 0 | S47: =IF('Summary-Total'!T8=0,0,'Land & Equip'!$E$73/'Summary-Total'!$C$8) -> 0 | T47: =IF('Summary-Total'!U8=0,0,'Land & Equip'!$E$73/'Summary-Total'!$C$8) -> 0
B48: Machinery Opportunity Cost | C48: =IF('Summary-Total'!$C$8=0,0,SUM(SUM('SOS-Total'!C50)/'Summary-Total'!$C$8)) -> 0 | D48: 0 | E48: =IF('Summary-Total'!F8=0,0,'Land & Equip'!$E$79/'Summary-Total'!$C$8) -> 0 | F48: =IF('Summary-Total'!G8=0,0,'Land & Equip'!$E$79/'Summary-Total'!$C$8) -> 0 | G48: =IF('Summary-Total'!H8=0,0,'Land & Equip'!$E$79/'Summary-Total'!$C$8) -> 0 | H48: =IF('Summary-Total'!I8=0,0,'Land & Equip'!$E$79/'Summary-Total'!$C$8) -> 0 | I48: =IF('Summary-Total'!J8=0,0,'Land & Equip'!$E$79/'Summary-Total'!$C$8) -> 0 | J48: =IF('Summary-Total'!K8=0,0,'Land & Equip'!$E$79/'Summary-Total'!$C$8) -> 0 | K48: =IF('Summary-Total'!L8=0,0,'Land & Equip'!$E$79/'Summary-Total'!$C$8) -> 0 | L48: =IF('Summary-Total'!M8=0,0,'Land & Equip'!$E$79/'Summary-Total'!$C$8) -> 0 | M48: =IF('Summary-Total'!N8=0,0,'Land & Equip'!$E$79/'Summary-Total'!$C$8) -> 0 | N48: =IF('Summary-Total'!O8=0,0,'Land & Equip'!$E$79/'Summary-Total'!$C$8) -> 0 | O48: =IF('Summary-Total'!P8=0,0,'Land & Equip'!$E$79/'Summary-Total'!$C$8) -> 0 | P48: =IF('Summary-Total'!Q8=0,0,'Land & Equip'!$E$79/'Summary-Total'!$C$8) -> 0 | Q48: =IF('Summary-Total'!R8=0,0,'Land & Equip'!$E$79/'Summary-Total'!$C$8) -> 0 | R48: =IF('Summary-Total'!S8=0,0,'Land & Equip'!$E$79/'Summary-Total'!$C$8) -> 0 | S48: =IF('Summary-Total'!T8=0,0,'Land & Equip'!$E$79/'Summary-Total'!$C$8) -> 0 | T48: =IF('Summary-Total'!U8=0,0,'Land & Equip'!$E$79/'Summary-Total'!$C$8) -> 0
B49: Land Amortization | C49: =IF('Summary-Total'!$C$8=0,0,SUM(SUM('SOS-Total'!C51)/'Summary-Total'!$C$8)) ->  | E49: =IF('Summary-Total'!F8=0,0,'Land & Equip'!$E$36/'Summary-Total'!$C$8) ->  | F49: =IF('Summary-Total'!G8=0,0,'Land & Equip'!$E$36/'Summary-Total'!$C$8) ->  | G49: =IF('Summary-Total'!H8=0,0,'Land & Equip'!$E$36/'Summary-Total'!$C$8) -> 0 | H49: =IF('Summary-Total'!I8=0,0,'Land & Equip'!$E$36/'Summary-Total'!$C$8) -> 0 | I49: =IF('Summary-Total'!J8=0,0,'Land & Equip'!$E$36/'Summary-Total'!$C$8) -> 0 | J49: =IF('Summary-Total'!K8=0,0,'Land & Equip'!$E$36/'Summary-Total'!$C$8) -> 0 | K49: =IF('Summary-Total'!L8=0,0,'Land & Equip'!$E$36/'Summary-Total'!$C$8) -> 0 | L49: =IF('Summary-Total'!M8=0,0,'Land & Equip'!$E$36/'Summary-Total'!$C$8) -> 0 | M49: =IF('Summary-Total'!N8=0,0,'Land & Equip'!$E$36/'Summary-Total'!$C$8) -> 0 | N49: =IF('Summary-Total'!O8=0,0,'Land & Equip'!$E$36/'Summary-Total'!$C$8) -> 0 | O49: =IF('Summary-Total'!P8=0,0,'Land & Equip'!$E$36/'Summary-Total'!$C$8) -> 0 | P49: =IF('Summary-Total'!Q8=0,0,'Land & Equip'!$E$36/'Summary-Total'!$C$8) -> 0 | Q49: =IF('Summary-Total'!R8=0,0,'Land & Equip'!$E$36/'Summary-Total'!$C$8) -> 0 | R49: =IF('Summary-Total'!S8=0,0,'Land & Equip'!$E$36/'Summary-Total'!$C$8) -> 0 | S49: =IF('Summary-Total'!T8=0,0,'Land & Equip'!$E$36/'Summary-Total'!$C$8) -> 0 | T49: =IF('Summary-Total'!U8=0,0,'Land & Equip'!$E$36/'Summary-Total'!$C$8) -> 0
B50: Land Opportunity Cost | C50: =IF('Summary-Total'!$C$8=0,0,SUM(SUM('SOS-Total'!C52)/'Summary-Total'!$C$8)) -> 0 | D50: 0 | E50: =IF('Summary-Total'!F8=0,0,'Land & Equip'!$E$39/'Summary-Total'!$C$8) -> 0 | F50: =IF('Summary-Total'!G8=0,0,'Land & Equip'!$E$39/'Summary-Total'!$C$8) -> 0 | G50: =IF('Summary-Total'!H8=0,0,'Land & Equip'!$E$39/'Summary-Total'!$C$8) -> 0 | H50: =IF('Summary-Total'!I8=0,0,'Land & Equip'!$E$39/'Summary-Total'!$C$8) -> 0 | I50: =IF('Summary-Total'!J8=0,0,'Land & Equip'!$E$39/'Summary-Total'!$C$8) -> 0 | J50: =IF('Summary-Total'!K8=0,0,'Land & Equip'!$E$39/'Summary-Total'!$C$8) -> 0 | K50: =IF('Summary-Total'!L8=0,0,'Land & Equip'!$E$39/'Summary-Total'!$C$8) -> 0 | L50: =IF('Summary-Total'!M8=0,0,'Land & Equip'!$E$39/'Summary-Total'!$C$8) -> 0 | M50: =IF('Summary-Total'!N8=0,0,'Land & Equip'!$E$39/'Summary-Total'!$C$8) -> 0 | N50: =IF('Summary-Total'!O8=0,0,'Land & Equip'!$E$39/'Summary-Total'!$C$8) -> 0 | O50: =IF('Summary-Total'!P8=0,0,'Land & Equip'!$E$39/'Summary-Total'!$C$8) -> 0 | P50: =IF('Summary-Total'!Q8=0,0,'Land & Equip'!$E$39/'Summary-Total'!$C$8) -> 0 | Q50: =IF('Summary-Total'!R8=0,0,'Land & Equip'!$E$39/'Summary-Total'!$C$8) -> 0 | R50: =IF('Summary-Total'!S8=0,0,'Land & Equip'!$E$39/'Summary-Total'!$C$8) -> 0 | S50: =IF('Summary-Total'!T8=0,0,'Land & Equip'!$E$39/'Summary-Total'!$C$8) -> 0 | T50: =IF('Summary-Total'!U8=0,0,'Land & Equip'!$E$39/'Summary-Total'!$C$8) -> 0
B51: Land Taxes | C51: =IF('Summary-Total'!$C$8=0,0,SUM(SUM('Summary-Total'!F24:U24)/'Summary-Total'!$C$8)) -> 0 | D51: 0 | E51: =IF('Summary-Total'!F8=0,0,IF('Op Costs'!$E$135=0,'Op Costs'!$L$135*('Land & Equip'!$C$26)/'Summary-Total'!$C$8,('Op Costs'!$E$135/'Summary-Total'!$C$8))) -> 0 | F51: =IF('Summary-Total'!G8=0,0,IF('Op Costs'!$E$135=0,'Op Costs'!$L$135*('Land & Equip'!$C$26)/'Summary-Total'!$C$8,('Op Costs'!$E$135/'Summary-Total'!$C$8))) -> 0 | G51: =IF('Summary-Total'!H8=0,0,IF('Op Costs'!$E$135=0,'Op Costs'!$L$135*('Land & Equip'!$C$26)/'Summary-Total'!$C$8,('Op Costs'!$E$135/'Summary-Total'!$C$8))) -> 0 | H51: =IF('Summary-Total'!I8=0,0,IF('Op Costs'!$E$135=0,'Op Costs'!$L$135*('Land & Equip'!$C$26)/'Summary-Total'!$C$8,('Op Costs'!$E$135/'Summary-Total'!$C$8))) -> 0 | I51: =IF('Summary-Total'!J8=0,0,IF('Op Costs'!$E$135=0,'Op Costs'!$L$135*('Land & Equip'!$C$26)/'Summary-Total'!$C$8,('Op Costs'!$E$135/'Summary-Total'!$C$8))) -> 0 | J51: =IF('Summary-Total'!K8=0,0,IF('Op Costs'!$E$135=0,'Op Costs'!$L$135*('Land & Equip'!$C$26)/'Summary-Total'!$C$8,('Op Costs'!$E$135/'Summary-Total'!$C$8))) -> 0 | K51: =IF('Summary-Total'!L8=0,0,IF('Op Costs'!$E$135=0,'Op Costs'!$L$135*('Land & Equip'!$C$26)/'Summary-Total'!$C$8,('Op Costs'!$E$135/'Summary-Total'!$C$8))) -> 0 | L51: =IF('Summary-Total'!M8=0,0,IF('Op Costs'!$E$135=0,'Op Costs'!$L$135*('Land & Equip'!$C$26)/'Summary-Total'!$C$8,('Op Costs'!$E$135/'Summary-Total'!$C$8))) -> 0 | M51: =IF('Summary-Total'!N8=0,0,IF('Op Costs'!$E$135=0,'Op Costs'!$L$135*('Land & Equip'!$C$26)/'Summary-Total'!$C$8,('Op Costs'!$E$135/'Summary-Total'!$C$8))) -> 0 | N51: =IF('Summary-Total'!O8=0,0,IF('Op Costs'!$E$135=0,'Op Costs'!$L$135*('Land & Equip'!$C$26)/'Summary-Total'!$C$8,('Op Costs'!$E$135/'Summary-Total'!$C$8))) -> 0 | O51: =IF('Summary-Total'!P8=0,0,IF('Op Costs'!$E$135=0,'Op Costs'!$L$135*('Land & Equip'!$C$26)/'Summary-Total'!$C$8,('Op Costs'!$E$135/'Summary-Total'!$C$8))) -> 0 | P51: =IF('Summary-Total'!Q8=0,0,IF('Op Costs'!$E$135=0,'Op Costs'!$L$135*('Land & Equip'!$C$26)/'Summary-Total'!$C$8,('Op Costs'!$E$135/'Summary-Total'!$C$8))) -> 0 | Q51: =IF('Summary-Total'!R8=0,0,IF('Op Costs'!$E$135=0,'Op Costs'!$L$135*('Land & Equip'!$C$26)/'Summary-Total'!$C$8,('Op Costs'!$E$135/'Summary-Total'!$C$8))) -> 0 | R51: =IF('Summary-Total'!S8=0,0,IF('Op Costs'!$E$135=0,'Op Costs'!$L$135*('Land & Equip'!$C$26)/'Summary-Total'!$C$8,('Op Costs'!$E$135/'Summary-Total'!$C$8))) -> 0 | S51: =IF('Summary-Total'!T8=0,0,IF('Op Costs'!$E$135=0,'Op Costs'!$L$135*('Land & Equip'!$C$26)/'Summary-Total'!$C$8,('Op Costs'!$E$135/'Summary-Total'!$C$8))) -> 0 | T51: =IF('Summary-Total'!U8=0,0,IF('Op Costs'!$E$135=0,'Op Costs'!$L$135*('Land & Equip'!$C$26)/'Summary-Total'!$C$8,('Op Costs'!$E$135/'Summary-Total'!$C$8))) -> 0
B52: Land Rental | C52: =IF('Summary-Total'!$C$8=0,0,SUM(SUM('Summary-Total'!F20:U20)/'Summary-Total'!$C$8)) -> 0 | D52: 0 | E52: =IF('Summary-Total'!F8=0,0,'Land & Equip'!$J$22/'Summary-Total'!$C$8) -> 0 | F52: =IF('Summary-Total'!G8=0,0,'Land & Equip'!$J$22/'Summary-Total'!$C$8) -> 0 | G52: =IF('Summary-Total'!H8=0,0,'Land & Equip'!$J$22/'Summary-Total'!$C$8) -> 0 | H52: =IF('Summary-Total'!I8=0,0,'Land & Equip'!$J$22/'Summary-Total'!$C$8) -> 0 | I52: =IF('Summary-Total'!J8=0,0,'Land & Equip'!$J$22/'Summary-Total'!$C$8) -> 0 | J52: =IF('Summary-Total'!K8=0,0,'Land & Equip'!$J$22/'Summary-Total'!$C$8) -> 0 | K52: =IF('Summary-Total'!L8=0,0,'Land & Equip'!$J$22/'Summary-Total'!$C$8) -> 0 | L52: =IF('Summary-Total'!M8=0,0,'Land & Equip'!$J$22/'Summary-Total'!$C$8) -> 0 | M52: =IF('Summary-Total'!N8=0,0,'Land & Equip'!$J$22/'Summary-Total'!$C$8) -> 0 | N52: =IF('Summary-Total'!O8=0,0,'Land & Equip'!$J$22/'Summary-Total'!$C$8) -> 0 | O52: =IF('Summary-Total'!P8=0,0,'Land & Equip'!$J$22/'Summary-Total'!$C$8) -> 0 | P52: =IF('Summary-Total'!Q8=0,0,'Land & Equip'!$J$22/'Summary-Total'!$C$8) -> 0 | Q52: =IF('Summary-Total'!R8=0,0,'Land & Equip'!$J$22/'Summary-Total'!$C$8) -> 0 | R52: =IF('Summary-Total'!S8=0,0,'Land & Equip'!$J$22/'Summary-Total'!$C$8) -> 0 | S52: =IF('Summary-Total'!T8=0,0,'Land & Equip'!$J$22/'Summary-Total'!$C$8) -> 0 | T52: =IF('Summary-Total'!U8=0,0,'Land & Equip'!$J$22/'Summary-Total'!$C$8) -> 0
C53: =SUM(C45:C52) ->  | D53: =IF($C$14=0,0,SUM(C53/$C$14)) ->  | E53: =SUM(E45:E52) ->  | G53: 0 | H53: 0 | I53: 0 | J53: 0 | K53: 0 | L53: 0 | M53: 0 | N53: 0 | O53: 0 | P53: 0 | Q53: 0 | R53: 0 | S53: 0 | T53: 0
A55: = | B55: Earnings Before Interest Taxes (EBIT)
C56: =SUM(C42-C53) ->  | D56: =IF($C$14=0,0,SUM(C56/$C$14)) ->  | E56: =SUM(E42-E53) ->  | G56: 0 | H56: 0 | I56: 0 | J56: 0 | K56: 0 | L56: 0 | M56: 0 | N56: 0 | O56: 0 | P56: 0 | Q56: 0 | R56: 0 | S56: 0 | T56: 0
A58: =" -" -> - | B58: Interest Expenses
B59: Interest on Operating | C59: =IF('Summary-Total'!$C$8=0,0,SUM(SUM('Summary-Total'!F26:U26)/'Summary-Total'!$C$8)) -> 12.81 | D59: =IF($C$14=0,0,SUM(C59/$C$14)) -> 0.0229518477 | E59: =IF('Summary-Total'!F8=0,0,IF('Op Costs'!$E$140=0,IF('Op Costs'!$L$140="Yes",'Summary-Total'!F26/'Summary-Total'!F8))) -> 14.29 | F59: =IF('Summary-Total'!G8=0,0,IF('Op Costs'!$E$140=0,IF('Op Costs'!$L$140="Yes",'Summary-Total'!G26/'Summary-Total'!G8))) -> 11.33 | G59: =IF('Summary-Total'!H8=0,0,IF('Op Costs'!$E$140=0,IF('Op Costs'!$L$140="Yes",'Summary-Total'!H26/'Summary-Total'!H8))) -> 0 | H59: =IF('Summary-Total'!I8=0,0,IF('Op Costs'!$E$140=0,IF('Op Costs'!$L$140="Yes",'Summary-Total'!I26/'Summary-Total'!I8))) -> 0 | I59: =IF('Summary-Total'!J8=0,0,IF('Op Costs'!$E$140=0,IF('Op Costs'!$L$140="Yes",'Summary-Total'!J26/'Summary-Total'!J8))) -> 0 | J59: =IF('Summary-Total'!K8=0,0,IF('Op Costs'!$E$140=0,IF('Op Costs'!$L$140="Yes",'Summary-Total'!K26/'Summary-Total'!K8))) -> 0 | K59: =IF('Summary-Total'!L8=0,0,IF('Op Costs'!$E$140=0,IF('Op Costs'!$L$140="Yes",'Summary-Total'!L26/'Summary-Total'!L8))) -> 0 | L59: =IF('Summary-Total'!M8=0,0,IF('Op Costs'!$E$140=0,IF('Op Costs'!$L$140="Yes",'Summary-Total'!M26/'Summary-Total'!M8))) -> 0 | M59: =IF('Summary-Total'!N8=0,0,IF('Op Costs'!$E$140=0,IF('Op Costs'!$L$140="Yes",'Summary-Total'!N26/'Summary-Total'!N8))) -> 0 | N59: =IF('Summary-Total'!O8=0,0,IF('Op Costs'!$E$140=0,IF('Op Costs'!$L$140="Yes",'Summary-Total'!O26/'Summary-Total'!O8))) -> 0 | O59: =IF('Summary-Total'!P8=0,0,IF('Op Costs'!$E$140=0,IF('Op Costs'!$L$140="Yes",'Summary-Total'!P26/'Summary-Total'!P8))) -> 0 | P59: =IF('Summary-Total'!Q8=0,0,IF('Op Costs'!$E$140=0,IF('Op Costs'!$L$140="Yes",'Summary-Total'!Q26/'Summary-Total'!Q8))) -> 0 | Q59: =IF('Summary-Total'!R8=0,0,IF('Op Costs'!$E$140=0,IF('Op Costs'!$L$140="Yes",'Summary-Total'!R26/'Summary-Total'!R8))) -> 0 | R59: =IF('Summary-Total'!S8=0,0,IF('Op Costs'!$E$140=0,IF('Op Costs'!$L$140="Yes",'Summary-Total'!S26/'Summary-Total'!S8))) -> 0 | S59: =IF('Summary-Total'!T8=0,0,IF('Op Costs'!$E$140=0,IF('Op Costs'!$L$140="Yes",'Summary-Total'!T26/'Summary-Total'!T8))) -> 0 | T59: =IF('Summary-Total'!U8=0,0,IF('Op Costs'!$E$140=0,IF('Op Costs'!$L$140="Yes",'Summary-Total'!U26/'Summary-Total'!U8))) -> 0
B60: Land Interest | C60: =IF('Summary-Total'!$C$8=0,0,SUM(SUM('SOS-Total'!C62)/'Summary-Total'!$C$8)) ->  | D60: =IF($C$14=0,0,SUM(C60/$C$14)) ->  | E60: =IF('Summary-Total'!F8=0,0,'Land & Equip'!$E$37/'Summary-Total'!$C$8) ->  | F60: =IF('Summary-Total'!G8=0,0,'Land & Equip'!$E$37/'Summary-Total'!$C$8) ->  | G60: =IF('Summary-Total'!H8=0,0,'Land & Equip'!$E$37/'Summary-Total'!$C$8) -> 0 | H60: =IF('Summary-Total'!I8=0,0,'Land & Equip'!$E$37/'Summary-Total'!$C$8) -> 0 | I60: =IF('Summary-Total'!J8=0,0,'Land & Equip'!$E$37/'Summary-Total'!$C$8) -> 0 | J60: =IF('Summary-Total'!K8=0,0,'Land & Equip'!$E$37/'Summary-Total'!$C$8) -> 0 | K60: =IF('Summary-Total'!L8=0,0,'Land & Equip'!$E$37/'Summary-Total'!$C$8) -> 0 | L60: =IF('Summary-Total'!M8=0,0,'Land & Equip'!$E$37/'Summary-Total'!$C$8) -> 0 | M60: =IF('Summary-Total'!N8=0,0,'Land & Equip'!$E$37/'Summary-Total'!$C$8) -> 0 | N60: =IF('Summary-Total'!O8=0,0,'Land & Equip'!$E$37/'Summary-Total'!$C$8) -> 0 | O60: =IF('Summary-Total'!P8=0,0,'Land & Equip'!$E$37/'Summary-Total'!$C$8) -> 0 | P60: =IF('Summary-Total'!Q8=0,0,'Land & Equip'!$E$37/'Summary-Total'!$C$8) -> 0 | Q60: =IF('Summary-Total'!R8=0,0,'Land & Equip'!$E$37/'Summary-Total'!$C$8) -> 0 | R60: =IF('Summary-Total'!S8=0,0,'Land & Equip'!$E$37/'Summary-Total'!$C$8) -> 0 | S60: =IF('Summary-Total'!T8=0,0,'Land & Equip'!$E$37/'Summary-Total'!$C$8) -> 0 | T60: =IF('Summary-Total'!U8=0,0,'Land & Equip'!$E$37/'Summary-Total'!$C$8) -> 0
B61: Machinery Interest | C61: =IF('Summary-Total'!$C$8=0,0,SUM(SUM('SOS-Total'!C63)/'Summary-Total'!$C$8)) ->  | D61: =IF($C$14=0,0,SUM(C61/$C$14)) ->  | E61: =IF('Summary-Total'!F8=0,0,'Land & Equip'!$E$74/'Summary-Total'!$C$8) ->  | F61: =IF('Summary-Total'!G8=0,0,'Land & Equip'!$E$74/'Summary-Total'!$C$8) ->  | G61: =IF('Summary-Total'!H8=0,0,'Land & Equip'!$E$74/'Summary-Total'!$C$8) -> 0 | H61: =IF('Summary-Total'!I8=0,0,'Land & Equip'!$E$74/'Summary-Total'!$C$8) -> 0 | I61: =IF('Summary-Total'!J8=0,0,'Land & Equip'!$E$74/'Summary-Total'!$C$8) -> 0 | J61: =IF('Summary-Total'!K8=0,0,'Land & Equip'!$E$74/'Summary-Total'!$C$8) -> 0 | K61: =IF('Summary-Total'!L8=0,0,'Land & Equip'!$E$74/'Summary-Total'!$C$8) -> 0 | L61: =IF('Summary-Total'!M8=0,0,'Land & Equip'!$E$74/'Summary-Total'!$C$8) -> 0 | M61: =IF('Summary-Total'!N8=0,0,'Land & Equip'!$E$74/'Summary-Total'!$C$8) -> 0 | N61: =IF('Summary-Total'!O8=0,0,'Land & Equip'!$E$74/'Summary-Total'!$C$8) -> 0 | O61: =IF('Summary-Total'!P8=0,0,'Land & Equip'!$E$74/'Summary-Total'!$C$8) -> 0 | P61: =IF('Summary-Total'!Q8=0,0,'Land & Equip'!$E$74/'Summary-Total'!$C$8) -> 0 | Q61: =IF('Summary-Total'!R8=0,0,'Land & Equip'!$E$74/'Summary-Total'!$C$8) -> 0 | R61: =IF('Summary-Total'!S8=0,0,'Land & Equip'!$E$74/'Summary-Total'!$C$8) -> 0 | S61: =IF('Summary-Total'!T8=0,0,'Land & Equip'!$E$74/'Summary-Total'!$C$8) -> 0 | T61: =IF('Summary-Total'!U8=0,0,'Land & Equip'!$E$74/'Summary-Total'!$C$8) -> 0
C62: =SUM(C59:C61) ->  | D62: =IF($C$14=0,0,SUM(C62/$C$14)) ->  | E62: =SUM(E59:E61) ->  | F62: =SUM(F59:F61) ->  | G62: 0 | H62: 0 | I62: 0 | J62: 0 | K62: 0 | L62: 0 | M62: 0 | N62: 0 | O62: 0 | P62: 0 | Q62: 0 | R62: 0 | S62: 0 | T62: 0
A64: = | B64: Earnings Before Taxes (EBT) | C64: =SUM(C56-C62) ->  | D64: =IF($C$14=0,0,SUM(C64/$C$14)) ->  | E64: =SUM(E56-E62) ->  | F64: =SUM(F56-F62) ->  | G64: 0 | H64: 0 | I64: 0 | J64: 0 | K64: 0 | L64: 0 | M64: 0 | N64: 0 | O64: 0 | P64: 0 | Q64: 0 | R64: 0 | S64: 0 | T64: 0
A67: Note: This budget is only a guide and is not intended as an in depth study of the cost of production of this industry. Interpretation and utilization of this information is the responsibility of the user.

Sheet Op Costs
A3: Crop & Hail Insurance Costs
H5: MASC Hail Ins. Coverage (default) Per Acre | L5: 200 | M5: =IF(F6<50%,IF(L5>0,"Error >0% Coverage Req'd",""),"") ->  | U5: 0
B6: MASC AgriInsurance Coverage level | F6: 0.8 | H6: Private Hail Ins. Coverage (default) Per Acre | L6: 0 | U6: 0.5 | AA6: 0
H7: Private Hail Ins. Coverage (default) Rate % | L7: 0.02 | U7: 0.7 | AA7: 0.02
H8: =IF(F6=90%,"Crop Coverage Plus Selected, see MASC for more details","") ->  | U8: 0.8
U9: 0.9
D10: AgriInsurance | I10: Hail Insurance | S10: Insurved value calc
D11: Probable | E11: Insured | F11: Insured | G11: Insured | H11: Premium | I11: MASC | J11: Private Hail | L11: Premium | T11: 2020 | U11: 0
A12: Crop | D12: Yield | E12: Price | F12: Yield | G12: $/Acre | H12: $/Acre | I12: Premium | J12: Coverage | K12: Rate % | L12: $/Acre | S12: ins. Bu | T12: ins.$ | U12: 200
B13: =Assumptions!B8 -> Canola | D13: 45 | E13: 16.44 | F13: =SUM(D13*$F$6) -> 36 | G13: =SUM(E13*F13) -> 591.84 | H13: 7.51 | I13: 9 | J13: =$L$6 -> 0 | K13: =IF(J13=0,0,$L$7) -> 0 | L13: =I13+(J13*K13) -> 9 | S13: =F13 -> 36 | T13: =E13 -> 16.44 | U13: 300 | W13: 44.65 | X13: 10.09 | Y13: 7.8 | Z13: 6.4 | AA13: =$L$6 -> 0 | AB13: =IF(AA13=0,0,$L$7) -> 0
B14: =Assumptions!B9 -> Wheat | D14: 65 | E14: 8.98 | F14: =SUM(D14*$F$6) -> 52 | G14: =SUM(E14*F14) -> 466.96 | H14: 7.83 | I14: 9 | J14: =$L$6 -> 0 | K14: =IF(J14=0,0,$L$7) -> 0 | L14: =I14+(J14*K14) -> 9 | S14: =F14 -> 52 | T14: =E14 -> 8.98 | U14: 400 | W14: 61.075 | X14: 6.4 | Y14: 6.7 | Z14: 6.4 | AA14: =$L$6 -> 0 | AB14: =IF(AA14=0,0,$L$7) -> 0
B15: =Assumptions!B10 -> Winter wheat | D15: 65 | E15: 7.76 | F15: =SUM(D15*$F$6) -> 52 | G15: =SUM(E15*F15) -> 403.52 | H15: 9.06 | I15: 9 | J15: =$L$6 -> 0 | K15: 0 | L15: 9 | S15: 52 | T15: 7.76 | W15: 67.275 | X15: 5.31 | Y15: 6.4 | Z15: 6.4 | AA15: =$L$6 -> 0 | AB15: 0
B16: =Assumptions!B11 -> Soybeans | D16: 40 | E16: 14.42 | F16: 32 | G16: 461.44 | H16: 20.21 | I16: 12 | J16: 0 | K16: 0 | L16: 12 | S16: 32 | T16: 14.42 | U16: 50 | W16: 32.2 | X16: 10.34 | Y16: 12.2 | Z16: 8.3 | AA16: 0 | AB16: 0
B17: =Assumptions!B12 -> Barley | D17: 80 | E17: 5.77 | F17: 64 | G17: 369.28 | H17: 11.67 | I17: 9 | J17: 0 | K17: 0 | L17: 9 | S17: 64 | T17: 5.77 | U17: 75 | W17: 73.7 | X17: 3.92 | Y17: 8.3 | Z17: 6.4 | AA17: 0 | AB17: 0
B18: =Assumptions!B13 -> Oats | D18: 120 | E18: 4.4 | F18: 96 | G18: 422.4 | H18: 20.09 | I18: 9 | J18: 0 | K18: 0 | L18: 9 | S18: 96 | T18: 4.4 | U18: 100 | W18: 116.525 | X18: 3.32 | Y18: 11.2 | Z18: 6.4 | AA18: 0 | AB18: 0
B19: =Assumptions!B14 -> Corn | D19: 140 | E19: 6.86 | F19: 112 | G19: 768.32 | H19: 36.78 | I19: 9 | J19: 0 | K19: 0 | L19: 9 | S19: 112 | T19: 6.86 | W19: 114 | X19: 4.83 | Y19: 21.3 | Z19: 6.4 | AA19: 0 | AB19: 0
B20: =Assumptions!B15 -> Navy Beans | D20: 1700 | E20: 0.5 | F20: 1360 | G20: 680 | H20: 34.93 | I20: 16 | J20: 0 | K20: 0 | L20: 16 | S20: 1360 | T20: 0.5 | W20: 1843.5 | X20: 0.32 | Y20: 19.4 | Z20: 11.2 | AA20: 0 | AB20: 0
B21: =Assumptions!B16 -> Flaxseed | D21: 25 | E21: 12.57 | F21: 20 | G21: 251.4 | H21: 10.99 | I21: 9 | J21: 0 | K21: 0 | L21: 9 | S21: 20 | T21: 12.57 | W21: 25.15 | X21: 12.95 | Y21: 10.4 | Z21: 6.4 | AA21: 0 | AB21: 0
B22: =Assumptions!B17 -> Sunflowers Confection | D22: 2000 | E22: 0.37 | F22: 1600 | G22: 592 | H22: 42.02 | I22: 9 | J22: 0 | K22: 0 | L22: 9 | S22: 1600 | T22: 0.37 | W22: 1841 | X22: 0.29 | Y22: 26.3 | Z22: 6.4 | AA22: 0 | AB22: 0
B23: =Assumptions!B18 -> Sunflowers Oil | D23: 2000 | E23: 0.24 | F23: 1600 | G23: 384 | H23: 15.37 | I23: 9 | J23: 0 | K23: 0 | L23: 9 | S23: 1600 | T23: 0.24 | W23: 1841 | X23: 0.24 | Y23: 13.9 | Z23: 6.4 | AA23: 0 | AB23: 0
B24: =Assumptions!B19 -> Peas | D24: 55 | E24: 9.39 | F24: 44 | G24: 413.16 | H24: 14.05 | I24: 18 | J24: 0 | K24: 0 | L24: 18 | S24: 44 | T24: 9.39 | W24: 43.1 | X24: 6.26 | Y24: 8.5 | Z24: 12.7 | AA24: 0 | AB24: 0
B25: =Assumptions!B20 -> Hybrid Fall Rye | D25: 80 | E25: 5.72 | F25: 64 | G25: 366.08 | H25: 15.28 | I25: 9 | J25: 0 | K25: 0 | L25: 9 | S25: 64 | T25: 5.72 | W25: 52.8 | X25: 5.21 | Y25: 11.7 | Z25: 6.4 | AA25: 0 | AB25: 0
B26: =Assumptions!B21 -> Canary Seed | D26: 1565 | E26: 0.36 | F26: 1252 | G26: 450.72 | H26: 31.68 | I26: 9 | J26: 0 | K26: 0 | L26: 9 | S26: 1252 | T26: 0.36 | W26: 1541 | X26: 0.25 | Y26: 18 | Z26: 6.4 | AA26: 0 | AB26: 0
B27: =Assumptions!B22 -> Lentils | D27: 1105 | E27: 0.3 | F27: 884 | G27: 265.2 | H27: 22.3 | I27: 12 | J27: 0 | K27: 0 | L27: 12 | S27: 884 | T27: 0.3 | W27: 1074 | X27: 0.19 | Y27: 13.2 | Z27: 8.3 | AA27: 0 | AB27: 0
B28: =Assumptions!B23 -> Buckwheat | D28: 13 | E28: 13.61 | F28: 10.4 | G28: 141.544 | H28: 18.9 | I28: 23 | J28: 0 | K28: 0 | L28: 23 | S28: 10.4 | T28: 13.61 | W28: 13.8 | X28: 13.06 | Y28: 15 | Z28: 15.9 | AA28: 0 | AB28: 0
B29: =Assumptions!B24 -> Hempseed | D29: 688 | E29: 0.67 | F29: 550.4 | G29: 368.768 | H29: 39.24 | I29: 18 | J29: 0 | K29: 0 | L29: 18 | S29: 550.4 | T29: 0.67 | W29: 688 | X29: 0.73 | Y29: 33.6 | Z29: 12.7 | AA29: 0 | AB29: 0
B30: =Assumptions!B25 -> Other | D30: 0 | E30: 1 | F30: 0 | G30: 0 | H30: 0 | I30: 0 | J30: =$L$6 -> 0 | K30: =IF(J30=0,0,$L$7) -> 0 | L30: 0 | W30: 0 | X30: 1 | Y30: 0 | Z30: 0 | AA30: =$L$6 -> 0 | AB30: =IF(AA30=0,0,$L$7) -> 0
A32: Rental & Custom Costs ($ per Acre)
D34: Drying Costs | E34: Rental and Custom
F35: Application
A36: Crop | E36: Seeding | F36: Fertilizer | G36: Granular | H36: Ground | I36: Aerial | J36: Swathing | K36: Harvest | L36: General | M36: Total | W36: 0 | X36: - | Y36: - | Z36: - | AA36: - | AB36: - | AC36: - | AD36: - | AE36: -
B37: =Assumptions!B8 -> Canola | D37: 0 | E37: - | F37: - | G37: - | H37: - | I37: - | J37: - | K37: - | L37: - | M37: =SUM(E37:L37) -> 0 | W37: 0 | X37: - | Y37: - | Z37: - | AA37: - | AB37: - | AC37: - | AD37: - | AE37: -
B38: =Assumptions!B9 -> Wheat | D38: 0 | E38: - | F38: - | G38: - | H38: - | I38: - | J38: - | K38: - | L38: - | M38: 0 | W38: 0 | X38: - | Y38: - | Z38: - | AA38: - | AB38: - | AC38: - | AD38: - | AE38: -
B39: =Assumptions!B10 -> Winter wheat | D39: 0 | E39: - | F39: - | G39: - | H39: - | I39: - | J39: - | K39: - | L39: - | M39: 0 | W39: 0 | X39: - | Y39: - | Z39: - | AA39: - | AB39: - | AC39: - | AD39: - | AE39: -
B40: =Assumptions!B11 -> Soybeans | D40: 0 | E40: - | F40: - | G40: - | H40: - | I40: - | J40: - | K40: - | L40: - | M40: 0 | W40: 0 | X40: - | Y40: - | Z40: - | AA40: - | AB40: - | AC40: - | AD40: - | AE40: -
B41: =Assumptions!B12 -> Barley | D41: 0 | E41: - | F41: - | G41: - | H41: - | I41: - | J41: - | K41: - | L41: - | M41: 0 | W41: 0 | X41: - | Y41: - | Z41: - | AA41: - | AB41: - | AC41: - | AD41: - | AE41: -
B42: =Assumptions!B13 -> Oats | D42: 0 | E42: - | F42: - | G42: - | H42: - | I42: - | J42: - | K42: - | L42: - | M42: 0 | W42: 35 | X42: - | Y42: - | Z42: - | AA42: - | AB42: - | AC42: - | AD42: - | AE42: -
B43: =Assumptions!B14 -> Corn | D43: 70 | E43: - | F43: - | G43: - | H43: - | I43: - | J43: - | K43: - | L43: - | M43: 0 | W43: 0 | X43: - | Y43: - | Z43: - | AA43: - | AB43: - | AC43: - | AD43: - | AE43: -
B44: =Assumptions!B15 -> Navy Beans | D44: 0 | E44: - | F44: - | G44: - | H44: - | I44: - | J44: - | K44: - | L44: - | M44: 0 | W44: 0 | X44: - | Y44: - | Z44: - | AA44: - | AB44: - | AC44: - | AD44: - | AE44: -
B45: =Assumptions!B16 -> Flaxseed | D45: 0 | E45: - | F45: - | G45: - | H45: - | I45: - | J45: - | K45: - | L45: - | M45: 0 | W45: 10 | X45: - | Y45: - | Z45: - | AA45: - | AB45: - | AC45: - | AD45: - | AE45: -
B46: =Assumptions!B17 -> Sunflowers Confection | D46: 10 | E46: - | F46: - | G46: - | H46: - | I46: - | J46: - | K46: - | L46: - | M46: 0 | W46: 10 | X46: - | Y46: - | Z46: - | AA46: - | AB46: - | AC46: - | AD46: - | AE46: -
B47: =Assumptions!B18 -> Sunflowers Oil | D47: 10 | E47: - | F47: - | G47: - | H47: - | I47: - | J47: - | K47: - | L47: - | M47: 0 | W47: 0 | X47: - | Y47: - | Z47: - | AA47: - | AB47: - | AC47: - | AD47: - | AE47: -
B48: =Assumptions!B19 -> Peas | D48: 0 | E48: - | F48: - | G48: - | H48: - | I48: - | J48: - | K48: - | L48: - | M48: 0 | W48: 0 | X48: - | Y48: - | Z48: - | AA48: - | AB48: - | AC48: - | AD48: - | AE48: -
B49: =Assumptions!B20 -> Hybrid Fall Rye | D49: 0 | E49: - | F49: - | G49: - | H49: - | I49: - | J49: - | K49: - | L49: - | M49: 0 | W49: 0 | X49: - | Y49: - | Z49: - | AA49: - | AB49: - | AC49: - | AD49: - | AE49: -
B50: =Assumptions!B21 -> Canary Seed | D50: 0 | E50: - | F50: - | G50: - | H50: - | I50: - | J50: - | K50: - | L50: - | M50: 0 | W50: 0 | X50: - | Y50: - | Z50: - | AA50: - | AB50: - | AC50: - | AD50: - | AE50: -
B51: =Assumptions!B22 -> Lentils | D51: 0 | E51: - | F51: - | G51: - | H51: - | I51: - | J51: - | K51: - | L51: - | M51: 0 | W51: 0 | X51: - | Y51: - | Z51: - | AA51: - | AB51: - | AC51: - | AD51: - | AE51: -
B52: =Assumptions!B23 -> Buckwheat | D52: 0 | E52: - | F52: - | G52: - | H52: - | I52: - | J52: - | K52: - | L52: - | M52: 0 | W52: 20 | X52: - | Y52: - | Z52: - | AA52: - | AB52: - | AC52: - | AD52: - | AE52: -
B53: =Assumptions!B24 -> Hempseed | D53: 0 | E53: - | F53: - | G53: - | H53: - | I53: - | J53: - | K53: - | L53: - | M53: 0 | W53: 0 | X53: - | Y53: - | Z53: - | AA53: - | AB53: - | AC53: - | AD53: - | AE53: -
B54: =Assumptions!B25 -> Other | D54: 0 | E54: - | F54: - | G54: - | H54: - | I54: - | J54: - | K54: - | L54: - | M54: 0
A56: Hired Labour
B58: Enter Total Annual Hired Labour Cost | E58: 0 | F58: OR | G58: Do you currently use hourly hired labour? | K58: Yes | M58: =IF(E58>0,"Annual Total Cost used","") -> 
G59: Enter Hired Labour (hours/acre) | J59: 0.2 | M59: & Labour rate ($/hour) | N59: 27
G61: (Note: This chart can be useful to help estimate labour hours per acre)
H63: # Hired | I63: # of | J63: Acres | K63: Hours
H64: Staff | I64: Months | J64: Farmed | K64: Per Acre
H65: 1 | I65: 4 | J65: 2500 | K65: =SUM(H65*I65*4*40)/$J$65 -> 0.256
H66: 0 | I66: 0 | K66: =SUM(H66*I66*4*40)/$J$65 -> 0
H67: 0 | I67: 0 | K67: =SUM(H67*I67*4*40)/$J$65 -> 0
H68: 0 | I68: 0 | K68: =SUM(H68*I68*4*40)/$J$65 -> 0
J69: Total | K69: =SUM(K65:K68) -> 0.256
A71: Owner Withdrawal
B73: Enter Total annual owner withdrawal | E73: 0 | G73: OR | H73: Enter Owner Withdrawl ($/acre) | L73: 25 | M73: =IF(E73>0,"Annual Total Cost used","") -> 
A75: Field Fuel Usage
B77: Enter Total Annual Farm Fuel Cost | E77: 0 | G77: OR | H77: Enter Fuel Cost and complete chart below. | M77: Fuel Cost ($/litre) | N77: 1.1
M78: =IF(E77>0,"Annual Total Cost used","") -> 
F79: Number of Field Operations & Litres Fuel Per Acre Per Operation | N79: Trucks L/acre
F80: cultivator or tandem disk | G80: high speed disk | H80: harrow or land roller | I80: air drill | J80: row planter | K80: SP sprayer | L80: swather | M80: combine & grain cart | N80: 3/4 ton pickup | O80: grain hauling
D81: Total | E81: Total
A82: Crop | D82: $/acre | E82: L/acre | F82: 2.9 | G82: 3.5 | H82: 1.3 | I82: 2.8 | J82: 1.9 | K82: 0.5 | L82: 1.8 | M82: 7 | N82: 2 | W82: 2.25 | X82: 3.5 | Y82: 0.75 | Z82: 2.5 | AA82: 1.3 | AB82: 0.42 | AC82: 1.13 | AD82: 5.54
B83: =B13 -> Canola | D83: =IF(E77>0,"",SUM($N$77*E83)) -> 29.80215874 | E83: =SUM(F83*$F$82)+(G83*$G$82)+(H83*$H$82)+(I83*$I$82)+(J83*$J$82)+(K83*$K$82)+(L83*$L$82)+(M83*$M$82)+N83+O83 -> 27.09287158 | F83: 2 | H83: 1 | I83: 1 | K83: 4 | L83: 1 | M83: 1 | N83: =$N$82 -> 2 | O83: =SUM((($K$103/$K$105)*4.546)/('Op Costs'!$K$106/Assumptions!E81))+((($K$104/$K$105)*4.546)/('Op Costs'!$K$106/Assumptions!E81)) -> 4.392871579 | W83: 1 | Y83: 1 | Z83: 1 | AB83: 3 | AC83: 1 | AD83: 1
B84: Wheat | D84: =IF(E77>0,"",SUM($N$77*E84)) -> 29.96978484 | E84: =SUM(F84*$F$82)+(G84*$G$82)+(H84*$H$82)+(I84*$I$82)+(J84*$J$82)+(K84*$K$82)+(L84*$L$82)+(M84*$M$82)+N84+O84 -> 27.24525895 | F84: 2 | H84: 1 | I84: 1 | K84: 4 | M84: 1 | N84: 2 | O84: =SUM((($K$103/$K$105)*4.546)/('Op Costs'!$K$106/Assumptions!E82))+((($K$104/$K$105)*4.546)/('Op Costs'!$K$106/Assumptions!E82)) -> 6.345258947 | W84: 1 | X84: 1 | Y84: 1 | Z84: 1 | AB84: 4 | AD84: 1
B85: Winter wheat | D85: =IF(E77>0,"",SUM($N$77*E85)) -> 29.96978484 | E85: 27.24525895 | F85: 2 | H85: 1 | I85: 1 | K85: 4 | M85: 1 | N85: 2 | O85: =SUM((($K$103/$K$105)*4.546)/('Op Costs'!$K$106/Assumptions!E83))+((($K$104/$K$105)*4.546)/('Op Costs'!$K$106/Assumptions!E83)) -> 6.345258947 | W85: 1 | X85: 1 | Y85: 1 | Z85: 1 | AB85: 4 | AD85: 1
B86: Soybeans | D86: =IF(E77>0,"",SUM($N$77*E86)) -> 26.18525221 | E86: 23.80477474 | F86: 2 | H86: 1 | I86: 1 | K86: 2 | M86: 1 | N86: 2 | O86: =SUM((($K$103/$K$105)*4.546)/('Op Costs'!$K$106/Assumptions!E84))+((($K$104/$K$105)*4.546)/('Op Costs'!$K$106/Assumptions!E84)) -> 3.904774737 | W86: 1 | Y86: 2 | Z86: 1 | AB86: 2 | AD86: 1
B87: Barley | D87: =IF(E77>0,"",SUM($N$77*E87)) -> 33.01050442 | E87: 30.00954947 | F87: 2 | H87: 1 | I87: 1 | K87: 3 | L87: 1 | M87: 1 | N87: 2 | O87: =SUM((($K$103/$K$105)*4.546)/('Op Costs'!$K$106/Assumptions!E85))+((($K$104/$K$105)*4.546)/('Op Costs'!$K$106/Assumptions!E85)) -> 7.809549474 | W87: 2 | Y87: 1 | Z87: 1 | AB87: 3 | AC87: 1 | AD87: 1
B88: Oats | D88: =IF(E77>0,"",SUM($N$77*E88)) -> 35.87575663 | E88: 32.61432421 | F88: 2 | H88: 1 | I88: 1 | K88: 4 | M88: 1 | N88: 2 | O88: =SUM((($K$103/$K$105)*4.546)/('Op Costs'!$K$106/Assumptions!E86))+((($K$104/$K$105)*4.546)/('Op Costs'!$K$106/Assumptions!E86)) -> 11.71432421 | W88: 2 | Y88: 1 | Z88: 1 | AB88: 3 | AC88: 1 | AD88: 1
B89: Corn | D89: =IF(E77>0,"",SUM($N$77*E89)) -> 39.78338274 | E89: 36.16671158 | F89: 2 | G89: 1 | H89: 1 | J89: 1 | K89: 2 | M89: 1 | N89: 2 | O89: =SUM((($K$103/$K$105)*4.546)/('Op Costs'!$K$106/Assumptions!E87))+((($K$104/$K$105)*4.546)/('Op Costs'!$K$106/Assumptions!E87)) -> 13.66671158 | W89: 1 | X89: 1 | Y89: 1 | AA89: 1 | AB89: 3 | AD89: 1
B90: Navy Beans | D90: =IF(E77>0,"",SUM($N$77*E90)) -> 29.52192876 | E90: 26.83811705 | F90: 1 | H90: 2 | J90: 1 | K90: 4 | L90: 1 | M90: 1 | N90: 2 | O90: =SUM((($K$103/$K$105)*4.546)/('Op Costs'!$K$106*25/Assumptions!E88))+((($K$104/$K$105)*4.546)/('Op Costs'!$K$106*25/Assumptions!E88)) -> 6.638117053 | W90: 1 | Y90: 2 | AA90: 1 | AB90: 3 | AC90: 1 | AD90: 1
B91: Flaxseed | D91: =IF(E77>0,"",SUM($N$77*E91)) -> 28.53453263 | E91: 25.94048421 | F91: 2 | H91: 2 | I91: 1 | K91: 3 | L91: 1 | M91: 1 | N91: 2 | O91: =SUM((($K$103/$K$105)*4.546)/('Op Costs'!$K$106/Assumptions!E89))+((($K$104/$K$105)*4.546)/('Op Costs'!$K$106/Assumptions!E89)) -> 2.440484211 | W91: 1 | Y91: 2 | Z91: 1 | AB91: 3 | AC91: 1 | AD91: 1
B92: Sunflowers Confection | D92: =IF(E77>0,"",SUM($N$77*E92)) -> 30.39145398 | E92: 27.62859453 | F92: 1 | G92: 1 | H92: 1 | J92: 1 | K92: 4 | M92: 1 | N92: 2 | O92: =SUM((($K$103/$K$105)*4.546)/('Op Costs'!$K$106*25/Assumptions!E90))+((($K$104/$K$105)*4.546)/('Op Costs'!$K$106*25/Assumptions!E90)) -> 7.028594526 | W92: 1 | X92: 1 | Y92: 1 | AA92: 1 | AB92: 3 | AD92: 1
B93: Sunflowers Oil | D93: =IF(E77>0,"",SUM($N$77*E93)) -> 30.70050442 | E93: 27.90954947 | F93: 1 | G93: 1 | H93: 1 | J93: 1 | K93: 3 | M93: 1 | N93: 2 | O93: =SUM((($K$103/$K$105)*4.546)/('Op Costs'!$K$106*25/Assumptions!E91))+((($K$104/$K$105)*4.546)/('Op Costs'!$K$106*25/Assumptions!E91)) -> 7.809549474 | W93: 1 | X93: 1 | Y93: 1 | AA93: 1 | AB93: 3 | AD93: 1
B94: Peas | D94: =IF(E77>0,"",SUM($N$77*E94)) -> 26.58597179 | E94: 24.16906526 | F94: 1 | H94: 2 | I94: 1 | K94: 3 | M94: 1 | N94: 2 | O94: =SUM((($K$103/$K$105)*4.546)/('Op Costs'!$K$106/Assumptions!E92))+((($K$104/$K$105)*4.546)/('Op Costs'!$K$106/Assumptions!E92)) -> 5.369065263 | W94: 1 | Y94: 2 | Z94: 1 | AB94: 2 | AD94: 1
B95: Hybrid Fall Rye | D95: =IF(E77>0,"",SUM($N$77*E95)) -> 30.48050442 | E95: 27.70954947 | F95: 2 | H95: 1 | I95: 1 | K95: 2 | M95: 1 | N95: 2 | O95: =SUM((($K$103/$K$105)*4.546)/('Op Costs'!$K$106/Assumptions!E93))+((($K$104/$K$105)*4.546)/('Op Costs'!$K$106/Assumptions!E93)) -> 7.809549474 | W95: 1 | Y95: 1 | Z95: 1 | AB95: 1 | AC95: 1 | AD95: 1
B96: Canary Seed | D96: =IF(E77>0,"",SUM($N$77*E96)) -> 27.88764093 | E96: 25.35240084 | F96: 1 | H96: 1 | I96: 1 | K96: 3 | L96: 1 | M96: 1 | N96: 2 | O96: =SUM((($K$103/$K$105)*4.546)/('Op Costs'!$K$106*25/Assumptions!E94))+((($K$104/$K$105)*4.546)/('Op Costs'!$K$106*25/Assumptions!E94)) -> 6.052400842 | W96: 1 | Y96: 1 | Z96: 1 | AB96: 3 | AC96: 1 | AD96: 1
B97: Lentils | D97: =IF(E77>0,"",SUM($N$77*E97)) -> 24.08215874 | E97: 21.89287158 | F97: 1 | H97: 1 | I97: 1 | K97: 3 | M97: 1 | N97: 2 | O97: =SUM((($K$103/$K$105)*4.546)/('Op Costs'!$K$106*25/Assumptions!E95))+((($K$104/$K$105)*4.546)/('Op Costs'!$K$106*25/Assumptions!E95)) -> 4.392871579 | W97: 1 | Y97: 1 | Z97: 1 | AB97: 3 | AD97: 1
B98: Buckwheat | D98: =IF(E77>0,"",SUM($N$77*E98)) -> 22.29071958 | E98: 20.26429053 | F98: 1 | H98: 1 | I98: 1 | K98: 2 | L98: 1 | M98: 1 | N98: 2 | O98: =SUM((($K$103/$K$105)*4.546)/('Op Costs'!$K$106/Assumptions!E96))+((($K$104/$K$105)*4.546)/('Op Costs'!$K$106/Assumptions!E96)) -> 1.464290526 | W98: 1 | Y98: 1 | Z98: 1 | AB98: 2 | AC98: 1 | AD98: 1
B99: Hempseed | D99: =IF(E77>0,"",SUM($N$77*E99)) -> 27.20143916 | E99: 24.72858105 | F99: 1 | G99: 1 | H99: 2 | I99: 1 | K99: 2 | M99: 1 | N99: 2 | O99: =SUM((($K$103/$K$105)*4.546)/('Op Costs'!$K$106*25/Assumptions!E97))+((($K$104/$K$105)*4.546)/('Op Costs'!$K$106*25/Assumptions!E97)) -> 2.928581053 | W99: 1 | X99: 1 | Y99: 2 | Z99: 1 | AB99: 2 | AD99: 1
B100: Other | D100: =IF(E78>0,"",SUM($N$77*E100)) -> 0.004295252211 | E100: =SUM(F100*$F$82)+(G100*$G$82)+(H100*$H$82)+(I100*$I$82)+(J100*$J$82)+(K100*$K$82)+(L100*$L$82)+(M100*$M$82)+N100+O100 -> 0.003904774737 | F100: 0 | G100: 0 | H100: 0 | I100: 0 | J100: 0 | K100: 0 | L100: 0 | M100: 0 | N100: 0 | O100: =IF(Assumptions!E98=0,0,SUM((($K$103/$K$105)*4.546)/('Op Costs'!$K$106*25/Assumptions!E98))+((($K$104/$K$105)*4.546)/('Op Costs'!$K$106*25/Assumptions!E98))) -> 0.003904774737 | W100: 0 | X100: 0 | Y100: 0 | Z100: 0 | AA100: 0 | AB100: 0 | AC100: 0 | AD100: 0
I102: Grain Hauling
J103: Distance to storage | K103: 6 | L103: miles roundtrip
J104: Distance to market | K104: 45 | L104: miles roundtrip
J105: Grain truck fuel use | K105: 5 | L105: Miles per Imp. Gallon
J106: Grain truck size | K106: 475 | L106: bushels
A108: Machinery Operating | U108: Yes
U109: No
B110: Enter Total Annual Maintenance & Repair Costs | F110: 0 | G110: OR | H110: Enter Machinery Operating ($/acre) | L110: 25 | M110: =IF(F112>0,"Annual Costs used","") -> 
B111: Enter Total Annual License & Insurance Costs | F111: 0 | H111: (assumes above includes license & insurance)
E112: Total | F112: =SUM(F110:F111) -> 0
A114: Other Operating Costs
B116: Enter Annual Hydro & Heating Fuel Costs | F116: 0 | G116: OR | H116: Enter Other Costs ($/acre) | L116: 17.75 | M116: =IF(F131>0,"Annual Costs used","") -> 
B117: Enter Annual Telephone & Cellphone Costs | F117: 0
B118: Enter Annual Legal & Accounting Costs | F118: 0
B119: Enter Annual General Insurance Costs | F119: 0
B120: Enter Annual Office Expense Costs | F120: 0
B121: Enter Annual Building Repair Expense Costs | F121: 0
B122: Enter Land Clearing & Drainage Expense Costs | F122: 0
B123: Enter Small Tools Costs | F123: 0
B124: Enter Freight and Shipping Costs | F124: 0
B125: Enter Storage and Drying Costs | F125: 0
B126: Enter Commission and Levies Costs | F126: 0
B127: Enter Agricultural Contract Work Costs | F127: 0
B128: Enter Soil Testing Costs | F128: 0
B129: (Other Costs Here) | F129: 0
B130: (Other Costs Here) | F130: 0
E131: Total | F131: =SUM(F116:F130) -> 0
A133: Land Taxes
B135: Enter Total Land Taxes | E135: 0 | G135: OR | H135: Enter Average Land Taxes ($/acre) | L135: 20 | M135: =IF(E135>0,"Annual Total Cost used","") -> 
A138: Operating Interest
B140: Enter Annual Operating Interest Cost | E140: 0 | G140: OR | H140: Do you currently use an operating Loan? | L140: Yes | M140: =IF(E140>0,"Annual Total Cost used","") -> 
H141: Interest Rate on Operating | L141: 0.075
H142: Operating Loan - Number of Months Used | L142: 6

Sheet Land & Equip
A3: Land Loans | G3: Land Rental
D5: Total Owned Acres | E5: 0 | I5: Total Rented Acres | J5: 0
A7: (Complete chart below OR Enter Average Payment) | G7: (Complete chart below OR Enter Average Payment)
D8: Enter Average Land P&I Payment ($/acre) | E8: 103.67 | I8: Enter Average Land Rental Payment ($/acre) | J8: 103.67
E10: Annual P&I | I10: Rent | J10: Annual
A11: Mortgage Name | C11: Acres | E11: Payment | G11: Landowner Name | H11: Acres | I11: $/acre | J11: Payment
B12: enter name here | C12: 0 | E12: 0 | G12: enter name here | H12: 0 | I12: 0 | J12: =SUM(H12*I12) -> 0
C13: 0 | E13: 0 | H13: 0 | I13: 0 | J13: 0
C14: 0 | E14: 0 | H14: 0 | I14: 0 | J14: 0
C15: 0 | E15: 0 | H15: 0 | I15: 0 | J15: 0
C16: 0 | E16: 0 | H16: 0 | I16: 0 | J16: 0
C17: 0 | E17: 0 | H17: 0 | I17: 0 | J17: 0
C18: 0 | E18: 0 | H18: 0 | I18: 0 | J18: =SUM(H18*I18) -> 0
C19: 0 | E19: 0 | H19: 0 | I19: 0 | J19: =SUM(H19*I19) -> 0
C20: 0 | E20: 0 | H20: 0 | I20: 0 | J20: 0
C21: 0 | E21: 0 | H21: 0 | I21: 0 | J21: 0
B22: Total | C22: =IF(SUM(E12:E21)>0,SUM(C12:C21),C26) -> 0 | E22: =IF(SUM(E12:E21)>0,SUM(E12:E21),E8*C26) -> 0 | G22: Total | H22: =IF(SUM(H12:H21)>0,SUM(H12:H21),J5) -> 0 | J22: =IF(SUM(J12:J21)>0,SUM(J12:J21),J8*J5) -> 0
D23: Average Per Owned Acre | E23: =IF(E5=0,0,IF(SUM(E22/E5)>0,SUM(E22/E5),E8*C26)) -> 0 | I23: Average Per Rented Acre | J23: =IF(J5=0,0,SUM(J22/H22)) -> 0
G24: =IF(SUM(H12:H21)>0,IF(SUM(H12:H21)<>J5,"ERROR "&TEXT(SUM(H12:H21),"#,###")&" Acres Entered are NOT EQUAL to Total Rented Acres",""),"") -> 
C25: Acres
B26: Total Owned Acres | C26: =E5 -> 0
B27: Rented Acres | C27: =H22 -> 0 | D27: =IF(OR(C28-'Summary-Total'!C8>40,C28-'Summary-Total'!C8<-40),"ERROR "&TEXT('Summary-Total'!C8,"#,###")&" Total Crop Acres are NOT EQUAL to Total Landbase Acres","") -> 
B28: TOTAL Landbase | C28: =SUM(C26:C27) -> 0
B30: Owned Land Equity | D30: 0.85
B31: Land Finance Rate & Term | C31: 0.065 | D31: 25 | E31: Years
B32: Land Opportunity Cost (Investment Rate) | D32: 0
B34: land financed | D34: =SUM(1-D30) -> 0.15
B35: present value | D35: =-PV(C31,D31,E23,0,0) -> 0 | E35: =-PV(C31,D31,E22,0,0) -> 0
B36: Land Amortization Costs | D36: =-CUMPRINC(C31,D31,D35,1,D31,0)/D31 ->  | E36: =-CUMPRINC(C31,D31,E35,1,D31,0)/D31 -> 
B37: Land Interest Costs | D37: =-CUMIPMT(C31,D31,D35,1,D31,0)/D31 ->  | E37: =-CUMIPMT(C31,D31,E35,1,D31,0)/D31 -> 
D38: =SUM(D36:D37) ->  | E38: =SUM(E36:E37) -> 
B39: Owned Land Opportunity Cost | D39: =SUM((D35/D34)*D30)*D32 -> 0 | E39: =SUM((E35/D34)*D30)*D32 -> 0
A40: Equipment Loans | G40: Equipment Leases
A42: (Complete chart below OR Enter Average Payment)
D43: Enter Average Equipment P&I Payment ($/acre) | E43: 54.2
E45: Annual P&I | J45: Annual
A46: Equipment Loan | E46: Payment | G46: Equipment Lease | J46: Payment
B47: enter equipment here | E47: 0 | G47: enter equipment here | J47: 0
E48: 0 | J48: 0
E49: 0 | J49: 0
E50: 0 | J50: 0
E51: 0 | J51: 0
E52: 0 | J52: 0
E53: 0 | J53: 0
E54: 0 | J54: 0
E55: 0 | J55: 0
E56: 0 | J56: 0
E57: 0 | J57: 0
E58: 0 | J58: 0
E59: 0 | J59: 0
E60: 0 | J60: 0
E61: 0 | J61: 0
E62: 0 | J62: 0
D63: Total | E63: =IF(SUM(E47:E62)>0,SUM(E47:E62),E43*C28) -> 0 | G63: Total | J63: =SUM(J47:J62) -> 0
D64: Average Per Acre | E64: =IF(C28=0,0,SUM(E63/$C$28)) -> 0 | I64: Average Per Acre | J64: =IF(C28=0,0,SUM(J63/$C$28)) -> 0
B66: Owned Equipment Equity | D66: 0.55
B67: Equip. Finance Rate & Term | C67: 0.07 | D67: 7 | E67: Years
B68: Residual Value (End of Useful Life) | D68: 0.25
B69: Useful Life (years) | D69: 15
B70: Machinery Opportunity Cost (Investment Rate) | D70: 0
B71: machinery financed | D71: =SUM(1-D66) -> 0.45
B72: present value | D72: =-PV(C67,D67,E64,0,0) -> 0 | E72: =-PV(C67,D67,E63,0,0) -> 0
B73: Eq. Amortization Costs | D73: =-CUMPRINC(C67,D67,D72,1,D67,0)/D67 ->  | E73: =-CUMPRINC(C67,D67,E72,1,D67,0)/D67 -> 
B74: Eq. Interest Costs | D74: =-CUMIPMT(C67,D67,D72,1,D67,0)/D67 ->  | E74: =-CUMIPMT(C67,D67,E72,1,D67,0)/D67 -> 
D75: =SUM(D73:D74) ->  | E75: =SUM(E73:E74) -> 
D76: acre | E76: total
B77: Total investment | D77: =SUM(D72/D71) -> 0 | E77: =SUM(E72/D71) -> 0
B78: Machinery Depreciation cost | D78: =(D77-(D77*D68))/D69 -> 0 | E78: =(E77-(E77*D68))/D69 -> 0
B79: Eq. Opportunity Cost | D79: =SUM(D77*D70)*D66 -> 0 | E79: =SUM(E77*D70)*D66 -> 0

Sheet Fertilizer
A3: Fertilizer
C4: Bulk Price | E4: Fertilizer Analysis | J4: Actual Nutrient | M4: Cost | N4: N | O4: P | P4: K | Q4: S
A5: Fertilizer Type | C5: $/tonne | E5: N | F5: P | G5: K | H5: S | J5: $/lb | M5: Tonne
A6: Pre-seeding: | B6: Nitrogen | C6: 1090 | E6: 82 | F6: 0 | G6: 0 | H6: 0 | J6: =SUM(C6/(2204.5855*(E6/100))) -> 0.6029561079
A8: Blend: | B8: Nitrogen | C8: 690 | E8: 46 | F8: 0 | G8: 0 | H8: 0 | J8: =SUM(C8/(2204.5855*(E8/100))) -> 0.6804000117 | M8: =Assumptions!D33*C9 -> 45600 | N8: =#REF!*E8/100 ->  | O8: =#REF!*F8/100 ->  | P8: =#REF!*G8/100 ->  | Q8: =#REF!*H8/100 -> 
B9: Phosphate | C9: 1140 | E9: 11 | F9: 52 | G9: 0 | H9: 0 | J9: =SUM((C9-(J8*((E9/100)*2204.5855)))/(2204.5855*(F9/100))) -> 0.8505000146 | M9: =Assumptions!D32*C8 ->  | N9: =#REF!*E9/100 ->  | O9: =#REF!*F9/100 ->  | P9: =#REF!*G9/100 ->  | Q9: =#REF!*H9/100 -> 
B10: Potash | C10: 560 | E10: 0 | F10: 0 | G10: 60 | H10: 0 | J10: =SUM(C10/(2204.5855*(G10/100))) -> 0.4233600073 | M10: =Assumptions!D34*C10 -> 22400 | N10: =#REF!*E10/100 ->  | O10: =#REF!*F10/100 ->  | P10: =#REF!*G10/100 ->  | Q10: =#REF!*H10/100 -> 
B11: Sulphur | C11: 1140 | E11: 13 | F11: 33 | G11: 0 | H11: 15 | J11: =SUM((C11-(J8*((E11/100)*2204.5855))-(J9*((F11/100)*2204.5855)))/(2204.5855*(H11/100))) -> 0.986580017 | M11: =Assumptions!D35*C11 -> 45600 | N11: =#REF!*E11/100 ->  | O11: =#REF!*F11/100 ->  | P11: =#REF!*G11/100 ->  | Q11: =#REF!*H11/100 -> 
B12: Blend charge | C12: 0 | M12: =C12 -> 0
A14: Supplemental: | B14: Nitrogen | C14: 440 | E14: 28 | F14: 0 | G14: 0 | H14: 0 | J14: =SUM(C14/(2204.5855*(E14/100))) -> 0.7128000123
A16: CROPPLAN Fertilizer Summary (Total Tonnes Required)
C18: Total | D18: =IF(Crop1!$C$3="(select crop)","",Crop1!$C$3) -> Canola | E18: =IF('2'!$C$3="(select crop)","",'2'!$C$3) -> Wheat | F18: =IF('3'!$C$3="(select crop)","",'3'!$C$3) ->  | G18: =IF('4'!$C$3="(select crop)","",'4'!$C$3) ->  | H18: =IF('5'!$C$3="(select crop)","",'5'!$C$3) ->  | I18: =IF('6'!$C$3="(select crop)","",'6'!$C$3) ->  | J18: =IF('7'!$C$3="(select crop)","",'7'!$C$3) ->  | K18: =IF('8'!$C$3="(select crop)","",'8'!$C$3) -> 
A19: Fertilizer Type | C19: Tonnes | D19: =IF(Crop1!$F$8="(enter name here)","",Crop1!$F$8) ->  | E19: =IF('2'!$F$8="(enter name here)","",'2'!$F$8) ->  | F19: =IF('3'!$F$8="(enter name here)","",'3'!$F$8) ->  | G19: =IF('4'!$F$8="(enter name here)","",'4'!$F$8) ->  | H19: =IF('5'!$F$8="(enter name here)","",'5'!$F$8) ->  | I19: =IF('6'!$F$8="(enter name here)","",'6'!$F$8) ->  | J19: =IF('7'!$F$8="(enter name here)","",'7'!$F$8) ->  | K19: =IF('8'!$F$8="(enter name here)","",'8'!$F$8) -> 
A20: Pre-seeding: | B20: ="Nitrogen ("&E6&"-"&F6&"-"&G6&"-"&H6&")" -> Nitrogen (82-0-0-0) | C20: =SUM(D20:K20)+SUM(D32:K32) -> 0 | D20: =Crop1!$F22 -> 0 | E20: ='2'!$F22 -> 0 | F20: ='3'!$F22 -> 0 | G20: ='4'!$F22 -> 0 | H20: ='5'!$F22 -> 0 | I20: ='6'!$F22 -> 0 | J20: ='7'!$F22 -> 0 | K20: ='8'!$F22 -> 0
A22: Blend: | B22: ="Nitrogen ("&E8&"-"&F8&"-"&G8&"-"&H8&")" -> Nitrogen (46-0-0-0) | C22: =SUM(D22:K22)+SUM(D34:K34) -> 0.2092450153 | D22: =Crop1!$F24 -> 0.1110984016 | E22: ='2'!$F24 -> 0.09814661368 | F22: ='3'!$F24 -> 0 | G22: ='4'!$F24 -> 0 | H22: ='5'!$F24 -> 0 | I22: ='6'!$F24 -> 0 | J22: ='7'!$F24 -> 0 | K22: ='8'!$F24 -> 0
B23: ="Phosphate ("&E9&"-"&F9&"-"&G9&"-"&H9&")" -> Phosphate (11-52-0-0) | C23: =SUM(D23:K23)+SUM(D35:K35) -> 0.02529675713 | D23: =Crop1!$F25 -> 0 | E23: ='2'!$F25 -> 0.02529675713 | F23: ='3'!$F25 -> 0 | G23: ='4'!$F25 -> 0 | H23: ='5'!$F25 -> 0 | I23: ='6'!$F25 -> 0 | J23: ='7'!$F25 -> 0 | K23: ='8'!$F25 -> 0
B24: ="Potash ("&E10&"-"&F10&"-"&G10&"-"&H10&")" -> Potash (0-0-60-0) | C24: =SUM(D24:K24)+SUM(D36:K36) -> 0.007559950407 | D24: =Crop1!$F26 -> 0 | E24: ='2'!$F26 -> 0.007559950407 | F24: ='3'!$F26 -> 0 | G24: ='4'!$F26 -> 0 | H24: ='5'!$F26 -> 0 | I24: ='6'!$F26 -> 0 | J24: ='7'!$F26 -> 0 | K24: ='8'!$F26 -> 0
B25: ="Sulphur ("&E11&"-"&F11&"-"&G11&"-"&H11&")" -> Sulphur (13-33-0-15) | C25: =SUM(D25:K25)+SUM(D37:K37) -> 0.07559950407 | D25: =Crop1!$F27 -> 0.06047960325 | E25: ='2'!$F27 -> 0.01511990081 | F25: ='3'!$F27 -> 0 | G25: ='4'!$F27 -> 0 | H25: ='5'!$F27 -> 0 | I25: ='6'!$F27 -> 0 | J25: ='7'!$F27 -> 0 | K25: ='8'!$F27 -> 0
B26: TOTAL | C26: =SUM(C22:C25) -> 0.3177012269 | D26: =SUM(D22:D25) -> 0.1715780049 | E26: =SUM(E22:E25) -> 0.146123222 | F26: =SUM(F22:F25) -> 0 | G26: 0 | H26: 0 | I26: 0 | J26: 0 | K26: 0
A28: Supplemental: | B28: ="Nitrogen ("&E14&"-"&F14&"-"&G14&"-"&H14&")" -> Nitrogen (28-0-0-0) | C28: =SUM(D28:K28)+SUM(D40:K40) -> 0 | D28: =Crop1!$F30 -> 0 | E28: ='2'!$F30 -> 0 | F28: ='3'!$F30 -> 0 | G28: ='4'!$F30 -> 0 | H28: ='5'!$F30 -> 0 | I28: ='6'!$F30 -> 0 | J28: ='7'!$F30 -> 0 | K28: ='8'!$F30 -> 0
D30: =IF('9'!$C$3="(select crop)","",'9'!$C$3) ->  | E30: =IF('10'!$C$3="(select crop)","",'10'!$C$3) ->  | F30: =IF('11'!$C$3="(select crop)","",'11'!$C$3) ->  | G30: =IF('12'!$C$3="(select crop)","",'12'!$C$3) ->  | H30: =IF('13'!$C$3="(select crop)","",'13'!$C$3) ->  | I30: =IF('14'!$C$3="(select crop)","",'14'!$C$3) ->  | J30: =IF('15'!$C$3="(select crop)","",'15'!$C$3) ->  | K30: =IF('16'!$C$3="(select crop)","",'16'!$C$3) -> 
D31: =IF('9'!$F$8="(enter name here)","",'9'!$F$8) ->  | E31: =IF('10'!$F$8="(enter name here)","",'10'!$F$8) ->  | F31: =IF('11'!$F$8="(enter name here)","",'11'!$F$8) ->  | G31: =IF('12'!$F$8="(enter name here)","",'12'!$F$8) ->  | H31: =IF('13'!$F$8="(enter name here)","",'13'!$F$8) ->  | I31: =IF('14'!$F$8="(enter name here)","",'14'!$F$8) ->  | J31: =IF('15'!$F$8="(enter name here)","",'15'!$F$8) ->  | K31: =IF('16'!$F$8="(enter name here)","",'16'!$F$8) -> 
A32: =A20 -> Pre-seeding: | B32: =B20 -> Nitrogen (82-0-0-0) | D32: ='9'!$F22 -> 0 | E32: ='10'!$F22 -> 0 | F32: ='11'!$F22 -> 0 | G32: ='12'!$F22 -> 0 | H32: ='13'!$F22 -> 0 | I32: ='14'!$F22 -> 0 | J32: ='15'!$F22 -> 0 | K32: ='16'!$F22 -> 0
A34: =A22 -> Blend: | B34: =B22 -> Nitrogen (46-0-0-0) | D34: ='9'!$F24 -> 0 | E34: ='10'!$F24 -> 0 | F34: ='11'!$F24 -> 0 | G34: ='12'!$F24 -> 0 | H34: ='13'!$F24 -> 0 | I34: ='14'!$F24 -> 0 | J34: ='15'!$F24 -> 0 | K34: ='16'!$F24 -> 0
B35: =B23 -> Phosphate (11-52-0-0) | D35: ='9'!$F25 -> 0 | E35: ='10'!$F25 -> 0 | F35: ='11'!$F25 -> 0 | G35: ='12'!$F25 -> 0 | H35: ='13'!$F25 -> 0 | I35: ='14'!$F25 -> 0 | J35: ='15'!$F25 -> 0 | K35: ='16'!$F25 -> 0
B36: Potash (0-0-60-0) | D36: ='9'!$F26 -> 0 | E36: ='10'!$F26 -> 0 | F36: ='11'!$F26 -> 0 | G36: ='12'!$F26 -> 0 | H36: ='13'!$F26 -> 0 | I36: ='14'!$F26 -> 0 | J36: ='15'!$F26 -> 0 | K36: ='16'!$F26 -> 0
B37: Sulphur (13-33-0-15) | D37: ='9'!$F27 -> 0 | E37: ='10'!$F27 -> 0 | F37: ='11'!$F27 -> 0 | G37: ='12'!$F27 -> 0 | H37: ='13'!$F27 -> 0 | I37: ='14'!$F27 -> 0 | J37: ='15'!$F27 -> 0 | K37: ='16'!$F27 -> 0
B38: TOTAL | D38: =SUM(D34:D37) -> 0 | E38: 0 | F38: 0 | G38: 0 | H38: 0 | I38: 0 | J38: 0 | K38: 0
A40: =A28 -> Supplemental: | B40: Nitrogen (28-0-0-0) | D40: ='9'!$F30 -> 0 | E40: ='10'!$F30 -> 0 | F40: ='11'!$F30 -> 0 | G40: ='12'!$F30 -> 0 | H40: ='13'!$F30 -> 0 | I40: ='14'!$F30 -> 0 | J40: ='15'!$F30 -> 0 | K40: ='16'!$F30 -> 0

Sheet Product
J2: Printed: | K2: =TODAY() -> 2025-01-02
A3: CROPPLAN - Seed Summary (Total Bushels or Pounds Required)
A5: Crop | B5: Variety | C5: Acres | E5: Seeding Rate/Acre | H5: Total Required
A6: =IF(Crop1!H3=0,"",Crop1!$C$3) -> Canola | B6: =IF(Crop1!$F$8="(enter name here)","",IF(Crop1!H3=0,"",Crop1!$F$8)) ->  | C6: =IF(Crop1!H3=0,"",Crop1!$H$3) -> 1 | E6: =Crop1!C8 -> 5 | F6: =Crop1!D8 -> lb | H6: =Crop1!G9 -> 5 | I6: =F6 -> lb
A7: =IF('2'!H$3=0,"",'2'!$C$3) -> Wheat | B7: =IF('2'!$F$8="(enter name here)","",IF('2'!H$3=0,"",'2'!$F$8)) ->  | C7: =IF('2'!H$3=0,"",'2'!$H$3) -> 1 | E7: ='2'!C8 -> 2 | F7: ='2'!$D8 -> bu | H7: ='2'!$G9 -> 2 | I7: =F7 -> bu
A8: =IF('3'!H$3=0,"",'3'!$C$3) ->  | B8: =IF('3'!$F$8="(enter name here)","",IF('3'!H$3=0,"",'3'!$F$8)) ->  | C8: =IF('3'!H$3=0,"",'3'!$H$3) ->  | E8: ='3'!C8 ->  | F8: ='3'!D8 ->  | H8: ='3'!G9 -> 
A9: =IF('4'!H$3=0,"",'4'!$C$3) ->  | B9: =IF('4'!$F$8="(enter name here)","",IF('4'!H$3=0,"",'4'!$F$8)) ->  | C9: =IF('4'!H$3=0,"",'4'!$H$3) ->  | E9: ='4'!C8 ->  | F9: ='4'!D8 ->  | H9: ='4'!$G9 -> 
A10: =IF('5'!H$3=0,"",'5'!$C$3) ->  | B10: =IF('5'!$F$8="(enter name here)","",IF('5'!H$3=0,"",'5'!$F$8)) ->  | C10: =IF('5'!H$3=0,"",'5'!$H$3) ->  | E10: ='5'!C8 ->  | F10: ='5'!D8 ->  | H10: ='5'!G9 -> 
A11: =IF('6'!H$3=0,"",'6'!$C$3) ->  | B11: =IF('6'!$F$8="(enter name here)","",IF('6'!H$3=0,"",'6'!$F$8)) ->  | C11: =IF('6'!H$3=0,"",'6'!$H$3) ->  | E11: ='6'!C8 ->  | F11: ='6'!$D8 ->  | H11: ='6'!G9 -> 
A12: =IF('7'!H$3=0,"",'7'!$C$3) ->  | B12: =IF('7'!$F$8="(enter name here)","",IF('7'!H$3=0,"",'7'!$F$8)) ->  | C12: =IF('7'!H$3=0,"",'7'!$H$3) ->  | E12: ='7'!C8 ->  | F12: ='7'!D8 ->  | H12: ='7'!G9 -> 
A13: =IF('8'!H$3=0,"",'8'!$C$3) ->  | B13: =IF('8'!$F$8="(enter name here)","",IF('8'!H$3=0,"",'8'!$F$8)) ->  | C13: =IF('8'!H$3=0,"",'8'!$H$3) ->  | E13: ='8'!$C8 ->  | F13: ='8'!D8 ->  | H13: ='8'!G9 -> 
A14: =IF('9'!H$3=0,"",'9'!$C$3) ->  | B14: =IF('9'!$F$8="(enter name here)","",IF('9'!H$3=0,"",'9'!$F$8)) ->  | C14: =IF('9'!H$3=0,"",'9'!$H$3) ->  | E14: ='9'!$C8 ->  | F14: ='9'!D8 ->  | H14: ='9'!$G$9 ->  | I14: =F14 -> 
A15: =IF('10'!H$3=0,"",'10'!$C$3) ->  | B15: =IF('10'!$F$8="(enter name here)","",IF('10'!H$3=0,"",'10'!$F$8)) ->  | C15: =IF('10'!H$3=0,"",'10'!$H$3) ->  | E15: ='10'!$C$8 ->  | F15: ='10'!$D$8 ->  | H15: ='10'!$G$9 -> 
A16: =IF('11'!H$3=0,"",'11'!$C$3) ->  | B16: =IF('11'!$F$8="(enter name here)","",IF('11'!H$3=0,"",'11'!$F$8)) ->  | C16: =IF('11'!H$3=0,"",'11'!$H$3) ->  | E16: ='11'!$C$8 ->  | F16: ='11'!$D$8 ->  | H16: ='11'!$G$9 -> 
A17: =IF('12'!H$3=0,"",'12'!$C$3) ->  | B17: =IF('12'!$F$8="(enter name here)","",IF('12'!H$3=0,"",'12'!$F$8)) ->  | C17: =IF('12'!H$3=0,"",'12'!$H$3) ->  | E17: ='12'!$C$8 ->  | F17: ='12'!$D$8 ->  | H17: ='12'!$G$9 -> 
A18: =IF('13'!H$3=0,"",'13'!$C$3) ->  | B18: =IF('13'!$F$8="(enter name here)","",IF('13'!H$3=0,"",'13'!$F$8)) ->  | C18: =IF('13'!H$3=0,"",'13'!$H$3) ->  | E18: ='13'!$C$8 ->  | F18: ='13'!$D$8 ->  | H18: ='13'!$G$9 -> 
A19: =IF('14'!H$3=0,"",'14'!$C$3) ->  | B19: =IF('14'!$F$8="(enter name here)","",IF('14'!H$3=0,"",'14'!$F$8)) ->  | C19: =IF('14'!H$3=0,"",'14'!$H$3) ->  | E19: ='14'!$C$8 ->  | F19: ='14'!$D$8 ->  | H19: ='14'!$G$9 -> 
A20: =IF('15'!H$3=0,"",'15'!$C$3) ->  | B20: =IF('15'!$F$8="(enter name here)","",IF('15'!H$3=0,"",'15'!$F$8)) ->  | C20: =IF('15'!H$3=0,"",'15'!$H$3) ->  | E20: ='15'!$C$8 ->  | F20: ='15'!$D$8 ->  | H20: ='15'!$G$9 -> 
A21: =IF('16'!H$3=0,"",'16'!$C$3) ->  | B21: =IF('16'!$F$8="(enter name here)","",IF('16'!H$3=0,"",'16'!$F$8)) ->  | C21: =IF('16'!H$3=0,"",'16'!$H$3) ->  | E21: ='16'!$C$8 ->  | F21: ='16'!$D$8 ->  | H21: ='16'!$G$9 -> 
A24: CROPPLAN - Fertilizer Summary (Total Tonnes Required)
C26: Total | D26: =IF(Crop1!$C$3="(select crop)","",Crop1!$C$3) -> Canola | E26: =IF('2'!$C$3="(select crop)","",'2'!$C$3) -> Wheat | F26: =IF('3'!$C$3="(select crop)","",'3'!$C$3) ->  | G26: =IF('4'!$C$3="(select crop)","",'4'!$C$3) ->  | H26: =IF('5'!$C$3="(select crop)","",'5'!$C$3) ->  | I26: =IF('6'!$C$3="(select crop)","",'6'!$C$3) ->  | J26: =IF('7'!$C$3="(select crop)","",'7'!$C$3) ->  | K26: =IF('8'!$C$3="(select crop)","",'8'!$C$3) -> 
A27: Fertilizer Type | C27: Tonnes | D27: =IF(Crop1!$F$8="(enter name here)","",Crop1!$F$8) ->  | E27: =IF('2'!$F$8="(enter name here)","",'2'!$F$8) ->  | F27: =IF('3'!$F$8="(enter name here)","",'3'!$F$8) ->  | G27: =IF('4'!$F$8="(enter name here)","",'4'!$F$8) ->  | H27: =IF('5'!$F$8="(enter name here)","",'5'!$F$8) ->  | I27: =IF('6'!$F$8="(enter name here)","",'6'!$F$8) ->  | J27: =IF('7'!$F$8="(enter name here)","",'7'!$F$8) ->  | K27: =IF('8'!$F$8="(enter name here)","",'8'!$F$8) -> 
A28: Pre-seeding: | B28: =Fertilizer!B20 -> Nitrogen (82-0-0-0) | C28: =SUM(D28:K28) -> 0 | D28: =Crop1!$F22 -> 0 | E28: ='2'!$F22 -> 0 | F28: ='3'!$F22 -> 0 | G28: ='4'!$F22 -> 0 | H28: ='5'!$F22 -> 0 | I28: ='6'!$F22 -> 0 | J28: ='7'!$F22 -> 0 | K28: ='8'!$F22 -> 0
A30: Blend: | B30: =Fertilizer!B22 -> Nitrogen (46-0-0-0) | C30: =SUM(D30:K30) -> 0.2092450153 | D30: =Crop1!$F24 -> 0.1110984016 | E30: ='2'!$F24 -> 0.09814661368 | F30: ='3'!$F24 -> 0 | G30: ='4'!$F24 -> 0 | H30: ='5'!$F24 -> 0 | I30: ='6'!$F24 -> 0 | J30: ='7'!$F24 -> 0 | K30: ='8'!$F24 -> 0
B31: =Fertilizer!B23 -> Phosphate (11-52-0-0) | C31: =SUM(D31:K31) -> 0.02529675713 | D31: =Crop1!$F25 -> 0 | E31: ='2'!$F25 -> 0.02529675713 | F31: ='3'!$F25 -> 0 | G31: ='4'!$F25 -> 0 | H31: ='5'!$F25 -> 0 | I31: ='6'!$F25 -> 0 | J31: ='7'!$F25 -> 0 | K31: ='8'!$F25 -> 0
B32: =Fertilizer!B24 -> Potash (0-0-60-0) | C32: =SUM(D32:K32) -> 0.007559950407 | D32: =Crop1!$F26 -> 0 | E32: ='2'!$F26 -> 0.007559950407 | F32: ='3'!$F26 -> 0 | G32: ='4'!$F26 -> 0 | H32: ='5'!$F26 -> 0 | I32: ='6'!$F26 -> 0 | J32: ='7'!$F26 -> 0 | K32: ='8'!$F26 -> 0
B33: =Fertilizer!B25 -> Sulphur (13-33-0-15) | C33: =SUM(D33:K33) -> 0.07559950407 | D33: =Crop1!$F27 -> 0.06047960325 | E33: ='2'!$F27 -> 0.01511990081 | F33: ='3'!$F27 -> 0 | G33: ='4'!$F27 -> 0 | H33: ='5'!$F27 -> 0 | I33: ='6'!$F27 -> 0 | J33: ='7'!$F27 -> 0 | K33: ='8'!$F27 -> 0
B34: TOTAL | C34: =SUM(C30:C33) -> 0.3177012269 | D34: =SUM(D30:D33) -> 0.1715780049 | E34: =SUM(E30:E33) -> 0.146123222 | F34: =SUM(F30:F33) -> 0 | G34: 0 | H34: 0 | I34: 0 | J34: 0 | K34: 0
A36: Supplemental: | B36: =Fertilizer!B28 -> Nitrogen (28-0-0-0) | C36: =SUM(D36:K36) -> 0 | D36: =Crop1!$F30 -> 0 | E36: ='2'!$F30 -> 0 | F36: ='3'!$F30 -> 0 | G36: ='4'!$F30 -> 0 | H36: ='5'!$F30 -> 0 | I36: ='6'!$F30 -> 0 | J36: ='7'!$F30 -> 0 | K36: ='8'!$F30 -> 0
D38: =IF('9'!$C$3="(select crop)","",'9'!$C$3) ->  | E38: =IF('10'!$C$3="(select crop)","",'10'!$C$3) ->  | F38: =IF('11'!$C$3="(select crop)","",'11'!$C$3) ->  | G38: =IF('12'!$C$3="(select crop)","",'12'!$C$3) ->  | H38: =IF('13'!$C$3="(select crop)","",'13'!$C$3) ->  | I38: =IF('14'!$C$3="(select crop)","",'14'!$C$3) ->  | J38: =IF('15'!$C$3="(select crop)","",'15'!$C$3) ->  | K38: =IF('16'!$C$3="(select crop)","",'16'!$C$3) -> 
D39: =IF('9'!$F$8="(enter name here)","",'9'!$F$8) ->  | E39: =IF('10'!$F$8="(enter name here)","",'10'!$F$8) ->  | F39: =IF('11'!$F$8="(enter name here)","",'11'!$F$8) ->  | G39: =IF('12'!$F$8="(enter name here)","",'12'!$F$8) ->  | H39: =IF('13'!$F$8="(enter name here)","",'13'!$F$8) ->  | I39: =IF('14'!$F$8="(enter name here)","",'14'!$F$8) ->  | J39: =IF('15'!$F$8="(enter name here)","",'15'!$F$8) ->  | K39: =IF('16'!$F$8="(enter name here)","",'16'!$F$8) -> 
A40: =A28 -> Pre-seeding: | B40: =B28 -> Nitrogen (82-0-0-0) | D40: ='9'!$F22 -> 0 | E40: ='10'!$F22 -> 0 | F40: ='11'!$F22 -> 0 | G40: ='12'!$F22 -> 0 | H40: ='13'!$F22 -> 0 | I40: ='14'!$F22 -> 0 | J40: ='15'!$F22 -> 0 | K40: ='16'!$F22 -> 0
A42: =A30 -> Blend: | B42: =B30 -> Nitrogen (46-0-0-0) | D42: ='9'!$F24 -> 0 | E42: ='10'!$F24 -> 0 | F42: ='11'!$F24 -> 0 | G42: ='12'!$F24 -> 0 | H42: ='13'!$F24 -> 0 | I42: ='14'!$F24 -> 0 | J42: ='15'!$F24 -> 0 | K42: ='16'!$F24 -> 0
B43: =B31 -> Phosphate (11-52-0-0) | D43: ='9'!$F25 -> 0 | E43: ='10'!$F25 -> 0 | F43: ='11'!$F25 -> 0 | G43: ='12'!$F25 -> 0 | H43: ='13'!$F25 -> 0 | I43: ='14'!$F25 -> 0 | J43: ='15'!$F25 -> 0 | K43: ='16'!$F25 -> 0
B44: Potash (0-0-60-0) | D44: ='9'!$F26 -> 0 | E44: ='10'!$F26 -> 0 | F44: ='11'!$F26 -> 0 | G44: ='12'!$F26 -> 0 | H44: ='13'!$F26 -> 0 | I44: ='14'!$F26 -> 0 | J44: ='15'!$F26 -> 0 | K44: ='16'!$F26 -> 0
B45: Sulphur (13-33-0-15) | D45: ='9'!$F27 -> 0 | E45: ='10'!$F27 -> 0 | F45: ='11'!$F27 -> 0 | G45: ='12'!$F27 -> 0 | H45: ='13'!$F27 -> 0 | I45: ='14'!$F27 -> 0 | J45: ='15'!$F27 -> 0 | K45: ='16'!$F27 -> 0
B46: TOTAL | D46: =SUM(D42:D45) -> 0 | E46: 0 | F46: 0 | G46: 0 | H46: 0 | I46: 0 | J46: 0 | K46: 0
A48: =A36 -> Supplemental: | B48: Nitrogen (28-0-0-0) | D48: ='9'!$F30 -> 0 | E48: ='10'!$F30 -> 0 | F48: ='11'!$F30 -> 0 | G48: ='12'!$F30 -> 0 | H48: ='13'!$F30 -> 0 | I48: ='14'!$F30 -> 0 | J48: ='15'!$F30 -> 0 | K48: ='16'!$F30 -> 0
A52: MYFARM - Grain Production Summary (Total Bushels or Pounds)
A54: Crop | B54: Variety | C54: Acres | E54: Total Production | H54: Sold | J54: Unsold Production | P54: bu | Q54: lb
A55: =IF(Crop1!H3=0,"",Crop1!$C$3) -> Canola | B55: =IF(Crop1!$F$8="(enter name here)","",IF(Crop1!H3=0,"",Crop1!$F$8)) ->  | C55: =IF(Crop1!H3=0,"",Crop1!$H$3) -> 1 | E55: =IF(Crop1!H3=0,"",Crop1!$F$80) -> 45 | F55: =Crop1!$F$79 -> bu | H55: =IF(Crop1!H3=0,"",Crop1!$F$108) -> 0 | J55: =IF(Crop1!H3=0,"",Crop1!$F$109) -> 45 | P55: =IF(F55="bu",E55,0) -> 45 | Q55: =IF(E55="",0,SUM(E55-P55)) -> 0
A56: =IF('2'!H3=0,"",'2'!$C$3) -> Wheat | B56: =IF('2'!$F$8="(enter name here)","",IF('2'!H3=0,"",'2'!$F$8)) ->  | C56: =IF('2'!H3=0,"",'2'!$H$3) -> 1 | E56: =IF('2'!H3=0,"",'2'!$F$80) -> 65 | F56: ='2'!$F$79 -> bu | H56: =IF('2'!H3=0,"",'2'!$F$108) -> 0 | J56: =IF('2'!H3=0,"",'2'!$F$109) -> 65 | P56: =IF(F56="bu",E56,0) -> 65 | Q56: =IF(E56="",0,SUM(E56-P56)) -> 0
A57: =IF('3'!H3=0,"",'3'!$C$3) ->  | B57: =IF('3'!$F$8="(enter name here)","",IF('3'!H3=0,"",'3'!$F$8)) ->  | C57: =IF('3'!H3=0,"",'3'!$H$3) ->  | E57: =IF('3'!H3=0,"",'3'!$F$80) ->  | F57: ='3'!$F$79 ->  | H57: =IF('3'!H3=0,"",'3'!$F$108) ->  | J57: =IF('3'!H3=0,"",'3'!$F$109) ->  | P57: 0 | Q57: 0
A58: =IF('4'!H3=0,"",'4'!$C$3) ->  | B58: =IF('4'!$F$8="(enter name here)","",IF('4'!H3=0,"",'4'!$F$8)) ->  | C58: =IF('4'!$H$3=0,"",'4'!$H$3) ->  | E58: =IF('4'!H3=0,"",'4'!$F$80) ->  | F58: ='4'!$F$79 ->  | H58: =IF('4'!H3=0,"",'4'!$F$108) ->  | J58: =IF('4'!H3=0,"",'4'!$F$109) ->  | P58: 0 | Q58: 0
A59: =IF('5'!H3=0,"",'5'!$C$3) ->  | B59: =IF('5'!$F$8="(enter name here)","",IF('5'!H3=0,"",'5'!$F$8)) ->  | C59: =IF('5'!H3=0,"",'5'!$H$3) ->  | E59: =IF('5'!H3=0,"",'5'!$F$80) ->  | F59: ='5'!$F$79 ->  | H59: =IF('5'!H3=0,"",'5'!$F$108) ->  | J59: =IF('5'!H3=0,"",'5'!$F$109) ->  | P59: 0 | Q59: 0
A60: =IF('6'!H3=0,"",'6'!$C$3) ->  | B60: =IF('6'!$F$8="(enter name here)","",IF('6'!H3=0,"",'6'!$F$8)) ->  | C60: =IF('6'!H3=0,"",'6'!$H$3) ->  | E60: =IF('6'!H3=0,"",'6'!$F$80) ->  | F60: ='6'!$F$79 ->  | H60: =IF('6'!H3=0,"",'6'!$F$108) ->  | J60: =IF('6'!H3=0,"",'6'!$F$109) ->  | P60: 0 | Q60: 0
A61: =IF('7'!H3=0,"",'7'!$C$3) ->  | B61: =IF('7'!$F$8="(enter name here)","",IF('7'!H3=0,"",'7'!$F$8)) ->  | C61: =IF('7'!H3=0,"",'7'!$H$3) ->  | E61: =IF('7'!H3=0,"",'7'!$F$80) ->  | F61: ='7'!$F$79 ->  | H61: =IF('7'!H3=0,"",'7'!$F$108) ->  | J61: =IF('7'!H3=0,"",'7'!$F$109) ->  | P61: 0 | Q61: 0
A62: =IF('8'!H3=0,"",'8'!$C$3) ->  | B62: =IF('8'!$F$8="(enter name here)","",IF('8'!H3=0,"",'8'!$F$8)) ->  | C62: =IF('8'!H3=0,"",'8'!$H$3) ->  | E62: =IF('8'!H3=0,"",'8'!$F$80) ->  | F62: ='8'!$F$79 ->  | H62: =IF('8'!H3=0,"",'8'!$F$108) ->  | J62: =IF('8'!H3=0,"",'8'!$F$109) ->  | P62: 0 | Q62: 0
A63: =IF('9'!$H$3=0,"",'9'!$C$3) ->  | B63: =IF('9'!$F$8="(enter name here)","",IF('9'!$H$3=0,"",'9'!$F$8)) ->  | C63: =IF('9'!$H$3=0,"",'9'!$H$3) ->  | E63: =IF('9'!$H$3=0,"",'9'!$F$80) ->  | F63: ='9'!$F$79 ->  | H63: =IF('9'!$H$3=0,"",'9'!$F$108) ->  | J63: =IF('9'!$H$3=0,"",'9'!$F$109) ->  | P63: =IF(F63="bu",E63,0) -> 0 | Q63: =IF(E63="",0,SUM(E63-P63)) -> 0
A64: =IF('10'!$H$3=0,"",'10'!$C$3) ->  | B64: =IF('10'!$F$8="(enter name here)","",IF('10'!$H$3=0,"",'10'!$F$8)) ->  | C64: =IF('10'!$H$3=0,"",'10'!$H$3) ->  | E64: =IF('10'!$H$3=0,"",'10'!$F$80) ->  | F64: ='10'!$F$79 ->  | H64: =IF('10'!$H$3=0,"",'10'!$F$108) ->  | J64: =IF('10'!$H$3=0,"",'10'!$F$109) ->  | P64: 0 | Q64: 0
A65: =IF('11'!$H$3=0,"",'11'!$C$3) ->  | B65: =IF('11'!$F$8="(enter name here)","",IF('11'!$H$3=0,"",'11'!$F$8)) ->  | C65: =IF('11'!$H$3=0,"",'11'!$H$3) ->  | E65: =IF('11'!$H$3=0,"",'11'!$F$80) ->  | F65: ='11'!$F$79 ->  | H65: =IF('11'!$H$3=0,"",'11'!$F$108) ->  | J65: =IF('11'!$H$3=0,"",'11'!$F$109) ->  | P65: 0 | Q65: 0
A66: =IF('12'!$H$3=0,"",'12'!$C$3) ->  | B66: =IF('12'!$F$8="(enter name here)","",IF('12'!$H$3=0,"",'12'!$F$8)) ->  | C66: =IF('12'!$H$3=0,"",'12'!$H$3) ->  | E66: =IF('12'!$H$3=0,"",'12'!$F$80) ->  | F66: ='12'!$F$79 ->  | H66: =IF('12'!$H$3=0,"",'12'!$F$108) ->  | J66: =IF('12'!$H$3=0,"",'12'!$F$109) ->  | P66: 0 | Q66: 0
A67: =IF('13'!$H$3=0,"",'13'!$C$3) ->  | B67: =IF('13'!$F$8="(enter name here)","",IF('13'!$H$3=0,"",'13'!$F$8)) ->  | C67: =IF('13'!$H$3=0,"",'13'!$H$3) ->  | E67: =IF('13'!$H$3=0,"",'13'!$F$80) ->  | F67: ='13'!$F$79 ->  | H67: =IF('13'!$H$3=0,"",'13'!$F$108) ->  | J67: =IF('13'!$H$3=0,"",'13'!$F$109) ->  | P67: 0 | Q67: 0
A68: =IF('14'!$H$3=0,"",'14'!$C$3) ->  | B68: =IF('14'!$F$8="(enter name here)","",IF('14'!$H$3=0,"",'14'!$F$8)) ->  | C68: =IF('14'!$H$3=0,"",'14'!$H$3) ->  | E68: =IF('14'!$H$3=0,"",'14'!$F$80) ->  | F68: ='14'!$F$79 ->  | H68: =IF('14'!$H$3=0,"",'14'!$F$108) ->  | J68: =IF('14'!$H$3=0,"",'14'!$F$109) ->  | P68: 0 | Q68: 0
A69: =IF('15'!$H$3=0,"",'15'!$C$3) ->  | B69: =IF('15'!$F$8="(enter name here)","",IF('15'!$H$3=0,"",'15'!$F$8)) ->  | C69: =IF('15'!$H$3=0,"",'15'!$H$3) ->  | E69: =IF('15'!$H$3=0,"",'15'!$F$80) ->  | F69: ='15'!$F$79 ->  | H69: =IF('15'!$H$3=0,"",'15'!$F$108) ->  | J69: =IF('15'!$H$3=0,"",'15'!$F$109) ->  | P69: 0 | Q69: 0
A70: =IF('16'!$H$3=0,"",'16'!$C$3) ->  | B70: =IF('16'!$F$8="(enter name here)","",IF('16'!$H$3=0,"",'16'!$F$8)) ->  | C70: =IF('16'!$H$3=0,"",'16'!$H$3) ->  | E70: =IF('16'!$H$3=0,"",'16'!$F$80) ->  | F70: ='16'!$F$79 ->  | H70: =IF('16'!$H$3=0,"",'16'!$F$108) ->  | J70: =IF('16'!$H$3=0,"",'16'!$F$109) ->  | P70: 0 | Q70: 0
D71: ="Maximum Total Grain Storage Required - " -> Maximum Total Grain Storage Required - | E71: =IF(P71=0,TEXT(Q71,"#,###")&" lbs",IF(Q71=0,TEXT(P71,"#,###")&" bu",TEXT(P71,"#,###")&" bu and "&TEXT(Q71,"#,###")&" lbs")) -> 110 bu | P71: =SUM(P55:P70) -> 110 | Q71: =SUM(Q55:Q70) -> 0

Sheet Assumptions
A3: Seed & Treatment
C5: Initial Default Values
C6: Seeding Rate | E6: Price | G6: Cost
B7: Crop | C7: per Acre | E7: per Unit | G7: per Acre
B8: Canola | C8: 5 | D8: lb | E8: 16.5 | F8: /lb | G8: =ROUND(C8*E8,2) -> 82.5
B9: Wheat | C9: 2 | D9: bu | E9: 17 | F9: /bu | G9: 34
B10: Winter wheat | C10: 2 | D10: bu | E10: 16 | F10: /bu | G10: 32
B11: Soybeans | C11: 1.43 | D11: units | E11: 62.94 | F11: /unit | G11: 90
B12: Barley | C12: 2 | D12: bu | E12: 10 | F12: /bu | G12: 20
B13: Oats | C13: 2.5 | D13: bu | E13: 10 | F13: /bu | G13: 25
B14: Corn | C14: 32000 | D14: plants | E14: 0.003125 | F14: /plant | G14: 100
B15: Navy Beans | C15: 1.1 | D15: units | E15: 100 | F15: /unit | G15: 110
B16: Flaxseed | C16: 56 | D16: lb | E16: 1 | F16: /lb | G16: 56
B17: Sunflowers Confection | C17: 18000 | D17: plants | E17: 0.00315 | F17: /plant | G17: 56.7
B18: Sunflowers Oil | C18: 20000 | D18: plants | E18: 0.0025 | F18: /plant | G18: 50
B19: Peas | C19: 3 | D19: bu | E19: 28.333 | F19: /bu | G19: 85
B20: Hybrid Fall Rye | C20: 0.8 | D20: units | E20: 98 | F20: /unit | G20: 78.4
B21: Canary Seed | C21: 44 | D21: lbs | E21: 0.75 | F21: /lb | G21: 33
B22: Lentils | C22: 2 | D22: bu | E22: 35 | F22: /bu | G22: 70
B23: Buckwheat | C23: 1 | D23: bu | E23: 25 | F23: /bu | G23: 25
B24: Hempseed | C24: 25 | D24: lb | E24: 2.35 | F24: /lb | G24: 58.75
B25: Other | C25: 0 | D25: bu | E25: 0 | F25: /bu | G25: 0
B27: * If row cropping, change seeding rate to 1.3 units/acre which reduces seed cost by 10%
A29: Fertilizer
C31: Actual Pounds Per Acre (inital default values)
B32: Crop | C32: N | D32: P | E32: K | F32: S | M32: Yield
B33: =Assumptions!B8 -> Canola | C33: 130 | D33: 40 | E33: 0 | F33: 20 | M33: ='Summary-Total'!C44 -> 0
B34: =Assumptions!B9 -> Wheat | C34: 110 | D34: 40 | E34: 10 | F34: 5 | M34: ='Summary-Total'!F$44 -> 45
B35: =Assumptions!B10 -> Winter wheat | C35: 110 | D35: 40 | E35: 10 | F35: 5 | M35: ='Summary-Total'!G$44 -> 65
B36: =Assumptions!B11 -> Soybeans | C36: 0 | D36: 40 | E36: 10 | F36: 0 | M36: ='Summary-Total'!H$44 -> 0
B37: =Assumptions!B12 -> Barley | C37: 90 | D37: 30 | E37: 10 | F37: 5 | M37: ='Summary-Total'!I$44 -> 0
B38: =Assumptions!B13 -> Oats | C38: 75 | D38: 35 | E38: 10 | F38: 10 | M38: ='Summary-Total'!J$44 -> 0
B39: =Assumptions!B14 -> Corn | C39: 140 | D39: 70 | E39: 25 | F39: 25 | M39: ='Summary-Total'!K$44 -> 0
B40: =Assumptions!B15 -> Navy Beans | C40: 80 | D40: 30 | E40: 0 | F40: 0 | M40: ='Summary-Total'!L$44 -> 0
B41: =Assumptions!B16 -> Flaxseed | C41: 50 | D41: 30 | E41: 0 | F41: 0 | M41: ='Summary-Total'!M$44 -> 0
B42: =Assumptions!B17 -> Sunflowers Confection | C42: 100 | D42: 30 | E42: 30 | F42: 0 | M42: ='Summary-Acre'!C$44 -> 0
B43: =Assumptions!B18 -> Sunflowers Oil | C43: 100 | D43: 30 | E43: 30 | F43: 0 | M43: ='Summary-Acre'!D$44 -> 45
B44: =Assumptions!B19 -> Peas | C44: 0 | D44: 30 | E44: 0 | F44: 0 | M44: ='Summary-Acre'!E$44 -> 65
B45: =Assumptions!B20 -> Hybrid Fall Rye | C45: 145 | D45: 40 | E45: 10 | F45: 5 | M45: ='Summary-Acre'!F$44 -> 0
B46: =Assumptions!B21 -> Canary Seed | C46: 70 | D46: 25 | E46: 0 | F46: 0 | M46: ='Summary-Acre'!G$44 -> 0
B47: =Assumptions!B22 -> Lentils | C47: 0 | D47: 25 | E47: 0 | F47: 0 | M47: ='Summary-Acre'!H$44 -> 0
B48: =Assumptions!B23 -> Buckwheat | C48: 40 | D48: 20 | E48: 0 | F48: 0 | M48: ='Summary-Acre'!I$44 -> 0
B49: =Assumptions!B24 -> Hempseed | C49: 80 | D49: 30 | E49: 0 | F49: 0 | M49: ='Summary-Acre'!J$44 -> 0
B50: =Assumptions!B25 -> Other | C50: 0 | D50: 0 | E50: 0 | F50: 0
A52: Crop Protection
C54: Initial Default Values ($/acre) | I54: Total
C55: Weed | E55: Disease | G55: Insect | I55: Cost
B56: Crop | C56: Control | E56: Control | G56: Control | I56: $/acre
B57: =Assumptions!B8 -> Canola | C57: 30 | E57: 22.75 | G57: 5.75 | I57: =C57+E57+G57 -> 58.5
B58: =Assumptions!B9 -> Wheat | C58: 35.75 | E58: 19.5 | G58: 0 | I58: 55.25
B59: =Assumptions!B10 -> Winter wheat | C59: 16.5 | E59: 19.5 | G59: 0 | I59: 36
B60: =Assumptions!B11 -> Soybeans | C60: 21.75 | E60: 0 | G60: 0 | I60: 21.75
B61: =Assumptions!B12 -> Barley | C61: 22 | E61: 5.5 | G61: 0 | I61: 27.5
B62: =Assumptions!B13 -> Oats | C62: 10 | E62: 14.5 | G62: 0 | I62: 24.5
B63: =Assumptions!B14 -> Corn | C63: 44 | E63: 0 | G63: 0 | I63: 44
B64: =Assumptions!B15 -> Navy Beans | C64: 83.5 | E64: 45 | G64: 0 | I64: 128.5
B65: =Assumptions!B16 -> Flaxseed | C65: 17 | E65: 16.5 | G65: 0 | I65: 33.5
B66: =Assumptions!B17 -> Sunflowers Confection | C66: 49 | E66: 27 | G66: 0 | I66: 76
B67: =Assumptions!B18 -> Sunflowers Oil | C67: 49 | E67: 0 | G67: 0 | I67: 49
B68: =Assumptions!B19 -> Peas | C68: 20.5 | E68: 22.25 | G68: 0 | I68: 42.75
B69: =Assumptions!B20 -> Hybrid Fall Rye | C69: 8.5 | E69: 0 | G69: 0 | I69: 8.5
B70: =Assumptions!B21 -> Canary Seed | C70: 14.42 | E70: 13.75 | G70: 0 | I70: 28.17
B71: =Assumptions!B22 -> Lentils | C71: 15.5 | E71: 13.88 | G71: 0 | I71: 29.38
B72: =Assumptions!B23 -> Buckwheat | C72: 6.13 | E72: 0 | G72: 0 | I72: 6.13
B73: =Assumptions!B24 -> Hempseed | C73: 47.54 | E73: 0 | G73: 0 | I73: 47.54
B74: =Assumptions!B25 -> Other | C74: 0 | E74: 0 | G74: 0 | I74: 0
A76: Estimated Yield & Market Price
D78: Estimated Farmgate
D79: Market Price | E79: Yield
B80: Crop | D80: $ per unit | E80: per acre | F80: Units
B81: =Assumptions!B8 -> Canola | D81: 13.25 | E81: 45 | F81: bu
B82: =Assumptions!B9 -> Wheat | D82: 8 | E82: 65 | F82: bu
B83: =Assumptions!B10 -> Winter wheat | D83: 7 | E83: 65 | F83: bu
B84: =Assumptions!B11 -> Soybeans | D84: 12 | E84: 40 | F84: bu
B85: =Assumptions!B12 -> Barley | D85: 4.5 | E85: 80 | F85: bu
B86: =Assumptions!B13 -> Oats | D86: 4.1 | E86: 120 | F86: bu
B87: =Assumptions!B14 -> Corn | D87: 5.75 | E87: 140 | F87: bu
B88: =Assumptions!B15 -> Navy Beans | D88: 0.41 | E88: 1700 | F88: lb
B89: =Assumptions!B16 -> Flaxseed | D89: 16 | E89: 25 | F89: bu
B90: =Assumptions!B17 -> Sunflowers Confection | D90: 0.3 | E90: 1800 | F90: lb
B91: =Assumptions!B18 -> Sunflowers Oil | D91: 0.26 | E91: 2000 | F91: lb
B92: =Assumptions!B19 -> Peas | D92: 8.75 | E92: 55 | F92: bu
B93: =Assumptions!B20 -> Hybrid Fall Rye | D93: 5.5 | E93: 80 | F93: bu
B94: =Assumptions!B21 -> Canary Seed | D94: 0.35 | E94: 1550 | F94: lb
B95: =Assumptions!B22 -> Lentils | D95: 0.42 | E95: 1125 | F95: lb
B96: =Assumptions!B23 -> Buckwheat | D96: 17.5 | E96: 15 | F96: bu
B97: =Assumptions!B24 -> Hempseed | D97: 0.9 | E97: 750 | F97: lb
B98: =Assumptions!B25 -> Other | D98: 1 | E98: 1 | F98: bu
A100: Other Assumptions
A102: Crop Insurance: (2024 Rates)
A104: Created and maintained by | K104: =Intro!H15 -> January | L104: =Intro!I15 -> 2025
A105: For more information, contact your nearest
A106: Roy Arnott | E106: Darren Bond
A107: Farm Management Specialist | E107: Farm Management Specialist

Sheet Crop1
A2: . . . . . . . . . . . . . . . . . . . . . . . . . . . . . . . . . . . . . . . . . . . . . . . . . . | Z2: (Select Crop)
A3: Crop: | C3: Canola | G3: Acres: | H3: 1 | I3: =IF(F8="(enter name here)","",F8) ->  | Z3: Canola
Z4: Wheat
A5: Seed & Treatment: | O5: =IF($C$3="(select crop)","",VLOOKUP($C$3,Assumptions!$B$8:$G$25,2,FALSE)) -> 5 | P5: (enter name here) | Z5: Winter wheat
O6: =IF($C$3="(select crop)","",VLOOKUP($C$3,Assumptions!$B$8:$G$25,4,FALSE)) -> 16.5 | Z6: Soybeans
I7: Cost | J7: TOTAL | O7: =IF($C$3="(select crop)",0,VLOOKUP($C$3,Assumptions!$B$33:$F$50,2,FALSE)) -> 130 | Q7: =IF($C$3="(select crop)",0,VLOOKUP($C$3,Assumptions!$B$33:$F$50,3,FALSE)) -> 40 | R7: =IF($C$3="(select crop)",0,VLOOKUP($C$3,Assumptions!$B$33:$F$50,4,FALSE)) -> 0 | S7: =IF($C$3="(select crop)",0,VLOOKUP($C$3,Assumptions!$B$33:$F$50,5,FALSE)) -> 20 | Z7: Barley
B8: Seeding Rate | C8: =IF($C$3="(select crop)","",VLOOKUP($C$3,Assumptions!$B$8:$G$25,2,FALSE)) -> 5 | D8: =IF(C3="(select crop)","",VLOOKUP(C3,Assumptions!B8:G25,3,FALSE)) -> lb | E8: Variety: | F8: (enter name here) | I8: Per Acre | J8: COST | Z8: Oats
B9: Price per Unit | C9: =IF($C$3="(select crop)","",VLOOKUP($C$3,Assumptions!$B$8:$G$25,4,FALSE)) -> 16.5 | D9: =IF(C3="(select crop)","",VLOOKUP(C3,Assumptions!B8:G25,5,FALSE)) -> /lb | F9: =D8&" seed required: " -> lb seed required: | G9: =IF(C8="","",SUM(C8*H3)) -> 5 | I9: =IF(C8="",0,C8*C9) -> 82.5 | J9: =SUM($H$3*I9) -> 82.5 | Z9: Corn
Z10: Navy Beans
A11: Fertilizer | Z11: Flaxseed
Z12: Sunflowers Confection
B13: Actual Nutrient Required (lbs/acre) | Z13: Sunflowers Oil
B14: N | D14: P | E14: K | F14: S | H14: To Enter or Change Fertilizer Costs Click Here | Z14: Peas
B15: =IF($C$3="(select crop)",0,VLOOKUP($C$3,Assumptions!$B$33:$F$50,2,FALSE)) -> 130 | D15: =IF($C$3="(select crop)",0,VLOOKUP($C$3,Assumptions!$B$33:$F$50,3,FALSE)) -> 40 | E15: =IF($C$3="(select crop)",0,VLOOKUP($C$3,Assumptions!$B$33:$F$50,4,FALSE)) -> 0 | F15: =IF($C$3="(select crop)",0,VLOOKUP($C$3,Assumptions!$B$33:$F$50,5,FALSE)) -> 20 | Z15: Hybrid Fall Rye
B16: Pre-seeding | C16: 0 | Z16: Canary Seed
B17: Blend | C17: =T29 -> 130 | Z17: Lentils
B18: Supplemental | C18: 0 | Z18: Buckwheat
Z19: Hempseed
E20: Total lbs/acre | F20: Tonnes | G20: Cost | Z20: Other
B21: Fertilizer Type | E21: lbs/acre | F21: Required | G21: /acre | P21: =C16 -> 0 | S21: Cost | T21: N | U21: P | V21: K | W21: S
B22: Pre-seeding: | D22: ="Nitrogen ("&Fertilizer!E6&"-"&Fertilizer!F6&"-"&Fertilizer!G6&"-"&Fertilizer!H6&")" -> Nitrogen (82-0-0-0) | E22: =MAXA(0,(C16)/(Fertilizer!E6/100)) -> 0 | F22: =(E22*H3)/2204.6 -> 0 | G22: =P25 -> 0 | P22: =C18 -> 0 | S22: Tonne
O23: Total | P23: Total | S23: =G24*Fertilizer!C8 -> 52894.29691 | T23: =E24*Fertilizer!E8/100 -> 112.6666667 | U23: =E24*Fertilizer!F8/100 -> 0 | V23: =E24*Fertilizer!G8/100 -> 0 | W23: =E24*Fertilizer!H8/100 -> 0
B24: Blend: | D24: ="Nitrogen ("&Fertilizer!E8&"-"&Fertilizer!F8&"-"&Fertilizer!G8&"-"&Fertilizer!H8&")" -> Nitrogen (46-0-0-0) | E24: =MAXA(0,(B15-C16-C18-(T24+T25+T26))/(Fertilizer!E8/100)) -> 244.9275362 | F24: =(E24*H3)/2204.6 -> 0.1110984016 | G24: =P27 -> 76.65840132 | O24: Cost | P24: Cost/ac | S24: =G25*Fertilizer!C9 -> 0 | T24: =E25*Fertilizer!E9/100 -> 0 | U24: =E25*Fertilizer!F9/100 -> 0 | V24: =E25*Fertilizer!G9/100 -> 0 | W24: =E25*Fertilizer!H9/100 -> 0
D25: ="Phosphate ("&Fertilizer!E9&"-"&Fertilizer!F9&"-"&Fertilizer!G9&"-"&Fertilizer!H9&")" -> Phosphate (11-52-0-0) | E25: =MAXA(0,(D15-(U25+U26))/(Fertilizer!F9/100)) -> 0 | F25: =(E25*H3)/2204.6 -> 0 | G25: =P28 -> 0 | O25: =SUM(F22*Fertilizer!C6) -> 0 | P25: =SUM(E22*(Fertilizer!C6/2204.5855)) -> 0 | S25: =G26*Fertilizer!C10 -> 0 | T25: =E26*Fertilizer!E10/100 -> 0 | U25: =E26*Fertilizer!F10/100 -> 0 | V25: =E26*Fertilizer!G10/100 -> 0 | W25: =E26*Fertilizer!H10/100 -> 0
D26: ="Potash ("&Fertilizer!E10&"-"&Fertilizer!F10&"-"&Fertilizer!G10&"-"&Fertilizer!H10&")" -> Potash (0-0-60-0) | E26: =MAXA(0,(E15-(V26))/(Fertilizer!G10/100)) -> 0 | F26: =(E26*H3)/2204.6 -> 0 | G26: =P29 -> 0 | S26: =G27*Fertilizer!C11 -> 78599.80935 | T26: =E27*Fertilizer!E11/100 -> 17.33333333 | U26: =E27*Fertilizer!F11/100 -> 44 | V26: =E27*Fertilizer!G11/100 -> 0 | W26: =E27*Fertilizer!H11/100 -> 20
D27: ="Sulphur ("&Fertilizer!E11&"-"&Fertilizer!F11&"-"&Fertilizer!G11&"-"&Fertilizer!H11&")" -> Sulphur (13-33-0-15) | E27: =F15/(Fertilizer!H11/100) -> 133.3333333 | F27: =(E27*H3)/2204.6 -> 0.06047960325 | G27: =P30 -> 68.94720119 | O27: =SUM(F24*Fertilizer!C8) -> 76.65789712 | P27: =SUM(E24*(Fertilizer!C8/2204.5855)) -> 76.65840132 | S27: =Fertilizer!C12 -> 0
D28: Blend Total | E28: =SUM(E24:E27) -> 378.2608696 | F28: =SUM(F24:F27) -> 0.1715780049 | G28: =SUM(G24:G27) -> 145.6056025 | I28: Cost | J28: TOTAL | O28: =SUM(F25*Fertilizer!C9) -> 0 | P28: =SUM(E25*(Fertilizer!C9/2204.5855)) -> 0 | S28: =SUM(S23:S27) -> 131494.1063
I29: Per Acre | J29: COST | O29: =SUM(F26*Fertilizer!C10) -> 0 | P29: =SUM(E26*(Fertilizer!C10/2204.5855)) -> 0 | S29: Nutrient contribution | T29: =TRUNC(SUM(T23:T26),1) -> 130 | U29: =TRUNC(SUM(U23:U26),1) -> 44 | V29: =TRUNC(SUM(V23:V26),1) -> 0 | W29: =TRUNC(SUM(W23:W26),1) -> 20
B30: Supplemental: | D30: ="Nitrogen ("&Fertilizer!E14&"-"&Fertilizer!F14&"-"&Fertilizer!G14&"-"&Fertilizer!H14&")" -> Nitrogen (28-0-0-0) | E30: =MAXA(0,(C18)/(Fertilizer!E14/100)) -> 0 | F30: =(E30*H3)/2204.6 -> 0 | G30: =P33 -> 0 | I30: =P36 -> 145.6056025 | J30: =I30*H3 -> 145.6056025 | O30: =SUM(F27*Fertilizer!C11) -> 68.94674771 | P30: =SUM(E27*(Fertilizer!C11/2204.5855)) -> 68.94720119 | S30: Guarentee | T30: =TRUNC(T29/E28*100,1) -> 34.3 | U30: =TRUNC(U29/E28*100,1) -> 11.6 | V30: =TRUNC(V29/E28*100,1) -> 0 | W30: =TRUNC(W29/E28*100,1) -> 5.2
O31: =SUM(F28*Fertilizer!C12) -> 0 | P31: =SUM(E28*(Fertilizer!C12/2204.5855)) -> 0
A32: Crop Protection
O33: =SUM(F30*Fertilizer!C14) -> 0 | P33: =SUM(E30*(Fertilizer!C14/2204.5855)) -> 0
A34: Herbicide | G34: (Complete chart below OR Enter total cost per acre) | H34: Total Cost | I34: =IF($C$3="(select crop)",0,IF(SUM(I38:I43)>0," - ",VLOOKUP($C$3,Assumptions!$B$57:$G$74,2,FALSE))) -> 30 | Q34: =IF($C$3="(select crop)",0,IF(SUM(Q38:Q43)>0," - ",VLOOKUP($C$3,Assumptions!$B$57:$G$74,2,FALSE))) -> 30
B36: Product | C36: Unit Type | D36: Acres/unit | E36: Unit size | F36: $/Unit | G36: Rate/Acre | H36: Units Req'd | I36: Cost/Acre | J36: Total Cost | O36: =SUM(O25:O33) -> 145.6046448 | P36: =SUM(P25:P33) -> 145.6056025
B37: Eg: glyphosate | C37: jug | D37: 20 | E37: 10 | F37: 80 | G37: 0.5 | H37: 10 | I37: 4 | J37: 800
G38: =IF(D38>0,SUM(E38/D38),0) -> 0 | H38: =IF(D38>0,SUM($H$3/D38),0) -> 0 | I38: =IF(D38>0,SUM(F38/D38),0) -> 0 | J38: =IF(I38=0,0,SUM(I38*$H$3)) -> 0
G39: 0 | H39: 0 | I39: 0 | J39: 0
G40: 0 | H40: 0 | I40: 0 | J40: 0
G41: 0 | H41: 0 | I41: 0 | J41: 0
G42: 0 | H42: 0 | I42: 0 | J42: 0
G43: 0 | H43: 0 | I43: 0 | J43: 0
H44: TOTAL | I44: =IF(SUM(I38:I43)>0,SUM(I38:I43),I34) -> 30 | J44: =IF(SUM(J38:J43)>0,SUM(J38:J43),I44*$H$3) -> 30
A46: Fungicide | G46: (Complete chart below OR Enter total cost per acre) | H46: Total Cost | I46: =IF($C$3="(select crop)",0,IF(SUM(I49:I52)>0," - ",VLOOKUP($C$3,Assumptions!$B$57:$G$74,4,FALSE))) -> 22.75 | Q46: =IF($C$3="(select crop)",0,IF(SUM(Q49:Q52)>0," - ",VLOOKUP($C$3,Assumptions!$B$57:$G$74,4,FALSE))) -> 22.75
B48: Product | C48: Unit Type | D48: Acres/unit | E48: Unit size | F48: $/Unit | G48: Rate/Acre | H48: Units Req'd | I48: Cost/Acre | J48: Total Cost
G49: =IF(D49>0,SUM(E49/D49),0) -> 0 | H49: =IF(D49>0,SUM($H$3/D49),0) -> 0 | I49: =IF(D49>0,SUM(F49/D49),0) -> 0 | J49: =IF(I49=0,0,SUM(I49*$H$3)) -> 0
G50: =IF(D50>0,SUM(E50/D50),0) -> 0 | H50: =IF(D50>0,SUM($H$3/D50),0) -> 0 | I50: =IF(D50>0,SUM(F50/D50),0) -> 0 | J50: =IF(I50=0,0,SUM(I50*$H$3)) -> 0
G51: =IF(D51>0,SUM(E51/D51),0) -> 0 | H51: =IF(D51>0,SUM($H$3/D51),0) -> 0 | I51: =IF(D51>0,SUM(F51/D51),0) -> 0 | J51: =IF(I51=0,0,SUM(I51*$H$3)) -> 0
G52: =IF(D52>0,SUM(E52/D52),0) -> 0 | H52: =IF(D52>0,SUM($H$3/D52),0) -> 0 | I52: =IF(D52>0,SUM(F52/D52),0) -> 0 | J52: =IF(I52=0,0,SUM(I52*$H$3)) -> 0
H53: TOTAL | I53: =IF(SUM(I49:I52)>0,SUM(I49:I52),I46) -> 22.75 | J53: =IF(SUM(J49:J52)>0,SUM(J49:J52),I53*$H$3) -> 22.75
A55: Insecticide | G55: (Complete chart below OR Enter total cost per acre) | H55: Total Cost | I55: =IF($C$3="(select crop)",0,IF(SUM(I58:I61)>0," - ",VLOOKUP($C$3,Assumptions!$B$57:$G$74,6,FALSE))) -> 5.75 | Q55: =IF($C$3="(select crop)",0,IF(SUM(Q58:Q61)>0," - ",VLOOKUP($C$3,Assumptions!$B$57:$G$74,6,FALSE))) -> 5.75
B57: Product | C57: Unit Type | D57: Acres/unit | E57: Unit size | F57: $/Unit | G57: Rate/Acre | H57: Units Req'd | I57: Cost/Acre | J57: Total Cost
G58: =IF(D58>0,SUM(E58/D58),0) -> 0 | H58: =IF(D58>0,SUM($H$3/D58),0) -> 0 | I58: =IF(D58>0,SUM(F58/D58),0) -> 0 | J58: =IF(I58=0,0,SUM(I58*$H$3)) -> 0
G59: =IF(D59>0,SUM(E59/D59),0) -> 0 | H59: =IF(D59>0,SUM($H$3/D59),0) -> 0 | I59: =IF(D59>0,SUM(F59/D59),0) -> 0 | J59: =IF(I59=0,0,SUM(I59*$H$3)) -> 0
G60: =IF(D60>0,SUM(E60/D60),0) -> 0 | H60: =IF(D60>0,SUM($H$3/D60),0) -> 0 | I60: =IF(D60>0,SUM(F60/D60),0) -> 0 | J60: =IF(I60=0,0,SUM(I60*$H$3)) -> 0
G61: =IF(D61>0,SUM(E61/D61),0) -> 0 | H61: =IF(D61>0,SUM($H$3/D61),0) -> 0 | I61: =IF(D61>0,SUM(F61/D61),0) -> 0 | J61: =IF(I61=0,0,SUM(I61*$H$3)) -> 0
H62: TOTAL | I62: =IF(SUM(I58:I61)>0,SUM(I58:I61),I55) -> 5.75 | J62: =IF(SUM(J58:J61)>0,SUM(J58:J61),I62*$H$3) -> 5.75
I64: Cost | J64: TOTAL
I65: Per Acre | J65: COST
H66: TOTAL Crop Protection | I66: =SUM(I62+I53+I44) -> 58.5 | J66: =SUM(J62+J53+J44) -> 58.5
A68: =C3&" Production Cost Summary" -> Canola Production Cost Summary
I70: Cost | J70: TOTAL
I71: Per Acre | J71: COST
E72: A. Operating Costs | I72: ='Summary-Acre'!D27 -> 395.3577612 | J72: ='Summary-Total'!F27 -> 395.3577612
E73: B. Fixed Costs | I73: ='Summary-Acre'!D33 -> 0 | J73: ='Summary-Total'!F33 -> 0
E74: C. Ownership | I74: ='Summary-Acre'!D37 -> 25 | J74: ='Summary-Total'!F37 -> 25
E75: Total Costs | I75: ='Summary-Acre'!D39 -> 420.3577612 | J75: ='Summary-Total'!F39 -> 420.3577612
A77: Estimated Farmgate
B78: Yield per acre (bu or lb.) | F78: =IF($C$3="(select crop)",0,VLOOKUP($C$3,Assumptions!$B$81:$F$98,4,FALSE)) -> 45 | O78: =IF($C$3="(select crop)",0,VLOOKUP($C$3,Assumptions!$B$81:$F$98,4,FALSE)) -> 45
B79: Unit type | F79: =IF($C$3="(select crop)","",VLOOKUP($C$3,Assumptions!$B$81:$F$98,5,FALSE)) -> bu | O79: =IF($C$3="(select crop)","",VLOOKUP($C$3,Assumptions!$B$81:$F$98,5,FALSE)) -> bu
B80: ="Total Units ("&F79&")" -> Total Units (bu) | F80: =SUM(F78*H3) -> 45
A82: Breakeven Analysis - Total Unsold Production
A84: ="Breakeven Price Per Unit ("&F79&")" -> Breakeven Price Per Unit (bu)
B85: Operating Costs | F85: =IF(I72=0,0,SUM(I72/F78)) -> 8.785728028
B86: Operating & Fixed Costs | F86: =IF(I72+I73=0,0,SUM((I72+I73)/F78)) -> 8.785728028
B87: Total Costs | F87: =IF(I75=0,0,SUM(I75/F78)) -> 9.341283583
A89: Marketing Analysis
F91: Total
B92: Sale Date | C92: Grain Company / Location | F92: =F79&" Sold" -> bu Sold | G92: ="$/"&F79 -> $/bu
B93: mm/dd | C93: grain company, location | F93: 0 | G93: 0 | O93: mm/dd | P93: grain company, location | S93: 0 | T93: 0
F94: 0 | G94: 0 | S94: 0 | T94: 0
F95: 0 | G95: 0 | S95: 0 | T95: 0
F96: 0 | G96: 0 | S96: 0 | T96: 0
F97: 0 | G97: 0 | S97: 0 | T97: 0
F98: 0 | G98: 0 | S98: 0 | T98: 0
F99: 0 | G99: 0 | S99: 0 | T99: 0
F100: 0 | G100: 0 | S100: 0 | T100: 0
F101: 0 | G101: 0 | S101: 0 | T101: 0
F102: 0 | G102: 0 | S102: 0 | T102: 0
F103: 0 | G103: 0 | S103: 0 | T103: 0
F104: 0 | G104: 0 | S104: 0 | T104: 0
F105: 0 | G105: 0 | S105: 0 | T105: 0
F106: 0 | G106: 0 | S106: 0 | T106: 0
F107: 0 | G107: 0 | S107: 0 | T107: 0
E108: ="Total "&F79&"Sold / Average Price per "&F79 -> Total buSold / Average Price per bu | F108: =SUM(F93:F107) -> 0 | G108: =IF(F108=0,0,SUM((F93*G93)+(F94*G94)+(F95*G95)+(F96*G96)+(F97*G97)+(F98*G98)+(F99*G99)+(F100*G100)+(F101*G101)+(F102*G102)+(F103*G103)+(F104*G104)+(F105*G105)+(F106*G106)+(F107*G107))/F108) -> 0
E109: ="Total Remaining Unsold "&F79 -> Total Remaining Unsold bu | F109: =F80-F108 -> 45 | G109: =IF(F109=0,0,SUM(F109/F80)) -> 1
A111: ="Breakeven Price Per Unit (on remaining unsold "&F79&")" -> Breakeven Price Per Unit (on remaining unsold bu)
B112: Operating Costs | F112: =IF(F109=0,0,IF(SUM(J72-(F108*G108)-(F117*H3))/F109<0,0,SUM(J72-(F108*G108)-(F117*H3))/F109)) -> 8.785728028
B113: Operating & Fixed Costs | F113: =IF(F109=0,0,IF(SUM(J72+J73-(F108*G108)-(F117*H3))/F109<0,0,SUM(J72+J73-(F108*G108)-(F117*H3))/F109)) -> 8.785728028
B114: Total Costs | F114: =IF(F109=0,0,IF(SUM(J75-(F108*G108)-(F117*H3))/F109<0,0,SUM(J75-(F108*G108)-(F117*H3))/F109)) -> 9.341283583
A116: ="Estimated Market Price (on remaining unsold "&F79&")" -> Estimated Market Price (on remaining unsold bu) | F116: =IF($C$3="(select crop)",0,VLOOKUP($C$3,Assumptions!$B$81:$F$98,3,FALSE)) -> 13.25 | O116: =IF($C$3="(select crop)",0,VLOOKUP($C$3,Assumptions!$B$81:$F$98,3,FALSE)) -> 13.25
A117: Other Income Per Acre (ie. Straw) | F117: 0
A118: ="Estimated Average Net Market Price (per "&F79&")" -> Estimated Average Net Market Price (per bu) | F118: =IF(H3=0,0,SUM(H123/F80)) -> 13.25
A120: Profitability Analysis
A122: Estimated: | F122: Per Acre | G122: Per Bu | H122: Total
B123: Total Gross Revenue | F123: =IF(H3=0,0,SUM(H123/H3)) -> 596.25 | G123: =IF(H123=0,0,H123/$F$80) -> 13.25 | H123: =(F108*G108)+(F109*F116)+(F117*H3) -> 596.25
A125: Marginal Returns | F125: Per Acre | G125: Per Bu | H125: Total
B126: Over Operating Costs | F126: ='Summary-Acre'!D50 -> 200.8922388 | G126: =IF(H126="","",H126/$F$80) -> 4.464271972 | H126: ='Summary-Total'!F50 -> 200.8922388
B127: Over Operating & Fixed Costs | F127: ='Summary-Acre'!D51 -> 200.8922388 | G127: =IF(H127="","",H127/$F$80) -> 4.464271972 | H127: ='Summary-Total'!F51 -> 200.8922388
B128: Over Total Costs (Net Profit) | F128: ='Summary-Acre'!D52 -> 175.8922388 | G128: =IF(H128="","",H128/$F$80) -> 3.908716417 | H128: ='Summary-Total'!F52 -> 175.8922388
B129: Operating Expense Ratio | F129: ='Summary-Acre'!D54 -> 0.6630738134
A131: Breakeven Analysis
A133: Breakeven Yield (Bu or lb.) | F133: Per Acre
B134: Operating Costs | F134: =IF(I72=0,0,SUM(I72/F118)) -> 29.8383216
B135: Operating & Fixed Costs | F135: =IF(I72+I73=0,0,SUM((I72+I73)/F118)) -> 29.8383216
B136: Total Costs | F136: =IF(I75=0,0,SUM(I75/F118)) -> 31.72511406
A138: Note: This budget is only a guide and is not intended as an in depth study of the cost of production of this industry. Interpretation and utilization of this information is the responsibility of the user.

Sheet 2
A2: . . . . . . . . . . . . . . . . . . . . . . . . . . . . . . . . . . . . . . . . . . . . . . . . . . | Z2: (Select Crop)
A3: Crop: | C3: Wheat | G3: Acres: | H3: 1 | I3: =IF(F8="(enter name here)","",F8) ->  | Z3: Canola
Z4: Wheat
A5: Seed & Treatment: | O5: =IF($C$3="(select crop)","",VLOOKUP($C$3,Assumptions!$B$8:$G$25,2,FALSE)) -> 2 | P5: (enter name here) | Z5: Winter wheat
O6: =IF($C$3="(select crop)","",VLOOKUP($C$3,Assumptions!$B$8:$G$25,4,FALSE)) -> 17 | Z6: Soybeans
I7: Cost | J7: TOTAL | O7: =IF($C$3="(select crop)",0,VLOOKUP($C$3,Assumptions!$B$33:$F$50,2,FALSE)) -> 110 | Q7: =IF($C$3="(select crop)",0,VLOOKUP($C$3,Assumptions!$B$33:$F$50,3,FALSE)) -> 40 | R7: =IF($C$3="(select crop)",0,VLOOKUP($C$3,Assumptions!$B$33:$F$50,4,FALSE)) -> 10 | S7: =IF($C$3="(select crop)",0,VLOOKUP($C$3,Assumptions!$B$33:$F$50,5,FALSE)) -> 5 | Z7: Barley
B8: Seeding Rate | C8: =IF($C$3="(select crop)","",VLOOKUP($C$3,Assumptions!$B$8:$G$25,2,FALSE)) -> 2 | D8: =IF(C3="(select crop)","",VLOOKUP(C3,Assumptions!B8:G25,3,FALSE)) -> bu | E8: Variety: | F8: (enter name here) | I8: Per Acre | J8: COST | Z8: Oats
B9: Price per Unit | C9: =IF($C$3="(select crop)","",VLOOKUP($C$3,Assumptions!$B$8:$G$25,4,FALSE)) -> 17 | D9: =IF(C3="(select crop)","",VLOOKUP(C3,Assumptions!B8:G25,5,FALSE)) -> /bu | F9: =D8&" seed required: " -> bu seed required: | G9: =IF(C8="","",SUM(C8*H3)) -> 2 | I9: =IF(C8="",0,C8*C9) -> 34 | J9: =SUM($H$3*I9) -> 34 | Z9: Corn
Z10: Navy Beans
A11: Fertilizer | Z11: Flaxseed
Z12: Sunflowers Confection
B13: Actual Nutrient Required (lbs/acre) | Z13: Sunflowers Oil
B14: N | D14: P | E14: K | F14: S | H14: To Enter or Change Fertilizer Costs Click Here | Z14: Peas
B15: =IF($C$3="(select crop)",0,VLOOKUP($C$3,Assumptions!$B$33:$F$50,2,FALSE)) -> 110 | D15: =IF($C$3="(select crop)",0,VLOOKUP($C$3,Assumptions!$B$33:$F$50,3,FALSE)) -> 40 | E15: =IF($C$3="(select crop)",0,VLOOKUP($C$3,Assumptions!$B$33:$F$50,4,FALSE)) -> 10 | F15: =IF($C$3="(select crop)",0,VLOOKUP($C$3,Assumptions!$B$33:$F$50,5,FALSE)) -> 5 | Z15: Hybrid Fall Rye
B16: Pre-seeding | C16: 0 | Z16: Canary Seed
B17: Blend | C17: =T29 -> 110 | Z17: Lentils
B18: Supplemental | C18: 0 | Z18: Buckwheat
Z19: Hempseed
E20: Total lbs/acre | F20: Tonnes | G20: Cost | Z20: Other
B21: Fertilizer Type | E21: lbs/acre | F21: Required | G21: /acre | P21: =C16 -> 0 | S21: Cost | T21: N | U21: P | V21: K | W21: S
B22: Pre-seeding: | D22: ="Nitrogen ("&Fertilizer!E6&"-"&Fertilizer!F6&"-"&Fertilizer!G6&"-"&Fertilizer!H6&")" -> Nitrogen (82-0-0-0) | E22: =MAXA(0,(C16)/(Fertilizer!E6/100)) -> 0 | F22: =(E22*H3)/2204.6 -> 0 | G22: =P25 -> 0 | P22: =C18 -> 0 | S22: Tonne
O23: Total | P23: Total | S23: =G24*Fertilizer!C8 -> 46727.91011 | T23: =E24*Fertilizer!E8/100 -> 99.53205128 | U23: =E24*Fertilizer!F8/100 -> 0 | V23: =E24*Fertilizer!G8/100 -> 0 | W23: =E24*Fertilizer!H8/100 -> 0
B24: Blend: | D24: ="Nitrogen ("&Fertilizer!E8&"-"&Fertilizer!F8&"-"&Fertilizer!G8&"-"&Fertilizer!H8&")" -> Nitrogen (46-0-0-0) | E24: =MAXA(0,(B15-C16-C18-(T24+T25+T26))/(Fertilizer!E8/100)) -> 216.3740245 | F24: =(E24*H3)/2204.6 -> 0.09814661368 | G24: =P27 -> 67.72160886 | O24: Cost | P24: Cost/ac | S24: =G25*Fertilizer!C9 -> 32875.8818 | T24: =E25*Fertilizer!E9/100 -> 6.134615385 | U24: =E25*Fertilizer!F9/100 -> 29 | V24: =E25*Fertilizer!G9/100 -> 0 | W24: =E25*Fertilizer!H9/100 -> 0
D25: ="Phosphate ("&Fertilizer!E9&"-"&Fertilizer!F9&"-"&Fertilizer!G9&"-"&Fertilizer!H9&")" -> Phosphate (11-52-0-0) | E25: =MAXA(0,(D15-(U25+U26))/(Fertilizer!F9/100)) -> 55.76923077 | F25: =(E25*H3)/2204.6 -> 0.02529675713 | G25: =P28 -> 28.8384928 | O25: =SUM(F22*Fertilizer!C6) -> 0 | P25: =SUM(E22*(Fertilizer!C6/2204.5855)) -> 0 | S25: =G26*Fertilizer!C10 -> 2370.816041 | T25: =E26*Fertilizer!E10/100 -> 0 | U25: =E26*Fertilizer!F10/100 -> 0 | V25: =E26*Fertilizer!G10/100 -> 10 | W25: =E26*Fertilizer!H10/100 -> 0
D26: ="Potash ("&Fertilizer!E10&"-"&Fertilizer!F10&"-"&Fertilizer!G10&"-"&Fertilizer!H10&")" -> Potash (0-0-60-0) | E26: =MAXA(0,(E15-(V26))/(Fertilizer!G10/100)) -> 16.66666667 | F26: =(E26*H3)/2204.6 -> 0.007559950407 | G26: =P29 -> 4.233600073 | S26: =G27*Fertilizer!C11 -> 19649.95234 | T26: =E27*Fertilizer!E11/100 -> 4.333333333 | U26: =E27*Fertilizer!F11/100 -> 11 | V26: =E27*Fertilizer!G11/100 -> 0 | W26: =E27*Fertilizer!H11/100 -> 5
D27: ="Sulphur ("&Fertilizer!E11&"-"&Fertilizer!F11&"-"&Fertilizer!G11&"-"&Fertilizer!H11&")" -> Sulphur (13-33-0-15) | E27: =F15/(Fertilizer!H11/100) -> 33.33333333 | F27: =(E27*H3)/2204.6 -> 0.01511990081 | G27: =P30 -> 17.2368003 | O27: =SUM(F24*Fertilizer!C8) -> 67.72116344 | P27: =SUM(E24*(Fertilizer!C8/2204.5855)) -> 67.72160886 | S27: =Fertilizer!C12 -> 0
D28: Blend Total | E28: =SUM(E24:E27) -> 322.1432553 | F28: =SUM(F24:F27) -> 0.146123222 | G28: =SUM(G24:G27) -> 118.030502 | I28: Cost | J28: TOTAL | O28: =SUM(F25*Fertilizer!C9) -> 28.83830313 | P28: =SUM(E25*(Fertilizer!C9/2204.5855)) -> 28.8384928 | S28: =SUM(S23:S27) -> 101624.5603
I29: Per Acre | J29: COST | O29: =SUM(F26*Fertilizer!C10) -> 4.233572228 | P29: =SUM(E26*(Fertilizer!C10/2204.5855)) -> 4.233600073 | S29: Nutrient contribution | T29: =TRUNC(SUM(T23:T26),1) -> 110 | U29: =TRUNC(SUM(U23:U26),1) -> 40 | V29: =TRUNC(SUM(V23:V26),1) -> 10 | W29: =TRUNC(SUM(W23:W26),1) -> 5
B30: Supplemental: | D30: ="Nitrogen ("&Fertilizer!E14&"-"&Fertilizer!F14&"-"&Fertilizer!G14&"-"&Fertilizer!H14&")" -> Nitrogen (28-0-0-0) | E30: =MAXA(0,(C18)/(Fertilizer!E14/100)) -> 0 | F30: =(E30*H3)/2204.6 -> 0 | G30: =P33 -> 0 | I30: =P36 -> 118.030502 | J30: =SUM(I30*H3) -> 118.030502 | O30: =SUM(F27*Fertilizer!C11) -> 17.23668693 | P30: =SUM(E27*(Fertilizer!C11/2204.5855)) -> 17.2368003 | S30: Guarentee | T30: =TRUNC(T29/E28*100,1) -> 34.1 | U30: =TRUNC(U29/E28*100,1) -> 12.4 | V30: =TRUNC(V29/E28*100,1) -> 3.1 | W30: =TRUNC(W29/E28*100,1) -> 1.5
O31: =SUM(F28*Fertilizer!C12) -> 0 | P31: =SUM(E28*(Fertilizer!C12/2204.5855)) -> 0
A32: Crop Protection
O33: =SUM(F30*Fertilizer!C14) -> 0 | P33: =SUM(E30*(Fertilizer!C14/2204.5855)) -> 0
A34: Herbicide | G34: (Complete chart below OR Enter total cost per acre) | H34: Total Cost | I34: =IF($C$3="(select crop)",0,IF(SUM(I38:I43)>0," - ",VLOOKUP($C$3,Assumptions!$B$57:$G$74,2,FALSE))) -> 35.75 | Q34: =IF($C$3="(select crop)",0,IF(SUM(Q38:Q43)>0," - ",VLOOKUP($C$3,Assumptions!$B$57:$G$74,2,FALSE))) -> 35.75
B36: Product | C36: Unit Type | D36: Acres/unit | E36: Unit size | F36: $/Unit | G36: Rate/Acre | H36: Units Req'd | I36: Cost/Acre | J36: Total Cost | O36: =SUM(O25:O33) -> 118.0297257 | P36: =SUM(P25:P33) -> 118.030502
B37: Eg: glyphosate | C37: jug | D37: 20 | E37: 10 | F37: 80 | G37: 0.5 | H37: 10 | I37: 4 | J37: 800
G38: =IF(D38>0,SUM(E38/D38),0) -> 0 | H38: =IF(D38>0,SUM($H$3/D38),0) -> 0 | I38: =IF(D38>0,SUM(F38/D38),0) -> 0 | J38: =IF(I38=0,0,SUM(I38*$H$3)) -> 0
G39: 0 | H39: 0 | I39: 0 | J39: 0
G40: 0 | H40: 0 | I40: 0 | J40: 0
G41: 0 | H41: 0 | I41: 0 | J41: 0
G42: 0 | H42: 0 | I42: 0 | J42: 0
G43: 0 | H43: 0 | I43: 0 | J43: 0
H44: TOTAL | I44: =IF(SUM(I38:I43)>0,SUM(I38:I43),I34) -> 35.75 | J44: =IF(SUM(J38:J43)>0,SUM(J38:J43),I44*$H$3) -> 35.75
A46: Fungicide | G46: (Complete chart below OR Enter total cost per acre) | H46: Total Cost | I46: =IF($C$3="(select crop)",0,IF(SUM(I49:I52)>0," - ",VLOOKUP($C$3,Assumptions!$B$57:$G$74,4,FALSE))) -> 19.5 | Q46: =IF($C$3="(select crop)",0,IF(SUM(Q49:Q52)>0," - ",VLOOKUP($C$3,Assumptions!$B$57:$G$74,4,FALSE))) -> 19.5
B48: Product | C48: Unit Type | D48: Acres/unit | E48: Unit size | F48: $/Unit | G48: Rate/Acre | H48: Units Req'd | I48: Cost/Acre | J48: Total Cost
G49: =IF(D49>0,SUM(E49/D49),0) -> 0 | H49: =IF(D49>0,SUM($H$3/D49),0) -> 0 | I49: =IF(D49>0,SUM(F49/D49),0) -> 0 | J49: =IF(I49=0,0,SUM(I49*$H$3)) -> 0
G50: =IF(D50>0,SUM(E50/D50),0) -> 0 | H50: =IF(D50>0,SUM($H$3/D50),0) -> 0 | I50: =IF(D50>0,SUM(F50/D50),0) -> 0 | J50: =IF(I50=0,0,SUM(I50*$H$3)) -> 0
G51: =IF(D51>0,SUM(E51/D51),0) -> 0 | H51: =IF(D51>0,SUM($H$3/D51),0) -> 0 | I51: =IF(D51>0,SUM(F51/D51),0) -> 0 | J51: =IF(I51=0,0,SUM(I51*$H$3)) -> 0
G52: =IF(D52>0,SUM(E52/D52),0) -> 0 | H52: =IF(D52>0,SUM($H$3/D52),0) -> 0 | I52: =IF(D52>0,SUM(F52/D52),0) -> 0 | J52: =IF(I52=0,0,SUM(I52*$H$3)) -> 0
H53: TOTAL | I53: =IF(SUM(I49:I52)>0,SUM(I49:I52),I46) -> 19.5 | J53: =IF(SUM(J49:J52)>0,SUM(J49:J52),I53*$H$3) -> 19.5
A55: Insecticide | G55: (Complete chart below OR Enter total cost per acre) | H55: Total Cost | I55: =IF($C$3="(select crop)",0,IF(SUM(I58:I61)>0," - ",VLOOKUP($C$3,Assumptions!$B$57:$G$74,6,FALSE))) -> 0 | Q55: =IF($C$3="(select crop)",0,IF(SUM(Q58:Q61)>0," - ",VLOOKUP($C$3,Assumptions!$B$57:$G$74,6,FALSE))) -> 0
B57: Product | C57: Unit Type | D57: Acres/unit | E57: Unit size | F57: $/Unit | G57: Rate/Acre | H57: Units Req'd | I57: Cost/Acre | J57: Total Cost
G58: =IF(D58>0,SUM(E58/D58),0) -> 0 | H58: =IF(D58>0,SUM($H$3/D58),0) -> 0 | I58: =IF(D58>0,SUM(F58/D58),0) -> 0 | J58: =IF(I58=0,0,SUM(I58*$H$3)) -> 0
G59: =IF(D59>0,SUM(E59/D59),0) -> 0 | H59: =IF(D59>0,SUM($H$3/D59),0) -> 0 | I59: =IF(D59>0,SUM(F59/D59),0) -> 0 | J59: =IF(I59=0,0,SUM(I59*$H$3)) -> 0
G60: =IF(D60>0,SUM(E60/D60),0) -> 0 | H60: =IF(D60>0,SUM($H$3/D60),0) -> 0 | I60: =IF(D60>0,SUM(F60/D60),0) -> 0 | J60: =IF(I60=0,0,SUM(I60*$H$3)) -> 0
G61: =IF(D61>0,SUM(E61/D61),0) -> 0 | H61: =IF(D61>0,SUM($H$3/D61),0) -> 0 | I61: =IF(D61>0,SUM(F61/D61),0) -> 0 | J61: =IF(I61=0,0,SUM(I61*$H$3)) -> 0
H62: TOTAL | I62: =IF(SUM(I58:I61)>0,SUM(I58:I61),I55) -> 0 | J62: =IF(SUM(J58:J61)>0,SUM(J58:J61),I62*$H$3) -> 0
I64: Cost | J64: TOTAL
I65: Per Acre | J65: COST
H66: TOTALCrop Protection | I66: =SUM(I62+I53+I44) -> 55.25 | J66: =SUM(J62+J53+J44) -> 55.25
A68: =C3&" Production Cost Summary" -> Wheat Production Cost Summary
I70: Cost | J70: TOTAL
I71: Per Acre | J71: COST
E72: A. Operating Costs | I72: ='Summary-Acre'!E27 -> 313.5602869 | J72: ='Summary-Total'!G27 -> 313.5602869
E73: B. Fixed Costs | I73: ='Summary-Acre'!E33 -> 0 | J73: ='Summary-Total'!G33 -> 0
E74: C. Ownership | I74: ='Summary-Acre'!E37 -> 25 | J74: ='Summary-Total'!G37 -> 25
E75: Total Costs | I75: ='Summary-Acre'!E39 -> 338.5602869 | J75: ='Summary-Total'!G39 -> 338.5602869
A77: Estimated Farmgate
B78: Yield per acre (bu or lb.) | F78: =IF($C$3="(select crop)",0,VLOOKUP($C$3,Assumptions!$B$81:$F$98,4,FALSE)) -> 65 | O78: =IF($C$3="(select crop)",0,VLOOKUP($C$3,Assumptions!$B$81:$F$98,4,FALSE)) -> 65
B79: Unit type | F79: =IF($C$3="(select crop)","",VLOOKUP($C$3,Assumptions!$B$81:$F$98,5,FALSE)) -> bu | O79: =IF($C$3="(select crop)","",VLOOKUP($C$3,Assumptions!$B$81:$F$98,5,FALSE)) -> bu
B80: ="Total Units ("&F79&")" -> Total Units (bu) | F80: =SUM(F78*H3) -> 65
A82: Breakeven Analysis - Total Unsold Production
A84: ="Breakeven Price Per Unit ("&F79&")" -> Breakeven Price Per Unit (bu)
B85: Operating Costs | F85: =IF(I72=0,0,SUM(I72/F78)) -> 4.824004413
B86: Operating & Fixed Costs | F86: =IF(I72+I73=0,0,SUM((I72+I73)/F78)) -> 4.824004413
B87: Total Costs | F87: =IF(I75=0,0,SUM(I75/F78)) -> 5.208619798
A89: Marketing Analysis
F91: Total
B92: Sale Date | C92: Grain Company / Location | F92: =F79&" Sold" -> bu Sold | G92: ="$/"&F79 -> $/bu
B93: mm/dd | C93: grain company, location | F93: 0 | G93: 0 | O93: mm/dd | P93: grain company, location | S93: 0 | T93: 0
F94: 0 | G94: 0 | S94: 0 | T94: 0
F95: 0 | G95: 0 | S95: 0 | T95: 0
F96: 0 | G96: 0 | S96: 0 | T96: 0
F97: 0 | G97: 0 | S97: 0 | T97: 0
F98: 0 | G98: 0 | S98: 0 | T98: 0
F99: 0 | G99: 0 | S99: 0 | T99: 0
F100: 0 | G100: 0 | S100: 0 | T100: 0
F101: 0 | G101: 0 | S101: 0 | T101: 0
F102: 0 | G102: 0 | S102: 0 | T102: 0
F103: 0 | G103: 0 | S103: 0 | T103: 0
F104: 0 | G104: 0 | S104: 0 | T104: 0
F105: 0 | G105: 0 | S105: 0 | T105: 0
F106: 0 | G106: 0 | S106: 0 | T106: 0
F107: 0 | G107: 0 | S107: 0 | T107: 0
E108: ="Total "&F79&"Sold / Average Price per "&F79 -> Total buSold / Average Price per bu | F108: =SUM(F93:F107) -> 0 | G108: =IF(F108=0,0,SUM((F93*G93)+(F94*G94)+(F95*G95)+(F96*G96)+(F97*G97)+(F98*G98)+(F99*G99)+(F100*G100)+(F101*G101)+(F102*G102)+(F103*G103)+(F104*G104)+(F105*G105)+(F106*G106)+(F107*G107))/F108) -> 0
E109: ="Total Remaining Unsold "&F79 -> Total Remaining Unsold bu | F109: =F80-F108 -> 65 | G109: =IF(F109=0,0,SUM(F109/F80)) -> 1
A111: ="Breakeven Price Per Unit (on remaining unsold "&F79&")" -> Breakeven Price Per Unit (on remaining unsold bu)
B112: Operating Costs | F112: =IF(F109=0,0,IF(SUM(J72-(F108*G108)-(F117*H3))/F109<0,0,SUM(J72-(F108*G108)-(F117*H3))/F109)) -> 4.824004413
B113: Operating & Fixed Costs | F113: =IF(F109=0,0,IF(SUM(J72+J73-(F108*G108)-(F117*H3))/F109<0,0,SUM(J72+J73-(F108*G108)-(F117*H3))/F109)) -> 4.824004413
B114: Total Costs | F114: =IF(F109=0,0,IF(SUM(J75-(F108*G108)-(F117*H3))/F109<0,0,SUM(J75-(F108*G108)-(F117*H3))/F109)) -> 5.208619798
A116: ="Estimated Market Price (on remaining unsold "&F79&")" -> Estimated Market Price (on remaining unsold bu) | F116: =IF($C$3="(select crop)",0,VLOOKUP($C$3,Assumptions!$B$81:$F$98,3,FALSE)) -> 8 | O116: =IF($C$3="(select crop)",0,VLOOKUP($C$3,Assumptions!$B$81:$F$98,3,FALSE)) -> 8
A117: Other Income Per Acre (ie. Straw) | F117: 0
A118: ="Estimated Average Net Market Price (per "&F79&")" -> Estimated Average Net Market Price (per bu) | F118: =IF(H3=0,0,SUM(H123/F80)) -> 8
A120: Profitability Analysis
A122: Estimated: | F122: Per Acre | G122: Per Bu | H122: Total
B123: Total Gross Revenue | F123: =IF(H3=0,0,SUM(H123/H3)) -> 520 | G123: =IF(H123=0,0,H123/$F$80) -> 8 | H123: =(F108*G108)+(F109*F116)+(F117*H3) -> 520
A125: Marginal Returns | F125: Per Acre | G125: Per Bu | H125: Total
B126: Over Operating Costs | F126: ='Summary-Acre'!E50 -> 206.4397131 | G126: =IF(H126="","",H126/$F$80) -> 3.175995587 | H126: ='Summary-Total'!G50 -> 206.4397131
B127: Over Operating & Fixed Costs | F127: ='Summary-Acre'!E51 -> 206.4397131 | G127: =IF(H127="","",H127/$F$80) -> 3.175995587 | H127: ='Summary-Total'!G51 -> 206.4397131
B128: Over Total Costs (Net Profit) | F128: ='Summary-Acre'!E52 -> 181.4397131 | G128: =IF(H128="","",H128/$F$80) -> 2.791380202 | H128: ='Summary-Total'!G52 -> 181.4397131
B129: Operating Expense Ratio | F129: ='Summary-Acre'!E54 -> 0.6030005517
A131: Breakeven Analysis
A133: Breakeven Yield (Bu or lb.) | F133: Per Acre
B134: Operating Costs | F134: =IF(I72=0,0,SUM(I72/F118)) -> 39.19503586
B135: Operating & Fixed Costs | F135: =IF(I72+I73=0,0,SUM((I72+I73)/F118)) -> 39.19503586
B136: Total Costs | F136: =IF(I75=0,0,SUM(I75/F118)) -> 42.32003586
A138: Note: This budget is only a guide and is not intended as an in depth study of the cost of production of this industry. Interpretation and utilization of this information is the responsibility of the user.

Sheet 3
A2: . . . . . . . . . . . . . . . . . . . . . . . . . . . . . . . . . . . . . . . . . . . . . . . . . . | Z2: (Select Crop)
A3: Crop: | C3: (Select Crop) | G3: Acres: | H3: 0 | I3: =IF(F8="(enter name here)","",F8) ->  | Z3: Canola
Z4: Wheat
A5: Seed & Treatment: | O5: =IF($C$3="(select crop)","",VLOOKUP($C$3,Assumptions!$B$8:$G$25,2,FALSE)) ->  | P5: (enter name here) | Z5: Winter wheat
O6: =IF($C$3="(select crop)","",VLOOKUP($C$3,Assumptions!$B$8:$G$25,4,FALSE)) ->  | Z6: Soybeans
I7: Cost | J7: TOTAL | O7: =IF($C$3="(select crop)",0,VLOOKUP($C$3,Assumptions!$B$33:$F$50,2,FALSE)) -> 0 | Q7: =IF($C$3="(select crop)",0,VLOOKUP($C$3,Assumptions!$B$33:$F$50,3,FALSE)) -> 0 | R7: =IF($C$3="(select crop)",0,VLOOKUP($C$3,Assumptions!$B$33:$F$50,4,FALSE)) -> 0 | S7: =IF($C$3="(select crop)",0,VLOOKUP($C$3,Assumptions!$B$33:$F$50,5,FALSE)) -> 0 | Z7: Barley
B8: Seeding Rate | C8: =IF($C$3="(select crop)","",VLOOKUP($C$3,Assumptions!$B$8:$G$25,2,FALSE)) ->  | D8: =IF(C3="(select crop)","",VLOOKUP(C3,Assumptions!B8:G25,3,FALSE)) ->  | E8: Variety: | F8: (enter name here) | I8: Per Acre | J8: COST | Z8: Oats
B9: Price per Unit | C9: =IF($C$3="(select crop)","",VLOOKUP($C$3,Assumptions!$B$8:$G$25,4,FALSE)) ->  | D9: =IF(C3="(select crop)","",VLOOKUP(C3,Assumptions!B8:G25,5,FALSE)) ->  | F9: =D8&" seed required: " -> seed required: | G9: =IF(C8="","",SUM(C8*H3)) ->  | I9: =IF(C8="",0,C8*C9) -> 0 | J9: =SUM($H$3*I9) -> 0 | Z9: Corn
Z10: Navy Beans
A11: Fertilizer | Z11: Flaxseed
Z12: Sunflowers Confection
B13: Actual Nutrient Required (lbs/acre) | Z13: Sunflowers Oil
B14: N | D14: P | E14: K | F14: S | H14: To Enter or Change Fertilizer Costs Click Here | Z14: Peas
B15: =IF($C$3="(select crop)",0,VLOOKUP($C$3,Assumptions!$B$33:$F$50,2,FALSE)) -> 0 | D15: =IF($C$3="(select crop)",0,VLOOKUP($C$3,Assumptions!$B$33:$F$50,3,FALSE)) -> 0 | E15: =IF($C$3="(select crop)",0,VLOOKUP($C$3,Assumptions!$B$33:$F$50,4,FALSE)) -> 0 | F15: =IF($C$3="(select crop)",0,VLOOKUP($C$3,Assumptions!$B$33:$F$50,5,FALSE)) -> 0 | Z15: Hybrid Fall Rye
B16: Pre-seeding | C16: 0 | Z16: Canary Seed
B17: Blend | C17: =T29 -> 0 | Z17: Lentils
B18: Supplemental | C18: 0 | Z18: Buckwheat
Z19: Hempseed
E20: Total lbs/acre | F20: Tonnes | G20: Cost | Z20: Other
B21: Fertilizer Type | E21: lbs/acre | F21: Required | G21: /acre | P21: =C16 -> 0 | S21: Cost | T21: N | U21: P | V21: K | W21: S
B22: Pre-seeding: | D22: ="Nitrogen ("&Fertilizer!E6&"-"&Fertilizer!F6&"-"&Fertilizer!G6&"-"&Fertilizer!H6&")" -> Nitrogen (82-0-0-0) | E22: =MAXA(0,(C16)/(Fertilizer!E6/100)) -> 0 | F22: =(E22*H3)/2204.6 -> 0 | G22: =P25 -> 0 | P22: =C18 -> 0 | S22: Tonne
O23: Total | P23: Total | S23: =G24*Fertilizer!C8 -> 0 | T23: =E24*Fertilizer!E8/100 -> 0 | U23: =E24*Fertilizer!F8/100 -> 0 | V23: =E24*Fertilizer!G8/100 -> 0 | W23: =E24*Fertilizer!H8/100 -> 0
B24: Blend: | D24: ="Nitrogen ("&Fertilizer!E8&"-"&Fertilizer!F8&"-"&Fertilizer!G8&"-"&Fertilizer!H8&")" -> Nitrogen (46-0-0-0) | E24: =MAXA(0,(B15-C16-C18-(T24+T25+T26))/(Fertilizer!E8/100)) -> 0 | F24: =(E24*H3)/2204.6 -> 0 | G24: =P27 -> 0 | O24: Cost | P24: Cost/ac | S24: =G25*Fertilizer!C9 -> 0 | T24: =E25*Fertilizer!E9/100 -> 0 | U24: =E25*Fertilizer!F9/100 -> 0 | V24: =E25*Fertilizer!G9/100 -> 0 | W24: =E25*Fertilizer!H9/100 -> 0
D25: ="Phosphate ("&Fertilizer!E9&"-"&Fertilizer!F9&"-"&Fertilizer!G9&"-"&Fertilizer!H9&")" -> Phosphate (11-52-0-0) | E25: =MAXA(0,(D15-(U25+U26))/(Fertilizer!F9/100)) -> 0 | F25: =(E25*H3)/2204.6 -> 0 | G25: =P28 -> 0 | O25: =SUM(F22*Fertilizer!C6) -> 0 | P25: =SUM(E22*(Fertilizer!C6/2204.5855)) -> 0 | S25: =G26*Fertilizer!C10 -> 0 | T25: =E26*Fertilizer!E10/100 -> 0 | U25: =E26*Fertilizer!F10/100 -> 0 | V25: =E26*Fertilizer!G10/100 -> 0 | W25: =E26*Fertilizer!H10/100 -> 0
D26: ="Potash ("&Fertilizer!E10&"-"&Fertilizer!F10&"-"&Fertilizer!G10&"-"&Fertilizer!H10&")" -> Potash (0-0-60-0) | E26: =MAXA(0,(E15-(V26))/(Fertilizer!G10/100)) -> 0 | F26: =(E26*H3)/2204.6 -> 0 | G26: =P29 -> 0 | S26: =G27*Fertilizer!C11 -> 0 | T26: =E27*Fertilizer!E11/100 -> 0 | U26: =E27*Fertilizer!F11/100 -> 0 | V26: =E27*Fertilizer!G11/100 -> 0 | W26: =E27*Fertilizer!H11/100 -> 0
D27: ="Sulphur ("&Fertilizer!E11&"-"&Fertilizer!F11&"-"&Fertilizer!G11&"-"&Fertilizer!H11&")" -> Sulphur (13-33-0-15) | E27: =F15/(Fertilizer!H11/100) -> 0 | F27: =(E27*H3)/2204.6 -> 0 | G27: =P30 -> 0 | O27: =SUM(F24*Fertilizer!C8) -> 0 | P27: =SUM(E24*(Fertilizer!C8/2204.5855)) -> 0 | S27: =Fertilizer!C12 -> 0
D28: Blend Total | E28: =SUM(E24:E27) -> 0 | F28: =SUM(F24:F27) -> 0 | G28: =SUM(G24:G27) -> 0 | I28: Cost | J28: TOTAL | O28: =SUM(F25*Fertilizer!C9) -> 0 | P28: =SUM(E25*(Fertilizer!C9/2204.5855)) -> 0 | S28: =SUM(S23:S27) -> 0
I29: Per Acre | J29: COST | O29: =SUM(F26*Fertilizer!C10) -> 0 | P29: =SUM(E26*(Fertilizer!C10/2204.5855)) -> 0 | S29: Nutrient contribution | T29: =TRUNC(SUM(T23:T26),1) -> 0 | U29: =TRUNC(SUM(U23:U26),1) -> 0 | V29: =TRUNC(SUM(V23:V26),1) -> 0 | W29: =TRUNC(SUM(W23:W26),1) -> 0
B30: Supplemental: | D30: ="Nitrogen ("&Fertilizer!E14&"-"&Fertilizer!F14&"-"&Fertilizer!G14&"-"&Fertilizer!H14&")" -> Nitrogen (28-0-0-0) | E30: =MAXA(0,(C18)/(Fertilizer!E14/100)) -> 0 | F30: =(E30*H3)/2204.6 -> 0 | G30: =P33 -> 0 | I30: =P36 -> 0 | J30: =SUM(I30*H3) -> 0 | O30: =SUM(F27*Fertilizer!C11) -> 0 | P30: =SUM(E27*(Fertilizer!C11/2204.5855)) -> 0 | S30: Guarentee | T30: =TRUNC(T29/E28*100,1) ->  | U30: =TRUNC(U29/E28*100,1) ->  | V30: =TRUNC(V29/E28*100,1) ->  | W30: =TRUNC(W29/E28*100,1) -> 
O31: =SUM(F28*Fertilizer!C12) -> 0 | P31: =SUM(E28*(Fertilizer!C12/2204.5855)) -> 0
A32: Crop Protection
O33: =SUM(F30*Fertilizer!C14) -> 0 | P33: =SUM(E30*(Fertilizer!C14/2204.5855)) -> 0
A34: Herbicide | G34: (Complete chart below OR Enter total cost per acre) | H34: Total Cost | I34: =IF($C$3="(select crop)",0,IF(SUM(I38:I43)>0," - ",VLOOKUP($C$3,Assumptions!$B$57:$G$74,2,FALSE))) -> 0 | Q34: =IF($C$3="(select crop)",0,IF(SUM(Q38:Q43)>0," - ",VLOOKUP($C$3,Assumptions!$B$57:$G$74,2,FALSE))) -> 0
B36: Product | C36: Unit Type | D36: Acres/unit | E36: Unit size | F36: $/Unit | G36: Rate/Acre | H36: Units Req'd | I36: Cost/Acre | J36: Total Cost | O36: =SUM(O25:O33) -> 0 | P36: =SUM(P25:P33) -> 0
B37: Eg: glyphosate | C37: jug | D37: 20 | E37: 10 | F37: 80 | G37: 0.5 | H37: 10 | I37: 4 | J37: 800
G38: =IF(D38>0,SUM(E38/D38),0) -> 0 | H38: =IF(D38>0,SUM($H$3/D38),0) -> 0 | I38: =IF(D38>0,SUM(F38/D38),0) -> 0 | J38: =IF(I38=0,0,SUM(I38*$H$3)) -> 0
G39: 0 | H39: 0 | I39: 0 | J39: 0
G40: 0 | H40: 0 | I40: 0 | J40: 0
G41: 0 | H41: 0 | I41: 0 | J41: 0
G42: 0 | H42: 0 | I42: 0 | J42: 0
G43: 0 | H43: 0 | I43: 0 | J43: 0
H44: TOTAL | I44: =IF(SUM(I38:I43)>0,SUM(I38:I43),I34) -> 0 | J44: =IF(SUM(J38:J43)>0,SUM(J38:J43),I44*$H$3) -> 0
A46: Fungicide | G46: (Complete chart below OR Enter total cost per acre) | H46: Total Cost | I46: =IF($C$3="(select crop)",0,IF(SUM(I49:I52)>0," - ",VLOOKUP($C$3,Assumptions!$B$57:$G$74,4,FALSE))) -> 0 | Q46: =IF($C$3="(select crop)",0,IF(SUM(Q49:Q52)>0," - ",VLOOKUP($C$3,Assumptions!$B$57:$G$74,4,FALSE))) -> 0
B48: Product | C48: Unit Type | D48: Acres/unit | E48: Unit size | F48: $/Unit | G48: Rate/Acre | H48: Units Req'd | I48: Cost/Acre | J48: Total Cost
G49: =IF(D49>0,SUM(E49/D49),0) -> 0 | H49: =IF(D49>0,SUM($H$3/D49),0) -> 0 | I49: =IF(D49>0,SUM(F49/D49),0) -> 0 | J49: =IF(I49=0,0,SUM(I49*$H$3)) -> 0
G50: =IF(D50>0,SUM(E50/D50),0) -> 0 | H50: =IF(D50>0,SUM($H$3/D50),0) -> 0 | I50: =IF(D50>0,SUM(F50/D50),0) -> 0 | J50: =IF(I50=0,0,SUM(I50*$H$3)) -> 0
G51: =IF(D51>0,SUM(E51/D51),0) -> 0 | H51: =IF(D51>0,SUM($H$3/D51),0) -> 0 | I51: =IF(D51>0,SUM(F51/D51),0) -> 0 | J51: =IF(I51=0,0,SUM(I51*$H$3)) -> 0
G52: =IF(D52>0,SUM(E52/D52),0) -> 0 | H52: =IF(D52>0,SUM($H$3/D52),0) -> 0 | I52: =IF(D52>0,SUM(F52/D52),0) -> 0 | J52: =IF(I52=0,0,SUM(I52*$H$3)) -> 0
H53: TOTAL | I53: =IF(SUM(I49:I52)>0,SUM(I49:I52),I46) -> 0 | J53: =IF(SUM(J49:J52)>0,SUM(J49:J52),I53*$H$3) -> 0
A55: Insecticide | G55: (Complete chart below OR Enter total cost per acre) | H55: Total Cost | I55: =IF($C$3="(select crop)",0,IF(SUM(I58:I61)>0," - ",VLOOKUP($C$3,Assumptions!$B$57:$G$74,6,FALSE))) -> 0 | Q55: =IF($C$3="(select crop)",0,IF(SUM(Q58:Q61)>0," - ",VLOOKUP($C$3,Assumptions!$B$57:$G$74,6,FALSE))) -> 0
B57: Product | C57: Unit Type | D57: Acres/unit | E57: Unit size | F57: $/Unit | G57: Rate/Acre | H57: Units Req'd | I57: Cost/Acre | J57: Total Cost
G58: =IF(D58>0,SUM(E58/D58),0) -> 0 | H58: =IF(D58>0,SUM($H$3/D58),0) -> 0 | I58: =IF(D58>0,SUM(F58/D58),0) -> 0 | J58: =IF(I58=0,0,SUM(I58*$H$3)) -> 0
G59: =IF(D59>0,SUM(E59/D59),0) -> 0 | H59: =IF(D59>0,SUM($H$3/D59),0) -> 0 | I59: =IF(D59>0,SUM(F59/D59),0) -> 0 | J59: =IF(I59=0,0,SUM(I59*$H$3)) -> 0
G60: =IF(D60>0,SUM(E60/D60),0) -> 0 | H60: =IF(D60>0,SUM($H$3/D60),0) -> 0 | I60: =IF(D60>0,SUM(F60/D60),0) -> 0 | J60: =IF(I60=0,0,SUM(I60*$H$3)) -> 0
G61: =IF(D61>0,SUM(E61/D61),0) -> 0 | H61: =IF(D61>0,SUM($H$3/D61),0) -> 0 | I61: =IF(D61>0,SUM(F61/D61),0) -> 0 | J61: =IF(I61=0,0,SUM(I61*$H$3)) -> 0
H62: TOTAL | I62: =IF(SUM(I58:I61)>0,SUM(I58:I61),I55) -> 0 | J62: =IF(SUM(J58:J61)>0,SUM(J58:J61),I62*$H$3) -> 0
I64: Cost | J64: TOTAL
I65: Per Acre | J65: COST
H66: TOTAL Crop Protection | I66: =SUM(I62+I53+I44) -> 0 | J66: =SUM(J62+J53+J44) -> 0
A68: =C3&" Production Cost Summary" -> (Select Crop) Production Cost Summary
I70: Cost | J70: TOTAL
I71: Per Acre | J71: COST
E72: A. Operating Costs | I72: ='Summary-Acre'!F27 -> 0 | J72: ='Summary-Total'!H27 -> 0
E73: B. Fixed Costs | I73: ='Summary-Acre'!F33 -> 0 | J73: ='Summary-Total'!H33 -> 0
E74: C. Ownership | I74: ='Summary-Acre'!F37 -> 0 | J74: ='Summary-Total'!H37 -> 0
E75: Total Costs | I75: ='Summary-Acre'!F39 -> 0 | J75: ='Summary-Total'!H39 -> 0
A77: Estimated Farmgate
B78: Yield per acre (bu or lb.) | F78: =IF($C$3="(select crop)",0,VLOOKUP($C$3,Assumptions!$B$81:$F$98,4,FALSE)) -> 0 | O78: =IF($C$3="(select crop)",0,VLOOKUP($C$3,Assumptions!$B$81:$F$98,4,FALSE)) -> 0
B79: Unit type | F79: =IF($C$3="(select crop)","",VLOOKUP($C$3,Assumptions!$B$81:$F$98,5,FALSE)) ->  | O79: =IF($C$3="(select crop)","",VLOOKUP($C$3,Assumptions!$B$81:$F$98,5,FALSE)) -> 
B80: ="Total Units ("&F79&")" -> Total Units () | F80: =SUM(F78*H3) -> 0
A82: Breakeven Analysis - Total Unsold Production
A84: ="Breakeven Price Per Unit ("&F79&")" -> Breakeven Price Per Unit ()
B85: Operating Costs | F85: =IF(I72=0,0,SUM(I72/F78)) -> 0
B86: Operating & Fixed Costs | F86: =IF(I72+I73=0,0,SUM((I72+I73)/F78)) -> 0
B87: Total Costs | F87: =IF(I75=0,0,SUM(I75/F78)) -> 0
A89: Marketing Analysis
F91: Total
B92: Sale Date | C92: Grain Company / Location | F92: =F79&" Sold" -> Sold | G92: ="$/"&F79 -> $/
B93: mm/dd | C93: grain company, location | F93: 0 | G93: 0 | O93: mm/dd | P93: grain company, location | S93: 0 | T93: 0
F94: 0 | G94: 0 | S94: 0 | T94: 0
F95: 0 | G95: 0 | S95: 0 | T95: 0
F96: 0 | G96: 0 | S96: 0 | T96: 0
F97: 0 | G97: 0 | S97: 0 | T97: 0
F98: 0 | G98: 0 | S98: 0 | T98: 0
F99: 0 | G99: 0 | S99: 0 | T99: 0
F100: 0 | G100: 0 | S100: 0 | T100: 0
F101: 0 | G101: 0 | S101: 0 | T101: 0
F102: 0 | G102: 0 | S102: 0 | T102: 0
F103: 0 | G103: 0 | S103: 0 | T103: 0
F104: 0 | G104: 0 | S104: 0 | T104: 0
F105: 0 | G105: 0 | S105: 0 | T105: 0
F106: 0 | G106: 0 | S106: 0 | T106: 0
F107: 0 | G107: 0 | S107: 0 | T107: 0
E108: ="Total "&F79&"Sold / Average Price per "&F79 -> Total Sold / Average Price per | F108: =SUM(F93:F107) -> 0 | G108: =IF(F108=0,0,SUM((F93*G93)+(F94*G94)+(F95*G95)+(F96*G96)+(F97*G97)+(F98*G98)+(F99*G99)+(F100*G100)+(F101*G101)+(F102*G102)+(F103*G103)+(F104*G104)+(F105*G105)+(F106*G106)+(F107*G107))/F108) -> 0
E109: ="Total Remaining Unsold "&F79 -> Total Remaining Unsold | F109: =F80-F108 -> 0 | G109: =IF(F109=0,0,SUM(F109/F80)) -> 0
A111: ="Breakeven Price Per Unit (on remaining unsold "&F79&")" -> Breakeven Price Per Unit (on remaining unsold )
B112: Operating Costs | F112: =IF(F109=0,0,IF(SUM(J72-(F108*G108)-(F117*H3))/F109<0,0,SUM(J72-(F108*G108)-(F117*H3))/F109)) -> 0
B113: Operating & Fixed Costs | F113: =IF(F109=0,0,IF(SUM(J72+J73-(F108*G108)-(F117*H3))/F109<0,0,SUM(J72+J73-(F108*G108)-(F117*H3))/F109)) -> 0
B114: Total Costs | F114: =IF(F109=0,0,IF(SUM(J75-(F108*G108)-(F117*H3))/F109<0,0,SUM(J75-(F108*G108)-(F117*H3))/F109)) -> 0
A116: ="Estimated Market Price (on remaining unsold "&F79&")" -> Estimated Market Price (on remaining unsold ) | F116: =IF($C$3="(select crop)",0,VLOOKUP($C$3,Assumptions!$B$81:$F$98,3,FALSE)) -> 0 | O116: =IF($C$3="(select crop)",0,VLOOKUP($C$3,Assumptions!$B$81:$F$98,3,FALSE)) -> 0
A117: Other Income Per Acre (ie. Straw) | F117: 0
A118: ="Estimated Average Net Market Price (per "&F79&")" -> Estimated Average Net Market Price (per ) | F118: =IF(H3=0,0,SUM(H123/F80)) -> 0
A120: Profitability Analysis
A122: Estimated: | F122: Per Acre | G122: Per Bu | H122: Total
B123: Total Gross Revenue | F123: =IF(H3=0,0,SUM(H123/H3)) -> 0 | G123: =IF(H123=0,0,H123/$F$80) -> 0 | H123: =(F108*G108)+(F109*F116)+(F117*H3) -> 0
A125: Marginal Returns | F125: Per Acre | G125: Per Bu | H125: Total
B126: Over Operating Costs | F126: ='Summary-Acre'!F50 ->  | G126: =IF(H126="","",H126/$F$80) ->  | H126: ='Summary-Total'!H50 -> 
B127: Over Operating & Fixed Costs | F127: ='Summary-Acre'!F51 ->  | G127: =IF(H127="","",H127/$F$80) ->  | H127: ='Summary-Total'!H51 -> 
B128: Over Total Costs (Net Profit) | F128: ='Summary-Acre'!F52 ->  | G128: =IF(H128="","",H128/$F$80) ->  | H128: ='Summary-Total'!H52 -> 
B129: Operating Expense Ratio | F129: ='Summary-Acre'!F54 -> 
A131: Breakeven Analysis
A133: Breakeven Yield (Bu or lb.) | F133: Per Acre
B134: Operating Costs | F134: =IF(I72=0,0,SUM(I72/F118)) -> 0
B135: Operating & Fixed Costs | F135: =IF(I72+I73=0,0,SUM((I72+I73)/F118)) -> 0
B136: Total Costs | F136: =IF(I75=0,0,SUM(I75/F118)) -> 0
A138: Note: This budget is only a guide and is not intended as an in depth study of the cost of production of this industry. Interpretation and utilization of this information is the responsibility of the user.

Sheet 4
A2: . . . . . . . . . . . . . . . . . . . . . . . . . . . . . . . . . . . . . . . . . . . . . . . . . . | Z2: (Select Crop)
A3: Crop: | C3: (Select Crop) | G3: Acres: | H3: 0 | I3: =IF(F8="(enter name here)","",F8) ->  | Z3: Canola
Z4: Wheat
A5: Seed & Treatment: | O5: =IF($C$3="(select crop)","",VLOOKUP($C$3,Assumptions!$B$8:$G$25,2,FALSE)) ->  | P5: (enter name here) | Z5: Winter wheat
O6: =IF($C$3="(select crop)","",VLOOKUP($C$3,Assumptions!$B$8:$G$25,4,FALSE)) ->  | Z6: Soybeans
I7: Cost | J7: TOTAL | O7: =IF($C$3="(select crop)",0,VLOOKUP($C$3,Assumptions!$B$33:$F$50,2,FALSE)) -> 0 | Q7: =IF($C$3="(select crop)",0,VLOOKUP($C$3,Assumptions!$B$33:$F$50,3,FALSE)) -> 0 | R7: =IF($C$3="(select crop)",0,VLOOKUP($C$3,Assumptions!$B$33:$F$50,4,FALSE)) -> 0 | S7: =IF($C$3="(select crop)",0,VLOOKUP($C$3,Assumptions!$B$33:$F$50,5,FALSE)) -> 0 | Z7: Barley
B8: Seeding Rate | C8: =IF($C$3="(select crop)","",VLOOKUP($C$3,Assumptions!$B$8:$G$25,2,FALSE)) ->  | D8: =IF(C3="(select crop)","",VLOOKUP(C3,Assumptions!B8:G25,3,FALSE)) ->  | E8: Variety: | F8: (enter name here) | I8: Per Acre | J8: COST | Z8: Oats
B9: Price per Unit | C9: =IF($C$3="(select crop)","",VLOOKUP($C$3,Assumptions!$B$8:$G$25,4,FALSE)) ->  | D9: =IF(C3="(select crop)","",VLOOKUP(C3,Assumptions!B8:G25,5,FALSE)) ->  | F9: =D8&" seed required: " -> seed required: | G9: =IF(C8="","",SUM(C8*H3)) ->  | I9: =IF(C8="",0,C8*C9) -> 0 | J9: =SUM($H$3*I9) -> 0 | Z9: Corn
Z10: Navy Beans
A11: Fertilizer | Z11: Flaxseed
Z12: Sunflowers Confection
B13: Actual Nutrient Required (lbs/acre) | Z13: Sunflowers Oil
B14: N | D14: P | E14: K | F14: S | H14: To Enter or Change Fertilizer Costs Click Here | Z14: Peas
B15: =IF($C$3="(select crop)",0,VLOOKUP($C$3,Assumptions!$B$33:$F$50,2,FALSE)) -> 0 | D15: =IF($C$3="(select crop)",0,VLOOKUP($C$3,Assumptions!$B$33:$F$50,3,FALSE)) -> 0 | E15: =IF($C$3="(select crop)",0,VLOOKUP($C$3,Assumptions!$B$33:$F$50,4,FALSE)) -> 0 | F15: =IF($C$3="(select crop)",0,VLOOKUP($C$3,Assumptions!$B$33:$F$50,5,FALSE)) -> 0 | Z15: Hybrid Fall Rye
B16: Pre-seeding | C16: 0 | Z16: Canary Seed
B17: Blend | C17: =T29 -> 0 | Z17: Lentils
B18: Supplemental | C18: 0 | Z18: Buckwheat
Z19: Hempseed
E20: Total lbs/acre | F20: Tonnes | G20: Cost | Z20: Other
B21: Fertilizer Type | E21: lbs/acre | F21: Required | G21: /acre | P21: =C16 -> 0 | S21: Cost | T21: N | U21: P | V21: K | W21: S
B22: Pre-seeding: | D22: ="Nitrogen ("&Fertilizer!E6&"-"&Fertilizer!F6&"-"&Fertilizer!G6&"-"&Fertilizer!H6&")" -> Nitrogen (82-0-0-0) | E22: =MAXA(0,(C16)/(Fertilizer!E6/100)) -> 0 | F22: =(E22*H3)/2204.6 -> 0 | G22: =P25 -> 0 | P22: =C18 -> 0 | S22: Tonne
O23: Total | P23: Total | S23: =G24*Fertilizer!C8 -> 0 | T23: =E24*Fertilizer!E8/100 -> 0 | U23: =E24*Fertilizer!F8/100 -> 0 | V23: =E24*Fertilizer!G8/100 -> 0 | W23: =E24*Fertilizer!H8/100 -> 0
B24: Blend: | D24: ="Nitrogen ("&Fertilizer!E8&"-"&Fertilizer!F8&"-"&Fertilizer!G8&"-"&Fertilizer!H8&")" -> Nitrogen (46-0-0-0) | E24: =MAXA(0,(B15-C16-C18-(T24+T25+T26))/(Fertilizer!E8/100)) -> 0 | F24: =(E24*H3)/2204.6 -> 0 | G24: =P27 -> 0 | O24: Cost | P24: Cost/ac | S24: =G25*Fertilizer!C9 -> 0 | T24: =E25*Fertilizer!E9/100 -> 0 | U24: =E25*Fertilizer!F9/100 -> 0 | V24: =E25*Fertilizer!G9/100 -> 0 | W24: =E25*Fertilizer!H9/100 -> 0
D25: ="Phosphate ("&Fertilizer!E9&"-"&Fertilizer!F9&"-"&Fertilizer!G9&"-"&Fertilizer!H9&")" -> Phosphate (11-52-0-0) | E25: =MAXA(0,(D15-(U25+U26))/(Fertilizer!F9/100)) -> 0 | F25: =(E25*H3)/2204.6 -> 0 | G25: =P28 -> 0 | O25: =SUM(F22*Fertilizer!C6) -> 0 | P25: =SUM(E22*(Fertilizer!C6/2204.5855)) -> 0 | S25: =G26*Fertilizer!C10 -> 0 | T25: =E26*Fertilizer!E10/100 -> 0 | U25: =E26*Fertilizer!F10/100 -> 0 | V25: =E26*Fertilizer!G10/100 -> 0 | W25: =E26*Fertilizer!H10/100 -> 0
D26: ="Potash ("&Fertilizer!E10&"-"&Fertilizer!F10&"-"&Fertilizer!G10&"-"&Fertilizer!H10&")" -> Potash (0-0-60-0) | E26: =MAXA(0,(E15-(V26))/(Fertilizer!G10/100)) -> 0 | F26: =(E26*H3)/2204.6 -> 0 | G26: =P29 -> 0 | S26: =G27*Fertilizer!C11 -> 0 | T26: =E27*Fertilizer!E11/100 -> 0 | U26: =E27*Fertilizer!F11/100 -> 0 | V26: =E27*Fertilizer!G11/100 -> 0 | W26: =E27*Fertilizer!H11/100 -> 0
D27: ="Sulphur ("&Fertilizer!E11&"-"&Fertilizer!F11&"-"&Fertilizer!G11&"-"&Fertilizer!H11&")" -> Sulphur (13-33-0-15) | E27: =F15/(Fertilizer!H11/100) -> 0 | F27: =(E27*H3)/2204.6 -> 0 | G27: =P30 -> 0 | O27: =SUM(F24*Fertilizer!C8) -> 0 | P27: =SUM(E24*(Fertilizer!C8/2204.5855)) -> 0 | S27: =Fertilizer!C12 -> 0
D28: Blend Total | E28: =SUM(E24:E27) -> 0 | F28: =SUM(F24:F27) -> 0 | G28: =SUM(G24:G27) -> 0 | I28: Cost | J28: TOTAL | O28: =SUM(F25*Fertilizer!C9) -> 0 | P28: =SUM(E25*(Fertilizer!C9/2204.5855)) -> 0 | S28: =SUM(S23:S27) -> 0
I29: Per Acre | J29: COST | O29: =SUM(F26*Fertilizer!C10) -> 0 | P29: =SUM(E26*(Fertilizer!C10/2204.5855)) -> 0 | S29: Nutrient contribution | T29: =TRUNC(SUM(T23:T26),1) -> 0 | U29: =TRUNC(SUM(U23:U26),1) -> 0 | V29: =TRUNC(SUM(V23:V26),1) -> 0 | W29: =TRUNC(SUM(W23:W26),1) -> 0
B30: Supplemental: | D30: ="Nitrogen ("&Fertilizer!E14&"-"&Fertilizer!F14&"-"&Fertilizer!G14&"-"&Fertilizer!H14&")" -> Nitrogen (28-0-0-0) | E30: =MAXA(0,(C18)/(Fertilizer!E14/100)) -> 0 | F30: =(E30*H3)/2204.6 -> 0 | G30: =P33 -> 0 | I30: =P36 -> 0 | J30: =SUM(H3*I30) -> 0 | O30: =SUM(F27*Fertilizer!C11) -> 0 | P30: =SUM(E27*(Fertilizer!C11/2204.5855)) -> 0 | S30: Guarentee | T30: =TRUNC(T29/E28*100,1) ->  | U30: =TRUNC(U29/E28*100,1) ->  | V30: =TRUNC(V29/E28*100,1) ->  | W30: =TRUNC(W29/E28*100,1) -> 
O31: =SUM(F28*Fertilizer!C12) -> 0 | P31: =SUM(E28*(Fertilizer!C12/2204.5855)) -> 0
A32: Crop Protection
O33: =SUM(F30*Fertilizer!C14) -> 0 | P33: =SUM(E30*(Fertilizer!C14/2204.5855)) -> 0
A34: Herbicide | G34: (Complete chart below OR Enter total cost per acre) | H34: Total Cost | I34: =IF($C$3="(select crop)",0,IF(SUM(I38:I43)>0," - ",VLOOKUP($C$3,Assumptions!$B$57:$G$74,2,FALSE))) -> 0 | Q34: =IF($C$3="(select crop)",0,IF(SUM(Q38:Q43)>0," - ",VLOOKUP($C$3,Assumptions!$B$57:$G$74,2,FALSE))) -> 0
B36: Product | C36: Unit Type | D36: Acres/unit | E36: Unit size | F36: $/Unit | G36: Rate/Acre | H36: Units Req'd | I36: Cost/Acre | J36: Total Cost | O36: =SUM(O25:O33) -> 0 | P36: =SUM(P25:P33) -> 0
B37: Eg: glyphosate | C37: jug | D37: 20 | E37: 10 | F37: 80 | G37: 0.5 | H37: 10 | I37: 4 | J37: 800
G38: =IF(D38>0,SUM(E38/D38),0) -> 0 | H38: =IF(D38>0,SUM($H$3/D38),0) -> 0 | I38: =IF(D38>0,SUM(F38/D38),0) -> 0 | J38: =IF(I38=0,0,SUM(I38*$H$3)) -> 0
G39: 0 | H39: 0 | I39: 0 | J39: 0
G40: 0 | H40: 0 | I40: 0 | J40: 0
G41: 0 | H41: 0 | I41: 0 | J41: 0
G42: 0 | H42: 0 | I42: 0 | J42: 0
G43: 0 | H43: 0 | I43: 0 | J43: 0
H44: TOTAL | I44: =IF(SUM(I38:I43)>0,SUM(I38:I43),I34) -> 0 | J44: =IF(SUM(J38:J43)>0,SUM(J38:J43),I44*$H$3) -> 0
A46: Fungicide | G46: (Complete chart below OR Enter total cost per acre) | H46: Total Cost | I46: =IF($C$3="(select crop)",0,IF(SUM(I49:I52)>0," - ",VLOOKUP($C$3,Assumptions!$B$57:$G$74,4,FALSE))) -> 0 | Q46: =IF($C$3="(select crop)",0,IF(SUM(Q49:Q52)>0," - ",VLOOKUP($C$3,Assumptions!$B$57:$G$74,4,FALSE))) -> 0
B48: Product | C48: Unit Type | D48: Acres/unit | E48: Unit size | F48: $/Unit | G48: Rate/Acre | H48: Units Req'd | I48: Cost/Acre | J48: Total Cost
G49: =IF(D49>0,SUM(E49/D49),0) -> 0 | H49: =IF(D49>0,SUM($H$3/D49),0) -> 0 | I49: =IF(D49>0,SUM(F49/D49),0) -> 0 | J49: =IF(I49=0,0,SUM(I49*$H$3)) -> 0
G50: =IF(D50>0,SUM(E50/D50),0) -> 0 | H50: =IF(D50>0,SUM($H$3/D50),0) -> 0 | I50: =IF(D50>0,SUM(F50/D50),0) -> 0 | J50: =IF(I50=0,0,SUM(I50*$H$3)) -> 0
G51: =IF(D51>0,SUM(E51/D51),0) -> 0 | H51: =IF(D51>0,SUM($H$3/D51),0) -> 0 | I51: =IF(D51>0,SUM(F51/D51),0) -> 0 | J51: =IF(I51=0,0,SUM(I51*$H$3)) -> 0
G52: =IF(D52>0,SUM(E52/D52),0) -> 0 | H52: =IF(D52>0,SUM($H$3/D52),0) -> 0 | I52: =IF(D52>0,SUM(F52/D52),0) -> 0 | J52: =IF(I52=0,0,SUM(I52*$H$3)) -> 0
H53: TOTAL | I53: =IF(SUM(I49:I52)>0,SUM(I49:I52),I46) -> 0 | J53: =IF(SUM(J49:J52)>0,SUM(J49:J52),I53*$H$3) -> 0
A55: Insecticide | G55: (Complete chart below OR Enter total cost per acre) | H55: Total Cost | I55: =IF($C$3="(select crop)",0,IF(SUM(I58:I61)>0," - ",VLOOKUP($C$3,Assumptions!$B$57:$G$74,6,FALSE))) -> 0 | Q55: =IF($C$3="(select crop)",0,IF(SUM(Q58:Q61)>0," - ",VLOOKUP($C$3,Assumptions!$B$57:$G$74,6,FALSE))) -> 0
B57: Product | C57: Unit Type | D57: Acres/unit | E57: Unit size | F57: $/Unit | G57: Rate/Acre | H57: Units Req'd | I57: Cost/Acre | J57: Total Cost
G58: =IF(D58>0,SUM(E58/D58),0) -> 0 | H58: =IF(D58>0,SUM($H$3/D58),0) -> 0 | I58: =IF(D58>0,SUM(F58/D58),0) -> 0 | J58: =IF(I58=0,0,SUM(I58*$H$3)) -> 0
G59: =IF(D59>0,SUM(E59/D59),0) -> 0 | H59: =IF(D59>0,SUM($H$3/D59),0) -> 0 | I59: =IF(D59>0,SUM(F59/D59),0) -> 0 | J59: =IF(I59=0,0,SUM(I59*$H$3)) -> 0
G60: =IF(D60>0,SUM(E60/D60),0) -> 0 | H60: =IF(D60>0,SUM($H$3/D60),0) -> 0 | I60: =IF(D60>0,SUM(F60/D60),0) -> 0 | J60: =IF(I60=0,0,SUM(I60*$H$3)) -> 0
G61: =IF(D61>0,SUM(E61/D61),0) -> 0 | H61: =IF(D61>0,SUM($H$3/D61),0) -> 0 | I61: =IF(D61>0,SUM(F61/D61),0) -> 0 | J61: =IF(I61=0,0,SUM(I61*$H$3)) -> 0
H62: TOTAL | I62: =IF(SUM(I58:I61)>0,SUM(I58:I61),I55) -> 0 | J62: =IF(SUM(J58:J61)>0,SUM(J58:J61),I62*$H$3) -> 0
I64: Cost | J64: TOTAL
I65: Per Acre | J65: COST
H66: TOTAL Crop Protection | I66: =SUM(I62+I53+I44) -> 0 | J66: =SUM(J62+J53+J44) -> 0
A68: =C3&" Production Cost Summary" -> (Select Crop) Production Cost Summary
I70: Cost | J70: TOTAL
I71: Per Acre | J71: COST
E72: A. Operating Costs | I72: ='Summary-Acre'!G27 -> 0 | J72: ='Summary-Total'!I27 -> 0
E73: B. Fixed Costs | I73: ='Summary-Acre'!G33 -> 0 | J73: ='Summary-Total'!I33 -> 0
E74: C. Ownership | I74: ='Summary-Acre'!G37 -> 0 | J74: ='Summary-Total'!I37 -> 0
E75: Total Costs | I75: ='Summary-Acre'!G39 -> 0 | J75: ='Summary-Total'!I39 -> 0
A77: Estimated Farmgate
B78: Yield per acre (bu or lb.) | F78: =IF($C$3="(select crop)",0,VLOOKUP($C$3,Assumptions!$B$81:$F$98,4,FALSE)) -> 0 | O78: =IF($C$3="(select crop)",0,VLOOKUP($C$3,Assumptions!$B$81:$F$98,4,FALSE)) -> 0
B79: Unit type | F79: =IF($C$3="(select crop)","",VLOOKUP($C$3,Assumptions!$B$81:$F$98,5,FALSE)) ->  | O79: =IF($C$3="(select crop)","",VLOOKUP($C$3,Assumptions!$B$81:$F$98,5,FALSE)) -> 
B80: ="Total Units ("&F79&")" -> Total Units () | F80: =SUM(F78*H3) -> 0
A82: Breakeven Analysis - Total Unsold Production
A84: ="Breakeven Price Per Unit ("&F79&")" -> Breakeven Price Per Unit ()
B85: Operating Costs | F85: =IF(I72=0,0,SUM(I72/F78)) -> 0
B86: Operating & Fixed Costs | F86: =IF(I72+I73=0,0,SUM((I72+I73)/F78)) -> 0
B87: Total Costs | F87: =IF(I75=0,0,SUM(I75/F78)) -> 0
A89: Marketing Analysis
F91: Total
B92: Sale Date | C92: Grain Company / Location | F92: =F79&" Sold" -> Sold | G92: ="$/"&F79 -> $/
B93: mm/dd | C93: grain company, location | F93: 0 | G93: 0 | O93: mm/dd | P93: grain company, location | S93: 0 | T93: 0
F94: 0 | G94: 0 | S94: 0 | T94: 0
F95: 0 | G95: 0 | S95: 0 | T95: 0
F96: 0 | G96: 0 | S96: 0 | T96: 0
F97: 0 | G97: 0 | S97: 0 | T97: 0
F98: 0 | G98: 0 | S98: 0 | T98: 0
F99: 0 | G99: 0 | S99: 0 | T99: 0
F100: 0 | G100: 0 | S100: 0 | T100: 0
F101: 0 | G101: 0 | S101: 0 | T101: 0
F102: 0 | G102: 0 | S102: 0 | T102: 0
F103: 0 | G103: 0 | S103: 0 | T103: 0
F104: 0 | G104: 0 | S104: 0 | T104: 0
F105: 0 | G105: 0 | S105: 0 | T105: 0
F106: 0 | G106: 0 | S106: 0 | T106: 0
F107: 0 | G107: 0 | S107: 0 | T107: 0
E108: ="Total "&F79&"Sold / Average Price per "&F79 -> Total Sold / Average Price per | F108: =SUM(F93:F107) -> 0 | G108: =IF(F108=0,0,SUM((F93*G93)+(F94*G94)+(F95*G95)+(F96*G96)+(F97*G97)+(F98*G98)+(F99*G99)+(F100*G100)+(F101*G101)+(F102*G102)+(F103*G103)+(F104*G104)+(F105*G105)+(F106*G106)+(F107*G107))/F108) -> 0
E109: ="Total Remaining Unsold "&F79 -> Total Remaining Unsold | F109: =F80-F108 -> 0 | G109: =IF(F109=0,0,SUM(F109/F80)) -> 0
A111: ="Breakeven Price Per Unit (on remaining unsold "&F79&")" -> Breakeven Price Per Unit (on remaining unsold )
B112: Operating Costs | F112: =IF(F109=0,0,IF(SUM(J72-(F108*G108)-(F117*H3))/F109<0,0,SUM(J72-(F108*G108)-(F117*H3))/F109)) -> 0
B113: Operating & Fixed Costs | F113: =IF(F109=0,0,IF(SUM(J72+J73-(F108*G108)-(F117*H3))/F109<0,0,SUM(J72+J73-(F108*G108)-(F117*H3))/F109)) -> 0
B114: Total Costs | F114: =IF(F109=0,0,IF(SUM(J75-(F108*G108)-(F117*H3))/F109<0,0,SUM(J75-(F108*G108)-(F117*H3))/F109)) -> 0
A116: ="Estimated Market Price (on remaining unsold "&F79&")" -> Estimated Market Price (on remaining unsold ) | F116: =IF($C$3="(select crop)",0,VLOOKUP($C$3,Assumptions!$B$81:$F$98,3,FALSE)) -> 0 | O116: =IF($C$3="(select crop)",0,VLOOKUP($C$3,Assumptions!$B$81:$F$98,3,FALSE)) -> 0
A117: Other Income Per Acre (ie. Straw) | F117: 0
A118: ="Estimated Average Net Market Price (per "&F79&")" -> Estimated Average Net Market Price (per ) | F118: =IF(H3=0,0,SUM(H123/F80)) -> 0
A120: Profitability Analysis
A122: Estimated: | F122: Per Acre | G122: Per Bu | H122: Total
B123: Total Gross Revenue | F123: =IF(H3=0,0,SUM(H123/H3)) -> 0 | G123: =IF(H123=0,0,H123/$F$80) -> 0 | H123: =(F108*G108)+(F109*F116)+(F117*H3) -> 0
A125: Marginal Returns | F125: Per Acre | G125: Per Bu | H125: Total
B126: Over Operating Costs | F126: ='Summary-Acre'!G50 ->  | G126: =IF(H126="","",H126/$F$80) ->  | H126: ='Summary-Total'!I50 -> 
B127: Over Operating & Fixed Costs | F127: ='Summary-Acre'!G51 ->  | G127: =IF(H127="","",H127/$F$80) ->  | H127: ='Summary-Total'!I51 -> 
B128: Over Total Costs (Net Profit) | F128: ='Summary-Acre'!G52 ->  | G128: =IF(H128="","",H128/$F$80) ->  | H128: ='Summary-Total'!I52 -> 
B129: Operating Expense Ratio | F129: ='Summary-Acre'!G54 -> 
A131: Breakeven Analysis
A133: Breakeven Yield (Bu or lb.) | F133: Per Acre
B134: Operating Costs | F134: =IF(I72=0,0,SUM(I72/F118)) -> 0
B135: Operating & Fixed Costs | F135: =IF(I72+I73=0,0,SUM((I72+I73)/F118)) -> 0
B136: Total Costs | F136: =IF(I75=0,0,SUM(I75/F118)) -> 0
A138: Note: This budget is only a guide and is not intended as an in depth study of the cost of production of this industry. Interpretation and utilization of this information is the responsibility of the user.

Sheet 5
A2: . . . . . . . . . . . . . . . . . . . . . . . . . . . . . . . . . . . . . . . . . . . . . . . . . . | Z2: (Select Crop)
A3: Crop: | C3: (Select Crop) | G3: Acres: | H3: 0 | I3: =IF(F8="(enter name here)","",F8) ->  | Z3: Canola
Z4: Wheat
A5: Seed & Treatment: | O5: =IF($C$3="(select crop)","",VLOOKUP($C$3,Assumptions!$B$8:$G$25,2,FALSE)) ->  | P5: (enter name here) | Z5: Winter wheat
O6: =IF($C$3="(select crop)","",VLOOKUP($C$3,Assumptions!$B$8:$G$25,4,FALSE)) ->  | Z6: Soybeans
I7: Cost | J7: TOTAL | O7: =IF($C$3="(select crop)",0,VLOOKUP($C$3,Assumptions!$B$33:$F$50,2,FALSE)) -> 0 | Q7: =IF($C$3="(select crop)",0,VLOOKUP($C$3,Assumptions!$B$33:$F$50,3,FALSE)) -> 0 | R7: =IF($C$3="(select crop)",0,VLOOKUP($C$3,Assumptions!$B$33:$F$50,4,FALSE)) -> 0 | S7: =IF($C$3="(select crop)",0,VLOOKUP($C$3,Assumptions!$B$33:$F$50,5,FALSE)) -> 0 | Z7: Barley
B8: Seeding Rate | C8: =IF($C$3="(select crop)","",VLOOKUP($C$3,Assumptions!$B$8:$G$25,2,FALSE)) ->  | D8: =IF(C3="(select crop)","",VLOOKUP(C3,Assumptions!B8:G25,3,FALSE)) ->  | E8: Variety: | F8: (enter name here) | I8: Per Acre | J8: COST | Z8: Oats
B9: Price per Unit | C9: =IF($C$3="(select crop)","",VLOOKUP($C$3,Assumptions!$B$8:$G$25,4,FALSE)) ->  | D9: =IF(C3="(select crop)","",VLOOKUP(C3,Assumptions!B8:G25,5,FALSE)) ->  | F9: =D8&" seed required: " -> seed required: | G9: =IF(C8="","",SUM(C8*H3)) ->  | I9: =IF(C8="",0,C8*C9) -> 0 | J9: =SUM($H$3*I9) -> 0 | Z9: Corn
Z10: Navy Beans
A11: Fertilizer | Z11: Flaxseed
Z12: Sunflowers Confection
B13: Actual Nutrient Required (lbs/acre) | Z13: Sunflowers Oil
B14: N | D14: P | E14: K | F14: S | H14: To Enter or Change Fertilizer Costs Click Here | Z14: Peas
B15: =IF($C$3="(select crop)",0,VLOOKUP($C$3,Assumptions!$B$33:$F$50,2,FALSE)) -> 0 | D15: =IF($C$3="(select crop)",0,VLOOKUP($C$3,Assumptions!$B$33:$F$50,3,FALSE)) -> 0 | E15: =IF($C$3="(select crop)",0,VLOOKUP($C$3,Assumptions!$B$33:$F$50,4,FALSE)) -> 0 | F15: =IF($C$3="(select crop)",0,VLOOKUP($C$3,Assumptions!$B$33:$F$50,5,FALSE)) -> 0 | Z15: Hybrid Fall Rye
B16: Pre-seeding | C16: 0 | Z16: Canary Seed
B17: Blend | C17: =T29 -> 0 | Z17: Lentils
B18: Supplemental | C18: 0 | Z18: Buckwheat
Z19: Hempseed
E20: Total lbs/acre | F20: Tonnes | G20: Cost | Z20: Other
B21: Fertilizer Type | E21: lbs/acre | F21: Required | G21: /acre | P21: =C16 -> 0 | S21: Cost | T21: N | U21: P | V21: K | W21: S
B22: Pre-seeding: | D22: ="Nitrogen ("&Fertilizer!E6&"-"&Fertilizer!F6&"-"&Fertilizer!G6&"-"&Fertilizer!H6&")" -> Nitrogen (82-0-0-0) | E22: =MAXA(0,(C16)/(Fertilizer!E6/100)) -> 0 | F22: =(E22*H3)/2204.6 -> 0 | G22: =P25 -> 0 | P22: =C18 -> 0 | S22: Tonne
O23: Total | P23: Total | S23: =G24*Fertilizer!C8 -> 0 | T23: =E24*Fertilizer!E8/100 -> 0 | U23: =E24*Fertilizer!F8/100 -> 0 | V23: =E24*Fertilizer!G8/100 -> 0 | W23: =E24*Fertilizer!H8/100 -> 0
B24: Blend: | D24: ="Nitrogen ("&Fertilizer!E8&"-"&Fertilizer!F8&"-"&Fertilizer!G8&"-"&Fertilizer!H8&")" -> Nitrogen (46-0-0-0) | E24: =MAXA(0,(B15-C16-C18-(T24+T25+T26))/(Fertilizer!E8/100)) -> 0 | F24: =(E24*H3)/2204.6 -> 0 | G24: =P27 -> 0 | O24: Cost | P24: Cost/ac | S24: =G25*Fertilizer!C9 -> 0 | T24: =E25*Fertilizer!E9/100 -> 0 | U24: =E25*Fertilizer!F9/100 -> 0 | V24: =E25*Fertilizer!G9/100 -> 0 | W24: =E25*Fertilizer!H9/100 -> 0
D25: ="Phosphate ("&Fertilizer!E9&"-"&Fertilizer!F9&"-"&Fertilizer!G9&"-"&Fertilizer!H9&")" -> Phosphate (11-52-0-0) | E25: =MAXA(0,(D15-(U25+U26))/(Fertilizer!F9/100)) -> 0 | F25: =(E25*H3)/2204.6 -> 0 | G25: =P28 -> 0 | O25: =SUM(F22*Fertilizer!C6) -> 0 | P25: =SUM(E22*(Fertilizer!C6/2204.5855)) -> 0 | S25: =G26*Fertilizer!C10 -> 0 | T25: =E26*Fertilizer!E10/100 -> 0 | U25: =E26*Fertilizer!F10/100 -> 0 | V25: =E26*Fertilizer!G10/100 -> 0 | W25: =E26*Fertilizer!H10/100 -> 0
D26: ="Potash ("&Fertilizer!E10&"-"&Fertilizer!F10&"-"&Fertilizer!G10&"-"&Fertilizer!H10&")" -> Potash (0-0-60-0) | E26: =MAXA(0,(E15-(V26))/(Fertilizer!G10/100)) -> 0 | F26: =(E26*H3)/2204.6 -> 0 | G26: =P29 -> 0 | S26: =G27*Fertilizer!C11 -> 0 | T26: =E27*Fertilizer!E11/100 -> 0 | U26: =E27*Fertilizer!F11/100 -> 0 | V26: =E27*Fertilizer!G11/100 -> 0 | W26: =E27*Fertilizer!H11/100 -> 0
D27: ="Sulphur ("&Fertilizer!E11&"-"&Fertilizer!F11&"-"&Fertilizer!G11&"-"&Fertilizer!H11&")" -> Sulphur (13-33-0-15) | E27: =F15/(Fertilizer!H11/100) -> 0 | F27: =(E27*H3)/2204.6 -> 0 | G27: =P30 -> 0 | O27: =SUM(F24*Fertilizer!C8) -> 0 | P27: =SUM(E24*(Fertilizer!C8/2204.5855)) -> 0 | S27: =Fertilizer!C12 -> 0
D28: Blend Total | E28: =SUM(E24:E27) -> 0 | F28: =SUM(F24:F27) -> 0 | G28: =SUM(G24:G27) -> 0 | I28: Cost | J28: TOTAL | O28: =SUM(F25*Fertilizer!C9) -> 0 | P28: =SUM(E25*(Fertilizer!C9/2204.5855)) -> 0 | S28: =SUM(S23:S27) -> 0
I29: Per Acre | J29: COST | O29: =SUM(F26*Fertilizer!C10) -> 0 | P29: =SUM(E26*(Fertilizer!C10/2204.5855)) -> 0 | S29: Nutrient contribution | T29: =TRUNC(SUM(T23:T26),1) -> 0 | U29: =TRUNC(SUM(U23:U26),1) -> 0 | V29: =TRUNC(SUM(V23:V26),1) -> 0 | W29: =TRUNC(SUM(W23:W26),1) -> 0
B30: Supplemental: | D30: ="Nitrogen ("&Fertilizer!E14&"-"&Fertilizer!F14&"-"&Fertilizer!G14&"-"&Fertilizer!H14&")" -> Nitrogen (28-0-0-0) | E30: =MAXA(0,(C18)/(Fertilizer!E14/100)) -> 0 | F30: =(E30*H3)/2204.6 -> 0 | G30: =P33 -> 0 | I30: =P36 -> 0 | J30: =SUM(H3*I30) -> 0 | O30: =SUM(F27*Fertilizer!C11) -> 0 | P30: =SUM(E27*(Fertilizer!C11/2204.5855)) -> 0 | S30: Guarentee | T30: =TRUNC(T29/E28*100,1) ->  | U30: =TRUNC(U29/E28*100,1) ->  | V30: =TRUNC(V29/E28*100,1) ->  | W30: =TRUNC(W29/E28*100,1) -> 
O31: =SUM(F28*Fertilizer!C12) -> 0 | P31: =SUM(E28*(Fertilizer!C12/2204.5855)) -> 0
A32: Crop Protection
